Workbook

Sheet Parametri
A1: Parametri
A3: Nome istituto: | B3: ESEMPIO - CPA STANDARD CON CAT-STT
A5: Bur_nr: | B5: 99999999 | D5: Il numero BUR è necessario per SOMED. Se non lo conoscete trovate il numero del vostro Istituto nelle istruzioni SOMED.
A7: Anno dati: | B7: 2021
A9: Percorso files per SOMED: | B9: C:\temp | D9: Specificare il percorso dove verrà creato e salvato il file che dovrà poi essere importato in SOMED-A Online. Specificare un percorso valido (che esiste) nel vostro PC.
A11: Estensione files per SOMED: | B11: dat | D11: L'estensione in uso per il file dati SOMED è "dat". È possibile utilizzarne anche altre (es. "txt").
A13: Tasso d'interesse applicato: | B13: 0.037 | D13: Valore normativo non modificabile
A17: Data di calcolo: | B17: =DATE(B7,12,31) -> 2021-12-31
A19: Data/ora creazione files: | B19: =TEXT(NOW(),"aaaammgghhmmss") -> 20220221111902
A21: Nome file investimenti: | B21: =$B$9 & "\Somed_Investimenti_" & $B$7 & "_" & $B$5 & "."&$B$11 -> C:\temp\Somed_Investimenti_2021_99999999.dat | D21: Il file che verrà creato a questo indirizzo conterrà i dati del capitolo E4 di SOMED e dovrà essere caricato in SOMED online.
A23: Nome file costi/ricavi: | B23: =$B$9 & "\Somed_Costi_Ricavi_" & $B$7 & "_" & $B$5 & "."&$B$11 -> C:\temp\Somed_Costi_Ricavi_2021_99999999.dat | D23: Il file che verrà creato a questo indirizzo conterrà i dati dei capitoli E0, E1, E2, E5 ed E6 di SOMED e dovrà essere caricato in SOMED-A Online. Il capitolo E3 (risultato d'esercizio) dovrà essere compilato a mano nel questionario SOMED-A Online.
A25: Versione 2022-02-21, 12:00, MEF-CHL

Sheet Istruzioni generali e COAN
A1: Istruzioni generali | E1: Istruzioni per la contabilità analitica | H1: Istruzioni per la contabilità analitica (continuazione)
A3: Spiegazioni sui colori usati nei diversi fogli | E3: Non esiste un'unica sequenza possibile di passi per compilare i fogli, dato che ogni foglio si basa, in parte, | H3: CD | I3: Il pulsante CANCELLA DATI elimina tutti i dati sul foglio (lasciando le formule). Questo programma
E4: su dati contenuti in altri fogli. Indichiamo una delle possibili sequenze per completare la COAN. | I4: è da lanciare quando si modifica la contabilità per CdC per UACD, ad esempio per un errore o
A5: Per facilitare il lavoro con il file Excel COAN-COIN sono stati formattati i diversi fogli in modo uniforme. | E5: Oltre alle istruzioni riportate sotto, altre più dettagliate si trovano nei singoli fogli di lavoro. | I5: perché si stanno aggiornando i dati di un nuovo anno contabile.
A6: In particolare, nei fogli da completare, si è adottato la seguente colorazione:
H7: ID | I7: Il pulsante IMPORTA DATI compila il foglio "Contabilità per CDC - SOMED" con i dati del foglio
B8: celle con sfondo bianco | C8: : campi dove digitare/compilare le informazioni richieste | E8: Istruzioni e sequenza suggerita per il lavoro con i fogli Excel COAN: | I8: "Contabilità per CDC - UACD", e più precisamente copiando i dati solo delle celle con sfondo bianco, violetto
B9: celle celesti | C9: : campi con valori fissi o menu a tendina | I9: e grigio chiaro. L'importazione dei dati presenta le seguenti caratteristiche:
B10: celle verdi | C10: : campi calcolati automaticamente | E10: 1 | F10: Compilare il foglio "Ripartizioni", in particolare aggiornare i dati annuali e scegliere il metodo | I10: A) Le righe seguenti non sono copiate dal foglio "Contabilità CDC - UACD" ma seguono altre regole:
B11: celle grigie | C11: : campi che non contengono dati | F11: per esporre gli oneri sociali. Vedi le istruzioni nel foglio. | I11: - Conto 37: gli oneri sociali sono calcolati (formule nella riga 37) in base ai salari esposti nelle righe soprastanti (c.ti
I12: 3000 a 3005) e al totale degli oneri sociali (colonna E). Quindi i dati in questa riga si modificheranno ogni volta che
E13: 2 | F13: Compilare il foglio "Contabilità per CDC - UACD" con i dati del vostro sistema di contabilità analitica. | I13: le delimitazioni saranno modificate e i salari delle colonne violette spostati sotto i CdC principali
A14: Fogli in questo file e loro utilità | F14: Non si sa in che misura il passaggio dei dati dal vostro sistema gestionale al file Excel sia automatizzato. | I14: - Neutralizzazione cassa pensione: tralasciato in quanto non considerato per SOMED
F15: Se è stato automatizzato, per esportare i dati bisogna seguire le istruzioni del vostro sviluppatore | I15: - Conti 442 e 448: i dati provengono dalla COIN per SOMED
A16: 1 | B16: Parametri | C16: I parametri servono sia per la COAN sia per la COIN | F16: informatico. | I16: - Conti 443 e 444: i dati sono tralasciati poiché l'istituto deve, nel caso di locazioni, elencare i relativi investimenti
F17: Inoltre occorre prestare particolare attenzione ai costi degli investimenti (conti 442, 443, 444, 448 e 46). | I17: nella COIN per SOMED
A18: 2 | B18: Istruzioni generali e COAN | F18: Da notare che, nei ricavi, le celle bianche contornate dovrebbero tutte contenere i relativi importi. | I18: - Conto 66: i dati sono tralasciati poiché non considerati (per la Statistica SOMED-A) parte dell'attività dell'Istituto.
A19: 3 | B19: COAN verifica | C19: Verifica la completezza e la coerenza dei dati per UACD | I19: - Conto EX 7: i dati del conto 7 non sono ricopiati dalla contabilità UACD, visto che le gestioni straordinarie ed
A20: 4 | B20: Ripartizioni | C20: I parametri definiti vengono applicati ai fogli 5, 6, 7, 8 e 9 | E20: 3 | F20: Esaminare il foglio "COAN Verifica". Se ci sono degli errori correggere i dati nei fogli "Ripartizioni" e/o | I20: estranee non compaiono in SOMED
A21: 5 | B21: Contabilità per CDC - UACD | C21: Foglio generale della COAN | F21: "Contabilità per CDC - UACD", fino a eliminare tutti gli errori. | I21: Al posto di questi (e impropriamente) nella riga EX 7 sono esposti i costi ripartiti, nella contabilità per UACD,
A22: 6 | B22: Contabilità per UFI 1 | C22: Contabilità per UFI 1 per UACD | I22: sui CdC DELIMITATI per la SOMED, algine di ridurre in modo adeguato il totale dei costi generali da ripartire
A23: 7 | B23: Contabilità per UFI 2 | C23: Contabilità per UFI 2 per UACD | E23: Dopo questi tre passi e dopo avere allestito la contabilità degli investimenti (foglio "Cespiti ContabilitàInvestimenti"), | I23: - Costi netti prima delle ripartizioni: grazie alla riga EX 7, si ottengono i nuovi costi dei CdC generali da ripartire,
C24: Questo foglio permette di ri-elaborare i dati del foglio 5 secondo le | E24: si possono esaminare i risultati nei fogli "Contabilità per UFI 1 e 2" per UACD. | I24: già epurati dei costi generali dei CdC delimitati (tralasciati) per SOMED.
A25: 8 | B25: Contabilità per CDC - SOMED | C25: necessità SOMED, in particolare serve per tralasciare i CdC che non | I25: - Conto 609: le perdite sui debitori di anni precedenti non sono ricopiati in quanto da tralasciare per SOMED
C26: devono entrare nella Statistica SOMED-A | E26: 4 | F26: Il foglio "Contabilità per UFI 1" per UACD è interamente calcolato, ad eccezione dell'aliquota per la "Cura LAMal", | I26: - Risultato di gestione: questa riga non è ricopiata dalla contabilità per UACD bensì ricalcolata con i nuovi dati SOMED.
C27: Questo foglio permette di elaborare ulteriormente i dati del foglio 8 | F27: che può essere se del caso modificata, digitando i nuovi dati nella colonna con sfondo bianco.
A28: 9 | B28: Contabilità per UFI - SOMED | C28: in modo da predisporre i dati per il questionario SOMED-A. Inoltre in questo | F28: (da notare che l'aliquota della "Cura non LAMal" è dedotta dalla precedente). | I28: B) Inoltre la colorazione dei diversi CdC (colonne) ha il seguente significato:
C29: foglio c'è il bottone per creare il file di esportazione per SOMED-A Online. | I29: - sfondo bianco: CdC rilevanti per SOMED, vanno mantenuti
E30: 5 | F30: Nel foglio "Contabilità per UFI 2" per UACD occorre inserire le giornate LAMal a cui si riferiscono i dati contabili. | I30: - sfondo violetto: CdC i cui costi devono essere inclusi in SOMED, non possono essere lasciati come servizi
A31: 10 | B31: Istruzioni COIN | F31: Le giornate, da inserire nelle celle su sfondo bianco, non devono comprendere le giornate del settore | I31: annessi a sé stanti (perché tali CdC non sono previsti dalla Statistica SOMED-A) e pertanto devono essere
A32: 11 | B32: Codici COIN | C32: Tabelle di nomenclatura per la COIN (definizioni) | F32: CAT-STT e, se i relativi costi sono stati separati nei CdC 162 e 163, nemmeno quelle degli ospiti | I32: SPOSTATI (aggregati) nei CdC principali
A33: 12 | B33: CespitiContabilitàInvestimenti | C33: Giornale degli investimenti | F33: dei reparti di cure palliative e/o del reparto Alzheimer, in quanto questo foglio considera solo i costi | I33: - sfondo celeste: CdC da delimitare, ossia i cui costi devono essere tralasciati per SOMED, poiché la Statistica
A34: 13 | B34: Resoconti COIN | C34: Riassunti della COIN per UACD e per SOMED nonché programma | F34: dei CdC principali, senza includere i costi dei servizi annessi. | I34: SOMED-A non considera questo tipo di attività come facente parte dell'attività dell'istituto. Per DELIMITARE i costi
C35: per creare il file di esportazione con i dati COIN per SOMED-A Online (E4) | I35: dei CdC con sfondo celeste è possibile utilizzare il pulsante AGGIORNA DELIMITAZIONI.
E36: Da ultimo occorre allestire la contabilità per SOMED. Si tratta in particolare :
F37: - di spostare i costi di alcuni servizi annessi e delle voci non finanziate nei centri di costo generali e/o principali | H37: AD | I37: Il pulsante AGGIORNA DELIMITAZIONI trasferisce, sommandoli agli importi già presenti, tutti gli
A38: Stampa dei fogli | F38: - di delimitare (escludere) i centri di costo che per definizione esulano da SOMED (in particolare CdC annessi | I38: importi delle celle celesti nella colonna D delle delimitazioni. Inoltre azzera le celle celesti.
A39: Le stampe sono impostate per il formato A3. Talvolta le formattazioni per la stampa sono cancellate | F39: quali appartamenti protetti, ambulatorio medico, come pure TUTTE le gestioni estranee e straordinarie).
A40: quando il file viene trasmesso e potrebbe essere necessario reimpostarle tutte. | E40: I fogli SOMED sono stati programmati affinché un massimo di queste operazioni vengano effettuate automaticamente. | I40: A questo punto occorre SPOSTARE a mano i costi dei CdC che non sono considerati servizi annessi in SOMED
E41: Alcune operazioni devono però essere completate a mano. | I41: (celle con sfondo violetto).
I42: Gli importi nelle celle violette vanno spostati a mano, sommandoli (nella stessa riga) sotto il CdC principale
E43: 6 | F43: Foglio "Ripartizioni": dati per SOMED | I43: (o CdC generale) che ha generato l'importo, e togliendoli dalle celle con sfondo violetto (azzerandole).
F44: La "Tab 2B" del foglio "Ripartizioni" contiene i pesi per SOMED, calcolati a partire dai pesi per la COAN per UACD.
F45: Poiché il questionario SOMED-A non prevede alcuni dei servizi annessi quali CdC a sé stanti, occorre inserire | I45: Al termine dei procedimenti di DELIMITAZIONE e SPOSTAMENTO, tutte le celle con sfondo violetto
F46: detti servizi annessi all'interno dei CdC principali. | I46: o celeste devono contenere degli zeri o essere vuote.
F47: L'ultima colonna a destra della "Tab. 2B" permette di verificare se le riattribuzioni dei pesi sono corrette, ovvero
F48: se i pesi nella "Tab. 2B" sommati ai pesi tralasciati da essa (delimitati) danno lo stesso totale della "Tab. 2A". | H48: (RI) | I48: A questo punto la contabilità analitica per CDC ai fine della SOMED è terminata. Se si dovessero riscontrare
I49: problemi nelle ripartizioni (segnali di errore nelle righe 47-57 di questo foglio) potrebbe essere necessario
E50: RI | F50: Nella parte bassa del foglio "Ripartizioni" (per SOMED) si trova anche il pulsante RESET ITERAZIONI. | I50: lanciare il programma (pulsante) RESET ITERAZIONI che si trova nel foglio "Ripartizioni".
F51: Questo programma deve essere lanciato quando nella "Tab. 2B" (e nel fogli "Contabilità per CdC") appaiono dei
F52: segnali di errore, in particolare le divisioni per zero. Le formule per calcolare le ripartizioni sono formule Excel | H52: 8 | I52: Foglio "Contabilità per UFI - SOMED"
F53: iterative, e talvolta, vista la complessità del file, queste iterazioni si bloccano e i calcoli non vengono eseguiti | I53: Il foglio "Contabilità per UFI - SOMED" serve a compilare tutti i capitoli della parte contabile inerenti alla Stastistica
F54: correttamente. Con il pulsante si rilanciano le formule. | I54: SOMED-A, salvo la parte degli investimenti. Esso è quasi totalmente automatizzato, infatti le celle (bianche) da
I55: compilare sono poche. I dati sono ripresi praticamente tutti dal foglio "Contabilità per CDC - SOMED".
E56: 7 | F56: Foglio "Contabilità per CDC - SOMED" | I56: Per la Statistica SOMED-A, sia il contributo globale annuo di gestione erogato alla CPA, sia per il Reparto CAT-STT,
F57: Quando le ripartizioni e la contabilità degli investimenti sono sistemate, è possibile passare al foglio | I57: sono stimati in base all'ipotesi di un PAREGGIO D'ESERCIZIO. A questo scopo, i calcoli sono eseguiti nella zona con
F58: "Contabilità per CDC - SOMED". Per compilare questa parte occorre lanciare i tre programmi previsti nel foglio | I58: sfondo celeste e, in seguito, i risultati inscritti nella parte SOMED.
F59: nel seguente ordine: | I59: Dopo avere terminato i controlli, è possibile usare il pulsante per creare il file di esportazione dati per la Statistica
I60: SOMED-A Online.

Sheet COAN Verifica
A1: Verifica di attendibilità
A2: =Parametri!$B$7 -> 2021 | B2: =Parametri!$B$3 -> ESEMPIO - CPA STANDARD CON CAT-STT
B5: Voci di costo | C5: Il totale dei costi è ripartito correttamente
C6: sulle voci di costo?
A7: ='Contabilità per CDC - UACD'!A9 -> 3000 | B7: ='Contabilità per CDC - UACD'!B9 -> Salari medici | C7: =IF(ABS('Contabilità per CDC - UACD'!E9-'Contabilità per CDC - UACD'!Q9-'Contabilità per CDC - UACD'!AA9-'Contabilità per CDC - UACD'!AP9-'Contabilità per CDC - UACD'!AR9-'Contabilità per CDC - UACD'!AU9-'Contabilità per CDC - UACD'!BF9-'Contabilità per CDC - UACD'!BH9)<=0.01,"OK","") -> OK | D7: =IF(C7="OK","","Errore") -> 
A8: ='Contabilità per CDC - UACD'!A10 -> 3001 | B8: ='Contabilità per CDC - UACD'!B10 -> Salari responsabili di struttura | C8: =IF(ABS('Contabilità per CDC - UACD'!E10-'Contabilità per CDC - UACD'!Q10-'Contabilità per CDC - UACD'!AA10-'Contabilità per CDC - UACD'!AP10-'Contabilità per CDC - UACD'!AR10-'Contabilità per CDC - UACD'!AU10-'Contabilità per CDC - UACD'!BF10-'Contabilità per CDC - UACD'!BH10)<=0.01,"OK","") -> OK | D8: =IF(C8="OK","","Errore") -> 
A9: ='Contabilità per CDC - UACD'!A11 -> 3001.05 | B9: ='Contabilità per CDC - UACD'!B11 -> Salari capi reparto | C9: =IF(ABS('Contabilità per CDC - UACD'!E11-'Contabilità per CDC - UACD'!Q11-'Contabilità per CDC - UACD'!AA11-'Contabilità per CDC - UACD'!AP11-'Contabilità per CDC - UACD'!AR11-'Contabilità per CDC - UACD'!AU11-'Contabilità per CDC - UACD'!BF11-'Contabilità per CDC - UACD'!BH11)<=0.01,"OK","") -> OK
A10: ='Contabilità per CDC - UACD'!A12 -> 3001.1 | B10: ='Contabilità per CDC - UACD'!B12 -> Salari infermieri e operatori socio sanitari (OSS) | C10: =IF(ABS('Contabilità per CDC - UACD'!E12-'Contabilità per CDC - UACD'!Q12-'Contabilità per CDC - UACD'!AA12-'Contabilità per CDC - UACD'!AP12-'Contabilità per CDC - UACD'!AR12-'Contabilità per CDC - UACD'!AU12-'Contabilità per CDC - UACD'!BF12-'Contabilità per CDC - UACD'!BH12)<=0.01,"OK","") -> OK
A11: ='Contabilità per CDC - UACD'!A13 -> 3001.2 | B11: ='Contabilità per CDC - UACD'!B13 -> Salari assistenti e ausiliari di cura | C11: =IF(ABS('Contabilità per CDC - UACD'!E13-'Contabilità per CDC - UACD'!Q13-'Contabilità per CDC - UACD'!AA13-'Contabilità per CDC - UACD'!AP13-'Contabilità per CDC - UACD'!AR13-'Contabilità per CDC - UACD'!AU13-'Contabilità per CDC - UACD'!BF13-'Contabilità per CDC - UACD'!BH13)<=0.01,"OK","") -> OK
A12: ='Contabilità per CDC - UACD'!A14 -> 3001.3 | B12: ='Contabilità per CDC - UACD'!B14 -> Salari dietisti | C12: =IF(ABS('Contabilità per CDC - UACD'!E14-'Contabilità per CDC - UACD'!Q14-'Contabilità per CDC - UACD'!AA14-'Contabilità per CDC - UACD'!AP14-'Contabilità per CDC - UACD'!AR14-'Contabilità per CDC - UACD'!AU14-'Contabilità per CDC - UACD'!BF14-'Contabilità per CDC - UACD'!BH14)<=0.01,"OK","") -> OK | D12: =IF(C12="OK","","Errore") -> 
A13: ='Contabilità per CDC - UACD'!A15 -> 3001.9 | B13: ='Contabilità per CDC - UACD'!B15 -> Salari personale di cura in formazione e stagisti | C13: =IF(ABS('Contabilità per CDC - UACD'!E15-'Contabilità per CDC - UACD'!Q15-'Contabilità per CDC - UACD'!AA15-'Contabilità per CDC - UACD'!AP15-'Contabilità per CDC - UACD'!AR15-'Contabilità per CDC - UACD'!AU15-'Contabilità per CDC - UACD'!BF15-'Contabilità per CDC - UACD'!BH15)<=0.01,"OK","") -> OK
A14: ='Contabilità per CDC - UACD'!A16 -> 3002 | B14: ='Contabilità per CDC - UACD'!B16 -> Salari personale altre discipline mediche specializzate | C14: =IF(ABS('Contabilità per CDC - UACD'!E16-'Contabilità per CDC - UACD'!Q16-'Contabilità per CDC - UACD'!AA16-'Contabilità per CDC - UACD'!AP16-'Contabilità per CDC - UACD'!AR16-'Contabilità per CDC - UACD'!AU16-'Contabilità per CDC - UACD'!BF16-'Contabilità per CDC - UACD'!BH16)<=0.01,"OK","") -> OK
A15: ='Contabilità per CDC - UACD'!A17 -> 3003 | B15: ='Contabilità per CDC - UACD'!B17 -> Salari personale amministrativo | C15: =IF(ABS('Contabilità per CDC - UACD'!E17-'Contabilità per CDC - UACD'!Q17-'Contabilità per CDC - UACD'!AA17-'Contabilità per CDC - UACD'!AP17-'Contabilità per CDC - UACD'!AR17-'Contabilità per CDC - UACD'!AU17-'Contabilità per CDC - UACD'!BF17-'Contabilità per CDC - UACD'!BH17)<=0.01,"OK","") -> OK
A16: ='Contabilità per CDC - UACD'!A18 -> 3004 | B16: ='Contabilità per CDC - UACD'!B18 -> Salari personale servizio alberghiero | C16: =IF(ABS('Contabilità per CDC - UACD'!E18-'Contabilità per CDC - UACD'!Q18-'Contabilità per CDC - UACD'!AA18-'Contabilità per CDC - UACD'!AP18-'Contabilità per CDC - UACD'!AR18-'Contabilità per CDC - UACD'!AU18-'Contabilità per CDC - UACD'!BF18-'Contabilità per CDC - UACD'!BH18)<=0.01,"OK","") -> OK
A17: ='Contabilità per CDC - UACD'!A19 -> 3005 | B17: ='Contabilità per CDC - UACD'!B19 -> Salari personale servizio tecnico | C17: =IF(ABS('Contabilità per CDC - UACD'!E19-'Contabilità per CDC - UACD'!Q19-'Contabilità per CDC - UACD'!AA19-'Contabilità per CDC - UACD'!AP19-'Contabilità per CDC - UACD'!AR19-'Contabilità per CDC - UACD'!AU19-'Contabilità per CDC - UACD'!BF19-'Contabilità per CDC - UACD'!BH19)<=0.01,"OK","") -> OK
A18: ='Contabilità per CDC - UACD'!A20 -> 3009 | B18: ='Contabilità per CDC - UACD'!B20 -> Prestazioni continuative da parte di personale esterno | C18: =IF(ABS('Contabilità per CDC - UACD'!E20-'Contabilità per CDC - UACD'!Q20-'Contabilità per CDC - UACD'!AA20-'Contabilità per CDC - UACD'!AP20-'Contabilità per CDC - UACD'!AR20-'Contabilità per CDC - UACD'!AU20-'Contabilità per CDC - UACD'!BF20-'Contabilità per CDC - UACD'!BH20)<=0.01,"OK","") -> OK
A19: ='Contabilità per CDC - UACD'!A21 -> 309 | B19: ='Contabilità per CDC - UACD'!B21 -> Messa a disposizione di personale a terzi | C19: =IF(ABS('Contabilità per CDC - UACD'!E21-'Contabilità per CDC - UACD'!Q21-'Contabilità per CDC - UACD'!AA21-'Contabilità per CDC - UACD'!AP21-'Contabilità per CDC - UACD'!AR21-'Contabilità per CDC - UACD'!AU21-'Contabilità per CDC - UACD'!BF21-'Contabilità per CDC - UACD'!BH21)<=0.01,"OK","") -> OK
A20: ='Contabilità per CDC - UACD'!A22 -> 37 | B20: ='Contabilità per CDC - UACD'!B22 -> Oneri sociali | C20: =IF(ABS('Contabilità per CDC - UACD'!E22-'Contabilità per CDC - UACD'!Q22-'Contabilità per CDC - UACD'!AA22-'Contabilità per CDC - UACD'!AP22-'Contabilità per CDC - UACD'!AR22-'Contabilità per CDC - UACD'!AU22-'Contabilità per CDC - UACD'!BF22-'Contabilità per CDC - UACD'!BH22)<=0.01,"OK","") -> OK
B21: ='Contabilità per CDC - UACD'!B23 -> Neutralizzazione cassa pensione | C21: =IF(ABS('Contabilità per CDC - UACD'!E23-'Contabilità per CDC - UACD'!Q23-'Contabilità per CDC - UACD'!AA23-'Contabilità per CDC - UACD'!AP23-'Contabilità per CDC - UACD'!AR23-'Contabilità per CDC - UACD'!AU23-'Contabilità per CDC - UACD'!BF23-'Contabilità per CDC - UACD'!BH23)<=0.01,"OK","") -> OK | D21: =IF(C21="OK","","Errore") -> 
A22: ='Contabilità per CDC - UACD'!A24 -> 38 | B22: ='Contabilità per CDC - UACD'!B24 -> Onorari medici | C22: =IF(ABS('Contabilità per CDC - UACD'!E24-'Contabilità per CDC - UACD'!Q24-'Contabilità per CDC - UACD'!AA24-'Contabilità per CDC - UACD'!AP24-'Contabilità per CDC - UACD'!AR24-'Contabilità per CDC - UACD'!AU24-'Contabilità per CDC - UACD'!BF24-'Contabilità per CDC - UACD'!BH24)<=0.01,"OK","") -> OK
A23: ='Contabilità per CDC - UACD'!A25 -> 39 | B23: ='Contabilità per CDC - UACD'!B25 -> Altri costi del personale | C23: =IF(ABS('Contabilità per CDC - UACD'!E25-'Contabilità per CDC - UACD'!Q25-'Contabilità per CDC - UACD'!AA25-'Contabilità per CDC - UACD'!AP25-'Contabilità per CDC - UACD'!AR25-'Contabilità per CDC - UACD'!AU25-'Contabilità per CDC - UACD'!BF25-'Contabilità per CDC - UACD'!BH25)<=0.01,"OK","") -> OK
A24: ='Contabilità per CDC - UACD'!A26 -> 40 | B24: ='Contabilità per CDC - UACD'!B26 -> Fabbisogno medico | C24: =IF(ABS('Contabilità per CDC - UACD'!E26-'Contabilità per CDC - UACD'!Q26-'Contabilità per CDC - UACD'!AA26-'Contabilità per CDC - UACD'!AP26-'Contabilità per CDC - UACD'!AR26-'Contabilità per CDC - UACD'!AU26-'Contabilità per CDC - UACD'!BF26-'Contabilità per CDC - UACD'!BH26)<=0.01,"OK","") -> OK
A25: ='Contabilità per CDC - UACD'!A27 -> 41 | B25: ='Contabilità per CDC - UACD'!B27 -> Costi dei generi alimentari | C25: =IF(ABS('Contabilità per CDC - UACD'!E27-'Contabilità per CDC - UACD'!Q27-'Contabilità per CDC - UACD'!AA27-'Contabilità per CDC - UACD'!AP27-'Contabilità per CDC - UACD'!AR27-'Contabilità per CDC - UACD'!AU27-'Contabilità per CDC - UACD'!BF27-'Contabilità per CDC - UACD'!BH27)<=0.01,"OK","") -> OK
A26: ='Contabilità per CDC - UACD'!A28 -> 42 | B26: ='Contabilità per CDC - UACD'!B28 -> Costi di economia domestica | C26: =IF(ABS('Contabilità per CDC - UACD'!E28-'Contabilità per CDC - UACD'!Q28-'Contabilità per CDC - UACD'!AA28-'Contabilità per CDC - UACD'!AP28-'Contabilità per CDC - UACD'!AR28-'Contabilità per CDC - UACD'!AU28-'Contabilità per CDC - UACD'!BF28-'Contabilità per CDC - UACD'!BH28)<=0.01,"OK","") -> OK
A27: ='Contabilità per CDC - UACD'!A29 -> 43 | B27: ='Contabilità per CDC - UACD'!B29 -> Manutenzione e riparazione | C27: =IF(ABS('Contabilità per CDC - UACD'!E29-'Contabilità per CDC - UACD'!Q29-'Contabilità per CDC - UACD'!AA29-'Contabilità per CDC - UACD'!AP29-'Contabilità per CDC - UACD'!AR29-'Contabilità per CDC - UACD'!AU29-'Contabilità per CDC - UACD'!BF29-'Contabilità per CDC - UACD'!BH29)<=0.01,"OK","") -> OK
A28: ='Contabilità per CDC - UACD'!A30 -> 440 | B28: ='Contabilità per CDC - UACD'!B30 -> Investimenti inferiori al limite di attivazione COAN | C28: =IF(ABS('Contabilità per CDC - UACD'!E30-'Contabilità per CDC - UACD'!Q30-'Contabilità per CDC - UACD'!AA30-'Contabilità per CDC - UACD'!AP30-'Contabilità per CDC - UACD'!AR30-'Contabilità per CDC - UACD'!AU30-'Contabilità per CDC - UACD'!BF30-'Contabilità per CDC - UACD'!BH30)<=0.01,"OK","") -> OK
A29: ='Contabilità per CDC - UACD'!A31 -> 442 | B29: ='Contabilità per CDC - UACD'!B31 -> Ammortamenti | C29: =IF(ABS('Contabilità per CDC - UACD'!E31-'Contabilità per CDC - UACD'!Q31-'Contabilità per CDC - UACD'!AA31-'Contabilità per CDC - UACD'!AP31-'Contabilità per CDC - UACD'!AR31-'Contabilità per CDC - UACD'!AU31-'Contabilità per CDC - UACD'!BF31-'Contabilità per CDC - UACD'!BH31)<=0.01,"OK","") -> OK | D29: =IF(C29="OK","","Errore") -> 
A30: ='Contabilità per CDC - UACD'!A32 -> 443 | B30: ='Contabilità per CDC - UACD'!B32 -> Canoni di locaz. per immobilizzaz. < limite di attivazione COAN | C30: =IF(ABS('Contabilità per CDC - UACD'!E32-'Contabilità per CDC - UACD'!Q32-'Contabilità per CDC - UACD'!AA32-'Contabilità per CDC - UACD'!AP32-'Contabilità per CDC - UACD'!AR32-'Contabilità per CDC - UACD'!AU32-'Contabilità per CDC - UACD'!BF32-'Contabilità per CDC - UACD'!BH32)<=0.01,"OK","") -> OK
A31: ='Contabilità per CDC - UACD'!A33 -> 444 | B31: ='Contabilità per CDC - UACD'!B33 -> Canoni di locaz. per immobilizzaz. >= limite di attivazione COAN | C31: =IF(ABS('Contabilità per CDC - UACD'!E33-'Contabilità per CDC - UACD'!Q33-'Contabilità per CDC - UACD'!AA33-'Contabilità per CDC - UACD'!AP33-'Contabilità per CDC - UACD'!AR33-'Contabilità per CDC - UACD'!AU33-'Contabilità per CDC - UACD'!BF33-'Contabilità per CDC - UACD'!BH33)<=0.01,"OK","") -> OK
A32: ='Contabilità per CDC - UACD'!A34 -> 448 | B32: ='Contabilità per CDC - UACD'!B34 -> Interessi calcolatori sull'attivo fisso | C32: =IF(ABS('Contabilità per CDC - UACD'!E34-'Contabilità per CDC - UACD'!Q34-'Contabilità per CDC - UACD'!AA34-'Contabilità per CDC - UACD'!AP34-'Contabilità per CDC - UACD'!AR34-'Contabilità per CDC - UACD'!AU34-'Contabilità per CDC - UACD'!BF34-'Contabilità per CDC - UACD'!BH34)<=0.01,"OK","") -> OK
A33: ='Contabilità per CDC - UACD'!A35 -> 45 | B33: ='Contabilità per CDC - UACD'!B35 -> Costi per energia e acqua | C33: =IF(ABS('Contabilità per CDC - UACD'!E35-'Contabilità per CDC - UACD'!Q35-'Contabilità per CDC - UACD'!AA35-'Contabilità per CDC - UACD'!AP35-'Contabilità per CDC - UACD'!AR35-'Contabilità per CDC - UACD'!AU35-'Contabilità per CDC - UACD'!BF35-'Contabilità per CDC - UACD'!BH35)<=0.01,"OK","") -> OK
A34: ='Contabilità per CDC - UACD'!A36 -> 46 | B34: ='Contabilità per CDC - UACD'!B36 -> Oneri finanziari | C34: =IF(ABS('Contabilità per CDC - UACD'!E36-'Contabilità per CDC - UACD'!Q36-'Contabilità per CDC - UACD'!AA36-'Contabilità per CDC - UACD'!AP36-'Contabilità per CDC - UACD'!AR36-'Contabilità per CDC - UACD'!AU36-'Contabilità per CDC - UACD'!BF36-'Contabilità per CDC - UACD'!BH36)<=0.01,"OK","") -> OK
A35: ='Contabilità per CDC - UACD'!A37 -> 47 | B35: ='Contabilità per CDC - UACD'!B37 -> Costi amministrativi e di informatica | C35: =IF(ABS('Contabilità per CDC - UACD'!E37-'Contabilità per CDC - UACD'!Q37-'Contabilità per CDC - UACD'!AA37-'Contabilità per CDC - UACD'!AP37-'Contabilità per CDC - UACD'!AR37-'Contabilità per CDC - UACD'!AU37-'Contabilità per CDC - UACD'!BF37-'Contabilità per CDC - UACD'!BH37)<=0.01,"OK","") -> OK
A36: ='Contabilità per CDC - UACD'!A38 -> 48 | B36: ='Contabilità per CDC - UACD'!B38 -> Altri costi relativi ai residenti | C36: =IF(ABS('Contabilità per CDC - UACD'!E38-'Contabilità per CDC - UACD'!Q38-'Contabilità per CDC - UACD'!AA38-'Contabilità per CDC - UACD'!AP38-'Contabilità per CDC - UACD'!AR38-'Contabilità per CDC - UACD'!AU38-'Contabilità per CDC - UACD'!BF38-'Contabilità per CDC - UACD'!BH38)<=0.01,"OK","") -> OK
A37: ='Contabilità per CDC - UACD'!A39 -> 49 | B37: ='Contabilità per CDC - UACD'!B39 -> Altri costi non relativi ai residenti | C37: =IF(ABS('Contabilità per CDC - UACD'!E39-'Contabilità per CDC - UACD'!Q39-'Contabilità per CDC - UACD'!AA39-'Contabilità per CDC - UACD'!AP39-'Contabilità per CDC - UACD'!AR39-'Contabilità per CDC - UACD'!AU39-'Contabilità per CDC - UACD'!BF39-'Contabilità per CDC - UACD'!BH39)<=0.01,"OK","") -> OK
A39: ='Contabilità per CDC - UACD'!A42 -> 65 | B39: ='Contabilità per CDC - UACD'!B42 -> Altri ricavi da prestazioni ai residenti | C39: =IF(ABS('Contabilità per CDC - UACD'!E42-'Contabilità per CDC - UACD'!Q42-'Contabilità per CDC - UACD'!AA42-'Contabilità per CDC - UACD'!AP42-'Contabilità per CDC - UACD'!AR42-'Contabilità per CDC - UACD'!AU42-'Contabilità per CDC - UACD'!BF42-'Contabilità per CDC - UACD'!BH42)<=0.01,"OK","") -> OK
A40: ='Contabilità per CDC - UACD'!A43 -> 66 | B40: ='Contabilità per CDC - UACD'!B43 -> Ricavi finanziari | C40: =IF(ABS('Contabilità per CDC - UACD'!E43-'Contabilità per CDC - UACD'!Q43-'Contabilità per CDC - UACD'!AA43-'Contabilità per CDC - UACD'!AP43-'Contabilità per CDC - UACD'!AR43-'Contabilità per CDC - UACD'!AU43-'Contabilità per CDC - UACD'!BF43-'Contabilità per CDC - UACD'!BH43)<=0.01,"OK","") -> OK
A41: ='Contabilità per CDC - UACD'!A44 -> 68 | B41: ='Contabilità per CDC - UACD'!B44 -> Ricavi da prestazioni fornite al personale e a terzi | C41: =IF(ABS('Contabilità per CDC - UACD'!E44-'Contabilità per CDC - UACD'!Q44-'Contabilità per CDC - UACD'!AA44-'Contabilità per CDC - UACD'!AP44-'Contabilità per CDC - UACD'!AR44-'Contabilità per CDC - UACD'!AU44-'Contabilità per CDC - UACD'!BF44-'Contabilità per CDC - UACD'!BH44)<=0.01,"OK","") -> OK
A42: ='Contabilità per CDC - UACD'!A45 -> 7 | B42: ='Contabilità per CDC - UACD'!B45 -> Imposte, risultato estraneo all'esercizio e straordinario | C42: =IF(ABS('Contabilità per CDC - UACD'!E45-'Contabilità per CDC - UACD'!Q45-'Contabilità per CDC - UACD'!AA45-'Contabilità per CDC - UACD'!AP45-'Contabilità per CDC - UACD'!AR45-'Contabilità per CDC - UACD'!AU45-'Contabilità per CDC - UACD'!BF45-'Contabilità per CDC - UACD'!BH45)<=0.01,"OK","") -> OK
A44: ='Contabilità per CDC - UACD'!A62 -> 6000 | B44: ='Contabilità per CDC - UACD'!B62 -> Rette - Anziani | C44: =IF(ABS('Contabilità per CDC - UACD'!E62-'Contabilità per CDC - UACD'!Q62-'Contabilità per CDC - UACD'!AA62-'Contabilità per CDC - UACD'!AP62-'Contabilità per CDC - UACD'!AR62-'Contabilità per CDC - UACD'!AU62-'Contabilità per CDC - UACD'!BF62-'Contabilità per CDC - UACD'!BH62)<=0.01,"OK","") -> OK
A45: ='Contabilità per CDC - UACD'!A63 -> 6001 | B45: ='Contabilità per CDC - UACD'!B63 -> Partecipazioni delle casse malati | C45: =IF(ABS('Contabilità per CDC - UACD'!E63-'Contabilità per CDC - UACD'!Q63-'Contabilità per CDC - UACD'!AA63-'Contabilità per CDC - UACD'!AP63-'Contabilità per CDC - UACD'!AR63-'Contabilità per CDC - UACD'!AU63-'Contabilità per CDC - UACD'!BF63-'Contabilità per CDC - UACD'!BH63)<=0.01,"OK","") -> OK
A46: ='Contabilità per CDC - UACD'!A64 -> 6002 | B46: ='Contabilità per CDC - UACD'!B64 -> Assegni grandi invalidi - Anziani | C46: =IF(ABS('Contabilità per CDC - UACD'!E64-'Contabilità per CDC - UACD'!Q64-'Contabilità per CDC - UACD'!AA64-'Contabilità per CDC - UACD'!AP64-'Contabilità per CDC - UACD'!AR64-'Contabilità per CDC - UACD'!AU64-'Contabilità per CDC - UACD'!BF64-'Contabilità per CDC - UACD'!BH64)<=0.01,"OK","") -> OK
A47: ='Contabilità per CDC - UACD'!A65 -> 6003 | B47: ='Contabilità per CDC - UACD'!B65 -> Altri ricavi - Anziani | C47: =IF(ABS('Contabilità per CDC - UACD'!E65-'Contabilità per CDC - UACD'!Q65-'Contabilità per CDC - UACD'!AA65-'Contabilità per CDC - UACD'!AP65-'Contabilità per CDC - UACD'!AR65-'Contabilità per CDC - UACD'!AU65-'Contabilità per CDC - UACD'!BF65-'Contabilità per CDC - UACD'!BH65)<=0.01,"OK","") -> OK
A48: ='Contabilità per CDC - UACD'!A66 -> 601 | B48: ='Contabilità per CDC - UACD'!B66 -> Altri ricavi - Settore di attività n | C48: =IF(ABS('Contabilità per CDC - UACD'!E66-'Contabilità per CDC - UACD'!Q66-'Contabilità per CDC - UACD'!AA66-'Contabilità per CDC - UACD'!AP66-'Contabilità per CDC - UACD'!AR66-'Contabilità per CDC - UACD'!AU66-'Contabilità per CDC - UACD'!BF66-'Contabilità per CDC - UACD'!BH66)<=0.01,"OK","") -> OK
A49: ='Contabilità per CDC - UACD'!A67 -> 609 | B49: ='Contabilità per CDC - UACD'!B67 -> Diminuzioni dei ricavi relativi ai residenti | C49: =IF(ABS('Contabilità per CDC - UACD'!E67-'Contabilità per CDC - UACD'!Q67-'Contabilità per CDC - UACD'!AA67-'Contabilità per CDC - UACD'!AP67-'Contabilità per CDC - UACD'!AR67-'Contabilità per CDC - UACD'!AU67-'Contabilità per CDC - UACD'!BF67-'Contabilità per CDC - UACD'!BH67)<=0.01,"OK","") -> OK
A50: ='Contabilità per CDC - UACD'!A68 -> 61 | B50: ='Contabilità per CDC - UACD'!B68 -> Ricavi da prestazioni mediche singole | C50: =IF(ABS('Contabilità per CDC - UACD'!E68-'Contabilità per CDC - UACD'!Q68-'Contabilità per CDC - UACD'!AA68-'Contabilità per CDC - UACD'!AP68-'Contabilità per CDC - UACD'!AR68-'Contabilità per CDC - UACD'!AU68-'Contabilità per CDC - UACD'!BF68-'Contabilità per CDC - UACD'!BH68)<=0.01,"OK","") -> OK
A51: ='Contabilità per CDC - UACD'!A69 -> 62 | B51: ='Contabilità per CDC - UACD'!B69 -> Ricavi da prestazioni diagnostiche e terapeutiche singole | C51: =IF(ABS('Contabilità per CDC - UACD'!E69-'Contabilità per CDC - UACD'!Q69-'Contabilità per CDC - UACD'!AA69-'Contabilità per CDC - UACD'!AP69-'Contabilità per CDC - UACD'!AR69-'Contabilità per CDC - UACD'!AU69-'Contabilità per CDC - UACD'!BF69-'Contabilità per CDC - UACD'!BH69)<=0.01,"OK","") -> OK
A52: ='Contabilità per CDC - UACD'!A70 -> 69 | B52: ='Contabilità per CDC - UACD'!B70 -> Contributi e sussidi | C52: =IF(ABS('Contabilità per CDC - UACD'!E70-'Contabilità per CDC - UACD'!Q70-'Contabilità per CDC - UACD'!AA70-'Contabilità per CDC - UACD'!AP70-'Contabilità per CDC - UACD'!AR70-'Contabilità per CDC - UACD'!AU70-'Contabilità per CDC - UACD'!BF70-'Contabilità per CDC - UACD'!BH70)<=0.01,"OK","") -> OK
B56: Ripartizione dei centri di costo generali | C56: I costi dei centri di costo generali
C57: sono ripartiti correttamente?
A58: ='Contabilità per CDC - UACD'!A48 -> RIP010 | B58: ='Contabilità per CDC - UACD'!F7 -> Edifici | C58: =IF(ABS('Contabilità per CDC - UACD'!F$60)<0.01,"OK","") -> OK | D58: =IF(C58="OK","","Errore") -> 
A59: ='Contabilità per CDC - UACD'!A49 -> RIP011 | B59: ='Contabilità per CDC - UACD'!G7 -> Energia | C59: =IF(ABS('Contabilità per CDC - UACD'!G$60)<0.01,"OK","") -> OK
A60: ='Contabilità per CDC - UACD'!A50 -> RIP020 | B60: ='Contabilità per CDC - UACD'!H7 -> Servizio tecnico | C60: =IF(ABS('Contabilità per CDC - UACD'!H$60)<0.01,"OK","") -> OK
A61: ='Contabilità per CDC - UACD'!A51 -> RIP021 | B61: ='Contabilità per CDC - UACD'!I7 -> Servizio trasporti | C61: =IF(ABS('Contabilità per CDC - UACD'!I$60)<0.01,"OK","") -> OK
A62: ='Contabilità per CDC - UACD'!A52 -> RIP030 | B62: ='Contabilità per CDC - UACD'!J7 -> Direzione/ Amministrazione | C62: =IF(ABS('Contabilità per CDC - UACD'!J$60)<0.01,"OK","") -> OK
A63: ='Contabilità per CDC - UACD'!A53 -> RIP040 | B63: ='Contabilità per CDC - UACD'!K7 -> Economia domestica in generale | C63: =IF(ABS('Contabilità per CDC - UACD'!K$60)<0.01,"OK","") -> OK
A64: ='Contabilità per CDC - UACD'!A54 -> RIP041 | B64: ='Contabilità per CDC - UACD'!L7 -> Lavanderia | C64: =IF(ABS('Contabilità per CDC - UACD'!L$60)<0.01,"OK","") -> OK
A65: ='Contabilità per CDC - UACD'!A55 -> RIP042 | B65: ='Contabilità per CDC - UACD'!M7 -> Pulizia | C65: =IF(ABS('Contabilità per CDC - UACD'!M$60)<0.01,"OK","") -> OK
A66: ='Contabilità per CDC - UACD'!A56 -> RIP060 | B66: ='Contabilità per CDC - UACD'!N7 -> Cucina | C66: =IF(ABS('Contabilità per CDC - UACD'!N$60)<0.01,"OK","") -> OK
A67: ='Contabilità per CDC - UACD'!A57 -> RIP090 | B67: ='Contabilità per CDC - UACD'!O7 -> Magazzino centrale | C67: =IF(ABS('Contabilità per CDC - UACD'!O$60)<0.01,"OK","") -> OK
A68: ='Contabilità per CDC - UACD'!A58 -> RIP095 | B68: ='Contabilità per CDC - UACD'!P7 -> Farmacia | C68: =IF(ABS('Contabilità per CDC - UACD'!P$60)<0.01,"OK","") -> OK
A73: I costi netti prima della ripartizione dei costi sono uguali a quelli dopo la ripartizione? | C73: =IF(ROUND('Contabilità per CDC - UACD'!E46-'Contabilità per CDC - UACD'!AA60-'Contabilità per CDC - UACD'!AP60-'Contabilità per CDC - UACD'!AR60-'Contabilità per CDC - UACD'!AU60-'Contabilità per CDC - UACD'!BF60-'Contabilità per CDC - UACD'!BH60,2)=0,"OK","") -> OK | D73: =IF(C73="OK","","Errore") -> 
A79: Il totale dei centri di costo principali dopo la ripartizione corrisponde al totale delle unità finali d'imputazione della parte standard? | C79: =IF(ABS('Contabilità per CDC - UACD'!AA60-'Contabilità per UFI 1'!C59-'Contabilità per UFI 1'!D59-'Contabilità per UFI 1'!F59-'Contabilità per UFI 1'!H59-'Contabilità per UFI 1'!I59-'Contabilità per UFI 1'!J59-'Contabilità per UFI 1'!K59-'Contabilità per UFI 1'!L59-'Contabilità per UFI 1'!M59-'Contabilità per UFI 1'!N59)<0.01,"OK","") -> OK | D79: =IF(C79="OK","","Errore") -> 

Sheet Ripartizioni
A1: Ripartizioni
A2: =Parametri!$B$7 -> 2021 | B2: =Parametri!$B$3 -> ESEMPIO - CPA STANDARD CON CAT-STT
A3: Tab. 1 - Criteri per la ripartizione dei costi dei centri di costo (CdC) generali
B4: Centri di costo generali | C4: Criterio per la | E4: X = criterio | F4: Commento
C5: ripartizione | E5: scelto
A6: RIP010 | B6: Edifici | C6: m2 | E6: X | F6: =IF(E7="","","non compilare ") -> 
C7: m3 | F7: =IF(E6="x","non compilare","") -> non compilare
A8: RIP011 | B8: Energia | C8: m2 | E8: X | F8: =IF(E9="x","non compilare","") -> 
C9: m3 | F9: =IF(E8="x","non compilare","") -> non compilare
A10: RIP020 | B10: Servizio tecnico | C10: m2 | E10: X | F10: =IF(E12="x","non compilare",IF(E11="","","non compilare")) -> 
C11: m3 | F11: =IF(E12="x","non compilare",IF(E10="x","non compilare","")) -> non compilare
C12: rapporto orario | F12: =IF(E10="x","non compilare",IF(E11="","","non compilare")) -> non compilare
A13: RIP021 | B13: Servizio trasporti | C13: km (a campione) | F13: =IF(E14="","","non compilare") -> non compilare
C14: km (sistematico) | E14: X | F14: =IF(E13="x","non compilare","") -> 
A15: RIP030 | B15: Direzione/amministrazione | C15: % retribuzione | E15: X
A16: RIP040 | B16: Economia domestica | C16: % retribuzione | E16: X
A17: RIP041 | B17: Lavanderia | C17: kg (a campione) | F17: =IF(E18="","","non compilare") -> non compilare
C18: kg (sistematico) | E18: X | F18: =IF(E17="x","non compilare","") -> 
A19: RIP042 | B19: Pulizia | C19: m2 | E19: X | F19: =IF(E20="","","non compilare") -> 
C20: rapporto orario | F20: =IF(E19="x","non compilare","") -> non compilare
A21: RIP060 | B21: Cucina | C21: Giornate di cura (presenza) | F21: =IF(E22="","","non compilare") -> non compilare
C22: Numero di pasti | E22: X | F22: =IF(E21="x","non compilare","") -> 
A23: RIP090 | B23: Magazzino centrale | C23: Allocazione diretta | E23: X
A24: RIP095 | B24: Farmacia | C24: Allocazione diretta | E24: X
A28: Tab. 2A - Ripartizioni per COAN UACD
E29: Totale | F29: Centri di costo generali | Q29: Centri di costo principali | Z29: Servizi annessi | AN29: Voci non riconosciute | AO29: Prestazioni all'atto | AQ29: Gestione estranea | BA29: Gestione straordinaria
B30: Centri di costo generali | C30: Unità | E30: generale | F30: ='Contabilità per CDC - UACD'!F6 -> 010 | G30: ='Contabilità per CDC - UACD'!G6 -> 011 | H30: ='Contabilità per CDC - UACD'!H6 -> 020 | I30: ='Contabilità per CDC - UACD'!I6 -> 021 | J30: ='Contabilità per CDC - UACD'!J6 -> 030 | K30: ='Contabilità per CDC - UACD'!K6 -> 040 | L30: ='Contabilità per CDC - UACD'!L6 -> 041 | M30: ='Contabilità per CDC - UACD'!M6 -> 042 | N30: ='Contabilità per CDC - UACD'!N6 -> 060 | O30: ='Contabilità per CDC - UACD'!O6 -> 090 | P30: ='Contabilità per CDC - UACD'!P6 -> 095 | Q30: ='Contabilità per CDC - UACD'!R6 -> 100 | R30: ='Contabilità per CDC - UACD'!S6 -> 110 | S30: ='Contabilità per CDC - UACD'!T6 -> 115 | T30: ='Contabilità per CDC - UACD'!U6 -> 130 | U30: ='Contabilità per CDC - UACD'!V6 -> 131 | V30: ='Contabilità per CDC - UACD'!W6 -> 132 | W30: ='Contabilità per CDC - UACD'!X6 -> 140 | X30: ='Contabilità per CDC - UACD'!Y6 -> 150 | Y30: ='Contabilità per CDC - UACD'!Z6 -> 151 | Z30: ='Contabilità per CDC - UACD'!AB6 -> 160 | AA30: ='Contabilità per CDC - UACD'!AC6 -> 161 | AB30: ='Contabilità per CDC - UACD'!AD6 -> 162 | AC30: ='Contabilità per CDC - UACD'!AE6 -> 163 | AD30: ='Contabilità per CDC - UACD'!AF6 -> 16X | AE30: ='Contabilità per CDC - UACD'!AG6 -> 170 | AF30: ='Contabilità per CDC - UACD'!AH6 -> 171 | AG30: ='Contabilità per CDC - UACD'!AI6 -> 172 | AH30: ='Contabilità per CDC - UACD'!AJ6 -> 17X | AI30: ='Contabilità per CDC - UACD'!AK6 -> 180 | AJ30: ='Contabilità per CDC - UACD'!AL6 -> 181 | AK30: ='Contabilità per CDC - UACD'!AM6 -> 182 | AL30: ='Contabilità per CDC - UACD'!AN6 -> 183 | AM30: ='Contabilità per CDC - UACD'!AO6 -> 184 | AN30: ='Contabilità per CDC - UACD'!AQ6 -> 190 | AO30: ='Contabilità per CDC - UACD'!AS6 -> 800 | AP30: ='Contabilità per CDC - UACD'!AT6 -> 80x | AQ30: ='Contabilità per CDC - UACD'!AV6 -> 900 | AR30: ='Contabilità per CDC - UACD'!AW6 -> 905 | AS30: ='Contabilità per CDC - UACD'!AX6 -> 910 | AT30: ='Contabilità per CDC - UACD'!AY6 -> 915 | AU30: ='Contabilità per CDC - UACD'!AZ6 -> 920 | AV30: ='Contabilità per CDC - UACD'!BA6 -> 925 | AW30: ='Contabilità per CDC - UACD'!BB6 -> 930 | AX30: ='Contabilità per CDC - UACD'!BC6 -> 935 | AY30: ='Contabilità per CDC - UACD'!BD6 -> 940 | AZ30: ='Contabilità per CDC - UACD'!BE6 -> 945 | BA30: ='Contabilità per CDC - UACD'!BG6 -> 990
F31: ='Contabilità per CDC - UACD'!F7 -> Edifici | G31: ='Contabilità per CDC - UACD'!G7 -> Energia | H31: ='Contabilità per CDC - UACD'!H7 -> Servizio tecnico | I31: ='Contabilità per CDC - UACD'!I7 -> Servizio trasporti | J31: ='Contabilità per CDC - UACD'!J7 -> Direzione/ Amministrazione | K31: ='Contabilità per CDC - UACD'!K7 -> Economia domestica in generale | L31: ='Contabilità per CDC - UACD'!L7 -> Lavanderia | M31: ='Contabilità per CDC - UACD'!M7 -> Pulizia | N31: ='Contabilità per CDC - UACD'!N7 -> Cucina | O31: ='Contabilità per CDC - UACD'!O7 -> Magazzino centrale | P31: ='Contabilità per CDC - UACD'!P7 -> Farmacia | Q31: ='Contabilità per CDC - UACD'!R7 -> Servizio alberghiero | R31: ='Contabilità per CDC - UACD'!S7 -> Animazione | S31: ='Contabilità per CDC - UACD'!T7 -> Cura | T31: ='Contabilità per CDC - UACD'!U7 -> Fisioterapia | U31: ='Contabilità per CDC - UACD'!V7 -> Ergoterapia | V31: ='Contabilità per CDC - UACD'!W7 -> Altre consulenze e terapie | W31: ='Contabilità per CDC - UACD'!X7 -> Servizio medico | X31: ='Contabilità per CDC - UACD'!Y7 -> Materiale secondo EMAp | Y31: ='Contabilità per CDC - UACD'!Z7 -> Medicamenti secondo ES / EMT | Z31: ='Contabilità per CDC - UACD'!AB7 -> CAT | AA31: ='Contabilità per CDC - UACD'!AC7 -> STT > NON COMPILARE ! | AB31: ='Contabilità per CDC - UACD'!AD7 -> Cure palliative | AC31: ='Contabilità per CDC - UACD'!AE7 -> Reparto Alzheimer | AD31: ='Contabilità per CDC - UACD'!AF7 -> STAZ n | AE31: ='Contabilità per CDC - UACD'!AG7 -> Ambulatorio medico | AF31: ='Contabilità per CDC - UACD'!AH7 -> Centro diurno terapeutico (CDT) | AG31: ='Contabilità per CDC - UACD'!AI7 -> Appartamenti protetti | AH31: ='Contabilità per CDC - UACD'!AJ7 -> AMB n (CD socio-assistenziale, ecc.) | AI31: ='Contabilità per CDC - UACD'!AK7 -> Altre voci riconosciute (oneri ipotecari e affitti) | AJ31: ='Contabilità per CDC - UACD'!AL7 -> Altre voci riconosciute (formazione apprendisti, stagiaires e ausiliari) | AK31: ='Contabilità per CDC - UACD'!AM7 -> Altre voci riconosciute (neutralizzazione cassa pensione) | AL31: ='Contabilità per CDC - UACD'!AN7 -> Altre voci riconosciute (contributi straordinari) | AM31: ='Contabilità per CDC - UACD'!AO7 -> Altre voci riconosciute (Spese COVID-19 Anno 2021) | AN31: ='Contabilità per CDC - UACD'!AQ7 -> Voci non riconosciute | AO31: Gestione MEDICAMENTI e materiale all'atto | AP31: Gestione TERAPIE all'atto (fisio-, ergoterapia, altre terapie) n | AQ31: ='Contabilità per CDC - UACD'!AV7 -> Appartamenti per il personale | AR31: ='Contabilità per CDC - UACD'!AW7 -> Bar e ristorante | AS31: ='Contabilità per CDC - UACD'!AX7 -> Edicola | AT31: ='Contabilità per CDC - UACD'!AY7 -> Negozio | AU31: ='Contabilità per CDC - UACD'!AZ7 -> Parrucchiere | AV31: ='Contabilità per CDC - UACD'!BA7 -> Pedicure | AW31: ='Contabilità per CDC - UACD'!BB7 -> Posteggi | AX31: ='Contabilità per CDC - UACD'!BC7 -> Prestazioni di lavanderia a terzi | AY31: ='Contabilità per CDC - UACD'!BD7 -> Vendita di pasti a terzi | AZ31: ='Contabilità per CDC - UACD'!BE7 -> ESTR n | BA31: ='Contabilità per CDC - UACD'!BG7 -> Gestione straordinaria
A32: RIP010 | B32: =F31 -> Edifici | C32: =IF(E$6="x",C$6,C$7) -> m2 | E32: =SUM(F32:BA32) -> 4590 | G32: 75 | H32: 50 | J32: 100 | K32: 80 | L32: 100 | M32: 45 | N32: 320 | Q32: 2500 | R32: 120 | S32: 100 | T32: 20 | U32: 25 | Z32: 850 | AO32: 10 | AP32: 45 | AR32: 150
A33: RIP011 | B33: =G31 -> Energia | C33: =IF(E$8="x",C$8,C$9) -> m2 | E33: =SUM(F33:BA33) -> 4515 | H33: 50 | J33: 100 | K33: 80 | L33: 100 | M33: 45 | N33: 320 | Q33: 2500 | R33: 120 | S33: 100 | T33: 20 | U33: 25 | Z33: 850 | AO33: 10 | AP33: 45 | AR33: 150
A34: RIP020 | B34: =H31 -> Servizio tecnico | C34: =IF(E$10="x",C$10,IF(E$11="x",C$11,C$12)) -> m2 | E34: =SUM(F34:BA34) -> 4540 | G34: 75 | J34: 100 | K34: 80 | L34: 100 | M34: 45 | N34: 320 | Q34: 2500 | R34: 120 | S34: 100 | T34: 20 | U34: 25 | Z34: 850 | AO34: 10 | AP34: 45 | AR34: 150
A35: RIP021 | B35: =I31 -> Servizio trasporti | C35: =IF(E$13="x",C$13,C$14) -> km (sistematico) | E35: =SUM(F35:BA35) -> 1900 | H35: 100 | J35: 1100 | N35: 50 | R35: 150 | S35: 500
A36: RIP030 | B36: =J31 -> Direzione/ Amministrazione | C36: =C15 -> % retribuzione | E36: =SUM(F36:BA36) -> 0.9270295757 | F36: =IF(SUM('Contabilità per CDC - UACD'!F9:F21)=0,0,(SUM('Contabilità per CDC - UACD'!F9:F21)/SUM('Contabilità per CDC - UACD'!$E$9:$E$21))) -> 0 | G36: =IF(SUM('Contabilità per CDC - UACD'!G9:G21)=0,0,(SUM('Contabilità per CDC - UACD'!G9:G21)/SUM('Contabilità per CDC - UACD'!$E$9:$E$21))) -> 0 | H36: =IF(SUM('Contabilità per CDC - UACD'!H9:H21)=0,0,(SUM('Contabilità per CDC - UACD'!H9:H21)/SUM('Contabilità per CDC - UACD'!$E$9:$E$21))) -> 0.01183026147 | I36: =IF(SUM('Contabilità per CDC - UACD'!I9:I21)=0,0,(SUM('Contabilità per CDC - UACD'!I9:I21)/SUM('Contabilità per CDC - UACD'!$E$9:$E$21))) -> 0 | K36: =IF(SUM('Contabilità per CDC - UACD'!K9:K21)=0,0,(SUM('Contabilità per CDC - UACD'!K9:K21)/SUM('Contabilità per CDC - UACD'!$E$9:$E$21))) -> 0.00942991856 | L36: =IF(SUM('Contabilità per CDC - UACD'!L9:L21)=0,0,(SUM('Contabilità per CDC - UACD'!L9:L21)/SUM('Contabilità per CDC - UACD'!$E$9:$E$21))) -> 0.04672096014 | M36: =IF(SUM('Contabilità per CDC - UACD'!M9:M21)=0,0,(SUM('Contabilità per CDC - UACD'!M9:M21)/SUM('Contabilità per CDC - UACD'!$E$9:$E$21))) -> 0.04414916417 | N36: =IF(SUM('Contabilità per CDC - UACD'!N9:N21)=0,0,(SUM('Contabilità per CDC - UACD'!N9:N21)/SUM('Contabilità per CDC - UACD'!$E$9:$E$21))) -> 0.1064723532 | O36: =IF(SUM('Contabilità per CDC - UACD'!O9:O21)=0,0,(SUM('Contabilità per CDC - UACD'!O9:O21)/SUM('Contabilità per CDC - UACD'!$E$9:$E$21))) -> 0 | P36: =IF(SUM('Contabilità per CDC - UACD'!P9:P21)=0,0,(SUM('Contabilità per CDC - UACD'!P9:P21)/SUM('Contabilità per CDC - UACD'!$E$9:$E$21))) -> 0 | Q36: =IF(SUM('Contabilità per CDC - UACD'!R9:R21)=0,0,(SUM('Contabilità per CDC - UACD'!R9:R21)/SUM('Contabilità per CDC - UACD'!$E$9:$E$21))) -> 0 | R36: =IF(SUM('Contabilità per CDC - UACD'!S9:S21)=0,0,(SUM('Contabilità per CDC - UACD'!S9:S21)/SUM('Contabilità per CDC - UACD'!$E$9:$E$21))) -> 0.03718816974 | S36: =IF(SUM('Contabilità per CDC - UACD'!T9:T21)=0,0,(SUM('Contabilità per CDC - UACD'!T9:T21)/SUM('Contabilità per CDC - UACD'!$E$9:$E$21))) -> 0.437205315 | T36: =IF(SUM('Contabilità per CDC - UACD'!U9:U21)=0,0,(SUM('Contabilità per CDC - UACD'!U9:U21)/SUM('Contabilità per CDC - UACD'!$E$9:$E$21))) -> 0.001714530647 | U36: =IF(SUM('Contabilità per CDC - UACD'!V9:V21)=0,0,(SUM('Contabilità per CDC - UACD'!V9:V21)/SUM('Contabilità per CDC - UACD'!$E$9:$E$21))) -> 0.003429061294 | V36: =IF(SUM('Contabilità per CDC - UACD'!W9:W21)=0,0,(SUM('Contabilità per CDC - UACD'!W9:W21)/SUM('Contabilità per CDC - UACD'!$E$9:$E$21))) -> 0.006858122589 | W36: =IF(SUM('Contabilità per CDC - UACD'!X9:X21)=0,0,(SUM('Contabilità per CDC - UACD'!X9:X21)/SUM('Contabilità per CDC - UACD'!$E$9:$E$21))) -> 0.003429061294 | X36: =IF(SUM('Contabilità per CDC - UACD'!Y9:Y21)=0,0,(SUM('Contabilità per CDC - UACD'!Y9:Y21)/SUM('Contabilità per CDC - UACD'!$E$9:$E$21))) -> 0 | Y36: =IF(SUM('Contabilità per CDC - UACD'!Z9:Z21)=0,0,(SUM('Contabilità per CDC - UACD'!Z9:Z21)/SUM('Contabilità per CDC - UACD'!$E$9:$E$21))) -> 0 | Z36: =IF(SUM('Contabilità per CDC - UACD'!AB9:AB21)=0,0,(SUM('Contabilità per CDC - UACD'!AB9:AB21)/SUM('Contabilità per CDC - UACD'!$E$9:$E$21))) -> 0.2100300043 | AB36: =IF(SUM('Contabilità per CDC - UACD'!AD9:AD21)=0,0,(SUM('Contabilità per CDC - UACD'!AD9:AD21)/SUM('Contabilità per CDC - UACD'!$E$9:$E$21))) -> 0 | AC36: =IF(SUM('Contabilità per CDC - UACD'!AE9:AE21)=0,0,(SUM('Contabilità per CDC - UACD'!AE9:AE21)/SUM('Contabilità per CDC - UACD'!$E$9:$E$21))) -> 0 | AD36: =IF(SUM('Contabilità per CDC - UACD'!AF9:AF21)=0,0,(SUM('Contabilità per CDC - UACD'!AF9:AF21)/SUM('Contabilità per CDC - UACD'!$E$9:$E$21))) -> 0 | AE36: =IF(SUM('Contabilità per CDC - UACD'!AG9:AG21)=0,0,(SUM('Contabilità per CDC - UACD'!AG9:AG21)/SUM('Contabilità per CDC - UACD'!$E$9:$E$21))) -> 0 | AF36: =IF(SUM('Contabilità per CDC - UACD'!AH9:AH21)=0,0,(SUM('Contabilità per CDC - UACD'!AH9:AH21)/SUM('Contabilità per CDC - UACD'!$E$9:$E$21))) -> 0 | AG36: =IF(SUM('Contabilità per CDC - UACD'!AI9:AI21)=0,0,(SUM('Contabilità per CDC - UACD'!AI9:AI21)/SUM('Contabilità per CDC - UACD'!$E$9:$E$21))) -> 0 | AH36: =IF(SUM('Contabilità per CDC - UACD'!AJ9:AJ21)=0,0,(SUM('Contabilità per CDC - UACD'!AJ9:AJ21)/SUM('Contabilità per CDC - UACD'!$E$9:$E$21))) -> 0 | AO36: =IF(SUM('Contabilità per CDC - UACD'!AS9:AS21)=0,0,(SUM('Contabilità per CDC - UACD'!AS9:AS21)/SUM('Contabilità per CDC - UACD'!$E$9:$E$21))) -> 0.001714530647 | AP36: =IF(SUM('Contabilità per CDC - UACD'!AT9:AT21)=0,0,(SUM('Contabilità per CDC - UACD'!AT9:AT21)/SUM('Contabilità per CDC - UACD'!$E$9:$E$21))) -> 0.006858122589 | AQ36: =IF(SUM('Contabilità per CDC - UACD'!AV9:AV21)=0,0,(SUM('Contabilità per CDC - UACD'!AV9:AV21)/SUM('Contabilità per CDC - UACD'!$E$9:$E$21))) -> 0 | AR36: =IF(SUM('Contabilità per CDC - UACD'!AW9:AW21)=0,0,(SUM('Contabilità per CDC - UACD'!AW9:AW21)/SUM('Contabilità per CDC - UACD'!$E$9:$E$21))) -> 0 | AS36: =IF(SUM('Contabilità per CDC - UACD'!AX9:AX21)=0,0,(SUM('Contabilità per CDC - UACD'!AX9:AX21)/SUM('Contabilità per CDC - UACD'!$E$9:$E$21))) -> 0 | AT36: =IF(SUM('Contabilità per CDC - UACD'!AY9:AY21)=0,0,(SUM('Contabilità per CDC - UACD'!AY9:AY21)/SUM('Contabilità per CDC - UACD'!$E$9:$E$21))) -> 0 | AU36: =IF(SUM('Contabilità per CDC - UACD'!AZ9:AZ21)=0,0,(SUM('Contabilità per CDC - UACD'!AZ9:AZ21)/SUM('Contabilità per CDC - UACD'!$E$9:$E$21))) -> 0 | AV36: =IF(SUM('Contabilità per CDC - UACD'!BA9:BA21)=0,0,(SUM('Contabilità per CDC - UACD'!BA9:BA21)/SUM('Contabilità per CDC - UACD'!$E$9:$E$21))) -> 0 | AW36: =IF(SUM('Contabilità per CDC - UACD'!BB9:BB21)=0,0,(SUM('Contabilità per CDC - UACD'!BB9:BB21)/SUM('Contabilità per CDC - UACD'!$E$9:$E$21))) -> 0 | AX36: =IF(SUM('Contabilità per CDC - UACD'!BC9:BC21)=0,0,(SUM('Contabilità per CDC - UACD'!BC9:BC21)/SUM('Contabilità per CDC - UACD'!$E$9:$E$21))) -> 0 | AY36: =IF(SUM('Contabilità per CDC - UACD'!BD9:BD21)=0,0,(SUM('Contabilità per CDC - UACD'!BD9:BD21)/SUM('Contabilità per CDC - UACD'!$E$9:$E$21))) -> 0 | AZ36: =IF(SUM('Contabilità per CDC - UACD'!BE9:BE21)=0,0,(SUM('Contabilità per CDC - UACD'!BE9:BE21)/SUM('Contabilità per CDC - UACD'!$E$9:$E$21))) -> 0 | BA36: =IF(SUM('Contabilità per CDC - UACD'!BG9:BG21)=0,0,(SUM('Contabilità per CDC - UACD'!BG9:BG21)/SUM('Contabilità per CDC - UACD'!$E$9:$E$21))) -> 0
A37: RIP040 | B37: =K31 -> Economia domestica in generale | C37: =C16 -> % retribuzione | E37: =SUM(F37:BA37) -> 0.9649378483 | F37: =F36 -> 0 | G37: =G36 -> 0 | H37: =H36 -> 0.01183026147 | I37: =I36 -> 0 | J37: =IF(SUM('Contabilità per CDC - UACD'!J9:J21)=0,0,(SUM('Contabilità per CDC - UACD'!J9:J21)/SUM('Contabilità per CDC - UACD'!$E$9:$E$21))) -> 0.04733819117 | L37: =L36 -> 0.04672096014 | M37: =M36 -> 0.04414916417 | N37: 0.1064723532 | O37: 0 | P37: 0 | Q37: =Q36 -> 0 | R37: 0.03718816974 | S37: =S36 -> 0.437205315 | T37: 0.001714530647 | U37: 0.003429061294 | V37: 0.006858122589 | W37: 0.003429061294 | X37: 0 | Y37: 0 | Z37: =Z36 -> 0.2100300043 | AB37: =AB36 -> 0 | AC37: =AC36 -> 0 | AD37: 0 | AE37: 0 | AF37: 0 | AG37: 0 | AH37: 0 | AO37: 0.001714530647 | AP37: 0.006858122589 | AQ37: 0 | AR37: 0 | AS37: =AS36 -> 0 | AT37: =AT36 -> 0 | AU37: =AU36 -> 0 | AV37: =AV36 -> 0 | AW37: =AW36 -> 0 | AX37: =AX36 -> 0 | AY37: =AY36 -> 0 | AZ37: =AZ36 -> 0 | BA37: 0
A38: RIP041 | B38: =L31 -> Lavanderia | C38: =IF(E$17="x",C$17,C$18) -> kg (sistematico) | E38: =SUM(F38:BA38) -> 41580 | H38: 200 | K38: 200 | M38: 2000 | N38: 1200 | Q38: 26000 | R38: 200 | S38: 3000 | T38: 40 | U38: 50 | Z38: 8600 | AP38: 90
A39: RIP042 | B39: =M31 -> Pulizia | C39: =IF(E$19="x",C$19,C$20) -> m2 | E39: 4545 | G39: 75 | H39: 50 | J39: 100 | K39: 80 | L39: 100 | N39: 320 | Q39: 2500 | R39: 120 | S39: 100 | T39: 20 | U39: 25 | Z39: 850 | AO39: 10 | AP39: 45 | AR39: 150
A40: RIP060 | B40: =N31 -> Cucina | C40: =IF(E$21="x",C$21,C$22) -> Numero di pasti | E40: 77050 | Q40: 64500 | Z40: 9900 | AR40: 1150 | AY40: 1500
A41: RIP090 | B41: =O31 -> Magazzino centrale | C41: =C$23 -> Allocazione diretta | E41: 0
A42: RIP095 | B42: =P31 -> Farmacia | C42: =C$24 -> Allocazione diretta | E42: 188000 | X42: 60000 | Y42: 75000 | Z42: 53000
A45: Tab. 3A - Costi unitari (costo dell'unità di ripartizione) per COAN UACD | Z45: Nota Tab. 2A | AB45: I campi con sfondo grigio non debbono contenere "pesi" in quanto una ripartizione costi su questi CdC non è né tecnicamente possibile (CdC 161); né opportuna per la natura stessa del CdC in questione: voci di spesa interamente riconosciute nella parte individualizzata del Contratto di prestazione (da CdC 180 a CdC 184); voci di spesa non riconosciute a carico dell'Istituto (CdC 190)
B46: Centri di costo generali | C46: Unità | E46: costo unitario CHF
A47: RIP010 | B47: =B32 -> Edifici | C47: =C32 -> m2 | E47: =IF(E32=0,0,(-'Contabilità per CDC - UACD'!F48)/E32) -> 23.63834423
A48: RIP011 | B48: =B33 -> Energia | C48: =C33 -> m2 | E48: =IF(E33=0,0,(-'Contabilità per CDC - UACD'!G49)/E33) -> 28.36770531
A49: RIP020 | B49: Servizio tecnico | C49: m2 | E49: =IF(E34=0,0,(-'Contabilità per CDC - UACD'!H50)/E34) -> 23.30382292
A50: RIP021 | B50: Servizio trasporti | C50: km (sistematico) | E50: =IF(E35=0,0,(-'Contabilità per CDC - UACD'!I51)/E35) -> 1.578947368
A51: RIP030 | B51: Direzione/ Amministrazione | C51: % retribuzione | E51: =IF(E36=0,0,(-'Contabilità per CDC - UACD'!J52)/E36) -> 498755.6052
A52: RIP040 | B52: Economia domestica in generale | C52: % retribuzione | E52: =IF(E37=0,0,(-'Contabilità per CDC - UACD'!K53)/E37) -> 97820.86707
A53: RIP041 | B53: Lavanderia | C53: kg (sistematico) | E53: =IF(E38=0,0,(-'Contabilità per CDC - UACD'!L54)/E38) -> 9.60430679
A54: RIP042 | B54: Pulizia | C54: m2 | E54: =IF(E39=0,0,(-'Contabilità per CDC - UACD'!M55)/E39) -> 87.46035926
A55: RIP060 | B55: Cucina | C55: Numero di pasti | E55: =IF(E40=0,0,(-'Contabilità per CDC - UACD'!N56)/E40) -> 15.46224666
A56: RIP090 | B56: Magazzino centrale | C56: Allocazione diretta | E56: =IF(E41=0,0,(-'Contabilità per CDC - UACD'!O57)/E41) -> 0
A57: RIP095 | B57: Farmacia | C57: Allocazione diretta | E57: =IF(E42=0,0,(-'Contabilità per CDC - UACD'!P58)/E42) -> 0.02654255319
A60: Tab. 4A - Oneri sociali: calcolati in base ai salari o importi esatti per CdC
E62: Totale | F62: Centri di costo generali | Q62: Centri di costo principali | Z62: Servizi annessi | AN62: Voci non riconosciute | AO62: Prestazioni all'atto | AQ62: Gestione estranea | BA62: Gestione straordinaria
A63: X | B63: = metodo scelto | E63: generale | F63: =F30 -> 010 | G63: =G30 -> 011 | H63: 020 | I63: 021 | J63: 030 | K63: 040 | L63: 041 | M63: 042 | N63: 060 | O63: 090 | P63: 095 | Q63: =Q30 -> 100 | R63: 110 | S63: 115 | T63: 130 | U63: 131 | V63: 132 | W63: 140 | X63: 150 | Y63: 151 | Z63: 160 | AA63: 161 | AB63: 162 | AC63: 163 | AD63: 16X | AE63: 170 | AF63: 171 | AG63: 172 | AH63: 17X | AI63: 180 | AJ63: 181 | AK63: 182 | AL63: 183 | AM63: 184 | AN63: 190 | AO63: 800 | AP63: 80x | AQ63: 900 | AR63: 905 | AS63: 910 | AT63: 915 | AU63: 920 | AV63: 925 | AW63: 930 | AX63: 935 | AY63: 940 | AZ63: 945 | BA63: 990
A64: =IF(_xlfn.XOR(A65="X",A66="X"),"","scegliere un unico metodo di calcolo!") ->  | F64: =F31 -> Edifici | G64: =G31 -> Energia | H64: Servizio tecnico | I64: Servizio trasporti | J64: Direzione/ Amministrazione | K64: Economia domestica in generale | L64: Lavanderia | M64: Pulizia | N64: Cucina | O64: Magazzino centrale | P64: Farmacia | Q64: =Q31 -> Servizio alberghiero | R64: Animazione | S64: Cura | T64: Fisioterapia | U64: Ergoterapia | V64: Altre consulenze e terapie | W64: Servizio medico | X64: Materiale secondo EMAp | Y64: Medicamenti secondo ES / EMT | Z64: CAT | AA64: STT > NON COMPILARE ! | AB64: Cure palliative | AC64: Reparto Alzheimer | AD64: STAZ n | AE64: Ambulatorio medico | AF64: Centro diurno terapeutico (CDT) | AG64: Appartamenti protetti | AH64: AMB n (CD socio-assistenziale, ecc.) | AI64: Altre voci riconosciute (oneri ipotecari e affitti) | AJ64: Altre voci riconosciute (formazione apprendisti, stagiaires e ausiliari) | AK64: Altre voci riconosciute (neutralizzazione cassa pensione) | AL64: Altre voci riconosciute (contributi straordinari) | AM64: Altre voci riconosciute (Spese COVID-19 Anno 2021) | AN64: Voci non riconosciute | AO64: Gestione MEDICAMENTI e materiale all'atto | AP64: Gestione TERAPIE all'atto (fisio-, ergoterapia, altre terapie) n | AQ64: Appartamenti per il personale | AR64: Bar e ristorante | AS64: Edicola | AT64: Negozio | AU64: Parrucchiere | AV64: Pedicure | AW64: Posteggi | AX64: Prestazioni di lavanderia a terzi | AY64: Vendita di pasti a terzi | AZ64: ESTR n | BA64: Gestione straordinaria
A65: X | B65: C.to 37: calcolo automatico in base ai salari iscritti in 'Contabilità per CDC - UACD' | E65: ='Contabilità per CDC - UACD'!C22 -> 1340000 | F65: =IF(SUM('Contabilità per CDC - UACD'!$E9:$E19)=0,0,SUM('Contabilità per CDC - UACD'!F9:F19)/SUM('Contabilità per CDC - UACD'!$E9:$E19)*'Contabilità per CDC - UACD'!$E22) -> 0 | G65: =IF(SUM('Contabilità per CDC - UACD'!$E9:$E19)=0,0,SUM('Contabilità per CDC - UACD'!G9:G19)/SUM('Contabilità per CDC - UACD'!$E9:$E19)*'Contabilità per CDC - UACD'!$E22) -> 0 | H65: =IF(SUM('Contabilità per CDC - UACD'!$E9:$E19)=0,0,SUM('Contabilità per CDC - UACD'!H9:H19)/SUM('Contabilità per CDC - UACD'!$E9:$E19)*'Contabilità per CDC - UACD'!$E22) -> 15989.62387 | I65: =IF(SUM('Contabilità per CDC - UACD'!$E9:$E19)=0,0,SUM('Contabilità per CDC - UACD'!I9:I19)/SUM('Contabilità per CDC - UACD'!$E9:$E19)*'Contabilità per CDC - UACD'!$E22) -> 0 | J65: =IF(SUM('Contabilità per CDC - UACD'!$E9:$E19)=0,0,SUM('Contabilità per CDC - UACD'!J9:J19)/SUM('Contabilità per CDC - UACD'!$E9:$E19)*'Contabilità per CDC - UACD'!$E22) -> 63981.66883 | K65: =IF(SUM('Contabilità per CDC - UACD'!$E9:$E19)=0,0,SUM('Contabilità per CDC - UACD'!K9:K19)/SUM('Contabilità per CDC - UACD'!$E9:$E19)*'Contabilità per CDC - UACD'!$E22) -> 12745.35236 | L65: =IF(SUM('Contabilità per CDC - UACD'!$E9:$E19)=0,0,SUM('Contabilità per CDC - UACD'!L9:L19)/SUM('Contabilità per CDC - UACD'!$E9:$E19)*'Contabilità per CDC - UACD'!$E22) -> 63147.42758 | M65: =IF(SUM('Contabilità per CDC - UACD'!$E9:$E19)=0,0,SUM('Contabilità per CDC - UACD'!M9:M19)/SUM('Contabilità per CDC - UACD'!$E9:$E19)*'Contabilità per CDC - UACD'!$E22) -> 59671.4224 | N65: =IF(SUM('Contabilità per CDC - UACD'!$E9:$E19)=0,0,SUM('Contabilità per CDC - UACD'!N9:N19)/SUM('Contabilità per CDC - UACD'!$E9:$E19)*'Contabilità per CDC - UACD'!$E22) -> 143906.6148 | O65: =IF(SUM('Contabilità per CDC - UACD'!$E9:$E19)=0,0,SUM('Contabilità per CDC - UACD'!O9:O19)/SUM('Contabilità per CDC - UACD'!$E9:$E19)*'Contabilità per CDC - UACD'!$E22) -> 0 | P65: =IF(SUM('Contabilità per CDC - UACD'!$E9:$E19)=0,0,SUM('Contabilità per CDC - UACD'!P9:P19)/SUM('Contabilità per CDC - UACD'!$E9:$E19)*'Contabilità per CDC - UACD'!$E22) -> 0 | Q65: =IF(SUM('Contabilità per CDC - UACD'!$E9:$E19)=0,0,SUM('Contabilità per CDC - UACD'!R9:R19)/SUM('Contabilità per CDC - UACD'!$E9:$E19)*'Contabilità per CDC - UACD'!$E22) -> 0 | R65: =IF(SUM('Contabilità per CDC - UACD'!$E9:$E19)=0,0,SUM('Contabilità per CDC - UACD'!S9:S19)/SUM('Contabilità per CDC - UACD'!$E9:$E19)*'Contabilità per CDC - UACD'!$E22) -> 50263.03502 | S65: =IF(SUM('Contabilità per CDC - UACD'!$E9:$E19)=0,0,SUM('Contabilità per CDC - UACD'!T9:T19)/SUM('Contabilità per CDC - UACD'!$E9:$E19)*'Contabilità per CDC - UACD'!$E22) -> 579334.198 | T65: =IF(SUM('Contabilità per CDC - UACD'!$E9:$E19)=0,0,SUM('Contabilità per CDC - UACD'!U9:U19)/SUM('Contabilità per CDC - UACD'!$E9:$E19)*'Contabilità per CDC - UACD'!$E22) -> 2317.336792 | U65: =IF(SUM('Contabilità per CDC - UACD'!$E9:$E19)=0,0,SUM('Contabilità per CDC - UACD'!V9:V19)/SUM('Contabilità per CDC - UACD'!$E9:$E19)*'Contabilità per CDC - UACD'!$E22) -> 4634.673584 | V65: =IF(SUM('Contabilità per CDC - UACD'!$E9:$E19)=0,0,SUM('Contabilità per CDC - UACD'!W9:W19)/SUM('Contabilità per CDC - UACD'!$E9:$E19)*'Contabilità per CDC - UACD'!$E22) -> 9269.347168 | W65: =IF(SUM('Contabilità per CDC - UACD'!$E9:$E19)=0,0,SUM('Contabilità per CDC - UACD'!X9:X19)/SUM('Contabilità per CDC - UACD'!$E9:$E19)*'Contabilità per CDC - UACD'!$E22) -> 4634.673584 | X65: =IF(SUM('Contabilità per CDC - UACD'!$E9:$E19)=0,0,SUM('Contabilità per CDC - UACD'!Y9:Y19)/SUM('Contabilità per CDC - UACD'!$E9:$E19)*'Contabilità per CDC - UACD'!$E22) -> 0 | Y65: =IF(SUM('Contabilità per CDC - UACD'!$E9:$E19)=0,0,SUM('Contabilità per CDC - UACD'!Z9:Z19)/SUM('Contabilità per CDC - UACD'!$E9:$E19)*'Contabilità per CDC - UACD'!$E22) -> 0 | Z65: =IF(SUM('Contabilità per CDC - UACD'!$E9:$E19)=0,0,SUM('Contabilità per CDC - UACD'!AB9:AB19)/SUM('Contabilità per CDC - UACD'!$E9:$E19)*'Contabilità per CDC - UACD'!$E22) -> 283873.757 | AB65: =IF(SUM('Contabilità per CDC - UACD'!$E9:$E19)=0,0,SUM('Contabilità per CDC - UACD'!AD9:AD19)/SUM('Contabilità per CDC - UACD'!$E9:$E19)*'Contabilità per CDC - UACD'!$E22) -> 0 | AC65: =IF(SUM('Contabilità per CDC - UACD'!$E9:$E19)=0,0,SUM('Contabilità per CDC - UACD'!AE9:AE19)/SUM('Contabilità per CDC - UACD'!$E9:$E19)*'Contabilità per CDC - UACD'!$E22) -> 0 | AD65: =IF(SUM('Contabilità per CDC - UACD'!$E9:$E19)=0,0,SUM('Contabilità per CDC - UACD'!AF9:AF19)/SUM('Contabilità per CDC - UACD'!$E9:$E19)*'Contabilità per CDC - UACD'!$E22) -> 0 | AE65: =IF(SUM('Contabilità per CDC - UACD'!$E9:$E19)=0,0,SUM('Contabilità per CDC - UACD'!AG9:AG19)/SUM('Contabilità per CDC - UACD'!$E9:$E19)*'Contabilità per CDC - UACD'!$E22) -> 0 | AF65: =IF(SUM('Contabilità per CDC - UACD'!$E9:$E19)=0,0,SUM('Contabilità per CDC - UACD'!AH9:AH19)/SUM('Contabilità per CDC - UACD'!$E9:$E19)*'Contabilità per CDC - UACD'!$E22) -> 0 | AG65: =IF(SUM('Contabilità per CDC - UACD'!$E9:$E19)=0,0,SUM('Contabilità per CDC - UACD'!AI9:AI19)/SUM('Contabilità per CDC - UACD'!$E9:$E19)*'Contabilità per CDC - UACD'!$E22) -> 0 | AH65: =IF(SUM('Contabilità per CDC - UACD'!$E9:$E19)=0,0,SUM('Contabilità per CDC - UACD'!AJ9:AJ19)/SUM('Contabilità per CDC - UACD'!$E9:$E19)*'Contabilità per CDC - UACD'!$E22) -> 0 | AI65: =IF(SUM('Contabilità per CDC - UACD'!$E9:$E19)=0,0,SUM('Contabilità per CDC - UACD'!AK9:AK19)/SUM('Contabilità per CDC - UACD'!$E9:$E19)*'Contabilità per CDC - UACD'!$E22) -> 0 | AJ65: =IF(SUM('Contabilità per CDC - UACD'!$E9:$E19)=0,0,SUM('Contabilità per CDC - UACD'!AL9:AL19)/SUM('Contabilità per CDC - UACD'!$E9:$E19)*'Contabilità per CDC - UACD'!$E22) -> 12281.885 | AK65: =IF(SUM('Contabilità per CDC - UACD'!$E9:$E19)=0,0,SUM('Contabilità per CDC - UACD'!AM9:AM19)/SUM('Contabilità per CDC - UACD'!$E9:$E19)*'Contabilità per CDC - UACD'!$E22) -> 0 | AL65: =IF(SUM('Contabilità per CDC - UACD'!$E9:$E19)=0,0,SUM('Contabilità per CDC - UACD'!AN9:AN19)/SUM('Contabilità per CDC - UACD'!$E9:$E19)*'Contabilità per CDC - UACD'!$E22) -> 0 | AM65: =IF(SUM('Contabilità per CDC - UACD'!$E9:$E19)=0,0,SUM('Contabilità per CDC - UACD'!AO9:AO19)/SUM('Contabilità per CDC - UACD'!$E9:$E19)*'Contabilità per CDC - UACD'!$E22) -> 22362.30004 | AN65: =IF(SUM('Contabilità per CDC - UACD'!$E9:$E19)=0,0,SUM('Contabilità per CDC - UACD'!AQ9:AQ19)/SUM('Contabilità per CDC - UACD'!$E9:$E19)*'Contabilità per CDC - UACD'!$E22) -> 0 | AO65: =IF(SUM('Contabilità per CDC - UACD'!$E9:$E19)=0,0,SUM('Contabilità per CDC - UACD'!AS9:AS19)/SUM('Contabilità per CDC - UACD'!$E9:$E19)*'Contabilità per CDC - UACD'!$E22) -> 2317.336792 | AP65: =IF(SUM('Contabilità per CDC - UACD'!$E9:$E19)=0,0,SUM('Contabilità per CDC - UACD'!AT9:AT19)/SUM('Contabilità per CDC - UACD'!$E9:$E19)*'Contabilità per CDC - UACD'!$E22) -> 9269.347168 | AQ65: =IF(SUM('Contabilità per CDC - UACD'!$E9:$E19)=0,0,SUM('Contabilità per CDC - UACD'!AV9:AV19)/SUM('Contabilità per CDC - UACD'!$E9:$E19)*'Contabilità per CDC - UACD'!$E22) -> 0 | AR65: =IF(SUM('Contabilità per CDC - UACD'!$E9:$E19)=0,0,SUM('Contabilità per CDC - UACD'!AW9:AW19)/SUM('Contabilità per CDC - UACD'!$E9:$E19)*'Contabilità per CDC - UACD'!$E22) -> 0 | AS65: =IF(SUM('Contabilità per CDC - UACD'!$E9:$E19)=0,0,SUM('Contabilità per CDC - UACD'!AX9:AX19)/SUM('Contabilità per CDC - UACD'!$E9:$E19)*'Contabilità per CDC - UACD'!$E22) -> 0 | AT65: =IF(SUM('Contabilità per CDC - UACD'!$E9:$E19)=0,0,SUM('Contabilità per CDC - UACD'!AY9:AY19)/SUM('Contabilità per CDC - UACD'!$E9:$E19)*'Contabilità per CDC - UACD'!$E22) -> 0 | AU65: =IF(SUM('Contabilità per CDC - UACD'!$E9:$E19)=0,0,SUM('Contabilità per CDC - UACD'!AZ9:AZ19)/SUM('Contabilità per CDC - UACD'!$E9:$E19)*'Contabilità per CDC - UACD'!$E22) -> 0 | AV65: =IF(SUM('Contabilità per CDC - UACD'!$E9:$E19)=0,0,SUM('Contabilità per CDC - UACD'!BA9:BA19)/SUM('Contabilità per CDC - UACD'!$E9:$E19)*'Contabilità per CDC - UACD'!$E22) -> 0 | AW65: =IF(SUM('Contabilità per CDC - UACD'!$E9:$E19)=0,0,SUM('Contabilità per CDC - UACD'!BB9:BB19)/SUM('Contabilità per CDC - UACD'!$E9:$E19)*'Contabilità per CDC - UACD'!$E22) -> 0 | AX65: =IF(SUM('Contabilità per CDC - UACD'!$E9:$E19)=0,0,SUM('Contabilità per CDC - UACD'!BC9:BC19)/SUM('Contabilità per CDC - UACD'!$E9:$E19)*'Contabilità per CDC - UACD'!$E22) -> 0 | AY65: =IF(SUM('Contabilità per CDC - UACD'!$E9:$E19)=0,0,SUM('Contabilità per CDC - UACD'!BD9:BD18)/SUM('Contabilità per CDC - UACD'!$E9:$E19)*'Contabilità per CDC - UACD'!$E22) -> 0 | AZ65: =IF(SUM('Contabilità per CDC - UACD'!$E9:$E19)=0,0,SUM('Contabilità per CDC - UACD'!BE9:BE19)/SUM('Contabilità per CDC - UACD'!$E9:$E19)*'Contabilità per CDC - UACD'!$E22) -> 0 | BA65: =IF(SUM('Contabilità per CDC - UACD'!$E9:$E19)=0,0,SUM('Contabilità per CDC - UACD'!BG9:BG19)/SUM('Contabilità per CDC - UACD'!$E9:$E19)*'Contabilità per CDC - UACD'!$E22) -> 0
B66: C.to 37: importi esatti da inserire in 'Contabilità per CDC - UACD' | E66: =SUM(F66:BA66) -> 1340000 | F66: 0 | G66: 0 | H66: 16000 | I66: 0 | J66: 66850 | K66: 12000 | L66: 62000 | M66: 58500 | N66: 140000 | O66: 0 | P66: 0 | Q66: 0 | R66: 50000 | S66: 578000 | T66: 2500 | U66: 5000 | V66: 9250 | W66: 4600 | X66: 0 | Y66: 0 | Z66: 290000 | AJ66: 7800 | AM66: 22500 | AO66: 2500 | AP66: 9500 | AY66: 3000
A70: ******************** RIPARTIZIONI PER SOMED**************************************************************************************************************************************************************************************************************************************************************************************************************************************************************************************************************************************************
A72: Tab. 2B - Ripartizioni per COAN SOMED-A
E73: Totale | F73: Centri di costo generali | Q73: Centri di costo principali | Z73: Servizi annessi | AN73: Voci non riconosciute | AO73: Prestazioni all'atto CdC SPOSTATI per SOMED | AQ73: Gestione estranea - CdC DELIMITATI per SOMED | BA73: Gestione straordinaria | BC73: Formula di controllo
B74: Centri di costo generali | C74: Unità | E74: generale | F74: 010 | G74: 011 | H74: 020 | I74: 021 | J74: 030 | K74: 040 | L74: 041 | M74: 042 | N74: 060 | O74: 090 | P74: 095 | Q74: 100 | R74: 110 | S74: 115 | T74: 130 | U74: 131 | V74: 132 | W74: 140 | X74: 150 | Y74: 151 | Z74: 160+161 | AB74: 162 | AC74: 163 | AD74: 16X | AE74: 170 | AF74: 171 | AG74: 172 | AH74: 17X | AI74: 180 | AJ74: 181 | AK74: 182 | AL74: 183 | AM74: 184 | AN74: 190 | AO74: 800 | AP74: 80x | AQ74: 900 | AR74: 905 | AS74: 910 | AT74: 915 | AU74: 920 | AV74: 925 | AW74: 930 | AX74: 935 | AY74: 940 | AZ74: 945 | BA74: 990
F75: Edifici | G75: Energia | H75: Servizio tecnico | I75: Servizio trasporti | J75: Direzione/ Amministrazione | K75: Economia domestica in generale | L75: Lavanderia | M75: Pulizia | N75: Cucina | O75: Magazzino centrale | P75: Farmacia | Q75: Servizio alberghiero | R75: Animazione | S75: Cura | T75: Fisioterapia | U75: Ergoterapia | V75: Altre consulenze e terapie | W75: Servizio medico | X75: Materiale secondo EMAp | Y75: Medicamenti secondo ES/EMT | Z75: CAT-STT | AB75: Cure palliative CdC SPOSTATO per SOMED | AC75: Reparto Alzheimer CdC SPOSTATO per SOMED | AD75: STAZ n CdC SPOSTATO per SOMED | AE75: Ambulatorio medico CdC DELIMITATO per SOMED | AF75: Centro diurno terapeutico (CDT) | AG75: Appartamenti protetti CdC DELIMITATO per SOMED | AH75: AMB n (CD socio-ass. ecc.) CdC SPOSTATO per SOMED | AI75: Altre voci riconosciute (oneri ipotecari e affitti) CdC SPOSTATO per SOMED | AJ75: Altre voci riconosciute (formazione apprendisti, stagiaires e ausiliari) CdC SPOSTATO per SOMED | AK75: Altre voci riconosciute (neutralizzazione cassa pensione) CdC SPOSTATO per SOMED | AL75: Altre voci riconosciute (contributi straordinari) CdC SPOSTATO per SOMED | AM75: Altre voci riconosciute (Spese COVID-19 Anno 2021) CdC SPOSTATO per SOMED | AN75: Voci non riconosciute CdC SPOSTATO per SOMED | AO75: Gestione MEDICAMENTI e materiale all'atto | AP75: Gestione TERAPIE all'atto (fisio-, ergoterapia, altre terapie) n | AQ75: Appartamenti per il personale | AR75: Bar e ristorante | AS75: Edicola | AT75: Negozio | AU75: Parrucchiere | AV75: Pedicure | AW75: Posteggi | AX75: Prestazioni di lavanderia a terzi | AY75: Vendita di pasti a terzi | AZ75: ESTR n | BA75: Gestione straordinaria CdC DELIMITATO per SOMED
A76: RIP010 | B76: Edifici | C76: =C32 -> m2 | E76: =SUM(F76:BA76) -> 4440 | G76: =G32 -> 75 | H76: =H32 -> 50 | I76: =I32 -> 0 | J76: =J32 -> 100 | K76: 80 | L76: 100 | M76: 45 | N76: 320 | O76: 0 | P76: 0 | Q76: =Q32+AB32+AC32+AD32 -> 2500 | R76: =R32+AH32 -> 120 | S76: 100 | T76: =T32+(0.5*AP32) -> 42.5 | U76: =U32+(0.5*AP32) -> 47.5 | V76: 0 | W76: 0 | X76: 0 | Y76: =Y32+AO32 -> 10 | Z76: =SUM(Z32,AA32) -> 850 | AF76: =AF32 -> 0 | BC76: =+E32-E76-AE32-AG32-AI32-AJ32-AK32-AL32-AO32-AP32-AQ32-AR32-AS32-AT32-AU32-AV32-AW32-AX32-AY32-AZ32-BA32 -> -55
A77: RIP011 | B77: Energia | C77: =C33 -> m2 | E77: =SUM(F77:BA77) -> 4365 | F77: =F33 -> 0 | H77: =H33 -> 50 | I77: =I33 -> 0 | J77: =J33 -> 100 | K77: 80 | L77: 100 | M77: 45 | N77: 320 | O77: 0 | P77: 0 | Q77: =Q33+AB33+AC33+AD33 -> 2500 | R77: =R33+AH33 -> 120 | S77: 100 | T77: =T33+(0.5*AP33) -> 42.5 | U77: =U33+(0.5*AP33) -> 47.5 | V77: 0 | W77: 0 | X77: 0 | Y77: =Y33+AO33 -> 10 | Z77: =SUM(Z33,AA33) -> 850 | AF77: =AF33 -> 0 | BC77: =+E33-E77-AE33-AG33-AI33-AJ33-AK33-AL33-AO33-AP33-AQ33-AR33-AS33-AT33-AU33-AV33-AW33-AX33-AY33-AZ33-BA33 -> -55
A78: RIP020 | B78: Servizio tecnico | C78: m2 | E78: 4390 | F78: =F34 -> 0 | G78: =G34 -> 75 | I78: =I34 -> 0 | J78: 100 | K78: 80 | L78: 100 | M78: 45 | N78: 320 | O78: 0 | P78: 0 | Q78: =Q34+AB34+AC34+AD34 -> 2500 | R78: =R34+AH34 -> 120 | S78: =S34 -> 100 | T78: 42.5 | U78: 47.5 | V78: 0 | W78: 0 | X78: 0 | Y78: 10 | Z78: 850 | AF78: =AF34 -> 0 | BC78: -55
A79: RIP021 | B79: Servizio trasporti | C79: km (sistematico) | E79: 1900 | F79: =F35 -> 0 | G79: =G35 -> 0 | H79: =H35 -> 100 | J79: =J35 -> 1100 | K79: =K35 -> 0 | L79: 0 | M79: 0 | N79: 50 | O79: 0 | P79: 0 | Q79: =Q35+AB35+AC35+AD35 -> 0 | R79: =R35+AH35 -> 150 | S79: =S35 -> 500 | T79: 0 | U79: 0 | V79: =V35 -> 0 | W79: 0 | X79: 0 | Y79: 0 | Z79: 0 | AF79: =AF35 -> 0 | BC79: 0
A80: RIP030 | B80: Direzione/ Amministrazione | C80: % retribuzione | E80: 0.9481884998 | F80: =IF(SUM('Contabilità per CDC - SOMED'!F9:F19)=0,0,(SUM('Contabilità per CDC - SOMED'!F9:F19)/SUM('Contabilità per CDC - SOMED'!$E$9:$E$19))) -> 0 | G80: =IF(SUM('Contabilità per CDC - SOMED'!G9:G19)=0,0,(SUM('Contabilità per CDC - SOMED'!G9:G19)/SUM('Contabilità per CDC - SOMED'!$E$9:$E$19))) -> 0 | H80: =IF(SUM('Contabilità per CDC - SOMED'!H9:H19)=0,0,(SUM('Contabilità per CDC - SOMED'!H9:H19)/SUM('Contabilità per CDC - SOMED'!$E$9:$E$19))) -> 0.01314310419 | I80: =IF(SUM('Contabilità per CDC - SOMED'!I9:I19)=0,0,(SUM('Contabilità per CDC - SOMED'!I9:I19)/SUM('Contabilità per CDC - SOMED'!$E$9:$E$19))) -> 0 | K80: =IF(SUM('Contabilità per CDC - SOMED'!K9:K19)=0,0,(SUM('Contabilità per CDC - SOMED'!K9:K19)/SUM('Contabilità per CDC - SOMED'!$E$9:$E$19))) -> 0.009511456982 | L80: =IF(SUM('Contabilità per CDC - SOMED'!L9:L19)=0,0,(SUM('Contabilità per CDC - SOMED'!L9:L19)/SUM('Contabilità per CDC - SOMED'!$E$9:$E$19))) -> 0.04885430177 | M80: =IF(SUM('Contabilità per CDC - SOMED'!M9:M19)=0,0,(SUM('Contabilità per CDC - SOMED'!M9:M19)/SUM('Contabilità per CDC - SOMED'!$E$9:$E$19))) -> 0.04712494596 | N80: =IF(SUM('Contabilità per CDC - SOMED'!N9:N19)=0,0,(SUM('Contabilità per CDC - SOMED'!N9:N19)/SUM('Contabilità per CDC - SOMED'!$E$9:$E$19))) -> 0.1073929961 | O80: =IF(SUM('Contabilità per CDC - SOMED'!O9:O19)=0,0,(SUM('Contabilità per CDC - SOMED'!O9:O19)/SUM('Contabilità per CDC - SOMED'!$E$9:$E$19))) -> 0 | P80: =IF(SUM('Contabilità per CDC - SOMED'!P9:P19)=0,0,(SUM('Contabilità per CDC - SOMED'!P9:P19)/SUM('Contabilità per CDC - SOMED'!$E$9:$E$19))) -> 0.001729355815 | Q80: =IF(SUM('Contabilità per CDC - SOMED'!R9:R19)=0,0,(SUM('Contabilità per CDC - SOMED'!R9:R19)/SUM('Contabilità per CDC - SOMED'!$E$9:$E$19))) -> 0 | R80: =IF(SUM('Contabilità per CDC - SOMED'!S9:S19)=0,0,(SUM('Contabilità per CDC - SOMED'!S9:S19)/SUM('Contabilità per CDC - SOMED'!$E$9:$E$19))) -> 0.03750972763 | S80: =IF(SUM('Contabilità per CDC - SOMED'!T9:T19)=0,0,(SUM('Contabilità per CDC - SOMED'!T9:T19)/SUM('Contabilità per CDC - SOMED'!$E$9:$E$19))) -> 0.4485084306 | T80: =IF(SUM('Contabilità per CDC - SOMED'!U9:U19)=0,0,(SUM('Contabilità per CDC - SOMED'!U9:U19)/SUM('Contabilità per CDC - SOMED'!$E$9:$E$19))) -> 0.004323389537 | U80: =IF(SUM('Contabilità per CDC - SOMED'!V9:V19)=0,0,(SUM('Contabilità per CDC - SOMED'!V9:V19)/SUM('Contabilità per CDC - SOMED'!$E$9:$E$19))) -> 0.007868568958 | V80: =IF(SUM('Contabilità per CDC - SOMED'!W9:W19)=0,0,(SUM('Contabilità per CDC - SOMED'!W9:W19)/SUM('Contabilità per CDC - SOMED'!$E$9:$E$19))) -> 0.00691742326 | W80: =IF(SUM('Contabilità per CDC - SOMED'!X9:X19)=0,0,(SUM('Contabilità per CDC - SOMED'!X9:X19)/SUM('Contabilità per CDC - SOMED'!$E$9:$E$19))) -> 0.00345871163 | X80: =IF(SUM('Contabilità per CDC - SOMED'!Y9:Y19)=0,0,(SUM('Contabilità per CDC - SOMED'!Y9:Y19)/SUM('Contabilità per CDC - SOMED'!$E$9:$E$19))) -> 0 | Y80: =IF(SUM('Contabilità per CDC - SOMED'!Z9:Z19)=0,0,(SUM('Contabilità per CDC - SOMED'!Z9:Z19)/SUM('Contabilità per CDC - SOMED'!$E$9:$E$19))) -> 0 | Z80: =IF(SUM('Contabilità per CDC - SOMED'!AB9:AC19)=0,0,(SUM('Contabilità per CDC - SOMED'!AB9:AC19)/SUM('Contabilità per CDC - SOMED'!$E$9:$E$19))) -> 0.2118460873 | AF80: =IF(SUM('Contabilità per CDC - SOMED'!AH9:AH19 )=0,0,(SUM('Contabilità per CDC - SOMED'!AH9:AH19)/SUM('Contabilità per CDC - SOMED'!$E$9:$E$19))) -> 0 | BC80: -0.02973157737
A81: RIP040 | B81: Economia domestica in generale | C81: % retribuzione | E81: 0.990488543 | F81: =F80 -> 0 | G81: =G80 -> 0 | H81: 0.01314310419 | I81: 0 | J81: =IF(SUM('Contabilità per CDC - SOMED'!J9:J19)=0,0,(SUM('Contabilità per CDC - SOMED'!J9:J19)/SUM('Contabilità per CDC - SOMED'!$E$9:$E$19))) -> 0.05181150022 | L81: =L80 -> 0.04885430177 | M81: =M80 -> 0.04712494596 | N81: =N80 -> 0.1073929961 | O81: =O80 -> 0 | P81: =P80 -> 0.001729355815 | Q81: =Q80 -> 0 | R81: =R80 -> 0.03750972763 | S81: 0.4485084306 | T81: 0.004323389537 | U81: 0.007868568958 | V81: 0.00691742326 | W81: 0.00345871163 | X81: 0 | Y81: 0 | Z81: =Z80 -> 0.2118460873 | AF81: =AF80 -> 0 | BC81: -0.03412334799
A82: RIP041 | B82: Lavanderia | C82: kg (sistematico) | E82: 41580 | F82: =F38 -> 0 | G82: 0 | H82: 200 | I82: 0 | J82: =J38 -> 0 | K82: 200 | M82: =M38 -> 2000 | N82: =N38 -> 1200 | O82: =O38 -> 0 | P82: =P38 -> 0 | Q82: =Q38+AB38+AC38+AD38 -> 26000 | R82: =R38+AH38 -> 200 | S82: =S38 -> 3000 | T82: =T38+(0.5*AP38) -> 85 | U82: =U38+(0.5*AP38) -> 95 | V82: 0 | W82: 0 | X82: 0 | Y82: =Y38+AO38 -> 0 | Z82: =SUM(Z38,AA38) -> 8600 | AF82: =AF38 -> 0 | BC82: -90
A83: RIP042 | B83: Pulizia | C83: m2 | E83: 4395 | F83: 0 | G83: 75 | H83: 50 | I83: 0 | J83: 100 | K83: 80 | L83: =L39 -> 100 | N83: =N39 -> 320 | O83: =O39 -> 0 | P83: =P39 -> 0 | Q83: =Q39+AB39+AC39+AD39 -> 2500 | R83: =R39+AH39 -> 120 | S83: =S39 -> 100 | T83: 42.5 | U83: 47.5 | V83: 0 | W83: 0 | X83: 0 | Y83: 10 | Z83: =SUM(Z39,AA39) -> 850 | AF83: =AF39 -> 0 | BC83: -55
A84: RIP060 | B84: Cucina | C84: Numero di pasti | E84: 74400 | F84: 0 | G84: 0 | H84: 0 | I84: 0 | J84: =J40 -> 0 | K84: 0 | L84: =L40 -> 0 | M84: 0 | O84: =O40 -> 0 | P84: =P40 -> 0 | Q84: =Q40+AB40+AC40+AD40 -> 64500 | R84: =R40+AH40 -> 0 | S84: =S40 -> 0 | T84: 0 | U84: 0 | V84: 0 | W84: 0 | X84: 0 | Y84: 0 | Z84: 9900 | AF84: =AF40 -> 0 | BC84: 0
A85: RIP090 | B85: Magazzino centrale | C85: Allocazione diretta | E85: 0 | F85: 0 | G85: 0 | H85: 0 | I85: 0 | J85: =J41 -> 0 | K85: 0 | L85: =L41 -> 0 | M85: 0 | N85: =N41 -> 0 | P85: =P41 -> 0 | Q85: =Q41+AB41+AC41+AD41 -> 0 | R85: =R41+AH41 -> 0 | S85: =S41 -> 0 | T85: 0 | U85: 0 | V85: 0 | W85: 0 | X85: 0 | Y85: 0 | Z85: 0 | AF85: =AF41 -> 0 | BC85: 0
A86: RIP095 | B86: Farmacia | C86: Allocazione diretta | E86: =SUM(F86:BA86) -> 188000 | F86: 0 | G86: 0 | H86: 0 | I86: 0 | J86: =J42 -> 0 | K86: 0 | L86: =L42 -> 0 | M86: 0 | N86: =N42 -> 0 | O86: 0 | Q86: =Q42+AB42+AC42+AD42 -> 0 | R86: =R42+AH42 -> 0 | S86: =S42 -> 0 | T86: 0 | U86: 0 | V86: 0 | W86: 0 | X86: 60000 | Y86: 75000 | Z86: 53000 | AF86: =AF42 -> 0 | BC86: 0
A89: Tab. 3B - Costi unitari (costo dell'unità di ripartizione) per COAN SOMED-A | Z89: Nota Tab. 2B | AB89: I pesi dei CdC colorati in violetto sono SPOSTATI (tramite formule di calcolo) nei CdC principali (solo per SOMED).
B90: Centri di costo generali | C90: Unità | E90: costo unitario CHF | AB90: I pesi dei CdC DELIMITATI sono tralasciati in quanto questi CdC non sono considerati per SOMED. Valgono inoltre le osservazioni esposte nella nota alla Tab. 2A sopra.
A91: RIP010 | B91: Edifici | C91: =C47 -> m2 | E91: =IF(E76=0,0,(-'Contabilità per CDC - SOMED'!F48)/E76) -> 309.4306866
A92: RIP011 | B92: Energia | C92: =C48 -> m2 | E92: =IF(E77=0,0,(-'Contabilità per CDC - SOMED'!G49)/E77) -> 35.07299105
A93: RIP020 | B93: Servizio tecnico | C93: m2 | E93: =IF(E78=0,0,(-'Contabilità per CDC - SOMED'!H50)/E78) -> 32.65107883
A94: RIP021 | B94: Servizio trasporti | C94: km (sistematico) | E94: =IF(E79=0,0,(-'Contabilità per CDC - SOMED'!I51)/E79) -> 6.178947368
A95: RIP030 | B95: Direzione/ Amministrazione | C95: % retribuzione | E95: =IF(E80=0,0,(-'Contabilità per CDC - SOMED'!J52)/E80) -> 664627.1618
A96: RIP040 | B96: Economia domestica in generale | C96: % retribuzione | E96: =IF(E81=0,0,(-'Contabilità per CDC - SOMED'!K53)/E81) -> 122571.0086
A97: RIP041 | B97: Lavanderia | C97: kg (sistematico) | E97: =IF(E82=0,0,(-'Contabilità per CDC - SOMED'!L54)/E82) -> 11.23304562
A98: RIP042 | B98: Pulizia | C98: m2 | E98: =IF(E83=0,0,(-'Contabilità per CDC - SOMED'!M55)/E83) -> 100.368391
A99: RIP060 | B99: Cucina | C99: Numero di pasti | E99: =IF(E84=0,0,(-'Contabilità per CDC - SOMED'!N56)/E84) -> 17.17171924
A100: RIP090 | B100: Magazzino centrale | C100: Allocazione diretta | E100: =IF(E85=0,0,(-'Contabilità per CDC - SOMED'!O57)/E85) -> 0
A101: RIP095 | B101: Farmacia | C101: Allocazione diretta | E101: =IF(E86=0,0,(-'Contabilità per CDC - SOMED'!P58)/E86) -> 0.1333544948

Sheet Contabilità per CDC - UACD
A1: Contabilità analitica per centri di costo - UACD | X1: C O A N - U A C D | AU1: C O A N - U A C D
A2: =Parametri!$B$7 -> 2021 | B2: =Parametri!$B$3 -> ESEMPIO - CPA STANDARD CON CAT-STT | X2: =+A2 -> 2021 | Y2: =+B2 -> ESEMPIO - CPA STANDARD CON CAT-STT | AU2: =+A2 -> 2021 | AV2: =+B2 -> ESEMPIO - CPA STANDARD CON CAT-STT
F4: C o n t a b i l i t à a n a l i t i c a p e r c e n t r i d i c o s t o U A C D
F5: C e n t r i d i c o s t o g e n e r a l i | R5: Ce n t r i d i c o s t o p r i n c i p a l i | AB5: S e r v i z i a n n e s s i | AQ5: Voci non riconosciute | AS5: Prestazioni all'atto | AV5: G e s t i o n e e s t r a n e a | BG5: Gestione straordinaria | BI5: CdC tecnico
C6: COFI | E6: COAN | F6: 010 | G6: 011 | H6: 020 | I6: 021 | J6: 030 | K6: 040 | L6: 041 | M6: 042 | N6: 060 | O6: 090 | P6: 095 | Q6: Totale | R6: 100 | S6: 110 | T6: 115 | U6: 130 | V6: 131 | W6: 132 | X6: 140 | Y6: 150 | Z6: 151 | AA6: Totale | AB6: 160 | AC6: 161 | AD6: 162 | AE6: 163 | AF6: 16X | AG6: 170 | AH6: 171 | AI6: 172 | AJ6: 17X | AK6: 180 | AL6: 181 | AM6: 182 | AN6: 183 | AO6: 184 | AP6: Totale | AQ6: 190 | AR6: Totale | AS6: 800 | AT6: 80x | AU6: Totale | AV6: 900 | AW6: 905 | AX6: 910 | AY6: 915 | AZ6: 920 | BA6: 925 | BB6: 930 | BC6: 935 | BD6: 940 | BE6: 945 | BF6: Totale | BG6: 990 | BH6: Totale | BI6: 999
B7: CDC per UACD | C7: Contabilità finanziaria Costi | D7: Delimitazioni +/- | E7: Contabilità analitica Costi | F7: Edifici | G7: Energia | H7: Servizio tecnico | I7: Servizio trasporti | J7: Direzione/ Amministrazione | K7: Economia domestica in generale | L7: Lavanderia | M7: Pulizia | N7: Cucina | O7: Magazzino centrale | P7: Farmacia | R7: Servizio alberghiero | S7: Animazione | T7: Cura | U7: Fisioterapia | V7: Ergoterapia | W7: Altre consulenze e terapie | X7: Servizio medico | Y7: Materiale secondo EMAp | Z7: Medicamenti secondo ES / EMT | AB7: CAT | AC7: STT > NON COMPILARE ! | AD7: Cure palliative | AE7: Reparto Alzheimer | AF7: STAZ n | AG7: Ambulatorio medico | AH7: Centro diurno terapeutico (CDT) | AI7: Appartamenti protetti | AJ7: AMB n (CD socio-assistenziale, ecc.) | AK7: Altre voci riconosciute (oneri ipotecari e affitti) | AL7: Altre voci riconosciute (formazione apprendisti, stagiaires e ausiliari) | AM7: Altre voci riconosciute (neutralizzazione cassa pensione) | AN7: Altre voci riconosciute (contributi straordinari) | AO7: Altre voci riconosciute (Spese COVID-19 Anno 2021) | AQ7: Voci non riconosciute | AS7: Gestione MEDICAMENTI e materiale all'atto | AT7: Gestione TERAPIE all'atto (fisio-, ergoterapia, altre terapie) n | AV7: Appartamenti per il personale | AW7: Bar e ristorante | AX7: Edicola | AY7: Negozio | AZ7: Parrucchiere | BA7: Pedicure | BB7: Posteggi | BC7: Prestazioni di lavanderia a terzi | BD7: Vendita di pasti a terzi | BE7: ESTR n | BG7: Gestione straordinaria | BI7: Centro di costo tecnico
A8: Voci di costo | D8: +/- | BK8: somma di controllo
A9: 3000 | B9: Salari medici | C9: 170000 | E9: =C9+D9 -> 170000 | Q9: =SUM(F9:P9) -> 0 | X9: 20000 | AA9: =SUM(R9:Z9) -> 20000 | AB9: 150000 | AP9: =SUM(AB9:AO9) -> 150000 | AR9: =SUM(AQ9) -> 0 | AU9: =SUM(AS9:AT9) -> 0 | BF9: =SUM(AV9:BE9) -> 0 | BH9: =SUM(BG9) -> 0 | BK9: =IF(ABS(E9-Q9-AA9-AP9-AR9-AU9-BF9-BH9)<0.0001,0,E9-Q9-AA9-AP9-AR9-AU9-BF9-BH9) -> 0
A10: 3001 | B10: Salari responsabili di struttura | C10: 111000 | E10: =C10+D10 -> 111000 | J10: 10000 | Q10: =SUM(F10:P10) -> 10000 | S10: 1000 | T10: 100000 | AA10: =SUM(R10:Z10) -> 101000 | AP10: =SUM(AB10:AO10) -> 0 | AR10: =SUM(AQ10) -> 0 | AU10: =SUM(AS10:AT10) -> 0 | BF10: 0 | BH10: =SUM(BG10) -> 0 | BK10: =IF(ABS(E10-Q10-AA10-AP10-AR10-AU10-BF10-BH10)<0.0001,0,E10-Q10-AA10-AP10-AR10-AU10-BF10-BH10) -> 0
A11: 3001.05 | B11: Salari capi reparto | C11: 199900 | E11: 199900 | J11: 9000 | Q11: 9000 | S11: 900 | T11: 90000 | AA11: =SUM(R11:Z11) -> 90900 | AB11: 100000 | AP11: 100000 | AR11: 0 | AU11: 0 | BF11: 0 | BH11: 0 | BK11: 0
A12: 3001.1 | B12: Salari infermieri e operatori socio sanitari (OSS) | C12: 1705600 | E12: 1705600 | J12: 11600 | N12: 56000 | Q12: 67600 | S12: 35000 | T12: =1160000 -> 1160000 | AA12: 1195000 | AB12: 425000 | AO12: 18000 | AP12: =SUM(AB12:AO12) -> 443000 | AR12: 0 | AU12: =SUM(AS12:AT12) -> 0 | BF12: =SUM(AV12:BE12) -> 0 | BH12: 0 | BK12: 0
A13: 3001.2 | B13: Salari assistenti e ausiliari di cura | C13: 1905000 | E13: 1905000 | L13: 57500 | M13: 57500 | N13: 115000 | Q13: 230000 | S13: 55000 | T13: =1150000 -> 1150000 | AA13: 1205000 | AB13: 430000 | AO13: 40000 | AP13: 470000 | AR13: 0 | AU13: 0 | BF13: 0 | BH13: 0 | BK13: 0
A14: 3001.3 | B14: Salari dietisti | C14: 44000 | E14: 44000 | J14: 4000 | Q14: 4000 | W14: 40000 | AA14: 40000 | AP14: 0 | AR14: 0 | AU14: 0 | BF14: 0 | BH14: 0 | BK14: =IF(ABS(E14-Q14-AA14-AP14-AR14-AU14-BF14-BH14)<0.0001,0,E14-Q14-AA14-AP14-AR14-AU14-BF14-BH14) -> 0
A15: 3001.9 | B15: Salari personale di cura in formazione e stagisti | C15: 35500 | E15: 35500 | Q15: 0 | AA15: 0 | AL15: 35000 | AO15: 500 | AP15: 35500 | AR15: 0 | AU15: 0 | BF15: 0 | BH15: 0 | BK15: 0
A16: 3002 | B16: Salari personale altre discipline mediche specializzate | C16: 329000 | E16: 329000 | J16: 3500 | Q16: 3500 | S16: 125000 | U16: 10000 | V16: 20000 | AA16: 155000 | AB16: 120000 | AO16: 500 | AP16: 120500 | AR16: 0 | AS16: 10000 | AT16: 40000 | AU16: 50000 | BF16: 0 | BH16: 0 | BK16: 0
A17: 3003 | B17: Salari personale amministrativo | C17: 261500 | E17: 261500 | J17: =250000-12000 -> 238000 | Q17: 238000 | AA17: 0 | AL17: 12000 | AO17: 11500 | AP17: 23500 | AR17: 0 | AU17: 0 | BF17: 0 | BH17: 0 | BK17: 0
A18: 3004 | B18: Salari personale servizio alberghiero | C18: 945000 | E18: 945000 | K18: 55000 | L18: 215000 | M18: 200000 | N18: =450000 -> 450000 | Q18: 920000 | AA18: 0 | AO18: 25000 | AP18: 25000 | AR18: 0 | AU18: 0 | BF18: 0 | BH18: 0 | BK18: 0
A19: 3005 | B19: Salari personale servizio tecnico | C19: 76000 | E19: 76000 | H19: =75000-6000 -> 69000 | Q19: 69000 | AA19: 0 | AL19: 6000 | AO19: 1000 | AP19: 7000 | AR19: 0 | AU19: 0 | BF19: 0 | BH19: 0 | BK19: 0
A20: 3009 | B20: Prestazioni continuative da parte di personale esterno | C20: 50000 | E20: 50000 | Q20: 0 | T20: 50000 | AA20: 50000 | AP20: 0 | AR20: 0 | AU20: 0 | BF20: 0 | BH20: 0 | BK20: 0
A21: 309 | B21: Messa a disposizione di personale a terzi | C21: 0 | E21: 0 | Q21: 0 | AA21: 0 | AP21: 0 | AR21: 0 | AU21: 0 | BF21: 0 | BH21: 0 | BK21: 0
A22: 37 | B22: Oneri sociali | C22: 1340000 | E22: =C22+D22 -> 1340000 | F22: =IF(Ripartizioni!$A$65="X",Ripartizioni!F65,Ripartizioni!F66) -> 0 | G22: =IF(Ripartizioni!$A$65="X",Ripartizioni!G65,Ripartizioni!G66) -> 0 | H22: =IF(Ripartizioni!$A$65="X",Ripartizioni!H65,Ripartizioni!H66) -> 15989.62387 | I22: =IF(Ripartizioni!$A$65="X",Ripartizioni!I65,Ripartizioni!I66) -> 0 | J22: =IF(Ripartizioni!$A$65="X",Ripartizioni!J65,Ripartizioni!J66) -> 63981.66883 | K22: =IF(Ripartizioni!$A$65="X",Ripartizioni!K65,Ripartizioni!K66) -> 12745.35236 | L22: =IF(Ripartizioni!$A$65="X",Ripartizioni!L65,Ripartizioni!L66) -> 63147.42758 | M22: =IF(Ripartizioni!$A$65="X",Ripartizioni!M65,Ripartizioni!M66) -> 59671.4224 | N22: =IF(Ripartizioni!$A$65="X",Ripartizioni!N65,Ripartizioni!N66) -> 143906.6148 | O22: =IF(Ripartizioni!$A$65="X",Ripartizioni!O65,Ripartizioni!O66) -> 0 | P22: =IF(Ripartizioni!$A$65="X",Ripartizioni!P65,Ripartizioni!P66) -> 0 | Q22: =SUM(F22:P22) -> 359442.1098 | R22: =IF(Ripartizioni!$A$65="X",Ripartizioni!Q65,Ripartizioni!Q66) -> 0 | S22: =IF(Ripartizioni!$A$65="X",Ripartizioni!R65,Ripartizioni!R66) -> 50263.03502 | T22: =IF(Ripartizioni!$A$65="X",Ripartizioni!S65,Ripartizioni!S66) -> 579334.198 | U22: =IF(Ripartizioni!$A$65="X",Ripartizioni!T65,Ripartizioni!T66) -> 2317.336792 | V22: =IF(Ripartizioni!$A$65="X",Ripartizioni!U65,Ripartizioni!U66) -> 4634.673584 | W22: =IF(Ripartizioni!$A$65="X",Ripartizioni!V65,Ripartizioni!V66) -> 9269.347168 | X22: =IF(Ripartizioni!$A$65="X",Ripartizioni!W65,Ripartizioni!W66) -> 4634.673584 | Y22: =IF(Ripartizioni!$A$65="X",Ripartizioni!X65,Ripartizioni!X66) -> 0 | Z22: =IF(Ripartizioni!$A$65="X",Ripartizioni!Y65,Ripartizioni!Y66) -> 0 | AA22: 650453.2642 | AB22: =IF(Ripartizioni!$A$65="X",Ripartizioni!Z65,Ripartizioni!Z66) -> 283873.757 | AD22: =IF(Ripartizioni!$A$65="X",Ripartizioni!AB65,Ripartizioni!AB66) -> 0 | AE22: =IF(Ripartizioni!$A$65="X",Ripartizioni!AC65,Ripartizioni!AC66) -> 0 | AF22: =IF(Ripartizioni!$A$65="X",Ripartizioni!AD65,Ripartizioni!AD66) -> 0 | AG22: =IF(Ripartizioni!$A$65="X",Ripartizioni!AE65,Ripartizioni!AE66) -> 0 | AH22: =IF(Ripartizioni!$A$65="X",Ripartizioni!AF65,Ripartizioni!AF66) -> 0 | AI22: =IF(Ripartizioni!$A$65="X",Ripartizioni!AG65,Ripartizioni!AG66) -> 0 | AJ22: =IF(Ripartizioni!$A$65="X",Ripartizioni!AH65,Ripartizioni!AH66) -> 0 | AK22: =IF(Ripartizioni!$A$65="X",Ripartizioni!AI65,Ripartizioni!AI66) -> 0 | AL22: =IF(Ripartizioni!$A$65="X",Ripartizioni!AJ65,Ripartizioni!AJ66) -> 12281.885 | AM22: =IF(Ripartizioni!$A$65="X",Ripartizioni!AK65,Ripartizioni!AK66) -> 0 | AN22: =IF(Ripartizioni!$A$65="X",Ripartizioni!AL65,Ripartizioni!AL66) -> 0 | AO22: =IF(Ripartizioni!$A$65="X",Ripartizioni!AM65,Ripartizioni!AM66) -> 22362.30004 | AP22: 318517.9421 | AQ22: =IF(Ripartizioni!$A$65="X",Ripartizioni!AN65,Ripartizioni!AN66) -> 0 | AR22: 0 | AS22: =IF(Ripartizioni!$A$65="X",Ripartizioni!AO65,Ripartizioni!AO66) -> 2317.336792 | AT22: =IF(Ripartizioni!$A$65="X",Ripartizioni!AP65,Ripartizioni!AP66) -> 9269.347168 | AU22: 11586.68396 | AV22: =IF(Ripartizioni!$A$65="X",Ripartizioni!AQ65,Ripartizioni!AQ66) -> 0 | AW22: =IF(Ripartizioni!$A$65="X",Ripartizioni!AR65,Ripartizioni!AR66) -> 0 | AX22: =IF(Ripartizioni!$A$65="X",Ripartizioni!AS65,Ripartizioni!AS66) -> 0 | AY22: =IF(Ripartizioni!$A$65="X",Ripartizioni!AT65,Ripartizioni!AT66) -> 0 | AZ22: =IF(Ripartizioni!$A$65="X",Ripartizioni!AU65,Ripartizioni!AU66) -> 0 | BA22: =IF(Ripartizioni!$A$65="X",Ripartizioni!AV65,Ripartizioni!AV66) -> 0 | BB22: =IF(Ripartizioni!$A$65="X",Ripartizioni!AW65,Ripartizioni!AW66) -> 0 | BC22: =IF(Ripartizioni!$A$65="X",Ripartizioni!AX65,Ripartizioni!AX66) -> 0 | BD22: =IF(Ripartizioni!$A$65="X",Ripartizioni!AY65,Ripartizioni!AY66) -> 0 | BE22: =IF(Ripartizioni!$A$65="X",Ripartizioni!AZ65,Ripartizioni!AZ66) -> 0 | BF22: 0 | BG22: =IF(Ripartizioni!$A$65="X",Ripartizioni!BA65,Ripartizioni!BA66) -> 0 | BH22: 0 | BK22: 0
B23: Neutralizzazione cassa pensione | C23: 0 | E23: =C23+D23 -> 0 | Q23: =SUM(F23:P23) -> 0 | AA23: =SUM(R23:Z23) -> 0 | AP23: =SUM(AB23:AO23) -> 0 | AR23: =SUM(AQ23) -> 0 | AU23: =SUM(AS23:AT23) -> 0 | BF23: =SUM(AV23:BE23) -> 0 | BH23: =SUM(BG23) -> 0 | BK23: =IF(ABS(E23-Q23-AA23-AP23-AR23-AU23-BF23-BH23)<0.0001,0,E23-Q23-AA23-AP23-AR23-AU23-BF23-BH23) -> 0
A24: 38 | B24: Onorari medici | C24: 25000 | E24: 25000 | Q24: =SUM(F24:P24) -> 0 | T24: 10000 | AA24: 10000 | AO24: 15000 | AP24: 15000 | AR24: 0 | AU24: =SUM(AS24:AT24) -> 0 | BF24: 0 | BH24: 0 | BK24: 0
A25: 39 | B25: Altri costi del personale | C25: 38000 | E25: 38000 | H25: 500 | J25: 1000 | Q25: 1500 | S25: 500 | T25: 15000 | U25: 500 | V25: 500 | AA25: 16500 | AO25: 20000 | AP25: 20000 | AR25: 0 | AU25: 0 | BF25: 0 | BH25: 0 | BK25: 0
A26: 40 | B26: Fabbisogno medico | C26: 170100 | E26: 170100 | P26: 5000 | Q26: 5000 | X26: 100 | Y26: 60000 | Z26: 15000 | AA26: 75100 | AB26: 25000 | AO26: 5000 | AP26: 30000 | AR26: 0 | AS26: 60000 | AU26: 60000 | BF26: 0 | BH26: 0 | BK26: 0
A27: 41 | B27: Costi dei generi alimentari | C27: 250000 | E27: 250000 | N27: =250000 -> 250000 | Q27: 250000 | AA27: 0 | AP27: 0 | AR27: 0 | AU27: 0 | BF27: 0 | BH27: 0 | BK27: 0
A28: 42 | B28: Costi di economia domestica | C28: 126200 | E28: 126200 | H28: 1200 | K28: 5000 | L28: 15000 | M28: 30000 | N28: 25000 | Q28: 76200 | R28: 25000 | S28: 500 | T28: 3000 | U28: 250 | V28: 250 | AA28: 29000 | AB28: 1000 | AO28: 20000 | AP28: 21000 | AR28: 0 | AU28: 0 | BF28: 0 | BH28: 0 | BK28: 0
A29: 43 | B29: Manutenzione e riparazione | C29: 153050 | E29: 153050 | F29: 80000 | G29: 3000 | H29: 3000 | I29: 8000 | J29: 18000 | K29: 2000 | L29: 4000 | M29: 500 | N29: 13000 | Q29: 131500 | R29: 2000 | S29: 100 | T29: 8000 | U29: 150 | V29: 150 | AA29: 10400 | AO29: 11000 | AP29: 11000 | AR29: 0 | AU29: 0 | AW29: 150 | BF29: 150 | BH29: 0 | BK29: 0
A30: 440 | B30: Investimenti inferiori al limite di attivazione COAN | C30: 59500 | E30: 59500 | F30: 8500 | J30: 10000 | L30: 500 | M30: 900 | N30: 9000 | Q30: =SUM(F30:P30) -> 28900 | R30: 5000 | S30: 100 | T30: 9500 | U30: 500 | V30: 500 | AA30: 15600 | AO30: 15000 | AP30: 15000 | AR30: 0 | AU30: 0 | BF30: 0 | BH30: 0 | BK30: 0
A31: 442 | B31: Ammortamenti | C31: 755923.18 | E31: 755923.18 | Q31: 0 | AA31: 0 | AK31: =755923.18-113388.48 -> 642534.7 | AP31: 642534.7 | AQ31: 113388.48 | AR31: 113388.48 | AU31: 0 | BF31: 0 | BG31: 0 | BH31: 0 | BK31: 0
A32: 443 | B32: Canoni di locaz. per immobilizzaz. < limite di attivazione COAN | C32: 0 | E32: 0 | Q32: 0 | AA32: 0 | AP32: 0 | AR32: 0 | AU32: 0 | BF32: 0 | BH32: 0 | BK32: 0
A33: 444 | B33: Canoni di locaz. per immobilizzaz. >= limite di attivazione COAN | C33: 1000 | E33: 1000 | J33: 1000 | Q33: 1000 | AA33: 0 | AP33: 0 | AR33: 0 | AU33: 0 | BF33: 0 | BH33: 0 | BK33: 0
A34: 448 | B34: Interessi calcolatori sull'attivo fisso | C34: 0 | D34: 578861.92 | E34: 578861.92 | Q34: 0 | AA34: 0 | AK34: =578861.92-86829.29 -> 492032.63 | AP34: 492032.63 | AQ34: 86829.29 | AR34: 86829.29 | AU34: 0 | BF34: 0 | BG34: 0 | BH34: 0 | BK34: 0
A35: 45 | B35: Costi per energia e acqua | C35: 116300 | E35: 116300 | G35: 115000 | N35: 1300 | Q35: 116300 | AA35: =SUM(R35:Z35) -> 0 | AP35: =SUM(AB35:AO35) -> 0 | AR35: =SUM(AQ35) -> 0 | AU35: =SUM(AS35:AT35) -> 0 | BF35: 0 | BH35: 0 | BK35: 0
A36: 46 | B36: Oneri finanziari | C36: 551111.92 | D36: -549246.92 | E36: =C36+D36 -> 1865 | J36: 1865 | Q36: 1865 | AA36: =SUM(R36:Z36) -> 0 | AP36: =SUM(AB36:AO36) -> 0 | AR36: =SUM(AQ36) -> 0 | AU36: =SUM(AS36:AT36) -> 0 | BF36: 0 | BH36: 0 | BK36: 0
A37: 47 | B37: Costi amministrativi e di informatica | C37: 66500 | E37: 66500 | J37: 65000 | Q37: 65000 | T37: 500 | U37: 250 | V37: 250 | AA37: =SUM(R37:Z37) -> 1000 | AO37: 500 | AP37: =SUM(AB37:AO37) -> 500 | AR37: =SUM(AQ37) -> 0 | AU37: =SUM(AS37:AT37) -> 0 | BF37: 0 | BH37: 0 | BK37: 0
A38: 48 | B38: Altri costi relativi ai residenti | C38: 10100 | E38: 10100 | J38: 1500 | Q38: 1500 | R38: 5900 | S38: 1500 | AA38: =SUM(R38:Z38) -> 7400 | AO38: 1200 | AP38: =SUM(AB38:AO38) -> 1200 | AR38: =SUM(AQ38) -> 0 | AU38: =SUM(AS38:AT38) -> 0 | BF38: 0 | BH38: 0 | BK38: 0
A39: 49 | B39: Altri costi non relativi ai residenti | C39: 52500 | E39: 52500 | F39: 20000 | J39: 10000 | L39: 500 | N39: 1500 | Q39: 32000 | S39: 4500 | T39: 500 | U39: 300 | V39: 200 | AA39: =SUM(R39:Z39) -> 5500 | AO39: 15000 | AP39: =SUM(AB39:AO39) -> 15000 | AR39: =SUM(AQ39) -> 0 | AU39: =SUM(AS39:AT39) -> 0 | BF39: 0 | BH39: 0 | BK39: 0
B40: Costi lordi prima delle ripartizioni | C40: =SUM(C9:C39) -> 9547785.1 | D40: =SUM(D9:D39) -> 29615 | E40: =SUM(E9:E39) -> 9577400.1 | F40: =SUM(F9:F39) -> 108500 | G40: 118000 | H40: 89689.62387 | I40: 8000 | J40: 448446.6688 | K40: 74745.35236 | L40: 355647.4276 | M40: 348571.4224 | N40: 1064706.615 | O40: 0 | P40: 5000 | Q40: 2621307.11 | R40: 37900 | S40: 274363.035 | T40: 3175834.198 | U40: 14267.33679 | V40: 26484.67358 | W40: 49269.34717 | X40: 24734.67358 | Y40: 60000 | Z40: 15000 | AA40: 3677853.264 | AB40: 1534873.757 | AD40: 0 | AE40: 0 | AF40: 0 | AG40: 0 | AH40: 0 | AI40: =SUM(AI9:AI39) -> 0 | AJ40: 0 | AK40: 1134567.33 | AL40: 65281.885 | AM40: 0 | AN40: 0 | AO40: 221562.3 | AP40: 2956285.272 | AQ40: 200217.77 | AR40: 200217.77 | AS40: 72317.33679 | AT40: 49269.34717 | AU40: 121586.684 | AV40: 0 | AW40: 150 | AX40: 0 | AY40: 0 | AZ40: 0 | BA40: 0 | BB40: 0 | BC40: 0 | BD40: 0 | BE40: 0 | BF40: 150 | BG40: 0 | BH40: 0
A41: Riduzione dei costi, ricavi accessori compresi
A42: 65 | B42: Altri ricavi da prestazioni ai residenti | C42: -23360 | E42: =C42+D42 -> -23360 | I42: -5000 | J42: -8000 | L42: -300 | N42: -250 | P42: -10 | Q42: =SUM(F42:P42) -> -13560 | R42: -800 | S42: -4000 | T42: 0 | U42: 0 | V42: 0 | W42: 0 | X42: 0 | Y42: 0 | Z42: 0 | AA42: =SUM(R42:Z42) -> -4800 | AP42: =SUM(AB42:AO42) -> 0 | AR42: =SUM(AQ42) -> 0 | AU42: =SUM(AS42:AT42) -> 0 | AW42: -5000 | BF42: =SUM(AV42:BE42) -> -5000 | BH42: =SUM(BG42) -> 0 | BK42: =IF(ABS(E42-Q42-AA42-AP42-AR42-AU42-BF42-BH42)<0.0001,0,E42-Q42-AA42-AP42-AR42-AU42-BF42-BH42) -> 0
A43: 66 | B43: Ricavi finanziari | C43: -130 | E43: =C43+D43 -> -130 | J43: -130 | Q43: =SUM(F43:P43) -> -130 | AA43: =SUM(R43:Z43) -> 0 | AP43: =SUM(AB43:AO43) -> 0 | AR43: =SUM(AQ43) -> 0 | AU43: =SUM(AS43:AT43) -> 0 | BF43: =SUM(AV43:BE43) -> 0 | BH43: =SUM(BG43) -> 0 | BK43: =IF(ABS(E43-Q43-AA43-AP43-AR43-AU43-BF43-BH43)<0.0001,0,E43-Q43-AA43-AP43-AR43-AU43-BF43-BH43) -> 0
A44: 68 | B44: Ricavi da prestazioni fornite al personale e a terzi | C44: -28550 | E44: =C44+D44 -> -28550 | J44: -100 | L44: -150 | N44: -300 | Q44: =SUM(F44:P44) -> -550 | AA44: =SUM(R44:Z44) -> 0 | AP44: =SUM(AB44:AO44) -> 0 | AR44: =SUM(AQ44) -> 0 | AU44: =SUM(AS44:AT44) -> 0 | AW44: -9000 | BB44: -4000 | BD44: -15000 | BF44: =SUM(AV44:BE44) -> -28000 | BH44: =SUM(BG44) -> 0 | BK44: =IF(ABS(E44-Q44-AA44-AP44-AR44-AU44-BF44-BH44)<0.0001,0,E44-Q44-AA44-AP44-AR44-AU44-BF44-BH44) -> 0
A45: 7 | B45: Imposte, risultato estraneo all'esercizio e straordinario | C45: -500 | E45: =C45+D45 -> -500 | J45: -500 | Q45: =SUM(F45:P45) -> -500 | AA45: =SUM(R45:Z45) -> 0 | AP45: =SUM(AB45:AO45) -> 0 | AR45: =SUM(AQ45) -> 0 | AU45: =SUM(AS45:AT45) -> 0 | BF45: =SUM(AV45:BE45) -> 0 | BH45: =SUM(BG45) -> 0 | BK45: =IF(ABS(E45-Q45-AA45-AP45-AR45-AU45-BF45-BH45)<0.0001,0,E45-Q45-AA45-AP45-AR45-AU45-BF45-BH45) -> 0
B46: Costi netti prima delle ripartizioni | C46: =SUM(C40:C45) -> 9495245.1 | D46: =SUM(D40:D45) -> 29615 | E46: =SUM(E40:E45) -> 9524860.1 | F46: 108500 | G46: 118000 | H46: 89689.62387 | I46: 3000 | J46: 439716.6688 | K46: 74745.35236 | L46: 355197.4276 | M46: 348571.4224 | N46: 1064156.615 | O46: 0 | P46: 4990 | Q46: 2606567.11 | R46: 37100 | S46: 270363.035 | T46: 3175834.198 | U46: 14267.33679 | V46: 26484.67358 | W46: 49269.34717 | X46: 24734.67358 | Y46: 60000 | Z46: 15000 | AA46: 3673053.264 | AB46: 1534873.757 | AD46: 0 | AE46: 0 | AF46: 0 | AG46: 0 | AH46: 0 | AI46: 0 | AJ46: 0 | AK46: 1134567.33 | AL46: 65281.885 | AM46: 0 | AN46: 0 | AO46: 221562.3 | AP46: 2956285.272 | AQ46: 200217.77 | AR46: 200217.77 | AS46: 72317.33679 | AT46: 49269.34717 | AU46: 121586.684 | AV46: 0 | AW46: -13850 | AX46: 0 | AY46: 0 | AZ46: 0 | BA46: 0 | BB46: -4000 | BC46: 0 | BD46: -15000 | BE46: 0 | BF46: -32850 | BG46: 0 | BH46: 0
A47: Ripartizioni sui CdC generali e sui CdC principali | C47: Unità | D47: Totale | E47: Prezzo/unità
A48: RIP010 | B48: Ripartizione Edifici | C48: =Ripartizioni!C32 -> m2 | D48: =Ripartizioni!E32 -> 4590 | E48: =Ripartizioni!E47 -> 23.63834423 | F48: =-SUM(F46,F49:F58) -> -108500 | G48: =Ripartizioni!$E47*Ripartizioni!G32 -> 1772.875817 | H48: =Ripartizioni!$E47*Ripartizioni!H32 -> 1181.917211 | I48: =Ripartizioni!$E47*Ripartizioni!I32 -> 0 | J48: =Ripartizioni!$E47*Ripartizioni!J32 -> 2363.834423 | K48: =Ripartizioni!$E47*Ripartizioni!K32 -> 1891.067538 | L48: =Ripartizioni!$E47*Ripartizioni!L32 -> 2363.834423 | M48: =Ripartizioni!$E47*Ripartizioni!M32 -> 1063.72549 | N48: =Ripartizioni!$E47*Ripartizioni!N32 -> 7564.270153 | O48: =Ripartizioni!$E47*Ripartizioni!O32 -> 0 | P48: =Ripartizioni!$E47*Ripartizioni!P32 -> 0 | Q48: =SUM(F48:P48) -> -90298.47495 | R48: =Ripartizioni!$E47*Ripartizioni!Q32 -> 59095.86057 | S48: =Ripartizioni!$E47*Ripartizioni!R32 -> 2836.601307 | T48: =Ripartizioni!$E47*Ripartizioni!S32 -> 2363.834423 | U48: =Ripartizioni!$E47*Ripartizioni!T32 -> 472.7668845 | V48: =Ripartizioni!$E47*Ripartizioni!U32 -> 590.9586057 | W48: =Ripartizioni!$E47*Ripartizioni!V32 -> 0 | X48: =Ripartizioni!$E47*Ripartizioni!W32 -> 0 | Y48: =Ripartizioni!$E47*Ripartizioni!X32 -> 0 | Z48: =Ripartizioni!$E47*Ripartizioni!Y32 -> 0 | AA48: =SUM(R48:Z48) -> 65360.02179 | AB48: =Ripartizioni!$E47*Ripartizioni!Z32 -> 20092.59259 | AD48: =Ripartizioni!$E47*Ripartizioni!AB32 -> 0 | AE48: =Ripartizioni!$E47*Ripartizioni!AC32 -> 0 | AF48: =Ripartizioni!$E47*Ripartizioni!AD32 -> 0 | AG48: =Ripartizioni!$E47*Ripartizioni!AE32 -> 0 | AH48: =Ripartizioni!$E47*Ripartizioni!AF32 -> 0 | AI48: =Ripartizioni!$E47*Ripartizioni!AG32 -> 0 | AJ48: =Ripartizioni!$E47*Ripartizioni!AH32 -> 0 | AP48: =SUM(AB48:AO48) -> 20092.59259 | AR48: =SUM(AQ48) -> 0 | AS48: =Ripartizioni!$E47*Ripartizioni!AO32 -> 236.3834423 | AT48: =Ripartizioni!$E47*Ripartizioni!AP32 -> 1063.72549 | AU48: =SUM(AS48:AT48) -> 1300.108932 | AV48: =Ripartizioni!$E47*Ripartizioni!AQ32 -> 0 | AW48: =Ripartizioni!$E47*Ripartizioni!AR32 -> 3545.751634 | AX48: =Ripartizioni!$E47*Ripartizioni!AS32 -> 0 | AY48: =Ripartizioni!$E47*Ripartizioni!AT32 -> 0 | AZ48: =Ripartizioni!$E47*Ripartizioni!AU32 -> 0 | BA48: =Ripartizioni!$E47*Ripartizioni!AV32 -> 0 | BB48: =Ripartizioni!$E47*Ripartizioni!AW32 -> 0 | BC48: =Ripartizioni!$E47*Ripartizioni!AX32 -> 0 | BD48: =Ripartizioni!$E47*Ripartizioni!AY32 -> 0 | BE48: =Ripartizioni!$E47*Ripartizioni!AZ32 -> 0 | BF48: =SUM(AV48:BE48) -> 3545.751634 | BG48: =Ripartizioni!$E47*Ripartizioni!BA32 -> 0 | BH48: =SUM(BG48) -> 0 | BK48: =IF(ABS(Q48+AA48+AP48+AR48+AU48+BF48+BH48)<0.0001,0,Q48+AA48+AP48+AR48+AU48+BF48+BH48) -> 0
A49: RIP011 | B49: Ripartizione Energia | C49: =Ripartizioni!C33 -> m2 | D49: =Ripartizioni!E33 -> 4515 | E49: =Ripartizioni!E48 -> 28.36770531 | F49: =Ripartizioni!$E48*Ripartizioni!F33 -> 0 | G49: =-SUM(G46,G48,G50:G58) -> -128080.1895 | H49: =Ripartizioni!$E48*Ripartizioni!H33 -> 1418.385266 | I49: =Ripartizioni!$E48*Ripartizioni!I33 -> 0 | J49: =Ripartizioni!$E48*Ripartizioni!J33 -> 2836.770531 | K49: =Ripartizioni!$E48*Ripartizioni!K33 -> 2269.416425 | L49: =Ripartizioni!$E48*Ripartizioni!L33 -> 2836.770531 | M49: =Ripartizioni!$E48*Ripartizioni!M33 -> 1276.546739 | N49: =Ripartizioni!$E48*Ripartizioni!N33 -> 9077.6657 | O49: =Ripartizioni!$E48*Ripartizioni!O33 -> 0 | P49: =Ripartizioni!$E48*Ripartizioni!P33 -> 0 | Q49: =SUM(F49:P49) -> -108364.6343 | R49: =Ripartizioni!$E48*Ripartizioni!Q33 -> 70919.26328 | S49: =Ripartizioni!$E48*Ripartizioni!R33 -> 3404.124637 | T49: =Ripartizioni!$E48*Ripartizioni!S33 -> 2836.770531 | U49: =Ripartizioni!$E48*Ripartizioni!T33 -> 567.3541062 | V49: =Ripartizioni!$E48*Ripartizioni!U33 -> 709.1926328 | W49: =Ripartizioni!$E48*Ripartizioni!V33 -> 0 | X49: =Ripartizioni!$E48*Ripartizioni!W33 -> 0 | Y49: =Ripartizioni!$E48*Ripartizioni!X33 -> 0 | Z49: =Ripartizioni!$E48*Ripartizioni!Y33 -> 0 | AA49: =SUM(R49:Z49) -> 78436.70519 | AB49: =Ripartizioni!$E48*Ripartizioni!Z33 -> 24112.54951 | AD49: =Ripartizioni!$E48*Ripartizioni!AB33 -> 0 | AE49: =Ripartizioni!$E48*Ripartizioni!AC33 -> 0 | AF49: =Ripartizioni!$E48*Ripartizioni!AD33 -> 0 | AG49: =Ripartizioni!$E48*Ripartizioni!AE33 -> 0 | AH49: =Ripartizioni!$E48*Ripartizioni!AF33 -> 0 | AI49: =Ripartizioni!$E48*Ripartizioni!AG33 -> 0 | AJ49: =Ripartizioni!$E48*Ripartizioni!AH33 -> 0 | AP49: =SUM(AB49:AO49) -> 24112.54951 | AR49: =SUM(AQ49) -> 0 | AS49: =Ripartizioni!$E48*Ripartizioni!AO33 -> 283.6770531 | AT49: =Ripartizioni!$E48*Ripartizioni!AP33 -> 1276.546739 | AU49: =SUM(AS49:AT49) -> 1560.223792 | AV49: =Ripartizioni!$E48*Ripartizioni!AQ33 -> 0 | AW49: =Ripartizioni!$E48*Ripartizioni!AR33 -> 4255.155797 | AX49: =Ripartizioni!$E48*Ripartizioni!AS33 -> 0 | AY49: =Ripartizioni!$E48*Ripartizioni!AT33 -> 0 | AZ49: =Ripartizioni!$E48*Ripartizioni!AU33 -> 0 | BA49: =Ripartizioni!$E48*Ripartizioni!AV33 -> 0 | BB49: =Ripartizioni!$E48*Ripartizioni!AW33 -> 0 | BC49: =Ripartizioni!$E48*Ripartizioni!AX33 -> 0 | BD49: =Ripartizioni!$E48*Ripartizioni!AY33 -> 0 | BE49: =Ripartizioni!$E48*Ripartizioni!AZ33 -> 0 | BF49: =SUM(AV49:BE49) -> 4255.155797 | BG49: =Ripartizioni!$E48*Ripartizioni!BA33 -> 0 | BH49: =SUM(BG49) -> 0 | BK49: =IF(ABS(Q49+AA49+AP49+AR49+AU49+BF49+BH49)<0.0001,0,Q49+AA49+AP49+AR49+AU49+BF49+BH49) -> 0
A50: RIP020 | B50: Ripartizione Servizi tecnici | C50: =Ripartizioni!C34 -> m2 | D50: =Ripartizioni!E34 -> 4540 | E50: =Ripartizioni!E49 -> 23.30382292 | F50: =Ripartizioni!$E49*Ripartizioni!F34 -> 0 | G50: =Ripartizioni!$E49*Ripartizioni!G34 -> 1747.786719 | H50: =-SUM(H46,H48:H49,H51:H58) -> -105799.3561 | I50: =Ripartizioni!$E49*Ripartizioni!I34 -> 0 | J50: =Ripartizioni!$E49*Ripartizioni!J34 -> 2330.382292 | K50: =Ripartizioni!$E49*Ripartizioni!K34 -> 1864.305833 | L50: =Ripartizioni!$E49*Ripartizioni!L34 -> 2330.382292 | M50: =Ripartizioni!$E49*Ripartizioni!M34 -> 1048.672031 | N50: =Ripartizioni!$E49*Ripartizioni!N34 -> 7457.223334 | O50: =Ripartizioni!$E49*Ripartizioni!O34 -> 0 | P50: =Ripartizioni!$E49*Ripartizioni!P34 -> 0 | Q50: =SUM(F50:P50) -> -89020.60355 | R50: =Ripartizioni!$E49*Ripartizioni!Q34 -> 58259.5573 | S50: =Ripartizioni!$E49*Ripartizioni!R34 -> 2796.45875 | T50: =Ripartizioni!$E49*Ripartizioni!S34 -> 2330.382292 | U50: =Ripartizioni!$E49*Ripartizioni!T34 -> 466.0764584 | V50: =Ripartizioni!$E49*Ripartizioni!U34 -> 582.595573 | W50: =Ripartizioni!$E49*Ripartizioni!V34 -> 0 | X50: =Ripartizioni!$E49*Ripartizioni!W34 -> 0 | Y50: =Ripartizioni!$E49*Ripartizioni!X34 -> 0 | Z50: =Ripartizioni!$E49*Ripartizioni!Y34 -> 0 | AA50: 64435.07037 | AB50: =Ripartizioni!$E49*Ripartizioni!Z34 -> 19808.24948 | AD50: =Ripartizioni!$E49*Ripartizioni!AB34 -> 0 | AE50: =Ripartizioni!$E49*Ripartizioni!AC34 -> 0 | AF50: =Ripartizioni!$E49*Ripartizioni!AD34 -> 0 | AG50: =Ripartizioni!$E49*Ripartizioni!AE34 -> 0 | AH50: =Ripartizioni!$E49*Ripartizioni!AF34 -> 0 | AI50: =Ripartizioni!$E49*Ripartizioni!AG34 -> 0 | AJ50: =Ripartizioni!$E49*Ripartizioni!AH34 -> 0 | AP50: 19808.24948 | AR50: 0 | AS50: =Ripartizioni!$E49*Ripartizioni!AO34 -> 233.0382292 | AT50: =Ripartizioni!$E49*Ripartizioni!AP34 -> 1048.672031 | AU50: 1281.710261 | AV50: =Ripartizioni!$E49*Ripartizioni!AQ34 -> 0 | AW50: =Ripartizioni!$E49*Ripartizioni!AR34 -> 3495.573438 | AX50: =Ripartizioni!$E49*Ripartizioni!AS34 -> 0 | AY50: =Ripartizioni!$E49*Ripartizioni!AT34 -> 0 | AZ50: =Ripartizioni!$E49*Ripartizioni!AU34 -> 0 | BA50: =Ripartizioni!$E49*Ripartizioni!AV34 -> 0 | BB50: =Ripartizioni!$E49*Ripartizioni!AW34 -> 0 | BC50: =Ripartizioni!$E49*Ripartizioni!AX34 -> 0 | BD50: =Ripartizioni!$E49*Ripartizioni!AY34 -> 0 | BE50: =Ripartizioni!$E49*Ripartizioni!AZ34 -> 0 | BF50: 3495.573438 | BG50: =Ripartizioni!$E49*Ripartizioni!BA34 -> 0 | BH50: 0 | BK50: 0
A51: RIP021 | B51: Ripartizione Servizio trasporti | C51: =Ripartizioni!C35 -> km (sistematico) | D51: =Ripartizioni!E35 -> 1900 | E51: =Ripartizioni!E50 -> 1.578947368 | F51: =Ripartizioni!$E50*Ripartizioni!F35 -> 0 | G51: =Ripartizioni!$E50*Ripartizioni!G35 -> 0 | H51: =Ripartizioni!$E50*Ripartizioni!H35 -> 157.8947368 | I51: =-SUM(I46,I48:I50,I52:I58) -> -3000 | J51: =Ripartizioni!$E50*Ripartizioni!J35 -> 1736.842105 | K51: =Ripartizioni!$E50*Ripartizioni!K35 -> 0 | L51: =Ripartizioni!$E50*Ripartizioni!L35 -> 0 | M51: =Ripartizioni!$E50*Ripartizioni!M35 -> 0 | N51: =Ripartizioni!$E50*Ripartizioni!N35 -> 78.94736842 | O51: =Ripartizioni!$E50*Ripartizioni!O35 -> 0 | P51: =Ripartizioni!$E50*Ripartizioni!P35 -> 0 | Q51: =SUM(F51:P51) -> -1026.315789 | R51: =Ripartizioni!$E50*Ripartizioni!Q35 -> 0 | S51: =Ripartizioni!$E50*Ripartizioni!R35 -> 236.8421053 | T51: =Ripartizioni!$E50*Ripartizioni!S35 -> 789.4736842 | U51: =Ripartizioni!$E50*Ripartizioni!T35 -> 0 | V51: =Ripartizioni!$E50*Ripartizioni!U35 -> 0 | W51: =Ripartizioni!$E50*Ripartizioni!V35 -> 0 | X51: =Ripartizioni!$E50*Ripartizioni!W35 -> 0 | Y51: =Ripartizioni!$E50*Ripartizioni!X35 -> 0 | Z51: =Ripartizioni!$E50*Ripartizioni!Y35 -> 0 | AA51: 1026.315789 | AB51: =Ripartizioni!$E50*Ripartizioni!Z35 -> 0 | AD51: =Ripartizioni!$E50*Ripartizioni!AB35 -> 0 | AE51: =Ripartizioni!$E50*Ripartizioni!AC35 -> 0 | AF51: =Ripartizioni!$E50*Ripartizioni!AD35 -> 0 | AG51: =Ripartizioni!$E50*Ripartizioni!AE35 -> 0 | AH51: =Ripartizioni!$E50*Ripartizioni!AF35 -> 0 | AI51: =Ripartizioni!$E50*Ripartizioni!AG35 -> 0 | AJ51: =Ripartizioni!$E50*Ripartizioni!AH35 -> 0 | AP51: 0 | AR51: 0 | AS51: =Ripartizioni!$E50*Ripartizioni!AO35 -> 0 | AT51: =Ripartizioni!$E50*Ripartizioni!AP35 -> 0 | AU51: 0 | AV51: =Ripartizioni!$E50*Ripartizioni!AQ35 -> 0 | AW51: =Ripartizioni!$E50*Ripartizioni!AR35 -> 0 | AX51: =Ripartizioni!$E50*Ripartizioni!AS35 -> 0 | AY51: =Ripartizioni!$E50*Ripartizioni!AT35 -> 0 | AZ51: =Ripartizioni!$E50*Ripartizioni!AU35 -> 0 | BA51: =Ripartizioni!$E50*Ripartizioni!AV35 -> 0 | BB51: =Ripartizioni!$E50*Ripartizioni!AW35 -> 0 | BC51: =Ripartizioni!$E50*Ripartizioni!AX35 -> 0 | BD51: =Ripartizioni!$E50*Ripartizioni!AY35 -> 0 | BE51: =Ripartizioni!$E50*Ripartizioni!AZ35 -> 0 | BF51: 0 | BG51: =Ripartizioni!$E50*Ripartizioni!BA35 -> 0 | BH51: 0 | BK51: 0
A52: RIP030 | B52: Ripartizione Direzione / Amministrazione | C52: =Ripartizioni!C36 -> % retribuzione | D52: =Ripartizioni!E36 -> 0.9270295757 | E52: =Ripartizioni!E51 -> 498755.6052 | F52: =Ripartizioni!$E51*Ripartizioni!F36 -> 0 | G52: =Ripartizioni!$E51*Ripartizioni!G36 -> 0 | H52: =Ripartizioni!$E51*Ripartizioni!H36 -> 5900.409217 | I52: =Ripartizioni!$E51*Ripartizioni!I36 -> 0 | J52: =-SUM(J46,J48:J51,J53:J58) -> -462361.197 | K52: =Ripartizioni!$E51*Ripartizioni!K36 -> 4703.224738 | L52: =Ripartizioni!$E51*Ripartizioni!L36 -> 23302.34075 | M52: =Ripartizioni!$E51*Ripartizioni!M36 -> 22019.64309 | N52: =Ripartizioni!$E51*Ripartizioni!N36 -> 53103.68295 | O52: =Ripartizioni!$E51*Ripartizioni!O36 -> 0 | P52: =Ripartizioni!$E51*Ripartizioni!P36 -> 0 | Q52: -353331.8963 | R52: =Ripartizioni!$E51*Ripartizioni!Q36 -> 0 | S52: =Ripartizioni!$E51*Ripartizioni!R36 -> 18547.8081 | T52: =Ripartizioni!$E51*Ripartizioni!S36 -> 218058.6015 | U52: =Ripartizioni!$E51*Ripartizioni!T36 -> 855.1317705 | V52: =Ripartizioni!$E51*Ripartizioni!U36 -> 1710.263541 | W52: =Ripartizioni!$E51*Ripartizioni!V36 -> 3420.527082 | X52: =Ripartizioni!$E51*Ripartizioni!W36 -> 1710.263541 | Y52: =Ripartizioni!$E51*Ripartizioni!X36 -> 0 | Z52: =Ripartizioni!$E51*Ripartizioni!Y36 -> 0 | AA52: 244302.5955 | AB52: =Ripartizioni!$E51*Ripartizioni!Z36 -> 104753.6419 | AD52: =Ripartizioni!$E51*Ripartizioni!AB36 -> 0 | AE52: =Ripartizioni!$E51*Ripartizioni!AC36 -> 0 | AF52: =Ripartizioni!$E51*Ripartizioni!AD36 -> 0 | AG52: =Ripartizioni!$E51*Ripartizioni!AE36 -> 0 | AH52: =Ripartizioni!$E51*Ripartizioni!AF36 -> 0 | AI52: =Ripartizioni!$E51*Ripartizioni!AG36 -> 0 | AJ52: =Ripartizioni!$E51*Ripartizioni!AH36 -> 0 | AP52: 104753.6419 | AR52: 0 | AS52: =Ripartizioni!$E51*Ripartizioni!AO36 -> 855.1317705 | AT52: =Ripartizioni!$E51*Ripartizioni!AP36 -> 3420.527082 | AU52: 4275.658853 | AV52: =Ripartizioni!$E51*Ripartizioni!AQ36 -> 0 | AW52: =Ripartizioni!$E51*Ripartizioni!AR36 -> 0 | AX52: =Ripartizioni!$E51*Ripartizioni!AS36 -> 0 | AY52: =Ripartizioni!$E51*Ripartizioni!AT36 -> 0 | AZ52: =Ripartizioni!$E51*Ripartizioni!AU36 -> 0 | BA52: =Ripartizioni!$E51*Ripartizioni!AV36 -> 0 | BB52: =Ripartizioni!$E51*Ripartizioni!AW36 -> 0 | BC52: =Ripartizioni!$E51*Ripartizioni!AX36 -> 0 | BD52: =Ripartizioni!$E51*Ripartizioni!AY36 -> 0 | BE52: =Ripartizioni!$E51*Ripartizioni!AZ36 -> 0 | BF52: 0 | BG52: =Ripartizioni!$E51*Ripartizioni!BA36 -> 0 | BH52: 0 | BK52: 0
A53: RIP040 | B53: Ripartizione Economia domestica in generale | C53: =Ripartizioni!C37 -> % retribuzione | D53: =Ripartizioni!E37 -> 0.9649378483 | E53: =Ripartizioni!E52 -> 97820.86707 | F53: =Ripartizioni!$E52*Ripartizioni!F37 -> 0 | G53: =Ripartizioni!$E52*Ripartizioni!G37 -> 0 | H53: =Ripartizioni!$E52*Ripartizioni!H37 -> 1157.246434 | I53: =Ripartizioni!$E52*Ripartizioni!I37 -> 0 | J53: =Ripartizioni!$E52*Ripartizioni!J37 -> 4630.662906 | K53: =-SUM(K46,K48:K52,K54:K58) -> -94391.05699 | L53: =Ripartizioni!$E52*Ripartizioni!L37 -> 4570.284831 | M53: =Ripartizioni!$E52*Ripartizioni!M37 -> 4318.709519 | N53: =Ripartizioni!$E52*Ripartizioni!N37 -> 10415.21791 | O53: =Ripartizioni!$E52*Ripartizioni!O37 -> 0 | P53: =Ripartizioni!$E52*Ripartizioni!P37 -> 0 | Q53: -69298.93539 | R53: =Ripartizioni!$E52*Ripartizioni!Q37 -> 0 | S53: =Ripartizioni!$E52*Ripartizioni!R37 -> 3637.779009 | T53: =Ripartizioni!$E52*Ripartizioni!S37 -> 42767.80301 | U53: =Ripartizioni!$E52*Ripartizioni!T37 -> 167.7168745 | V53: =Ripartizioni!$E52*Ripartizioni!U37 -> 335.4337491 | W53: =Ripartizioni!$E52*Ripartizioni!V37 -> 670.8674982 | X53: =Ripartizioni!$E52*Ripartizioni!W37 -> 335.4337491 | Y53: =Ripartizioni!$E52*Ripartizioni!X37 -> 0 | Z53: =Ripartizioni!$E52*Ripartizioni!Y37 -> 0 | AA53: 47915.03389 | AB53: =Ripartizioni!$E52*Ripartizioni!Z37 -> 20545.31713 | AD53: =Ripartizioni!$E52*Ripartizioni!AB37 -> 0 | AE53: =Ripartizioni!$E52*Ripartizioni!AC37 -> 0 | AF53: =Ripartizioni!$E52*Ripartizioni!AD37 -> 0 | AG53: =Ripartizioni!$E52*Ripartizioni!AE37 -> 0 | AH53: =Ripartizioni!$E52*Ripartizioni!AF37 -> 0 | AI53: =Ripartizioni!$E52*Ripartizioni!AG37 -> 0 | AJ53: =Ripartizioni!$E52*Ripartizioni!AH37 -> 0 | AP53: 20545.31713 | AR53: 0 | AS53: =Ripartizioni!$E52*Ripartizioni!AO37 -> 167.7168745 | AT53: =Ripartizioni!$E52*Ripartizioni!AP37 -> 670.8674982 | AU53: 838.5843727 | AV53: =Ripartizioni!$E52*Ripartizioni!AQ37 -> 0 | AW53: =Ripartizioni!$E52*Ripartizioni!AR37 -> 0 | AX53: =Ripartizioni!$E52*Ripartizioni!AS37 -> 0 | AY53: =Ripartizioni!$E52*Ripartizioni!AT37 -> 0 | AZ53: =Ripartizioni!$E52*Ripartizioni!AU37 -> 0 | BA53: =Ripartizioni!$E52*Ripartizioni!AV37 -> 0 | BB53: =Ripartizioni!$E52*Ripartizioni!AW37 -> 0 | BC53: =Ripartizioni!$E52*Ripartizioni!AX37 -> 0 | BD53: =Ripartizioni!$E52*Ripartizioni!AY37 -> 0 | BE53: =Ripartizioni!$E52*Ripartizioni!AZ37 -> 0 | BF53: 0 | BG53: =Ripartizioni!$E52*Ripartizioni!BA37 -> 0 | BH53: 0 | BK53: 0
A54: RIP041 | B54: Ripartizione Lavanderia | C54: =Ripartizioni!C38 -> kg (sistematico) | D54: =Ripartizioni!E38 -> 41580 | E54: =Ripartizioni!E53 -> 9.60430679 | F54: =Ripartizioni!$E53*Ripartizioni!F38 -> 0 | G54: =Ripartizioni!$E53*Ripartizioni!G38 -> 0 | H54: =Ripartizioni!$E53*Ripartizioni!H38 -> 1920.861358 | I54: =Ripartizioni!$E53*Ripartizioni!I38 -> 0 | J54: =Ripartizioni!$E53*Ripartizioni!J38 -> 0 | K54: =Ripartizioni!$E53*Ripartizioni!K38 -> 1920.861358 | L54: =-SUM(L46,L48:L53,L55:L58) -> -399347.0763 | M54: =Ripartizioni!$E53*Ripartizioni!M38 -> 19208.61358 | N54: =Ripartizioni!$E53*Ripartizioni!N38 -> 11525.16815 | O54: =Ripartizioni!$E53*Ripartizioni!O38 -> 0 | P54: =Ripartizioni!$E53*Ripartizioni!P38 -> 0 | Q54: -364771.5719 | R54: =Ripartizioni!$E53*Ripartizioni!Q38 -> 249711.9765 | S54: =Ripartizioni!$E53*Ripartizioni!R38 -> 1920.861358 | T54: =Ripartizioni!$E53*Ripartizioni!S38 -> 28812.92037 | U54: =Ripartizioni!$E53*Ripartizioni!T38 -> 384.1722716 | V54: =Ripartizioni!$E53*Ripartizioni!U38 -> 480.2153395 | W54: =Ripartizioni!$E53*Ripartizioni!V38 -> 0 | X54: =Ripartizioni!$E53*Ripartizioni!W38 -> 0 | Y54: =Ripartizioni!$E53*Ripartizioni!X38 -> 0 | Z54: =Ripartizioni!$E53*Ripartizioni!Y38 -> 0 | AA54: 281310.1459 | AB54: =Ripartizioni!$E53*Ripartizioni!Z38 -> 82597.0384 | AD54: =Ripartizioni!$E53*Ripartizioni!AB38 -> 0 | AE54: =Ripartizioni!$E53*Ripartizioni!AC38 -> 0 | AF54: =Ripartizioni!$E53*Ripartizioni!AD38 -> 0 | AG54: =Ripartizioni!$E53*Ripartizioni!AE38 -> 0 | AH54: =Ripartizioni!$E53*Ripartizioni!AF38 -> 0 | AI54: =Ripartizioni!$E53*Ripartizioni!AG38 -> 0 | AJ54: =Ripartizioni!$E53*Ripartizioni!AH38 -> 0 | AP54: 82597.0384 | AR54: 0 | AS54: =Ripartizioni!$E53*Ripartizioni!AO38 -> 0 | AT54: =Ripartizioni!$E53*Ripartizioni!AP38 -> 864.3876111 | AU54: 864.3876111 | AV54: =Ripartizioni!$E53*Ripartizioni!AQ38 -> 0 | AW54: =Ripartizioni!$E53*Ripartizioni!AR38 -> 0 | AX54: =Ripartizioni!$E53*Ripartizioni!AS38 -> 0 | AY54: =Ripartizioni!$E53*Ripartizioni!AT38 -> 0 | AZ54: =Ripartizioni!$E53*Ripartizioni!AU38 -> 0 | BA54: =Ripartizioni!$E53*Ripartizioni!AV38 -> 0 | BB54: =Ripartizioni!$E53*Ripartizioni!AW38 -> 0 | BC54: =Ripartizioni!$E53*Ripartizioni!AX38 -> 0 | BD54: =Ripartizioni!$E53*Ripartizioni!AY38 -> 0 | BE54: =Ripartizioni!$E53*Ripartizioni!AZ38 -> 0 | BF54: 0 | BG54: =Ripartizioni!$E53*Ripartizioni!BA38 -> 0 | BH54: 0 | BK54: 0
A55: RIP042 | B55: Ripartizione Pulizie | C55: =Ripartizioni!C39 -> m2 | D55: =Ripartizioni!E39 -> 4545 | E55: =Ripartizioni!E54 -> 87.46035926 | F55: =Ripartizioni!$E54*Ripartizioni!F39 -> 0 | G55: =Ripartizioni!$E54*Ripartizioni!G39 -> 6559.526945 | H55: =Ripartizioni!$E54*Ripartizioni!H39 -> 4373.017963 | I55: =Ripartizioni!$E54*Ripartizioni!I39 -> 0 | J55: =Ripartizioni!$E54*Ripartizioni!J39 -> 8746.035926 | K55: =Ripartizioni!$E54*Ripartizioni!K39 -> 6996.828741 | L55: =Ripartizioni!$E54*Ripartizioni!L39 -> 8746.035926 | M55: =-SUM(M46,M48:M54,M56:M58) -> -397507.3328 | N55: =Ripartizioni!$E54*Ripartizioni!N39 -> 27987.31496 | O55: =Ripartizioni!$E54*Ripartizioni!O39 -> 0 | P55: =Ripartizioni!$E54*Ripartizioni!P39 -> 0 | Q55: -334098.5724 | R55: =Ripartizioni!$E54*Ripartizioni!Q39 -> 218650.8982 | S55: =Ripartizioni!$E54*Ripartizioni!R39 -> 10495.24311 | T55: =Ripartizioni!$E54*Ripartizioni!S39 -> 8746.035926 | U55: =Ripartizioni!$E54*Ripartizioni!T39 -> 1749.207185 | V55: =Ripartizioni!$E54*Ripartizioni!U39 -> 2186.508982 | W55: =Ripartizioni!$E54*Ripartizioni!V39 -> 0 | X55: =Ripartizioni!$E54*Ripartizioni!W39 -> 0 | Y55: =Ripartizioni!$E54*Ripartizioni!X39 -> 0 | Z55: =Ripartizioni!$E54*Ripartizioni!Y39 -> 0 | AA55: 241827.8934 | AB55: =Ripartizioni!$E54*Ripartizioni!Z39 -> 74341.30537 | AD55: =Ripartizioni!$E54*Ripartizioni!AB39 -> 0 | AE55: =Ripartizioni!$E54*Ripartizioni!AC39 -> 0 | AF55: =Ripartizioni!$E54*Ripartizioni!AD39 -> 0 | AG55: =Ripartizioni!$E54*Ripartizioni!AE39 -> 0 | AH55: =Ripartizioni!$E54*Ripartizioni!AF39 -> 0 | AI55: =Ripartizioni!$E54*Ripartizioni!AG39 -> 0 | AJ55: =Ripartizioni!$E54*Ripartizioni!AH39 -> 0 | AP55: 74341.30537 | AR55: 0 | AS55: =Ripartizioni!$E54*Ripartizioni!AO39 -> 874.6035926 | AT55: =Ripartizioni!$E54*Ripartizioni!AP39 -> 3935.716167 | AU55: 4810.319759 | AV55: =Ripartizioni!$E54*Ripartizioni!AQ39 -> 0 | AW55: =Ripartizioni!$E54*Ripartizioni!AR39 -> 13119.05389 | AX55: =Ripartizioni!$E54*Ripartizioni!AS39 -> 0 | AY55: =Ripartizioni!$E54*Ripartizioni!AT39 -> 0 | AZ55: =Ripartizioni!$E54*Ripartizioni!AU39 -> 0 | BA55: =Ripartizioni!$E54*Ripartizioni!AV39 -> 0 | BB55: =Ripartizioni!$E54*Ripartizioni!AW39 -> 0 | BC55: =Ripartizioni!$E54*Ripartizioni!AX39 -> 0 | BD55: =Ripartizioni!$E54*Ripartizioni!AY39 -> 0 | BE55: =Ripartizioni!$E54*Ripartizioni!AZ39 -> 0 | BF55: 13119.05389 | BG55: =Ripartizioni!$E54*Ripartizioni!BA39 -> 0 | BH55: 0 | BK55: 0
A56: RIP060 | B56: Ripartizione Cucina | C56: =Ripartizioni!C40 -> Numero di pasti | D56: =Ripartizioni!E40 -> 77050 | E56: =Ripartizioni!E55 -> 15.46224666 | F56: =Ripartizioni!$E55*Ripartizioni!F40 -> 0 | G56: =Ripartizioni!$E55*Ripartizioni!G40 -> 0 | H56: =Ripartizioni!$E55*Ripartizioni!H40 -> 0 | I56: =Ripartizioni!$E55*Ripartizioni!I40 -> 0 | J56: =Ripartizioni!$E55*Ripartizioni!J40 -> 0 | K56: =Ripartizioni!$E55*Ripartizioni!K40 -> 0 | L56: =Ripartizioni!$E55*Ripartizioni!L40 -> 0 | M56: =Ripartizioni!$E55*Ripartizioni!M40 -> 0 | N56: =-SUM(N46,N48:N55,N57:N58) -> -1191366.105 | O56: =Ripartizioni!$E55*Ripartizioni!O40 -> 0 | P56: =Ripartizioni!$E55*Ripartizioni!P40 -> 0 | Q56: -1191366.105 | R56: =Ripartizioni!$E55*Ripartizioni!Q40 -> 997314.9097 | S56: =Ripartizioni!$E55*Ripartizioni!R40 -> 0 | T56: =Ripartizioni!$E55*Ripartizioni!S40 -> 0 | U56: =Ripartizioni!$E55*Ripartizioni!T40 -> 0 | V56: =Ripartizioni!$E55*Ripartizioni!U40 -> 0 | W56: =Ripartizioni!$E55*Ripartizioni!V40 -> 0 | X56: =Ripartizioni!$E55*Ripartizioni!W40 -> 0 | Y56: =Ripartizioni!$E55*Ripartizioni!X40 -> 0 | Z56: =Ripartizioni!$E55*Ripartizioni!Y40 -> 0 | AA56: 997314.9097 | AB56: =Ripartizioni!$E55*Ripartizioni!Z40 -> 153076.242 | AD56: =Ripartizioni!$E55*Ripartizioni!AB40 -> 0 | AE56: =Ripartizioni!$E55*Ripartizioni!AC40 -> 0 | AF56: =Ripartizioni!$E55*Ripartizioni!AD40 -> 0 | AG56: =Ripartizioni!$E55*Ripartizioni!AE40 -> 0 | AH56: =Ripartizioni!$E55*Ripartizioni!AF40 -> 0 | AI56: =Ripartizioni!$E55*Ripartizioni!AG40 -> 0 | AJ56: =Ripartizioni!$E55*Ripartizioni!AH40 -> 0 | AP56: =SUM(AB56:AO56) -> 153076.242 | AR56: 0 | AS56: =Ripartizioni!$E55*Ripartizioni!AO40 -> 0 | AT56: =Ripartizioni!$E55*Ripartizioni!AP40 -> 0 | AU56: 0 | AV56: =Ripartizioni!$E55*Ripartizioni!AQ40 -> 0 | AW56: =Ripartizioni!$E55*Ripartizioni!AR40 -> 17781.58366 | AX56: =Ripartizioni!$E55*Ripartizioni!AS40 -> 0 | AY56: =Ripartizioni!$E55*Ripartizioni!AT40 -> 0 | AZ56: =Ripartizioni!$E55*Ripartizioni!AU40 -> 0 | BA56: =Ripartizioni!$E55*Ripartizioni!AV40 -> 0 | BB56: =Ripartizioni!$E55*Ripartizioni!AW40 -> 0 | BC56: =Ripartizioni!$E55*Ripartizioni!AX40 -> 0 | BD56: =Ripartizioni!$E55*Ripartizioni!AY40 -> 23193.36999 | BE56: =Ripartizioni!$E55*Ripartizioni!AZ40 -> 0 | BF56: 40974.95365 | BG56: =Ripartizioni!$E55*Ripartizioni!BA40 -> 0 | BH56: 0 | BK56: 0
A57: RIP090 | B57: Ripartizione Magazzino centrale | C57: =Ripartizioni!C41 -> Allocazione diretta | D57: =Ripartizioni!E41 -> 0 | E57: =Ripartizioni!E56 -> 0 | F57: =Ripartizioni!$E56*Ripartizioni!F41 -> 0 | G57: =Ripartizioni!$E56*Ripartizioni!G41 -> 0 | H57: =Ripartizioni!$E56*Ripartizioni!H41 -> 0 | I57: =Ripartizioni!$E56*Ripartizioni!I41 -> 0 | J57: =Ripartizioni!$E56*Ripartizioni!J41 -> 0 | K57: =Ripartizioni!$E56*Ripartizioni!K41 -> 0 | L57: =Ripartizioni!$E56*Ripartizioni!L41 -> 0 | M57: =Ripartizioni!$E56*Ripartizioni!M41 -> 0 | N57: =Ripartizioni!$E56*Ripartizioni!N41 -> 0 | O57: =-SUM(O46,O48:O56,O58) -> 0 | P57: =Ripartizioni!$E56*Ripartizioni!P41 -> 0 | Q57: 0 | R57: =Ripartizioni!$E56*Ripartizioni!Q41 -> 0 | S57: =Ripartizioni!$E56*Ripartizioni!R41 -> 0 | T57: =Ripartizioni!$E56*Ripartizioni!S41 -> 0 | U57: =Ripartizioni!$E56*Ripartizioni!T41 -> 0 | V57: =Ripartizioni!$E56*Ripartizioni!U41 -> 0 | W57: =Ripartizioni!$E56*Ripartizioni!V41 -> 0 | X57: =Ripartizioni!$E56*Ripartizioni!W41 -> 0 | Y57: =Ripartizioni!$E56*Ripartizioni!X41 -> 0 | Z57: =Ripartizioni!$E56*Ripartizioni!Y41 -> 0 | AA57: 0 | AB57: =Ripartizioni!$E56*Ripartizioni!Z41 -> 0 | AD57: =Ripartizioni!$E56*Ripartizioni!AB41 -> 0 | AE57: =Ripartizioni!$E56*Ripartizioni!AC41 -> 0 | AF57: =Ripartizioni!$E56*Ripartizioni!AD41 -> 0 | AG57: =Ripartizioni!$E56*Ripartizioni!AE41 -> 0 | AH57: =Ripartizioni!$E56*Ripartizioni!AF41 -> 0 | AI57: =Ripartizioni!$E56*Ripartizioni!AG41 -> 0 | AJ57: =Ripartizioni!$E56*Ripartizioni!AH41 -> 0 | AP57: 0 | AR57: 0 | AS57: =Ripartizioni!$E56*Ripartizioni!AO41 -> 0 | AT57: =Ripartizioni!$E56*Ripartizioni!AP41 -> 0 | AU57: 0 | AV57: =Ripartizioni!$E56*Ripartizioni!AQ41 -> 0 | AW57: =Ripartizioni!$E56*Ripartizioni!AR41 -> 0 | AX57: =Ripartizioni!$E56*Ripartizioni!AS41 -> 0 | AY57: =Ripartizioni!$E56*Ripartizioni!AT41 -> 0 | AZ57: =Ripartizioni!$E56*Ripartizioni!AU41 -> 0 | BA57: =Ripartizioni!$E56*Ripartizioni!AV41 -> 0 | BB57: =Ripartizioni!$E56*Ripartizioni!AW41 -> 0 | BC57: =Ripartizioni!$E56*Ripartizioni!AX41 -> 0 | BD57: =Ripartizioni!$E56*Ripartizioni!AY41 -> 0 | BE57: =Ripartizioni!$E56*Ripartizioni!AZ41 -> 0 | BF57: 0 | BG57: =Ripartizioni!$E56*Ripartizioni!BA41 -> 0 | BH57: 0 | BK57: 0
A58: RIP095 | B58: Ripartizione Farmacia | C58: =Ripartizioni!C42 -> Allocazione diretta | D58: =Ripartizioni!E42 -> 188000 | E58: =Ripartizioni!E57 -> 0.02654255319 | F58: =Ripartizioni!$E57*Ripartizioni!F42 -> 0 | G58: =Ripartizioni!$E57*Ripartizioni!G42 -> 0 | H58: =Ripartizioni!$E57*Ripartizioni!H42 -> 0 | I58: =Ripartizioni!$E57*Ripartizioni!I42 -> 0 | J58: =Ripartizioni!$E57*Ripartizioni!J42 -> 0 | K58: =Ripartizioni!$E57*Ripartizioni!K42 -> 0 | L58: =Ripartizioni!$E57*Ripartizioni!L42 -> 0 | M58: =Ripartizioni!$E57*Ripartizioni!M42 -> 0 | N58: =Ripartizioni!$E57*Ripartizioni!N42 -> 0 | O58: =Ripartizioni!$E57*Ripartizioni!O42 -> 0 | P58: =-SUM(P46,P48:P57) -> -4990 | Q58: -4990 | R58: =Ripartizioni!$E57*Ripartizioni!Q42 -> 0 | S58: =Ripartizioni!$E57*Ripartizioni!R42 -> 0 | T58: =Ripartizioni!$E57*Ripartizioni!S42 -> 0 | U58: =Ripartizioni!$E57*Ripartizioni!T42 -> 0 | V58: =Ripartizioni!$E57*Ripartizioni!U42 -> 0 | W58: =Ripartizioni!$E57*Ripartizioni!V42 -> 0 | X58: =Ripartizioni!$E57*Ripartizioni!W42 -> 0 | Y58: =Ripartizioni!$E57*Ripartizioni!X42 -> 1592.553191 | Z58: =Ripartizioni!$E57*Ripartizioni!Y42 -> 1990.691489 | AA58: 3583.244681 | AB58: =Ripartizioni!$E57*Ripartizioni!Z42 -> 1406.755319 | AD58: =Ripartizioni!$E57*Ripartizioni!AB42 -> 0 | AE58: =Ripartizioni!$E57*Ripartizioni!AC42 -> 0 | AF58: =Ripartizioni!$E57*Ripartizioni!AD42 -> 0 | AG58: =Ripartizioni!$E57*Ripartizioni!AE42 -> 0 | AH58: =Ripartizioni!$E57*Ripartizioni!AF42 -> 0 | AI58: =Ripartizioni!$E57*Ripartizioni!AG42 -> 0 | AJ58: =Ripartizioni!$E57*Ripartizioni!AH42 -> 0 | AP58: 1406.755319 | AR58: 0 | AS58: =Ripartizioni!$E57*Ripartizioni!AO42 -> 0 | AT58: =Ripartizioni!$E57*Ripartizioni!AP42 -> 0 | AU58: 0 | AV58: =Ripartizioni!$E57*Ripartizioni!AQ42 -> 0 | AW58: =Ripartizioni!$E57*Ripartizioni!AR42 -> 0 | AX58: =Ripartizioni!$E57*Ripartizioni!AS42 -> 0 | AY58: =Ripartizioni!$E57*Ripartizioni!AT42 -> 0 | AZ58: =Ripartizioni!$E57*Ripartizioni!AU42 -> 0 | BA58: =Ripartizioni!$E57*Ripartizioni!AV42 -> 0 | BB58: =Ripartizioni!$E57*Ripartizioni!AW42 -> 0 | BC58: =Ripartizioni!$E57*Ripartizioni!AX42 -> 0 | BD58: =Ripartizioni!$E57*Ripartizioni!AY42 -> 0 | BE58: =Ripartizioni!$E57*Ripartizioni!AZ42 -> 0 | BF58: 0 | BG58: =Ripartizioni!$E57*Ripartizioni!BA42 -> 0 | BH58: 0 | BK58: 0
B59: Totale dei costi dei CdC generali dopo ripartizioni | F59: =-F48 -> 108500 | G59: =-G49 -> 128080.1895 | H59: =-H50 -> 105799.3561 | I59: =-I51 -> 3000 | J59: =-J52 -> 462361.197 | K59: =-K53 -> 94391.05699 | L59: =-L54 -> 399347.0763 | M59: =-M55 -> 397507.3328 | N59: =-N56 -> 1191366.105 | O59: =-O57 -> 0 | P59: =-P58 -> 4990
B60: Costi netti dopo ripartizioni | F60: =SUM(F46:F58) -> 0 | G60: 4.547473509e-12 | H60: -1.273292582e-11 | I60: 0 | J60: 2.182787284e-11 | K60: -9.094947018e-12 | L60: 2.546585165e-11 | M60: 0 | N60: 0 | O60: 0 | P60: 0 | Q60: =SUM(Q46:Q58) -> 0 | R60: 1691052.466 | S60: 314238.7534 | T60: =SUM(T46:T58) -> 3482540.02 | U60: 18929.76234 | V60: 33079.84201 | W60: 53360.74175 | X60: 26780.37087 | Y60: 61592.55319 | Z60: 16990.69149 | AA60: 5698565.2 | AB60: 2035607.449 | AD60: 0 | AE60: 0 | AF60: 0 | AG60: 0 | AH60: 0 | AI60: 0 | AJ60: 0 | AK60: 1134567.33 | AL60: 65281.885 | AM60: =SUM(AM46:AM58) -> 0 | AN60: =SUM(AN46:AN58) -> 0 | AO60: =SUM(AO46:AO58) -> 221562.3 | AP60: =SUM(AP46:AP58) -> 3457018.964 | AQ60: 200217.77 | AR60: =SUM(AR46:AR58) -> 200217.77 | AS60: =SUM(AS46:AS58) -> 74967.88775 | AT60: =SUM(AT46:AT58) -> 61549.78979 | AU60: =SUM(AU46:AU58) -> 136517.6775 | AV60: 0 | AW60: 28347.11842 | AX60: 0 | AY60: =SUM(AY46:AY58) -> 0 | AZ60: =SUM(AZ46:AZ58) -> 0 | BA60: =SUM(BA46:BA58) -> 0 | BB60: =SUM(BB46:BB58) -> -4000 | BC60: 0 | BD60: 8193.369993 | BE60: 0 | BF60: 32540.48841 | BG60: 0 | BH60: 0
A61: Voci di Ricavo | C61: COFI | D61: Delimitazioni +/- | E61: COAN
A62: 6000 | B62: Rette - Anziani | C62: -2357500 | E62: =C62+D62 -> -2357500 | R62: -2100000 | T62: -87500 | AA62: =SUM(R62:Z62) -> -2187500 | AB62: -170000 | AP62: =SUM(AB62:AO62) -> -170000 | BK62: =IF(ABS(E62-Q62-AA62-AP62-AR62-AU62-BF62-BH62)<0.0001,0,E62-Q62-AA62-AP62-AR62-AU62-BF62-BH62) -> 0
A63: 6001 | B63: Partecipazioni delle casse malati | C63: -2070000 | E63: =C63+D63 -> -2070000 | T63: -1550000 | U63: -20000 | V63: =-80000+50000 -> -30000 | W63: -5000 | X63: 0 | Y63: 0 | Z63: =-115000+90000 -> -25000 | AA63: =SUM(R63:Z63) -> -1630000 | AB63: -300000 | AP63: =SUM(AB63:AO63) -> -300000 | AR63: =SUM(AQ63) -> 0 | AS63: -90000 | AT63: -50000 | AU63: =SUM(AS63:AT63) -> -140000 | BK63: 0
A64: 6002 | B64: Assegni grandi invalidi - Anziani | C64: -315000 | E64: -315000 | T64: -315000 | AA64: -315000 | AP64: 0 | BK64: 0
A65: 6003 | B65: Altri ricavi - Anziani | C65: 0 | E65: 0 | Z65: 0 | AA65: 0 | AP65: 0 | AR65: 0 | AU65: 0 | BF65: =SUM(AV65:BE65) -> 0 | BH65: =SUM(BG65) -> 0 | BK65: 0
A66: 601 | B66: Altri ricavi - Settore di attività n | C66: 0 | E66: 0 | AR66: 0 | AU66: 0 | BF66: 0 | BH66: 0 | BK66: 0
A67: 609 | B67: Diminuzioni dei ricavi relativi ai residenti | C67: 21000 | E67: 21000 | R67: 17000 | AA67: 17000 | AB67: 2000 | AP67: 2000 | AR67: 0 | AU67: 0 | BD67: 2000 | BF67: 2000 | BH67: 0 | BK67: 0
A68: 61 | B68: Ricavi da prestazioni mediche singole | C68: 0 | E68: 0 | AP68: 0 | AR68: 0 | AU68: 0 | BK68: 0
A69: 62 | B69: Ricavi da prestazioni diagnostiche e terapeutiche singole | C69: 0 | E69: 0 | AP69: 0 | AR69: 0 | AU69: 0 | BK69: 0
A70: 69 | B70: Contributi e sussidi | C70: -4659018.96 | E70: =C70+D70 -> -4659018.96 | T70: -1500000 | U70: -20000 | V70: -30000 | W70: -50000 | X70: 0 | Y70: -70000 | AA70: =SUM(R70:Z70) -> -1670000 | AB70: -1567607.45 | AK70: -1134567.33 | AL70: -65281.88 | AO70: -221562.3 | AP70: -2989018.96 | BK70: 0
B71: Totale Ricavi | C71: =SUM(C62:C70) -> -9380518.96 | D71: =SUM(D62:D70) -> 0 | E71: =SUM(E62:E70) -> -9380518.96 | R71: =SUM(R62:R70) -> -2083000 | S71: =SUM(S62:S70) -> 0 | T71: -3452500 | U71: -40000 | V71: -60000 | W71: -55000 | X71: 0 | Y71: -70000 | Z71: -25000 | AA71: =SUM(AA62:AA70) -> -5785500 | AB71: =SUM(AB62:AB70) -> -2035607.45 | AD71: =SUM(AD62:AD70) -> 0 | AE71: =SUM(AE62:AE70) -> 0 | AF71: =SUM(AF62:AF70) -> 0 | AG71: =SUM(AG62:AG70) -> 0 | AH71: =SUM(AH62:AH70) -> 0 | AI71: =SUM(AI62:AI70) -> 0 | AJ71: =SUM(AJ62:AJ70) -> 0 | AK71: =SUM(AK62:AK70) -> -1134567.33 | AL71: =SUM(AL62:AL70) -> -65281.88 | AM71: =SUM(AM62:AM70) -> 0 | AN71: =SUM(AN62:AN70) -> 0 | AO71: =SUM(AO62:AO70) -> -221562.3 | AP71: =SUM(AP62:AP70) -> -3457018.96 | AQ71: =SUM(AQ62:AQ70) -> 0 | AR71: =SUM(AR62:AR70) -> 0 | AS71: =SUM(AS62:AS70) -> -90000 | AT71: =SUM(AT62:AT70) -> -50000 | AU71: =SUM(AU62:AU70) -> -140000 | AV71: =SUM(AV62:AV70) -> 0 | AW71: =SUM(AW62:AW70) -> 0 | AX71: =SUM(AX62:AX70) -> 0 | AY71: =SUM(AY62:AY70) -> 0 | AZ71: =SUM(AZ62:AZ70) -> 0 | BA71: =SUM(BA62:BA70) -> 0 | BB71: =SUM(BB62:BB70) -> 0 | BC71: =SUM(BC62:BC70) -> 0 | BD71: =SUM(BD62:BD70) -> 2000 | BE71: =SUM(BE62:BE70) -> 0 | BF71: =SUM(BF62:BF70) -> 2000 | BG71: =SUM(BG62:BG70) -> 0 | BH71: =SUM(BH62:BH70) -> 0 | BK71: =IF(ABS(BK13-BK25-BK35-BK50-BK52-BK55-BK66-BK68)<0.0001,0,BK13-BK25-BK35-BK50-BK52-BK55-BK66-BK68) -> 0
B72: Risultato di gestione | C72: =C71+C46 -> 114726.14 | E72: =E71+E46 -> 144341.14 | R72: =R71+R60 -> -391947.5345 | S72: =S71+S60 -> 314238.7534 | T72: 30040.01973 | U72: -21070.23766 | V72: -26920.15799 | W72: -1639.258252 | X72: 26780.37087 | Y72: -8407.446809 | Z72: -8009.308511 | AA72: -86934.79967 | AB72: =AB71+AB60 -> -0.001323316712 | AD72: =AD71+AD60 -> 0 | AE72: =AE71+AE60 -> 0 | AF72: =AF71+AF60 -> 0 | AG72: =AG71+AG60 -> 0 | AH72: =AH71+AH60 -> 0 | AI72: =AI71+AI60 -> 0 | AJ72: =AJ71+AJ60 -> 0 | AK72: =AK71+AK60 -> 0 | AL72: =AL71+AL60 -> 0.00499783831 | AM72: =AM71+AM60 -> 0 | AN72: =AN71+AN60 -> 0 | AO72: =AO71+AO60 -> 4.323391477e-05 | AP72: =AP71+AP60 -> 0.003717755433 | AQ72: =AQ71+AQ60 -> 200217.77 | AR72: =AR71+AR60 -> 200217.77 | AS72: =AS71+AS60 -> -15032.11225 | AT72: =AT71+AT60 -> 11549.78979 | AU72: =AU71+AU60 -> -3482.322459 | AV72: =AV71+AV60 -> 0 | AW72: =AW71+AW60 -> 28347.11842 | AX72: =AX71+AX60 -> 0 | AY72: =AY71+AY60 -> 0 | AZ72: =AZ71+AZ60 -> 0 | BA72: =BA71+BA60 -> 0 | BB72: =BB71+BB60 -> -4000 | BC72: =BC71+BC60 -> 0 | BD72: =BD71+BD60 -> 10193.36999 | BE72: =BE71+BE60 -> 0 | BF72: =BF71+BF60 -> 34540.48841 | BG72: =BG71+BG60 -> 0 | BH72: =BH71+BH60 -> 0 | BK72: =IF(ABS(BK14-BK26-BK36-BK51-BK53-BK56-BK67-BK69)<0.0001,0,BK14-BK26-BK36-BK51-BK53-BK56-BK67-BK69) -> 0
BK73: Risultato totale
BK74: =AA72+AP72+AR72+AU72+BF72+BH72+BI72 -> 144341.14
BK75: quando < 0 = utile
BK76: quando > 0 = perdita
W78: NB Le voci di ricavo con sfondo bianco e contorno nero, andrebbero tutte compilate
W80: Le voci con sfondo bianco e contorno leggere possono essere compilate
W82: Le voci con sfondo grigio non possono essere compilate

Sheet Contabilità per UFI 1
A1: Contabilità per unità finali d'imputazione 1 (UACD)
A2: =Parametri!$B$7 -> 2021 | B2: =Parametri!$B$3 -> ESEMPIO - CPA STANDARD CON CAT-STT
C4: Parte standard | O4: Parte individualizzata
C5: Servizio alberghiero | D5: Animazione | E5: Cura non LAMal | G5: Cura LAMal | I5: Fisioterapia | J5: Ergoterapia | K5: Altre consulenze e terapie | L5: Servizio medico | M5: Medicamenti ES / EMT | N5: Materiale EMAp | O5: Stazionario | P5: Ambulatoriale | Q5: Altre voci riconosciute
C6: NON a carico della LAMal | D6: NON a carico della LAMal | E6: NON a carico della LAMal | G6: A carico della LAMal | I6: A carico della LAMal | J6: A carico della LAMal | K6: A carico della LAMal | L6: A carico della LAMal | M6: A carico della LAMal | N6: A carico della LAMal
A7: Voci di costo | C7: 200 | D7: 210 | E7: 215 | G7: 220 | I7: 230 | J7: 231 | K7: 232 | L7: 240 | M7: 250 | N7: 251 | O7: 26 | P7: 27 | Q7: 28
C8: Fr. | D8: Fr. | E8: aliquota | F8: Fr. | G8: aliquota | H8: Fr. | I8: Fr. | J8: Fr. | K8: Fr. | L8: Fr. | M8: Fr. | N8: Fr. | O8: Fr. | P8: Fr. | Q8: Fr.
A9: ='Contabilità per CDC - UACD'!A9 -> 3000 | B9: ='Contabilità per CDC - UACD'!B9 -> Salari medici | C9: ='Contabilità per CDC - UACD'!R9 -> 0 | D9: ='Contabilità per CDC - UACD'!S9 -> 0 | E9: =IF(AND(G9=0,'Contabilità per CDC - UACD'!T9=0),0,100%-G9) -> 0 | F9: ='Contabilità per CDC - UACD'!T9*E9 -> 0 | G9: 0 | H9: ='Contabilità per CDC - UACD'!T9*G9 -> 0 | I9: ='Contabilità per CDC - UACD'!U9 -> 0 | J9: ='Contabilità per CDC - UACD'!V9 -> 0 | K9: ='Contabilità per CDC - UACD'!W9 -> 0 | L9: ='Contabilità per CDC - UACD'!X9 -> 20000 | M9: ='Contabilità per CDC - UACD'!Z9 -> 0 | N9: ='Contabilità per CDC - UACD'!Y9 -> 0 | O9: =SUM('Contabilità per CDC - UACD'!AB9:AF9,'Contabilità per CDC - UACD'!AI9) -> 150000 | P9: =SUM('Contabilità per CDC - UACD'!AG9:AH9,'Contabilità per CDC - UACD'!AJ9) -> 0 | Q9: =SUM('Contabilità per CDC - UACD'!AK9:AO9) -> 0
A10: ='Contabilità per CDC - UACD'!A10 -> 3001 | B10: ='Contabilità per CDC - UACD'!B10 -> Salari responsabili di struttura | C10: ='Contabilità per CDC - UACD'!R10 -> 0 | D10: ='Contabilità per CDC - UACD'!S10 -> 1000 | E10: =IF(AND(G10=0,'Contabilità per CDC - UACD'!T10=0),0,100%-G10) -> 0.01 | F10: ='Contabilità per CDC - UACD'!T10*E10 -> 1000 | G10: 0.99 | H10: ='Contabilità per CDC - UACD'!T10*G10 -> 99000 | I10: ='Contabilità per CDC - UACD'!U10 -> 0 | J10: ='Contabilità per CDC - UACD'!V10 -> 0 | K10: ='Contabilità per CDC - UACD'!W10 -> 0 | L10: ='Contabilità per CDC - UACD'!X10 -> 0 | M10: ='Contabilità per CDC - UACD'!Z10 -> 0 | N10: ='Contabilità per CDC - UACD'!Y10 -> 0 | O10: =SUM('Contabilità per CDC - UACD'!AB10:AF10,'Contabilità per CDC - UACD'!AI10) -> 0 | P10: =SUM('Contabilità per CDC - UACD'!AG10:AH10,'Contabilità per CDC - UACD'!AJ10) -> 0 | Q10: =SUM('Contabilità per CDC - UACD'!AK10:AO10) -> 0
A11: ='Contabilità per CDC - UACD'!A11 -> 3001.05 | B11: ='Contabilità per CDC - UACD'!B11 -> Salari capi reparto | C11: ='Contabilità per CDC - UACD'!R11 -> 0 | D11: ='Contabilità per CDC - UACD'!S11 -> 900 | E11: =IF(AND(G11=0,'Contabilità per CDC - UACD'!T11=0),0,100%-G11) -> 0.01 | F11: ='Contabilità per CDC - UACD'!T11*E11 -> 900 | G11: 0.99 | H11: ='Contabilità per CDC - UACD'!T11*G11 -> 89100 | I11: ='Contabilità per CDC - UACD'!U11 -> 0 | J11: ='Contabilità per CDC - UACD'!V11 -> 0 | K11: ='Contabilità per CDC - UACD'!W11 -> 0 | L11: ='Contabilità per CDC - UACD'!X11 -> 0 | M11: ='Contabilità per CDC - UACD'!Z11 -> 0 | N11: ='Contabilità per CDC - UACD'!Y11 -> 0 | O11: =SUM('Contabilità per CDC - UACD'!AB11:AF11,'Contabilità per CDC - UACD'!AI11) -> 100000 | P11: =SUM('Contabilità per CDC - UACD'!AG11:AH11,'Contabilità per CDC - UACD'!AJ11) -> 0 | Q11: =SUM('Contabilità per CDC - UACD'!AK11:AO11) -> 0
A12: ='Contabilità per CDC - UACD'!A12 -> 3001.1 | B12: ='Contabilità per CDC - UACD'!B12 -> Salari infermieri e operatori socio sanitari (OSS) | C12: ='Contabilità per CDC - UACD'!R12 -> 0 | D12: ='Contabilità per CDC - UACD'!S12 -> 35000 | E12: =IF(AND(G12=0,'Contabilità per CDC - UACD'!T12=0),0,100%-G12) -> 0.01 | F12: ='Contabilità per CDC - UACD'!T12*E12 -> 11600 | G12: 0.99 | H12: ='Contabilità per CDC - UACD'!T12*G12 -> 1148400 | I12: ='Contabilità per CDC - UACD'!U12 -> 0 | J12: ='Contabilità per CDC - UACD'!V12 -> 0 | K12: ='Contabilità per CDC - UACD'!W12 -> 0 | L12: ='Contabilità per CDC - UACD'!X12 -> 0 | M12: ='Contabilità per CDC - UACD'!Z12 -> 0 | N12: ='Contabilità per CDC - UACD'!Y12 -> 0 | O12: =SUM('Contabilità per CDC - UACD'!AB12:AF12,'Contabilità per CDC - UACD'!AI12) -> 425000 | P12: =SUM('Contabilità per CDC - UACD'!AG12:AH12,'Contabilità per CDC - UACD'!AJ12) -> 0 | Q12: =SUM('Contabilità per CDC - UACD'!AK12:AO12) -> 18000
A13: ='Contabilità per CDC - UACD'!A13 -> 3001.2 | B13: ='Contabilità per CDC - UACD'!B13 -> Salari assistenti e ausiliari di cura | C13: ='Contabilità per CDC - UACD'!R13 -> 0 | D13: ='Contabilità per CDC - UACD'!S13 -> 55000 | E13: =IF(AND(G13=0,'Contabilità per CDC - UACD'!T13=0),0,100%-G13) -> 0.01 | F13: ='Contabilità per CDC - UACD'!T13*E13 -> 11500 | G13: 0.99 | H13: ='Contabilità per CDC - UACD'!T13*G13 -> 1138500 | I13: ='Contabilità per CDC - UACD'!U13 -> 0 | J13: ='Contabilità per CDC - UACD'!V13 -> 0 | K13: ='Contabilità per CDC - UACD'!W13 -> 0 | L13: ='Contabilità per CDC - UACD'!X13 -> 0 | M13: ='Contabilità per CDC - UACD'!Z13 -> 0 | N13: ='Contabilità per CDC - UACD'!Y13 -> 0 | O13: =SUM('Contabilità per CDC - UACD'!AB13:AF13,'Contabilità per CDC - UACD'!AI13) -> 430000 | P13: =SUM('Contabilità per CDC - UACD'!AG13:AH13,'Contabilità per CDC - UACD'!AJ13) -> 0 | Q13: =SUM('Contabilità per CDC - UACD'!AK13:AO13) -> 40000
A14: 3001.3 | B14: Salari dietisti | C14: ='Contabilità per CDC - UACD'!R14 -> 0 | D14: ='Contabilità per CDC - UACD'!S14 -> 0 | E14: =IF(AND(G14=0,'Contabilità per CDC - UACD'!T14=0),0,100%-G14) -> 0.01 | F14: ='Contabilità per CDC - UACD'!T14*E14 -> 0 | G14: 0.99 | H14: ='Contabilità per CDC - UACD'!T14*G14 -> 0 | I14: ='Contabilità per CDC - UACD'!U14 -> 0 | J14: ='Contabilità per CDC - UACD'!V14 -> 0 | K14: ='Contabilità per CDC - UACD'!W14 -> 40000 | L14: ='Contabilità per CDC - UACD'!X14 -> 0 | M14: ='Contabilità per CDC - UACD'!Z14 -> 0 | N14: ='Contabilità per CDC - UACD'!Y14 -> 0 | O14: =SUM('Contabilità per CDC - UACD'!AB14:AF14,'Contabilità per CDC - UACD'!AI14) -> 0 | P14: =SUM('Contabilità per CDC - UACD'!AG14:AH14,'Contabilità per CDC - UACD'!AJ14) -> 0 | Q14: =SUM('Contabilità per CDC - UACD'!AK14:AO14) -> 0
A15: ='Contabilità per CDC - UACD'!A15 -> 3001.9 | B15: ='Contabilità per CDC - UACD'!B15 -> Salari personale di cura in formazione e stagisti | C15: ='Contabilità per CDC - UACD'!R15 -> 0 | D15: ='Contabilità per CDC - UACD'!S15 -> 0 | E15: =IF(AND(G15=0,'Contabilità per CDC - UACD'!T15=0),0,100%-G15) -> 0.99 | F15: ='Contabilità per CDC - UACD'!T15*E15 -> 0 | G15: 0.01 | H15: ='Contabilità per CDC - UACD'!T15*G15 -> 0 | I15: ='Contabilità per CDC - UACD'!U15 -> 0 | J15: ='Contabilità per CDC - UACD'!V15 -> 0 | K15: ='Contabilità per CDC - UACD'!W15 -> 0 | L15: ='Contabilità per CDC - UACD'!X15 -> 0 | M15: ='Contabilità per CDC - UACD'!Z15 -> 0 | N15: ='Contabilità per CDC - UACD'!Y15 -> 0 | O15: =SUM('Contabilità per CDC - UACD'!AB15:AF15,'Contabilità per CDC - UACD'!AI15) -> 0 | P15: =SUM('Contabilità per CDC - UACD'!AG15:AH15,'Contabilità per CDC - UACD'!AJ15) -> 0 | Q15: =SUM('Contabilità per CDC - UACD'!AK15:AO15) -> 35500
A16: ='Contabilità per CDC - UACD'!A16 -> 3002 | B16: ='Contabilità per CDC - UACD'!B16 -> Salari personale altre discipline mediche specializzate | C16: ='Contabilità per CDC - UACD'!R16 -> 0 | D16: ='Contabilità per CDC - UACD'!S16 -> 125000 | E16: =IF(AND(G16=0,'Contabilità per CDC - UACD'!T16=0),0,100%-G16) -> 0 | F16: ='Contabilità per CDC - UACD'!T16*E16 -> 0 | G16: 0 | H16: ='Contabilità per CDC - UACD'!T16*G16 -> 0 | I16: ='Contabilità per CDC - UACD'!U16 -> 10000 | J16: ='Contabilità per CDC - UACD'!V16 -> 20000 | K16: ='Contabilità per CDC - UACD'!W16 -> 0 | L16: ='Contabilità per CDC - UACD'!X16 -> 0 | M16: ='Contabilità per CDC - UACD'!Z16 -> 0 | N16: ='Contabilità per CDC - UACD'!Y16 -> 0 | O16: =SUM('Contabilità per CDC - UACD'!AB16:AF16,'Contabilità per CDC - UACD'!AI16) -> 120000 | P16: =SUM('Contabilità per CDC - UACD'!AG16:AH16,'Contabilità per CDC - UACD'!AJ16) -> 0 | Q16: =SUM('Contabilità per CDC - UACD'!AK16:AO16) -> 500
A17: ='Contabilità per CDC - UACD'!A17 -> 3003 | B17: ='Contabilità per CDC - UACD'!B17 -> Salari personale amministrativo | C17: ='Contabilità per CDC - UACD'!R17 -> 0 | D17: ='Contabilità per CDC - UACD'!S17 -> 0 | E17: =IF(AND(G17=0,'Contabilità per CDC - UACD'!T17=0),0,100%-G17) -> 0 | F17: ='Contabilità per CDC - UACD'!T17*E17 -> 0 | G17: 0 | H17: ='Contabilità per CDC - UACD'!T17*G17 -> 0 | I17: ='Contabilità per CDC - UACD'!U17 -> 0 | J17: ='Contabilità per CDC - UACD'!V17 -> 0 | K17: ='Contabilità per CDC - UACD'!W17 -> 0 | L17: ='Contabilità per CDC - UACD'!X17 -> 0 | M17: ='Contabilità per CDC - UACD'!Z17 -> 0 | N17: ='Contabilità per CDC - UACD'!Y17 -> 0 | O17: =SUM('Contabilità per CDC - UACD'!AB17:AF17,'Contabilità per CDC - UACD'!AI17) -> 0 | P17: =SUM('Contabilità per CDC - UACD'!AG17:AH17,'Contabilità per CDC - UACD'!AJ17) -> 0 | Q17: =SUM('Contabilità per CDC - UACD'!AK17:AO17) -> 23500
A18: ='Contabilità per CDC - UACD'!A18 -> 3004 | B18: ='Contabilità per CDC - UACD'!B18 -> Salari personale servizio alberghiero | C18: ='Contabilità per CDC - UACD'!R18 -> 0 | D18: ='Contabilità per CDC - UACD'!S18 -> 0 | E18: =IF(AND(G18=0,'Contabilità per CDC - UACD'!T18=0),0,100%-G18) -> 0 | F18: ='Contabilità per CDC - UACD'!T18*E18 -> 0 | G18: 0 | H18: ='Contabilità per CDC - UACD'!T18*G18 -> 0 | I18: ='Contabilità per CDC - UACD'!U18 -> 0 | J18: ='Contabilità per CDC - UACD'!V18 -> 0 | K18: ='Contabilità per CDC - UACD'!W18 -> 0 | L18: ='Contabilità per CDC - UACD'!X18 -> 0 | M18: ='Contabilità per CDC - UACD'!Z18 -> 0 | N18: ='Contabilità per CDC - UACD'!Y18 -> 0 | O18: =SUM('Contabilità per CDC - UACD'!AB18:AF18,'Contabilità per CDC - UACD'!AI18) -> 0 | P18: =SUM('Contabilità per CDC - UACD'!AG18:AH18,'Contabilità per CDC - UACD'!AJ18) -> 0 | Q18: =SUM('Contabilità per CDC - UACD'!AK18:AO18) -> 25000
A19: ='Contabilità per CDC - UACD'!A19 -> 3005 | B19: ='Contabilità per CDC - UACD'!B19 -> Salari personale servizio tecnico | C19: ='Contabilità per CDC - UACD'!R19 -> 0 | D19: ='Contabilità per CDC - UACD'!S19 -> 0 | E19: =IF(AND(G19=0,'Contabilità per CDC - UACD'!T19=0),0,100%-G19) -> 0 | F19: ='Contabilità per CDC - UACD'!T19*E19 -> 0 | G19: 0 | H19: ='Contabilità per CDC - UACD'!T19*G19 -> 0 | I19: ='Contabilità per CDC - UACD'!U19 -> 0 | J19: ='Contabilità per CDC - UACD'!V19 -> 0 | K19: ='Contabilità per CDC - UACD'!W19 -> 0 | L19: ='Contabilità per CDC - UACD'!X19 -> 0 | M19: ='Contabilità per CDC - UACD'!Z19 -> 0 | N19: ='Contabilità per CDC - UACD'!Y19 -> 0 | O19: =SUM('Contabilità per CDC - UACD'!AB19:AF19,'Contabilità per CDC - UACD'!AI19) -> 0 | P19: =SUM('Contabilità per CDC - UACD'!AG19:AH19,'Contabilità per CDC - UACD'!AJ19) -> 0 | Q19: =SUM('Contabilità per CDC - UACD'!AK19:AO19) -> 7000
A20: ='Contabilità per CDC - UACD'!A20 -> 3009 | B20: ='Contabilità per CDC - UACD'!B20 -> Prestazioni continuative da parte di personale esterno | C20: ='Contabilità per CDC - UACD'!R20 -> 0 | D20: ='Contabilità per CDC - UACD'!S20 -> 0 | E20: =IF(AND(G20=0,'Contabilità per CDC - UACD'!T20=0),0,100%-G20) -> 0.01 | F20: ='Contabilità per CDC - UACD'!T20*E20 -> 500 | G20: 0.99 | H20: ='Contabilità per CDC - UACD'!T20*G20 -> 49500 | I20: ='Contabilità per CDC - UACD'!U20 -> 0 | J20: ='Contabilità per CDC - UACD'!V20 -> 0 | K20: ='Contabilità per CDC - UACD'!W20 -> 0 | L20: ='Contabilità per CDC - UACD'!X20 -> 0 | M20: ='Contabilità per CDC - UACD'!Z20 -> 0 | N20: ='Contabilità per CDC - UACD'!Y20 -> 0 | O20: =SUM('Contabilità per CDC - UACD'!AB20:AF20,'Contabilità per CDC - UACD'!AI20) -> 0 | P20: =SUM('Contabilità per CDC - UACD'!AG20:AH20,'Contabilità per CDC - UACD'!AJ20) -> 0 | Q20: =SUM('Contabilità per CDC - UACD'!AK20:AO20) -> 0
A21: ='Contabilità per CDC - UACD'!A21 -> 309 | B21: ='Contabilità per CDC - UACD'!B21 -> Messa a disposizione di personale a terzi | C21: ='Contabilità per CDC - UACD'!R21 -> 0 | D21: ='Contabilità per CDC - UACD'!S21 -> 0 | E21: =IF(AND(G21=0,'Contabilità per CDC - UACD'!T21=0),0,100%-G21) -> 0.01 | F21: ='Contabilità per CDC - UACD'!T21*E21 -> 0 | G21: 0.99 | H21: ='Contabilità per CDC - UACD'!T21*G21 -> 0 | I21: ='Contabilità per CDC - UACD'!U21 -> 0 | J21: ='Contabilità per CDC - UACD'!V21 -> 0 | K21: ='Contabilità per CDC - UACD'!W21 -> 0 | L21: ='Contabilità per CDC - UACD'!X21 -> 0 | M21: ='Contabilità per CDC - UACD'!Z21 -> 0 | N21: ='Contabilità per CDC - UACD'!Y21 -> 0 | O21: =SUM('Contabilità per CDC - UACD'!AB21:AF21,'Contabilità per CDC - UACD'!AI21) -> 0 | P21: =SUM('Contabilità per CDC - UACD'!AG21:AH21,'Contabilità per CDC - UACD'!AJ21) -> 0 | Q21: =SUM('Contabilità per CDC - UACD'!AK21:AO21) -> 0
A22: ='Contabilità per CDC - UACD'!A22 -> 37 | B22: ='Contabilità per CDC - UACD'!B22 -> Oneri sociali | C22: ='Contabilità per CDC - UACD'!R22 -> 0 | D22: ='Contabilità per CDC - UACD'!S22 -> 50263.03502 | E22: =IF(AND(G22=0,'Contabilità per CDC - UACD'!T22=0),0,100%-G22) -> 0.01 | F22: ='Contabilità per CDC - UACD'!T22*E22 -> 5793.34198 | G22: 0.99 | H22: ='Contabilità per CDC - UACD'!T22*G22 -> 573540.856 | I22: ='Contabilità per CDC - UACD'!U22 -> 2317.336792 | J22: ='Contabilità per CDC - UACD'!V22 -> 4634.673584 | K22: ='Contabilità per CDC - UACD'!W22 -> 9269.347168 | L22: ='Contabilità per CDC - UACD'!X22 -> 4634.673584 | M22: ='Contabilità per CDC - UACD'!Z22 -> 0 | N22: ='Contabilità per CDC - UACD'!Y22 -> 0 | O22: =SUM('Contabilità per CDC - UACD'!AB22:AF22,'Contabilità per CDC - UACD'!AI22) -> 283873.757 | P22: =SUM('Contabilità per CDC - UACD'!AG22:AH22,'Contabilità per CDC - UACD'!AJ22) -> 0 | Q22: =SUM('Contabilità per CDC - UACD'!AK22:AO22) -> 34644.18504
B23: ='Contabilità per CDC - UACD'!B23 -> Neutralizzazione cassa pensione | C23: ='Contabilità per CDC - UACD'!R23 -> 0 | D23: ='Contabilità per CDC - UACD'!S23 -> 0 | E23: =IF(AND(G23=0,'Contabilità per CDC - UACD'!T23=0),0,100%-G23) -> 0 | F23: ='Contabilità per CDC - UACD'!T23*E23 -> 0 | G23: 0 | H23: ='Contabilità per CDC - UACD'!T23*G23 -> 0 | I23: ='Contabilità per CDC - UACD'!U23 -> 0 | J23: ='Contabilità per CDC - UACD'!V23 -> 0 | K23: ='Contabilità per CDC - UACD'!W23 -> 0 | L23: ='Contabilità per CDC - UACD'!X23 -> 0 | M23: ='Contabilità per CDC - UACD'!Z23 -> 0 | N23: ='Contabilità per CDC - UACD'!Y23 -> 0 | O23: =SUM('Contabilità per CDC - UACD'!AB23:AF23,'Contabilità per CDC - UACD'!AI23) -> 0 | P23: =SUM('Contabilità per CDC - UACD'!AG23:AH23,'Contabilità per CDC - UACD'!AJ23) -> 0 | Q23: =SUM('Contabilità per CDC - UACD'!AK23:AO23) -> 0
A24: ='Contabilità per CDC - UACD'!A24 -> 38 | B24: ='Contabilità per CDC - UACD'!B24 -> Onorari medici | C24: ='Contabilità per CDC - UACD'!R24 -> 0 | D24: ='Contabilità per CDC - UACD'!S24 -> 0 | E24: =IF(AND(G24=0,'Contabilità per CDC - UACD'!T24=0),0,100%-G24) -> 1 | F24: ='Contabilità per CDC - UACD'!T24*E24 -> 10000 | G24: 0 | H24: ='Contabilità per CDC - UACD'!T24*G24 -> 0 | I24: ='Contabilità per CDC - UACD'!U24 -> 0 | J24: ='Contabilità per CDC - UACD'!V24 -> 0 | K24: ='Contabilità per CDC - UACD'!W24 -> 0 | L24: ='Contabilità per CDC - UACD'!X24 -> 0 | M24: ='Contabilità per CDC - UACD'!Z24 -> 0 | N24: ='Contabilità per CDC - UACD'!Y24 -> 0 | O24: =SUM('Contabilità per CDC - UACD'!AB24:AF24,'Contabilità per CDC - UACD'!AI24) -> 0 | P24: =SUM('Contabilità per CDC - UACD'!AG24:AH24,'Contabilità per CDC - UACD'!AJ24) -> 0 | Q24: =SUM('Contabilità per CDC - UACD'!AK24:AO24) -> 15000
A25: ='Contabilità per CDC - UACD'!A25 -> 39 | B25: ='Contabilità per CDC - UACD'!B25 -> Altri costi del personale | C25: ='Contabilità per CDC - UACD'!R25 -> 0 | D25: ='Contabilità per CDC - UACD'!S25 -> 500 | E25: =IF(AND(G25=0,'Contabilità per CDC - UACD'!T25=0),0,100%-G25) -> 1 | F25: ='Contabilità per CDC - UACD'!T25*E25 -> 15000 | G25: 0 | H25: ='Contabilità per CDC - UACD'!T25*G25 -> 0 | I25: ='Contabilità per CDC - UACD'!U25 -> 500 | J25: ='Contabilità per CDC - UACD'!V25 -> 500 | K25: ='Contabilità per CDC - UACD'!W25 -> 0 | L25: ='Contabilità per CDC - UACD'!X25 -> 0 | M25: ='Contabilità per CDC - UACD'!Z25 -> 0 | N25: ='Contabilità per CDC - UACD'!Y25 -> 0 | O25: =SUM('Contabilità per CDC - UACD'!AB25:AF25,'Contabilità per CDC - UACD'!AI25) -> 0 | P25: =SUM('Contabilità per CDC - UACD'!AG25:AH25,'Contabilità per CDC - UACD'!AJ25) -> 0 | Q25: =SUM('Contabilità per CDC - UACD'!AK25:AO25) -> 20000
A26: ='Contabilità per CDC - UACD'!A26 -> 40 | B26: ='Contabilità per CDC - UACD'!B26 -> Fabbisogno medico | C26: ='Contabilità per CDC - UACD'!R26 -> 0 | D26: ='Contabilità per CDC - UACD'!S26 -> 0 | E26: =IF(AND(G26=0,'Contabilità per CDC - UACD'!T26=0),0,100%-G26) -> 0 | F26: ='Contabilità per CDC - UACD'!T26*E26 -> 0 | G26: 0 | H26: ='Contabilità per CDC - UACD'!T26*G26 -> 0 | I26: ='Contabilità per CDC - UACD'!U26 -> 0 | J26: ='Contabilità per CDC - UACD'!V26 -> 0 | K26: ='Contabilità per CDC - UACD'!W26 -> 0 | L26: ='Contabilità per CDC - UACD'!X26 -> 100 | M26: ='Contabilità per CDC - UACD'!Z26 -> 15000 | N26: ='Contabilità per CDC - UACD'!Y26 -> 60000 | O26: =SUM('Contabilità per CDC - UACD'!AB26:AF26,'Contabilità per CDC - UACD'!AI26) -> 25000 | P26: =SUM('Contabilità per CDC - UACD'!AG26:AH26,'Contabilità per CDC - UACD'!AJ26) -> 0 | Q26: =SUM('Contabilità per CDC - UACD'!AK26:AO26) -> 5000
A27: ='Contabilità per CDC - UACD'!A27 -> 41 | B27: ='Contabilità per CDC - UACD'!B27 -> Costi dei generi alimentari | C27: ='Contabilità per CDC - UACD'!R27 -> 0 | D27: ='Contabilità per CDC - UACD'!S27 -> 0 | E27: =IF(AND(G27=0,'Contabilità per CDC - UACD'!T27=0),0,100%-G27) -> 0 | F27: ='Contabilità per CDC - UACD'!T27*E27 -> 0 | G27: 0 | H27: ='Contabilità per CDC - UACD'!T27*G27 -> 0 | I27: ='Contabilità per CDC - UACD'!U27 -> 0 | J27: ='Contabilità per CDC - UACD'!V27 -> 0 | K27: ='Contabilità per CDC - UACD'!W27 -> 0 | L27: ='Contabilità per CDC - UACD'!X27 -> 0 | M27: ='Contabilità per CDC - UACD'!Z27 -> 0 | N27: ='Contabilità per CDC - UACD'!Y27 -> 0 | O27: =SUM('Contabilità per CDC - UACD'!AB27:AF27,'Contabilità per CDC - UACD'!AI27) -> 0 | P27: =SUM('Contabilità per CDC - UACD'!AG27:AH27,'Contabilità per CDC - UACD'!AJ27) -> 0 | Q27: =SUM('Contabilità per CDC - UACD'!AK27:AO27) -> 0
A28: ='Contabilità per CDC - UACD'!A28 -> 42 | B28: ='Contabilità per CDC - UACD'!B28 -> Costi di economia domestica | C28: ='Contabilità per CDC - UACD'!R28 -> 25000 | D28: ='Contabilità per CDC - UACD'!S28 -> 500 | E28: =IF(AND(G28=0,'Contabilità per CDC - UACD'!T28=0),0,100%-G28) -> 1 | F28: ='Contabilità per CDC - UACD'!T28*E28 -> 3000 | G28: 0 | H28: ='Contabilità per CDC - UACD'!T28*G28 -> 0 | I28: ='Contabilità per CDC - UACD'!U28 -> 250 | J28: ='Contabilità per CDC - UACD'!V28 -> 250 | K28: ='Contabilità per CDC - UACD'!W28 -> 0 | L28: ='Contabilità per CDC - UACD'!X28 -> 0 | M28: ='Contabilità per CDC - UACD'!Z28 -> 0 | N28: ='Contabilità per CDC - UACD'!Y28 -> 0 | O28: =SUM('Contabilità per CDC - UACD'!AB28:AF28,'Contabilità per CDC - UACD'!AI28) -> 1000 | P28: =SUM('Contabilità per CDC - UACD'!AG28:AH28,'Contabilità per CDC - UACD'!AJ28) -> 0 | Q28: =SUM('Contabilità per CDC - UACD'!AK28:AO28) -> 20000
A29: ='Contabilità per CDC - UACD'!A29 -> 43 | B29: ='Contabilità per CDC - UACD'!B29 -> Manutenzione e riparazione | C29: ='Contabilità per CDC - UACD'!R29 -> 2000 | D29: ='Contabilità per CDC - UACD'!S29 -> 100 | E29: =IF(AND(G29=0,'Contabilità per CDC - UACD'!T29=0),0,100%-G29) -> 1 | F29: ='Contabilità per CDC - UACD'!T29*E29 -> 8000 | G29: 0 | H29: ='Contabilità per CDC - UACD'!T29*G29 -> 0 | I29: ='Contabilità per CDC - UACD'!U29 -> 150 | J29: ='Contabilità per CDC - UACD'!V29 -> 150 | K29: ='Contabilità per CDC - UACD'!W29 -> 0 | L29: ='Contabilità per CDC - UACD'!X29 -> 0 | M29: ='Contabilità per CDC - UACD'!Z29 -> 0 | N29: ='Contabilità per CDC - UACD'!Y29 -> 0 | O29: =SUM('Contabilità per CDC - UACD'!AB29:AF29,'Contabilità per CDC - UACD'!AI29) -> 0 | P29: =SUM('Contabilità per CDC - UACD'!AG29:AH29,'Contabilità per CDC - UACD'!AJ29) -> 0 | Q29: =SUM('Contabilità per CDC - UACD'!AK29:AO29) -> 11000
A30: ='Contabilità per CDC - UACD'!A30 -> 440 | B30: ='Contabilità per CDC - UACD'!B30 -> Investimenti inferiori al limite di attivazione COAN | C30: ='Contabilità per CDC - UACD'!R30 -> 5000 | D30: ='Contabilità per CDC - UACD'!S30 -> 100 | E30: =IF(AND(G30=0,'Contabilità per CDC - UACD'!T30=0),0,100%-G30) -> 1 | F30: ='Contabilità per CDC - UACD'!T30*E30 -> 9500 | G30: 0 | H30: ='Contabilità per CDC - UACD'!T30*G30 -> 0 | I30: ='Contabilità per CDC - UACD'!U30 -> 500 | J30: ='Contabilità per CDC - UACD'!V30 -> 500 | K30: ='Contabilità per CDC - UACD'!W30 -> 0 | L30: ='Contabilità per CDC - UACD'!X30 -> 0 | M30: ='Contabilità per CDC - UACD'!Z30 -> 0 | N30: ='Contabilità per CDC - UACD'!Y30 -> 0 | O30: =SUM('Contabilità per CDC - UACD'!AB30:AF30,'Contabilità per CDC - UACD'!AI30) -> 0 | P30: =SUM('Contabilità per CDC - UACD'!AG30:AH30,'Contabilità per CDC - UACD'!AJ30) -> 0 | Q30: =SUM('Contabilità per CDC - UACD'!AK30:AO30) -> 15000
A31: ='Contabilità per CDC - UACD'!A31 -> 442 | B31: ='Contabilità per CDC - UACD'!B31 -> Ammortamenti | C31: ='Contabilità per CDC - UACD'!R31 -> 0 | D31: ='Contabilità per CDC - UACD'!S31 -> 0 | E31: =IF(AND(G31=0,'Contabilità per CDC - UACD'!T31=0),0,100%-G31) -> 0 | F31: ='Contabilità per CDC - UACD'!T31*E31 -> 0 | G31: 0 | H31: ='Contabilità per CDC - UACD'!T31*G31 -> 0 | I31: ='Contabilità per CDC - UACD'!U31 -> 0 | J31: ='Contabilità per CDC - UACD'!V31 -> 0 | K31: ='Contabilità per CDC - UACD'!W31 -> 0 | L31: ='Contabilità per CDC - UACD'!X31 -> 0 | M31: ='Contabilità per CDC - UACD'!Z31 -> 0 | N31: ='Contabilità per CDC - UACD'!Y31 -> 0 | O31: =SUM('Contabilità per CDC - UACD'!AB31:AF31,'Contabilità per CDC - UACD'!AI31) -> 0 | P31: =SUM('Contabilità per CDC - UACD'!AG31:AH31,'Contabilità per CDC - UACD'!AJ31) -> 0 | Q31: =SUM('Contabilità per CDC - UACD'!AK31:AO31) -> 642534.7
A32: ='Contabilità per CDC - UACD'!A32 -> 443 | B32: ='Contabilità per CDC - UACD'!B32 -> Canoni di locaz. per immobilizzaz. < limite di attivazione COAN | C32: ='Contabilità per CDC - UACD'!R32 -> 0 | D32: ='Contabilità per CDC - UACD'!S32 -> 0 | E32: =IF(AND(G32=0,'Contabilità per CDC - UACD'!T32=0),0,100%-G32) -> 0 | F32: ='Contabilità per CDC - UACD'!T32*E32 -> 0 | G32: 0 | H32: ='Contabilità per CDC - UACD'!T32*G32 -> 0 | I32: ='Contabilità per CDC - UACD'!U32 -> 0 | J32: ='Contabilità per CDC - UACD'!V32 -> 0 | K32: ='Contabilità per CDC - UACD'!W32 -> 0 | L32: ='Contabilità per CDC - UACD'!X32 -> 0 | M32: ='Contabilità per CDC - UACD'!Z32 -> 0 | N32: ='Contabilità per CDC - UACD'!Y32 -> 0 | O32: =SUM('Contabilità per CDC - UACD'!AB32:AF32,'Contabilità per CDC - UACD'!AI32) -> 0 | P32: =SUM('Contabilità per CDC - UACD'!AG32:AH32,'Contabilità per CDC - UACD'!AJ32) -> 0 | Q32: =SUM('Contabilità per CDC - UACD'!AK32:AO32) -> 0
A33: ='Contabilità per CDC - UACD'!A33 -> 444 | B33: ='Contabilità per CDC - UACD'!B33 -> Canoni di locaz. per immobilizzaz. >= limite di attivazione COAN | C33: ='Contabilità per CDC - UACD'!R33 -> 0 | D33: ='Contabilità per CDC - UACD'!S33 -> 0 | E33: =IF(AND(G33=0,'Contabilità per CDC - UACD'!T33=0),0,100%-G33) -> 0 | F33: ='Contabilità per CDC - UACD'!T33*E33 -> 0 | G33: 0 | H33: ='Contabilità per CDC - UACD'!T33*G33 -> 0 | I33: ='Contabilità per CDC - UACD'!U33 -> 0 | J33: ='Contabilità per CDC - UACD'!V33 -> 0 | K33: ='Contabilità per CDC - UACD'!W33 -> 0 | L33: ='Contabilità per CDC - UACD'!X33 -> 0 | M33: ='Contabilità per CDC - UACD'!Z33 -> 0 | N33: ='Contabilità per CDC - UACD'!Y33 -> 0 | O33: =SUM('Contabilità per CDC - UACD'!AB33:AF33,'Contabilità per CDC - UACD'!AI33) -> 0 | P33: =SUM('Contabilità per CDC - UACD'!AG33:AH33,'Contabilità per CDC - UACD'!AJ33) -> 0 | Q33: =SUM('Contabilità per CDC - UACD'!AK33:AO33) -> 0
A34: ='Contabilità per CDC - UACD'!A34 -> 448 | B34: ='Contabilità per CDC - UACD'!B34 -> Interessi calcolatori sull'attivo fisso | C34: ='Contabilità per CDC - UACD'!R34 -> 0 | D34: ='Contabilità per CDC - UACD'!S34 -> 0 | E34: =IF(AND(G34=0,'Contabilità per CDC - UACD'!T34=0),0,100%-G34) -> 0 | F34: ='Contabilità per CDC - UACD'!T34*E34 -> 0 | G34: 0 | H34: ='Contabilità per CDC - UACD'!T34*G34 -> 0 | I34: ='Contabilità per CDC - UACD'!U34 -> 0 | J34: ='Contabilità per CDC - UACD'!V34 -> 0 | K34: ='Contabilità per CDC - UACD'!W34 -> 0 | L34: ='Contabilità per CDC - UACD'!X34 -> 0 | M34: ='Contabilità per CDC - UACD'!Z34 -> 0 | N34: ='Contabilità per CDC - UACD'!Y34 -> 0 | O34: =SUM('Contabilità per CDC - UACD'!AB34:AF34,'Contabilità per CDC - UACD'!AI34) -> 0 | P34: =SUM('Contabilità per CDC - UACD'!AG34:AH34,'Contabilità per CDC - UACD'!AJ34) -> 0 | Q34: =SUM('Contabilità per CDC - UACD'!AK34:AO34) -> 492032.63
A35: ='Contabilità per CDC - UACD'!A35 -> 45 | B35: ='Contabilità per CDC - UACD'!B35 -> Costi per energia e acqua | C35: ='Contabilità per CDC - UACD'!R35 -> 0 | D35: ='Contabilità per CDC - UACD'!S35 -> 0 | E35: =IF(AND(G35=0,'Contabilità per CDC - UACD'!T35=0),0,100%-G35) -> 0 | F35: ='Contabilità per CDC - UACD'!T35*E35 -> 0 | G35: 0 | H35: ='Contabilità per CDC - UACD'!T35*G35 -> 0 | I35: ='Contabilità per CDC - UACD'!U35 -> 0 | J35: ='Contabilità per CDC - UACD'!V35 -> 0 | K35: ='Contabilità per CDC - UACD'!W35 -> 0 | L35: ='Contabilità per CDC - UACD'!X35 -> 0 | M35: ='Contabilità per CDC - UACD'!Z35 -> 0 | N35: ='Contabilità per CDC - UACD'!Y35 -> 0 | O35: =SUM('Contabilità per CDC - UACD'!AB35:AF35,'Contabilità per CDC - UACD'!AI35) -> 0 | P35: =SUM('Contabilità per CDC - UACD'!AG35:AH35,'Contabilità per CDC - UACD'!AJ35) -> 0 | Q35: =SUM('Contabilità per CDC - UACD'!AK35:AO35) -> 0
A36: ='Contabilità per CDC - UACD'!A36 -> 46 | B36: ='Contabilità per CDC - UACD'!B36 -> Oneri finanziari | C36: ='Contabilità per CDC - UACD'!R36 -> 0 | D36: ='Contabilità per CDC - UACD'!S36 -> 0 | E36: =IF(AND(G36=0,'Contabilità per CDC - UACD'!T36=0),0,100%-G36) -> 0 | F36: ='Contabilità per CDC - UACD'!T36*E36 -> 0 | G36: 0 | H36: ='Contabilità per CDC - UACD'!T36*G36 -> 0 | I36: ='Contabilità per CDC - UACD'!U36 -> 0 | J36: ='Contabilità per CDC - UACD'!V36 -> 0 | K36: ='Contabilità per CDC - UACD'!W36 -> 0 | L36: ='Contabilità per CDC - UACD'!X36 -> 0 | M36: ='Contabilità per CDC - UACD'!Z36 -> 0 | N36: ='Contabilità per CDC - UACD'!Y36 -> 0 | O36: =SUM('Contabilità per CDC - UACD'!AB36:AF36,'Contabilità per CDC - UACD'!AI36) -> 0 | P36: =SUM('Contabilità per CDC - UACD'!AG36:AH36,'Contabilità per CDC - UACD'!AJ36) -> 0 | Q36: =SUM('Contabilità per CDC - UACD'!AK36:AO36) -> 0
A37: ='Contabilità per CDC - UACD'!A37 -> 47 | B37: ='Contabilità per CDC - UACD'!B37 -> Costi amministrativi e di informatica | C37: ='Contabilità per CDC - UACD'!R37 -> 0 | D37: ='Contabilità per CDC - UACD'!S37 -> 0 | E37: =IF(AND(G37=0,'Contabilità per CDC - UACD'!T37=0),0,100%-G37) -> 1 | F37: ='Contabilità per CDC - UACD'!T37*E37 -> 500 | G37: 0 | H37: ='Contabilità per CDC - UACD'!T37*G37 -> 0 | I37: ='Contabilità per CDC - UACD'!U37 -> 250 | J37: ='Contabilità per CDC - UACD'!V37 -> 250 | K37: ='Contabilità per CDC - UACD'!W37 -> 0 | L37: ='Contabilità per CDC - UACD'!X37 -> 0 | M37: ='Contabilità per CDC - UACD'!Z37 -> 0 | N37: ='Contabilità per CDC - UACD'!Y37 -> 0 | O37: =SUM('Contabilità per CDC - UACD'!AB37:AF37,'Contabilità per CDC - UACD'!AI37) -> 0 | P37: =SUM('Contabilità per CDC - UACD'!AG37:AH37,'Contabilità per CDC - UACD'!AJ37) -> 0 | Q37: =SUM('Contabilità per CDC - UACD'!AK37:AO37) -> 500
A38: ='Contabilità per CDC - UACD'!A38 -> 48 | B38: ='Contabilità per CDC - UACD'!B38 -> Altri costi relativi ai residenti | C38: ='Contabilità per CDC - UACD'!R38 -> 5900 | D38: ='Contabilità per CDC - UACD'!S38 -> 1500 | E38: =IF(AND(G38=0,'Contabilità per CDC - UACD'!T38=0),0,100%-G38) -> 0 | F38: ='Contabilità per CDC - UACD'!T38*E38 -> 0 | G38: 0 | H38: ='Contabilità per CDC - UACD'!T38*G38 -> 0 | I38: ='Contabilità per CDC - UACD'!U38 -> 0 | J38: ='Contabilità per CDC - UACD'!V38 -> 0 | K38: ='Contabilità per CDC - UACD'!W38 -> 0 | L38: ='Contabilità per CDC - UACD'!X38 -> 0 | M38: ='Contabilità per CDC - UACD'!Z38 -> 0 | N38: ='Contabilità per CDC - UACD'!Y38 -> 0 | O38: =SUM('Contabilità per CDC - UACD'!AB38:AF38,'Contabilità per CDC - UACD'!AI38) -> 0 | P38: =SUM('Contabilità per CDC - UACD'!AG38:AH38,'Contabilità per CDC - UACD'!AJ38) -> 0 | Q38: =SUM('Contabilità per CDC - UACD'!AK38:AO38) -> 1200
A39: ='Contabilità per CDC - UACD'!A39 -> 49 | B39: ='Contabilità per CDC - UACD'!B39 -> Altri costi non relativi ai residenti | C39: ='Contabilità per CDC - UACD'!R39 -> 0 | D39: ='Contabilità per CDC - UACD'!S39 -> 4500 | E39: =IF(AND(G39=0,'Contabilità per CDC - UACD'!T39=0),0,100%-G39) -> 1 | F39: ='Contabilità per CDC - UACD'!T39*E39 -> 500 | G39: 0 | H39: ='Contabilità per CDC - UACD'!T39*G39 -> 0 | I39: ='Contabilità per CDC - UACD'!U39 -> 300 | J39: ='Contabilità per CDC - UACD'!V39 -> 200 | K39: ='Contabilità per CDC - UACD'!W39 -> 0 | L39: ='Contabilità per CDC - UACD'!X39 -> 0 | M39: ='Contabilità per CDC - UACD'!Z39 -> 0 | N39: ='Contabilità per CDC - UACD'!Y39 -> 0 | O39: =SUM('Contabilità per CDC - UACD'!AB39:AF39,'Contabilità per CDC - UACD'!AI39) -> 0 | P39: =SUM('Contabilità per CDC - UACD'!AG39:AH39,'Contabilità per CDC - UACD'!AJ39) -> 0 | Q39: =SUM('Contabilità per CDC - UACD'!AK39:AO39) -> 15000
B40: Costi lordi prima delle ripartizioni | C40: =SUM(C9:C39) -> 37900 | D40: =SUM(D9:D39) -> 274363.035 | F40: =SUM(F9:F39) -> 77793.34198 | H40: =SUM(H9:H39) -> 3098040.856 | I40: 14267.33679 | J40: 26484.67358 | K40: 49269.34717 | L40: 24734.67358 | M40: 15000 | N40: 60000 | O40: 1534873.757 | P40: 0 | Q40: 1421411.515
B41: Riduzione dei costi, ricavi accessori compresi
A42: 65 | B42: Altri ricavi da prestazioni ai residenti | C42: ='Contabilità per CDC - UACD'!R42 -> -800 | D42: ='Contabilità per CDC - UACD'!S42 -> -4000 | E42: =IF(AND(G42=0,'Contabilità per CDC - UACD'!T42=0),0,100%-G42) -> 0 | F42: ='Contabilità per CDC - UACD'!T42*E42 -> 0 | G42: 0 | H42: ='Contabilità per CDC - UACD'!T399*G42 -> 0 | I42: ='Contabilità per CDC - UACD'!U42 -> 0 | J42: ='Contabilità per CDC - UACD'!V42 -> 0 | K42: ='Contabilità per CDC - UACD'!W42 -> 0 | L42: ='Contabilità per CDC - UACD'!X42 -> 0 | M42: ='Contabilità per CDC - UACD'!Z42 -> 0 | N42: ='Contabilità per CDC - UACD'!Y42 -> 0 | O42: =SUM('Contabilità per CDC - UACD'!AB42:AF42,'Contabilità per CDC - UACD'!AI42) -> 0 | P42: =SUM('Contabilità per CDC - UACD'!AG42:AH42,'Contabilità per CDC - UACD'!AJ42) -> 0 | Q42: =SUM('Contabilità per CDC - UACD'!AK42:AO42) -> 0
A43: 66 | B43: Ricavi finanziari | C43: ='Contabilità per CDC - UACD'!R43 -> 0 | D43: ='Contabilità per CDC - UACD'!S43 -> 0 | E43: =IF(AND(G43=0,'Contabilità per CDC - UACD'!T43=0),0,100%-G43) -> 0 | F43: ='Contabilità per CDC - UACD'!T43*E43 -> 0 | G43: 0 | H43: ='Contabilità per CDC - UACD'!T400*G43 -> 0 | I43: ='Contabilità per CDC - UACD'!U43 -> 0 | J43: ='Contabilità per CDC - UACD'!V43 -> 0 | K43: ='Contabilità per CDC - UACD'!W43 -> 0 | L43: ='Contabilità per CDC - UACD'!X43 -> 0 | M43: ='Contabilità per CDC - UACD'!Z43 -> 0 | N43: ='Contabilità per CDC - UACD'!Y43 -> 0 | O43: =SUM('Contabilità per CDC - UACD'!AB43:AF43,'Contabilità per CDC - UACD'!AI43) -> 0 | P43: =SUM('Contabilità per CDC - UACD'!AG43:AH43,'Contabilità per CDC - UACD'!AJ43) -> 0 | Q43: =SUM('Contabilità per CDC - UACD'!AK43:AO43) -> 0
A44: 68 | B44: Ricavi da prestazioni fornite al personale e a terzi | C44: ='Contabilità per CDC - UACD'!R44 -> 0 | D44: ='Contabilità per CDC - UACD'!S44 -> 0 | E44: =IF(AND(G44=0,'Contabilità per CDC - UACD'!T44=0),0,100%-G44) -> 0 | F44: ='Contabilità per CDC - UACD'!T44*E44 -> 0 | G44: 0 | H44: ='Contabilità per CDC - UACD'!T401*G44 -> 0 | I44: ='Contabilità per CDC - UACD'!U44 -> 0 | J44: ='Contabilità per CDC - UACD'!V44 -> 0 | K44: ='Contabilità per CDC - UACD'!W44 -> 0 | L44: ='Contabilità per CDC - UACD'!X44 -> 0 | M44: ='Contabilità per CDC - UACD'!Z44 -> 0 | N44: ='Contabilità per CDC - UACD'!Y44 -> 0 | O44: =SUM('Contabilità per CDC - UACD'!AB44:AF44,'Contabilità per CDC - UACD'!AI44) -> 0 | P44: =SUM('Contabilità per CDC - UACD'!AG44:AH44,'Contabilità per CDC - UACD'!AJ44) -> 0 | Q44: =SUM('Contabilità per CDC - UACD'!AK44:AO44) -> 0
A45: 7 | B45: Imposte, risultato estraneo all'esercizio e straordinario | C45: ='Contabilità per CDC - UACD'!R45 -> 0 | D45: ='Contabilità per CDC - UACD'!S45 -> 0 | E45: =IF(AND(G45=0,'Contabilità per CDC - UACD'!T45=0),0,100%-G45) -> 0 | F45: ='Contabilità per CDC - UACD'!T45*E45 -> 0 | G45: 0 | H45: ='Contabilità per CDC - UACD'!T402*G45 -> 0 | I45: ='Contabilità per CDC - UACD'!U45 -> 0 | J45: ='Contabilità per CDC - UACD'!V45 -> 0 | K45: ='Contabilità per CDC - UACD'!W45 -> 0 | L45: ='Contabilità per CDC - UACD'!X45 -> 0 | M45: ='Contabilità per CDC - UACD'!Z45 -> 0 | N45: ='Contabilità per CDC - UACD'!Y45 -> 0 | O45: =SUM('Contabilità per CDC - UACD'!AB45:AF45,'Contabilità per CDC - UACD'!AI45) -> 0 | P45: =SUM('Contabilità per CDC - UACD'!AG45:AH45,'Contabilità per CDC - UACD'!AJ45) -> 0 | Q45: =SUM('Contabilità per CDC - UACD'!AK45:AO45) -> 0
B46: Costi netti prima delle ripartizioni | C46: =SUM(C42:C45)+C40 -> 37100 | D46: =SUM(D42:D45)+D40 -> 270363.035 | F46: =SUM(F42:F45)+F40 -> 77793.34198 | H46: =SUM(H42:H45)+H40 -> 3098040.856 | I46: =SUM(I42:I45)+I40 -> 14267.33679 | J46: =SUM(J42:J45)+J40 -> 26484.67358 | K46: 49269.34717 | L46: 24734.67358 | M46: 15000 | N46: 60000 | O46: =SUM(O42:O45)+O40 -> 1534873.757 | P46: =SUM(P42:P45)+P40 -> 0 | Q46: =SUM(Q42:Q45)+Q40 -> 1421411.515
B47: Ripartizioni sui centri di costo generali e principali
A48: RIP010 | B48: Ripartizione Edifici | C48: ='Contabilità per CDC - UACD'!R48 -> 59095.86057 | D48: ='Contabilità per CDC - UACD'!S48 -> 2836.601307 | E48: =IF(AND(G48=0,'Contabilità per CDC - UACD'!T48=0),0,100%-G48) -> 1 | F48: ='Contabilità per CDC - UACD'!T48*E48 -> 2363.834423 | G48: 0 | H48: ='Contabilità per CDC - UACD'!T48*G48 -> 0 | I48: ='Contabilità per CDC - UACD'!U48 -> 472.7668845 | J48: ='Contabilità per CDC - UACD'!V48 -> 590.9586057 | K48: ='Contabilità per CDC - UACD'!W48 -> 0 | L48: ='Contabilità per CDC - UACD'!X48 -> 0 | M48: ='Contabilità per CDC - UACD'!Z48 -> 0 | N48: ='Contabilità per CDC - UACD'!Y48 -> 0 | O48: =SUM('Contabilità per CDC - UACD'!AB48:AF48,'Contabilità per CDC - UACD'!AI48) -> 20092.59259 | P48: =SUM('Contabilità per CDC - UACD'!AG48:AH48,'Contabilità per CDC - UACD'!AJ48) -> 0 | Q48: =SUM('Contabilità per CDC - UACD'!AK48:AO48) -> 0
A49: RIP011 | B49: Ripartizione Energia | C49: ='Contabilità per CDC - UACD'!R49 -> 70919.26328 | D49: ='Contabilità per CDC - UACD'!S49 -> 3404.124637 | E49: =IF(AND(G49=0,'Contabilità per CDC - UACD'!T49=0),0,100%-G49) -> 1 | F49: ='Contabilità per CDC - UACD'!T49*E49 -> 2836.770531 | G49: 0 | H49: ='Contabilità per CDC - UACD'!T49*G49 -> 0 | I49: ='Contabilità per CDC - UACD'!U49 -> 567.3541062 | J49: ='Contabilità per CDC - UACD'!V49 -> 709.1926328 | K49: ='Contabilità per CDC - UACD'!W49 -> 0 | L49: ='Contabilità per CDC - UACD'!X49 -> 0 | M49: ='Contabilità per CDC - UACD'!Z49 -> 0 | N49: ='Contabilità per CDC - UACD'!Y49 -> 0 | O49: =SUM('Contabilità per CDC - UACD'!AB49:AF49,'Contabilità per CDC - UACD'!AI49) -> 24112.54951 | P49: =SUM('Contabilità per CDC - UACD'!AG49:AH49,'Contabilità per CDC - UACD'!AJ49) -> 0 | Q49: =SUM('Contabilità per CDC - UACD'!AK49:AO49) -> 0
A50: RIP020 | B50: Ripartizione Servizi tecnici | C50: ='Contabilità per CDC - UACD'!R50 -> 58259.5573 | D50: ='Contabilità per CDC - UACD'!S50 -> 2796.45875 | E50: =IF(AND(G50=0,'Contabilità per CDC - UACD'!T50=0),0,100%-G50) -> 1 | F50: ='Contabilità per CDC - UACD'!T50*E50 -> 2330.382292 | G50: 0 | H50: ='Contabilità per CDC - UACD'!T50*G50 -> 0 | I50: ='Contabilità per CDC - UACD'!U50 -> 466.0764584 | J50: ='Contabilità per CDC - UACD'!V50 -> 582.595573 | K50: ='Contabilità per CDC - UACD'!W50 -> 0 | L50: ='Contabilità per CDC - UACD'!X50 -> 0 | M50: ='Contabilità per CDC - UACD'!Z50 -> 0 | N50: ='Contabilità per CDC - UACD'!Y50 -> 0 | O50: =SUM('Contabilità per CDC - UACD'!AB50:AF50,'Contabilità per CDC - UACD'!AI50) -> 19808.24948 | P50: =SUM('Contabilità per CDC - UACD'!AG50:AH50,'Contabilità per CDC - UACD'!AJ50) -> 0 | Q50: =SUM('Contabilità per CDC - UACD'!AK50:AO50) -> 0
A51: RIP021 | B51: Ripartizione Servizio trasporti | C51: ='Contabilità per CDC - UACD'!R51 -> 0 | D51: ='Contabilità per CDC - UACD'!S51 -> 236.8421053 | E51: =IF(AND(G51=0,'Contabilità per CDC - UACD'!T51=0),0,100%-G51) -> 1 | F51: ='Contabilità per CDC - UACD'!T51*E51 -> 789.4736842 | G51: 0 | H51: ='Contabilità per CDC - UACD'!T51*G51 -> 0 | I51: ='Contabilità per CDC - UACD'!U51 -> 0 | J51: ='Contabilità per CDC - UACD'!V51 -> 0 | K51: ='Contabilità per CDC - UACD'!W51 -> 0 | L51: ='Contabilità per CDC - UACD'!X51 -> 0 | M51: ='Contabilità per CDC - UACD'!Z51 -> 0 | N51: ='Contabilità per CDC - UACD'!Y51 -> 0 | O51: =SUM('Contabilità per CDC - UACD'!AB51:AF51,'Contabilità per CDC - UACD'!AI51) -> 0 | P51: =SUM('Contabilità per CDC - UACD'!AG51:AH51,'Contabilità per CDC - UACD'!AJ51) -> 0 | Q51: =SUM('Contabilità per CDC - UACD'!AK51:AO51) -> 0
A52: RIP030 | B52: Ripartizione Direzione / Amministrazione | C52: ='Contabilità per CDC - UACD'!R52 -> 0 | D52: ='Contabilità per CDC - UACD'!S52 -> 18547.8081 | E52: =IF(AND(G52=0,'Contabilità per CDC - UACD'!T52=0),0,100%-G52) -> 1 | F52: ='Contabilità per CDC - UACD'!T52*E52 -> 218058.6015 | G52: 0 | H52: ='Contabilità per CDC - UACD'!T52*G52 -> 0 | I52: ='Contabilità per CDC - UACD'!U52 -> 855.1317705 | J52: ='Contabilità per CDC - UACD'!V52 -> 1710.263541 | K52: ='Contabilità per CDC - UACD'!W52 -> 3420.527082 | L52: ='Contabilità per CDC - UACD'!X52 -> 1710.263541 | M52: ='Contabilità per CDC - UACD'!Z52 -> 0 | N52: ='Contabilità per CDC - UACD'!Y52 -> 0 | O52: =SUM('Contabilità per CDC - UACD'!AB52:AF52,'Contabilità per CDC - UACD'!AI52) -> 104753.6419 | P52: =SUM('Contabilità per CDC - UACD'!AG52:AH52,'Contabilità per CDC - UACD'!AJ52) -> 0 | Q52: =SUM('Contabilità per CDC - UACD'!AK52:AO52) -> 0
A53: RIP040 | B53: Ripartizione Economia domestica in generale | C53: ='Contabilità per CDC - UACD'!R53 -> 0 | D53: ='Contabilità per CDC - UACD'!S53 -> 3637.779009 | E53: =IF(AND(G53=0,'Contabilità per CDC - UACD'!T53=0),0,100%-G53) -> 1 | F53: ='Contabilità per CDC - UACD'!T53*E53 -> 42767.80301 | G53: 0 | H53: ='Contabilità per CDC - UACD'!T53*G53 -> 0 | I53: ='Contabilità per CDC - UACD'!U53 -> 167.7168745 | J53: ='Contabilità per CDC - UACD'!V53 -> 335.4337491 | K53: ='Contabilità per CDC - UACD'!W53 -> 670.8674982 | L53: ='Contabilità per CDC - UACD'!X53 -> 335.4337491 | M53: ='Contabilità per CDC - UACD'!Z53 -> 0 | N53: ='Contabilità per CDC - UACD'!Y53 -> 0 | O53: =SUM('Contabilità per CDC - UACD'!AB53:AF53,'Contabilità per CDC - UACD'!AI53) -> 20545.31713 | P53: =SUM('Contabilità per CDC - UACD'!AG53:AH53,'Contabilità per CDC - UACD'!AJ53) -> 0 | Q53: =SUM('Contabilità per CDC - UACD'!AK53:AO53) -> 0
A54: RIP041 | B54: Ripartizione Lavanderia | C54: ='Contabilità per CDC - UACD'!R54 -> 249711.9765 | D54: ='Contabilità per CDC - UACD'!S54 -> 1920.861358 | E54: =IF(AND(G54=0,'Contabilità per CDC - UACD'!T54=0),0,100%-G54) -> 1 | F54: ='Contabilità per CDC - UACD'!T54*E54 -> 28812.92037 | G54: 0 | H54: ='Contabilità per CDC - UACD'!T54*G54 -> 0 | I54: ='Contabilità per CDC - UACD'!U54 -> 384.1722716 | J54: ='Contabilità per CDC - UACD'!V54 -> 480.2153395 | K54: ='Contabilità per CDC - UACD'!W54 -> 0 | L54: ='Contabilità per CDC - UACD'!X54 -> 0 | M54: ='Contabilità per CDC - UACD'!Z54 -> 0 | N54: ='Contabilità per CDC - UACD'!Y54 -> 0 | O54: =SUM('Contabilità per CDC - UACD'!AB54:AF54,'Contabilità per CDC - UACD'!AI54) -> 82597.0384 | P54: =SUM('Contabilità per CDC - UACD'!AG54:AH54,'Contabilità per CDC - UACD'!AJ54) -> 0 | Q54: =SUM('Contabilità per CDC - UACD'!AK54:AO54) -> 0
A55: RIP042 | B55: Ripartizione Pulizie | C55: ='Contabilità per CDC - UACD'!R55 -> 218650.8982 | D55: ='Contabilità per CDC - UACD'!S55 -> 10495.24311 | E55: =IF(AND(G55=0,'Contabilità per CDC - UACD'!T55=0),0,100%-G55) -> 1 | F55: ='Contabilità per CDC - UACD'!T55*E55 -> 8746.035926 | G55: 0 | H55: ='Contabilità per CDC - UACD'!T55*G55 -> 0 | I55: ='Contabilità per CDC - UACD'!U55 -> 1749.207185 | J55: ='Contabilità per CDC - UACD'!V55 -> 2186.508982 | K55: ='Contabilità per CDC - UACD'!W55 -> 0 | L55: ='Contabilità per CDC - UACD'!X55 -> 0 | M55: ='Contabilità per CDC - UACD'!Z55 -> 0 | N55: ='Contabilità per CDC - UACD'!Y55 -> 0 | O55: =SUM('Contabilità per CDC - UACD'!AB55:AF55,'Contabilità per CDC - UACD'!AI55) -> 74341.30537 | P55: =SUM('Contabilità per CDC - UACD'!AG55:AH55,'Contabilità per CDC - UACD'!AJ55) -> 0 | Q55: =SUM('Contabilità per CDC - UACD'!AK55:AO55) -> 0
A56: RIP060 | B56: Ripartizione Cucina | C56: ='Contabilità per CDC - UACD'!R56 -> 997314.9097 | D56: ='Contabilità per CDC - UACD'!S56 -> 0 | E56: =IF(AND(G56=0,'Contabilità per CDC - UACD'!T56=0),0,100%-G56) -> 0 | F56: ='Contabilità per CDC - UACD'!T56*E56 -> 0 | G56: 0 | H56: ='Contabilità per CDC - UACD'!T56*G56 -> 0 | I56: ='Contabilità per CDC - UACD'!U56 -> 0 | J56: ='Contabilità per CDC - UACD'!V56 -> 0 | K56: ='Contabilità per CDC - UACD'!W56 -> 0 | L56: ='Contabilità per CDC - UACD'!X56 -> 0 | M56: ='Contabilità per CDC - UACD'!Z56 -> 0 | N56: ='Contabilità per CDC - UACD'!Y56 -> 0 | O56: =SUM('Contabilità per CDC - UACD'!AB56:AF56,'Contabilità per CDC - UACD'!AI56) -> 153076.242 | P56: =SUM('Contabilità per CDC - UACD'!AG56:AH56,'Contabilità per CDC - UACD'!AJ56) -> 0 | Q56: =SUM('Contabilità per CDC - UACD'!AK56:AO56) -> 0
A57: RIP090 | B57: Ripartizione Magazzino centrale | C57: ='Contabilità per CDC - UACD'!R57 -> 0 | D57: ='Contabilità per CDC - UACD'!S57 -> 0 | E57: =IF(AND(G57=0,'Contabilità per CDC - UACD'!T57=0),0,100%-G57) -> 0 | F57: ='Contabilità per CDC - UACD'!T57*E57 -> 0 | G57: 0 | H57: ='Contabilità per CDC - UACD'!T57*G57 -> 0 | I57: ='Contabilità per CDC - UACD'!U57 -> 0 | J57: ='Contabilità per CDC - UACD'!V57 -> 0 | K57: ='Contabilità per CDC - UACD'!W57 -> 0 | L57: ='Contabilità per CDC - UACD'!X57 -> 0 | M57: ='Contabilità per CDC - UACD'!Z57 -> 0 | N57: ='Contabilità per CDC - UACD'!Y57 -> 0 | O57: =SUM('Contabilità per CDC - UACD'!AB57:AF57,'Contabilità per CDC - UACD'!AI57) -> 0 | P57: =SUM('Contabilità per CDC - UACD'!AG57:AH57,'Contabilità per CDC - UACD'!AJ57) -> 0 | Q57: =SUM('Contabilità per CDC - UACD'!AK57:AO57) -> 0
A58: RIP095 | B58: Ripartizione Farmacia | C58: ='Contabilità per CDC - UACD'!R58 -> 0 | D58: ='Contabilità per CDC - UACD'!S58 -> 0 | E58: =IF(AND(G58=0,'Contabilità per CDC - UACD'!T58=0),0,100%-G58) -> 0 | F58: ='Contabilità per CDC - UACD'!T58*E58 -> 0 | G58: 0 | H58: ='Contabilità per CDC - UACD'!T58*G58 -> 0 | I58: ='Contabilità per CDC - UACD'!U58 -> 0 | J58: ='Contabilità per CDC - UACD'!V58 -> 0 | K58: ='Contabilità per CDC - UACD'!W58 -> 0 | L58: ='Contabilità per CDC - UACD'!X58 -> 0 | M58: ='Contabilità per CDC - UACD'!Z58 -> 1990.691489 | N58: ='Contabilità per CDC - UACD'!Y58 -> 1592.553191 | O58: =SUM('Contabilità per CDC - UACD'!AB58:AF58,'Contabilità per CDC - UACD'!AI58) -> 1406.755319 | P58: =SUM('Contabilità per CDC - UACD'!AG58:AH58,'Contabilità per CDC - UACD'!AJ58) -> 0 | Q58: =SUM('Contabilità per CDC - UACD'!AK58:AO58) -> 0
B59: Costi netti dopo ripartizioni | C59: =SUM(C46:C58) -> 1691052.466 | D59: =SUM(D46:D58) -> 314238.7534 | F59: =SUM(F46:F58) -> 384499.1637 | H59: =SUM(H46:H58) -> 3098040.856 | I59: =SUM(I46:I58) -> 18929.76234 | J59: =SUM(J46:J58) -> 33079.84201 | K59: 53360.74175 | L59: 26780.37087 | M59: 16990.69149 | N59: 61592.55319 | O59: 2035607.449 | P59: 0 | Q59: 1421411.515

Sheet Contabilità per UFI 2
A1: Contabilità per unità finali d'imputazione 2 (UACD)
A2: =Parametri!$B$7 -> 2021 | B2: =Parametri!$B$3 -> ESEMPIO - CPA STANDARD CON CAT-STT
A4: Calcolo dei costi | H4: Alberghiero | J4: Animazione | L4: Cura non LAMal | N4: Cura LAMal | P4: Terapia LAMal | R4: Medico LAMal | T4: Materiale EMAp | V4: Medicamenti ES | X4: Costi totali
A5: Costi d'esercizio in CHF.: | H5: ='Contabilità per UFI 1'!C59 -> 1691052.466 | J5: ='Contabilità per UFI 1'!D59 -> 314238.7534 | L5: ='Contabilità per UFI 1'!F59 -> 384499.1637 | N5: ='Contabilità per UFI 1'!H59 -> 3098040.856 | P5: ='Contabilità per UFI 1'!I59 -> 18929.76234 | R5: ='Contabilità per UFI 1'!L59 -> 26780.37087 | T5: ='Contabilità per UFI 1'!N59 -> 61592.55319 | V5: ='Contabilità per UFI 1'!M59 -> 16990.69149 | X5: =SUM(H5:V5) -> 5612124.617
A6: Giornate di soggiorno effettive (gs)/ giornate di soggiorno ponderate (gp): | H6: =$D$60 -> 21500 | J6: =$D$60 -> 21500 | L6: =$D$60 -> 21500 | N6: =$E$60 -> 25063.082 | P6: =$D$60 -> 21500 | R6: =$D$60 -> 21500 | T6: =$D$60 -> 21500 | V6: =$D$60 -> 21500
A7: Costo per giornata di soggiorno (gs, gp) in CHF:. | H7: =H5/H6 -> 78.65360305 | J7: =J5/J6 -> 14.61575597 | L7: =L5/L6 -> 17.88368203 | N7: =N5/N6 -> 123.6097323 | P7: =P5/P6 -> 0.8804540625 | R7: =R5/R6 -> 1.245598645 | T7: =T5/T6 -> 2.864769916 | V7: =V5/V6 -> 0.7902647204
B9: Gruppo RUG | C9: Indice CH | D9: Giornate di soggiorno | E9: Giornate ponderate
A11: Grado 0 | D11: 0 | H11: =H7 -> 78.65360305 | J11: =J7 -> 14.61575597 | L11: =L7 -> 17.88368203 | P11: =P7 -> 0.8804540625 | R11: =R7 -> 1.245598645 | T11: =T7 -> 2.864769916 | V11: =V7 -> 0.7902647204 | X11: =SUM(H11:V11) -> 116.9341284 | Y11: 0
A13: Grado 1 | B13: PA0 | C13: 0.129 | D13: 169 | E13: =D13*C13 -> 21.801 | F13: =SUM(IF(E13=0,0,$N$7*E13/D13)) -> 15.94565546 | L13: Grado 1 | N13: =FLOOR(F13*D13/D13+0.025,0.05) -> 15.95 | X13: =SUM($H$11:$V$11)+N13 -> 132.8841284 | Y13: 1
A14: Grado 2 | B14: PA1 | C14: 0.332 | D14: 2153 | E14: 714.796 | F14: 41.03843112 | L14: Grado 2 | N14: =FLOOR(F14*D14/D14+0.025,0.05) -> 41.05 | X14: =SUM($H$11:$V$11)+N14 -> 157.9841284 | Y14: 2
A15: Grado 3 | B15: BA1 | C15: 0.427 | D15: 540 | E15: 230.58 | F15: 52.78135568 | L15: Grado 3 | N15: =FLOOR((F15*D15+F16*D16)/(D15+D16)+0.025,0.05) -> 53.05 | X15: =SUM($H$11:$V$11)+N15 -> 169.9841284 | Y15: 3
B16: PA2 | C16: 0.437 | D16: 134 | E16: 58.558 | F16: 54.017453
A17: Grado 4 | B17: IA1 | C17: 0.582 | D17: 500 | E17: 291 | F17: 71.94086418 | L17: Grado 4 | N17: =FLOOR((F17*D17+F18*D18+F19*D19+F20*D20)/(D17+D18+D19+D20)+0.025,0.05) -> 77.15 | X17: =SUM($H$11:$V$11)+N17 -> 194.0841284 | Y17: 4
B18: BA2 | C18: 0.605 | E18: 0 | F18: 0
B19: PB1 | C19: 0.659 | D19: 606 | E19: 399.354 | F19: 81.45881357 | N19: =(F19*D19+F20*D20)/(D19+D20) -> 81.45881357 | X19: =(V19*T19+V20*T20)/(T19+T20) -> 
B20: PB2 | C20: 0.679 | E20: 0 | F20: 0
A21: Grado 5 | B21: BB1 | C21: 0.813 | D21: 451 | E21: 366.663 | F21: 100.4947123 | L21: Grado 5 | N21: =FLOOR((F21*D21+F22*D22+F23*D23+F24*D24)/(D21+D22+D23+D24)+0.025,0.05) -> 105.15 | X21: =SUM($H$11:$V$11)+N21 -> 222.0841284 | Y21: 5
B22: CA1 | C22: 0.826 | D22: 83 | E22: 68.558 | F22: 102.1016389
B23: IB1 | C23: 0.859 | D23: 1326 | E23: 1139.034 | F23: 106.18076
B24: PC1 | C24: 0.862 | D24: 694 | E24: 598.228 | F24: 106.5515892
A25: Grado 6 | B25: BB2 | C25: 0.907 | E25: 0 | F25: 0 | L25: Grado 6 | N25: =FLOOR((F25*D25+F26*D26+F27*D27)/(D25+D26+D27)+0.025,0.05) -> 119.05
B26: PC2 | C26: 0.963 | D26: 112 | E26: 107.856 | F26: 119.0361722 | X26: =SUM($H$11:$V$11)+N25 -> 235.9841284 | Y26: 6
B27: IA2 | C27: 1.014 | E27: 0 | F27: 0
A28: Grado 7 | B28: IB2 | C28: 1.113 | D28: 769 | E28: 855.897 | F28: 137.577632 | L28: Grado 7 | N28: =(F28*D28+F29*D29+F30*D30)/(D28+D29+D30) -> 148.5516195 | X28: =(V28*T28+V29*T29)/(T28+T29) -> 
B29: CA2 | C29: 1.145 | D29: 226 | E29: 258.77 | F29: 141.5331435
B30: PD1 | C30: 1.218 | D30: 5000 | E30: 6090 | F30: 150.5566539 | X30: =SUM($H$11:$V$11)+N30 -> 116.9341284 | Y30: 7
A31: Grado 8 | B31: PD2 | C31: 1.229 | D31: 22 | E31: 27.038 | F31: 151.916361 | L31: Grado 8 | N31: =FLOOR((F35*D35+F36*D36+F31*D31+F32*D32+F33*D33+F34*D34)/(D35+D36+D31+D32+D33+D34)+0.025,0.05) -> 165.95
B32: CB1 | C32: 1.239 | E32: 0 | F32: 0
B33: RMA | C33: 1.283 | D33: 61 | E33: 78.263 | F33: 158.5912865
B34: RLA | C34: 1.3 | D34: 183 | E34: 237.9 | F34: 160.692652
B35: CB2 | C35: 1.338 | D35: 214 | E35: 286.332 | F35: 165.3898218 | X35: =SUM($H$11:$V$11)+N31 -> 282.8841284 | Y35: 8
B36: SSA | C36: 1.378 | D36: 418 | E36: 576.004 | F36: 170.3342111
A37: Grado 9 | B37: RMB | C37: 1.417 | D37: 97 | E37: 137.449 | F37: 175.1549906 | L37: Grado 9 | N37: =FLOOR((F40*D40+F41*D41+F42*D42+F37*D37+F38*D38+F39*D39)/(D40+D41+D42+D37+D38+D39)+0.025,0.05) -> 190.3
B38: CC1 | C38: 1.464 | E38: 0 | F38: 0
B39: SSB | C39: 1.515 | E39: 0 | F39: 0
B40: PE1 | C40: 1.541 | D40: 6047 | E40: 9318.427 | F40: 190.4825974 | X40: =SUM($H$11:$V$11)+N37 -> 307.2341284 | Y40: 9
B41: RLB | C41: 1.551 | D41: 60 | E41: 93.06 | F41: 191.7186948
B42: CC2 | C42: 1.56 | D42: 157 | E42: 244.92 | F42: 192.8311824
A43: Grado 10 | B43: PE2 | C43: 1.587 | D43: 34 | E43: 53.958 | F43: 196.1686451 | L43: Grado 10 | N43: =FLOOR((F43*D43+F44*D44)/(D43+D44)+0.025,0.05) -> 196.15
B44: SE1 | C44: 1.651 | E44: 0 | F44: 0
A45: Grado 11 | B45: SSC | C45: 1.799 | D45: 1084 | E45: 1950.116 | F45: 222.3739084 | L45: Grado 11 | N45: =FLOOR(F45*D45/D45+0.025,0.05) -> 222.35 | X45: =SUM($H$11:$V$11)+N45 -> 339.2841284 | Y45: 10
Y46: 11
A47: Grado 12 | B47: RUC | C47: 2.146 | E47: 0 | F47: =SUM(IF(E47=0,0,$N$7*E47/D47)) -> 0 | L47: Grado 12 | N47: =FLOOR((F47*D47+F48*D48+F49*D49+F50*D50+F51*D51+F52*D52+F53*D53+F54*D54+F55*D55+F56*D56+F57*D57+F58*D58)/(D47+D48+D49+D50+D51+D52+D53+D54+D55+D56+D57+D58)+0.025,0.05) -> 294.8 | X47: =SUM($H$11:$V$11)+N47 -> 411.7341284 | Y47: 12
B48: RUB | C48: 2.146 | E48: 0 | F48: 0
B49: RUA | C49: 2.146 | E49: 0 | F49: 0
B50: RVC | C50: 2.146 | E50: 0 | F50: 0
B51: RVB | C51: 2.146 | E51: 0 | F51: 0
B52: RVA | C52: 2.146 | E52: 0 | F52: 0
B53: RHC | C53: 2.146 | E53: 0 | F53: 0
B54: RHB | C54: 2.146 | E54: 0 | F54: 0
B55: RHA | C55: 2.146 | E55: 0 | F55: 0
B56: RMC | C56: 2.146 | D56: 304 | E56: 652.384 | F56: 265.2664855
B57: SE2 | C57: 2.457 | E57: 0 | F57: 0
B58: SE3 | C58: 3.681 | D58: 56 | E58: 206.136 | F58: 455.0074245
A60: Totale | D60: =SUM(D13:D58) -> 21500 | E60: =SUM(E13:E58) -> 25063.082 | F60: =E60/D60 -> 1.165724744

Sheet Contabilità per CDC - SOMED
A1: Contabilità per centri di costo - SOMED | X1: C O A N - S O M E D | AU1: C O A N - S O M E D
A2: =Parametri!$B$7 -> 2021 | B2: =Parametri!$B$3 -> ESEMPIO - CPA STANDARD CON CAT-STT | X2: =+A2 -> 2021 | Y2: =+B2 -> ESEMPIO - CPA STANDARD CON CAT-STT | AU2: =+X2 -> 2021 | AV2: =+Y2 -> ESEMPIO - CPA STANDARD CON CAT-STT
F4: C o n t a b i l i t à a n a l i t i c a p e r c e n t r i d i c o s t o S O M E D
F5: C e n t r i d i c o s t o g e n e r a l i | R5: Ce n t r i d i c o s t o p r i n c i p a l i | AB5: S e r v i z i a n n e s s i | AQ5: Voci non riconosciute SPOSTARE per SOMED | AS5: Prestazioni all'atto -> SPOSTARE per SOMED-A | AV5: G e s t i o n e e s t r a n e a DELIMITATO per SOMED | BG5: Gestione straordinaria DELIMITATO per SOMED | BI5: CdC tecnico
C6: COFI | E6: COAN | F6: 010 | G6: 011 | H6: 020 | I6: 021 | J6: 030 | K6: 040 | L6: 041 | M6: 042 | N6: 060 | O6: 090 | P6: 095 | Q6: Totale | R6: 100 | S6: 110 | T6: 115 | U6: 130 - Terapie per SOMED-A | X6: 140 | Y6: 150 | Z6: 151 | AA6: Totale | AB6: 160 - CAT-STT | AD6: 162 | AE6: 163 | AF6: 16X | AG6: 170 | AH6: 171 | AI6: 172 | AJ6: 17X | AK6: 180 | AL6: 181 | AM6: 182 | AN6: 183 | AO6: 184 | AP6: Totale | AQ6: 190 | AR6: Totale | AS6: 800 | AT6: 80x | AU6: Totale | AV6: 900 | AW6: 905 | AX6: 910 | AY6: 915 | AZ6: 920 | BA6: 925 | BB6: 930 | BC6: 935 | BD6: 940 | BE6: 945 | BF6: Totale | BG6: 990 | BH6: Totale | BI6: 999
B7: CDC per SOMED | C7: Contabilità finanziaria Costi | D7: Delimitazioni per SOMED-A | E7: Contabilità analitica per SOMED-A Costi | F7: Edifici | G7: Energia | H7: Servizio tecnico | I7: Servizio trasporti | J7: Direzione/ Amministrazione | K7: Economia domestica in generale | L7: Lavanderia | M7: Pulizia | N7: Cucina | O7: Magazzino centrale | P7: Farmacia | R7: Servizio alberghiero | S7: Animazione (e cura NON LAMal) | T7: Cura (LAMal) | U7: 130 Fisioterapia | V7: 131 Ergoterapia | W7: 132 Altre consulenze e terapie | X7: Servizio medico | Y7: Materiale secondo EMAp | Z7: Medicamenti secondo ES / EMT | AB7: (160 CAT) | AC7: STT > NON COMPILARE ! | AD7: Cure palliative > SPOSTARE per SOMED | AE7: Reparto Alzheimer > SPOSTARE per SOMED | AF7: STAZ n > SPOSTARE per SOMED | AG7: Ambulatorio medico DELIMITATO per SOMED | AH7: Centro diurno terapeutico (CDT) | AI7: Appartamenti protetti DELIMITATO per SOMED | AJ7: AMB n (CD socio-ass ecc) > SPOSTARE per SOMED | AK7: Altre voci riconosciute (oneri ipotecari e affitti) > SPOSTARE per SOMED | AL7: Altre voci riconosciute (formaz. apprendisti, stag. e ausiliari) > SPOSTARE per SOMED-A | AM7: Altre voci riconosciute (neutraliz. cassa pensione) > SPOSTARE per SOMED-A | AN7: Altre voci riconosciute (contributi straordinari) > SPOSTARE per SOMED-A | AO7: Altre voci riconosciute (Spese COVID-19 Anno 2021) > SPOSTARE per SOMED-A | AQ7: Voci non riconosciute | AS7: Gestione MEDICAMENTI e materiale all'atto | AT7: Gestione TERAPIE all'atto (fisio-, ergoterapia, altre terapie) n | AV7: Appartamenti per il personale | AW7: Bar e ristorante | AX7: Edicola | AY7: Negozio | AZ7: Parrucchiere | BA7: Pedicure | BB7: Posteggi | BC7: Prestazioni di lavanderia a terzi | BD7: Vendita di pasti a terzi | BE7: ESTR n | BG7: Gestione straordinaria | BI7: Centro di costo tecnico | BK7: somma
A8: Voci di costo | C8: Costi | D8: +/- | E8: Costi | BK8: di controllo
A9: 3000 | B9: Salari medici | C9: 170000 | D9: 0 | E9: =C9+D9 -> 170000 | Q9: =SUM(F9:P9) -> 0 | X9: 20000 | AA9: =SUM(R9:Z9) -> 20000 | AB9: 150000 | AG9: 0 | AI9: 0 | AP9: =SUM(AB9:AO9) -> 150000 | AR9: =SUM(AQ9) -> 0 | AU9: =SUM(AS9:AT9) -> 0 | AV9: 0 | AW9: 0 | AX9: 0 | AY9: 0 | AZ9: 0 | BA9: 0 | BB9: 0 | BC9: 0 | BD9: 0 | BE9: 0 | BF9: =SUM(AV9:BE9) -> 0 | BG9: 0 | BH9: =SUM(BG9) -> 0 | BK9: =IF(ABS(E9-Q9-AA9-AP9-AR9-AU9-BF9-BH9)<0.0001,0,E9-Q9-AA9-AP9-AR9-AU9-BF9-BH9) -> 0
A10: 3001 | B10: Salari responsabili di struttura | C10: 111000 | D10: 0 | E10: =C10+D10 -> 111000 | J10: 10000 | Q10: =SUM(F10:P10) -> 10000 | S10: 1000 | T10: 100000 | AA10: =SUM(R10:Z10) -> 101000 | AG10: 0 | AI10: 0 | AP10: =SUM(AB10:AO10) -> 0 | AR10: =SUM(AQ10) -> 0 | AU10: =SUM(AS10:AT10) -> 0 | AV10: 0 | AW10: 0 | AX10: 0 | AY10: 0 | AZ10: 0 | BA10: 0 | BB10: 0 | BC10: 0 | BD10: 0 | BE10: 0 | BF10: 0 | BG10: 0 | BH10: =SUM(BG10) -> 0 | BK10: =IF(ABS(E10-Q10-AA10-AP10-AR10-AU10-BF10-BH10)<0.0001,0,E10-Q10-AA10-AP10-AR10-AU10-BF10-BH10) -> 0
A11: 3001.05 | B11: Salari capi reparto | C11: 199900 | D11: 0 | E11: =C11+D11 -> 199900 | J11: 9000 | Q11: 9000 | S11: 900 | T11: 90000 | AA11: =SUM(R11:Z11) -> 90900 | AB11: 100000 | AG11: 0 | AI11: 0 | AP11: 100000 | AR11: 0 | AU11: 0 | AV11: 0 | AW11: 0 | AX11: 0 | AY11: 0 | AZ11: 0 | BA11: 0 | BB11: 0 | BC11: 0 | BD11: 0 | BE11: 0 | BF11: 0 | BG11: 0 | BH11: 0 | BK11: 0
A12: 3001.1 | B12: Salari infermieri e operatori socio sanitari (OSS) | C12: 1705600 | D12: 0 | E12: =C12+D12 -> 1705600 | J12: 11600 | N12: 56000 | Q12: 67600 | S12: 35000 | T12: =1160000+18000 -> 1178000 | AA12: 1213000 | AB12: 425000 | AG12: 0 | AI12: 0 | AO12: =18000-18000 -> 0 | AP12: =SUM(AB12:AO12) -> 425000 | AR12: 0 | AU12: =SUM(AS12:AT12) -> 0 | AV12: 0 | AW12: 0 | AX12: 0 | AY12: 0 | AZ12: 0 | BA12: 0 | BB12: 0 | BC12: 0 | BD12: 0 | BE12: 0 | BF12: =SUM(AV12:BE12) -> 0 | BG12: 0 | BH12: 0 | BK12: 0
A13: 3001.2 | B13: Salari assistenti e ausiliari di cura | C13: 1905000 | D13: 0 | E13: =C13+D13 -> 1905000 | L13: 57500 | M13: 57500 | N13: 115000 | Q13: 230000 | S13: 55000 | T13: =1150000+40000 -> 1190000 | AA13: 1245000 | AB13: 430000 | AG13: 0 | AI13: 0 | AO13: =40000-40000 -> 0 | AP13: 430000 | AR13: 0 | AU13: 0 | AV13: 0 | AW13: 0 | AX13: 0 | AY13: 0 | AZ13: 0 | BA13: 0 | BB13: 0 | BC13: 0 | BD13: 0 | BE13: 0 | BF13: 0 | BG13: 0 | BH13: 0 | BK13: 0
A14: 3001.3 | B14: Salari dietisti | C14: 44000 | D14: 0 | E14: =C14+D14 -> 44000 | J14: 4000 | Q14: =SUM(F14:P14) -> 4000 | W14: 40000 | AA14: =SUM(R14:Z14) -> 40000 | AG14: 0 | AI14: 0 | AP14: =SUM(AB14:AO14) -> 0 | AR14: =SUM(AQ14) -> 0 | AU14: =SUM(AS14:AT14) -> 0 | AV14: 0 | AW14: 0 | AX14: 0 | AY14: 0 | AZ14: 0 | BA14: 0 | BB14: 0 | BC14: 0 | BD14: 0 | BE14: 0 | BF14: =SUM(AV14:BE14) -> 0 | BG14: 0 | BH14: =SUM(BG14) -> 0 | BK14: =IF(ABS(E14-Q14-AA14-AP14-AR14-AU14-BF14-BH14)<0.0001,0,E14-Q14-AA14-AP14-AR14-AU14-BF14-BH14) -> 0
A15: 3001.9 | B15: Salari personale di cura in formazione e stagisti | C15: 35500 | D15: 0 | E15: =C15+D15 -> 35500 | Q15: 0 | T15: =35000+500 -> 35500 | AA15: 35500 | AG15: 0 | AI15: 0 | AL15: =35000-35000 -> 0 | AO15: =500-500 -> 0 | AP15: 0 | AR15: 0 | AU15: 0 | AV15: 0 | AW15: 0 | AX15: 0 | AY15: 0 | AZ15: 0 | BA15: 0 | BB15: 0 | BC15: 0 | BD15: 0 | BE15: 0 | BF15: 0 | BG15: 0 | BH15: 0 | BK15: 0
A16: 3002 | B16: Salari personale altre discipline mediche specializzate | C16: 329000 | D16: 0 | E16: 329000 | J16: 3500 | P16: 10000 | Q16: 13500 | S16: 125000 | U16: =10000+15000 -> 25000 | V16: =20000+500+25000 -> 45500 | AA16: 195500 | AB16: 120000 | AG16: 0 | AI16: 0 | AO16: =500-500 -> 0 | AP16: 120000 | AR16: 0 | AS16: =10000-10000 -> 0 | AT16: =40000-40000 -> 0 | AU16: 0 | AV16: 0 | AW16: 0 | AX16: 0 | AY16: 0 | AZ16: 0 | BA16: 0 | BB16: 0 | BC16: 0 | BD16: 0 | BE16: 0 | BF16: 0 | BG16: 0 | BH16: 0 | BK16: 0
A17: 3003 | B17: Salari personale amministrativo | C17: 261500 | D17: 0 | E17: 261500 | J17: =238000+12000+11500 -> 261500 | Q17: 261500 | AA17: 0 | AG17: 0 | AI17: 0 | AL17: =12000-12000 -> 0 | AO17: =11500-11500 -> 0 | AP17: 0 | AR17: 0 | AU17: 0 | AV17: 0 | AW17: 0 | AX17: 0 | AY17: 0 | AZ17: 0 | BA17: 0 | BB17: 0 | BC17: 0 | BD17: 0 | BE17: 0 | BF17: 0 | BG17: 0 | BH17: 0 | BK17: 0
A18: 3004 | B18: Salari personale servizio alberghiero | C18: 945000 | D18: 0 | E18: 945000 | K18: 55000 | L18: =215000+10000 -> 225000 | M18: =200000+15000 -> 215000 | N18: 450000 | Q18: 945000 | AA18: 0 | AG18: 0 | AI18: 0 | AO18: =25000-25000 -> 0 | AP18: 0 | AR18: 0 | AU18: 0 | AV18: 0 | AW18: 0 | AX18: 0 | AY18: 0 | AZ18: 0 | BA18: 0 | BB18: 0 | BC18: 0 | BD18: 0 | BE18: 0 | BF18: 0 | BG18: 0 | BH18: 0 | BK18: 0
A19: 3005 | B19: Salari personale servizio tecnico | C19: 76000 | D19: 0 | E19: 76000 | H19: =69000+6000+1000 -> 76000 | Q19: 76000 | AA19: 0 | AG19: 0 | AI19: 0 | AL19: =6000-6000 -> 0 | AO19: =1000-1000 -> 0 | AP19: 0 | AR19: 0 | AU19: 0 | AV19: 0 | AW19: 0 | AX19: 0 | AY19: 0 | AZ19: 0 | BA19: 0 | BB19: 0 | BC19: 0 | BD19: 0 | BE19: 0 | BF19: 0 | BG19: 0 | BH19: 0 | BK19: 0
A20: 3009 | B20: Prestazioni continuative da parte di personale esterno | C20: 50000 | D20: 0 | E20: 50000 | Q20: 0 | T20: 50000 | AA20: 50000 | AG20: 0 | AI20: 0 | AP20: 0 | AR20: 0 | AU20: 0 | AV20: 0 | AW20: 0 | AX20: 0 | AY20: 0 | AZ20: 0 | BA20: 0 | BB20: 0 | BC20: 0 | BD20: 0 | BE20: 0 | BF20: 0 | BG20: 0 | BH20: 0 | BK20: =IF(ABS(E20-Q20-AA20-AP20-AR20-AU20-BF20-BH20)<0.0001,0,E20-Q20-AA20-AP20-AR20-AU20-BF20-BH20) -> 0
A21: 309 | B21: Messa a disposizione di personale a terzi | C21: 0 | D21: 0 | E21: 0 | Q21: 0 | AA21: 0 | AG21: 0 | AI21: 0 | AP21: 0 | AR21: 0 | AU21: 0 | AV21: 0 | AW21: 0 | AX21: 0 | AY21: 0 | AZ21: 0 | BA21: 0 | BB21: 0 | BC21: 0 | BD21: 0 | BE21: 0 | BF21: 0 | BG21: 0 | BH21: 0 | BK21: 0
A22: 37 | B22: Oneri sociali | C22: 1340000 | D22: =-SUM('Contabilità per CDC - UACD'!AG22,'Contabilità per CDC - UACD'!AI22,'Contabilità per CDC - UACD'!AS22:AT22,'Contabilità per CDC - UACD'!AV22:BE22,'Contabilità per CDC - UACD'!BG22) -> -11586.68396 | E22: 1328413.316 | F22: =IF(SUM($E9:$E19)=0,0,SUM(F9:F19)/SUM($E9:$E19)*$E22) -> 0 | G22: =IF(SUM($E9:$E19)=0,0,SUM(G9:G19)/SUM($E9:$E19)*$E22) -> 0 | H22: 17459.47462 | I22: 0 | J22: 68827.08681 | K22: 12635.14611 | L22: 64898.70502 | M22: 62601.40573 | N22: 142662.2861 | O22: 0 | P22: =IF(SUM($E9:$E19)=0,0,SUM(P9:P19)/SUM($E9:$E19)*$E22) -> 2297.299293 | Q22: =SUM(F22:P22) -> 371381.4037 | R22: =IF(SUM($E9:$E19)=0,0,SUM(R9:R19)/SUM($E9:$E19)*$E22) -> 0 | S22: =IF(SUM($E9:$E19)=0,0,SUM(S9:S19)/SUM($E9:$E19)*$E22) -> 49828.42166 | T22: 595804.5716 | U22: 5743.248232 | V22: 10452.71178 | W22: 9189.197171 | X22: 4594.598586 | Y22: 0 | Z22: 0 | AA22: 675612.749 | AB22: =IF(SUM($E9:$E19)=0,0,SUM(AB9:AB19)/SUM($E9:$E19)*$E22) -> 281419.1634 | AD22: =IF(SUM($E9:$E19)=0,0,SUM(AD9:AD19)/SUM($E9:$E19)*$E22) -> 0 | AE22: 0 | AF22: 0 | AG22: 0 | AH22: 0 | AI22: 0 | AJ22: 0 | AK22: 0 | AL22: 0 | AM22: 0 | AN22: 0 | AO22: =IF(SUM($E9:$E19)=0,0,SUM(AO9:AO19)/SUM($E9:$E19)*$E22) -> 0 | AP22: 281419.1634 | AQ22: =IF(SUM($E9:$E19)=0,0,SUM(AQ9:AQ19)/SUM($E9:$E19)*$E22) -> 0 | AR22: 0 | AS22: =IF(SUM($E9:$E19)=0,0,SUM(AS9:AS19)/SUM($E9:$E19)*$E22) -> 0 | AT22: 0 | AU22: 0 | AV22: =IF(SUM($E9:$E19)=0,0,SUM(AV9:AV19)/SUM($E9:$E19)*$E22) -> 0 | AW22: =IF(SUM($E9:$E19)=0,0,SUM(AW9:AW19)/SUM($E9:$E19)*$E22) -> 0 | AX22: 0 | AY22: 0 | AZ22: 0 | BA22: 0 | BB22: 0 | BC22: 0 | BD22: 0 | BE22: 0 | BF22: =SUM(AV22:BE22) -> 0 | BG22: 0 | BH22: 0 | BK22: 0
B23: Neutraliz. cassa pensione - tralasciato per SOMED
A24: 38 | B24: Onorari medici | C24: 25000 | D24: 0 | E24: 25000 | Q24: =SUM(F24:P24) -> 0 | T24: =10000+15000 -> 25000 | AA24: 25000 | AG24: 0 | AI24: 0 | AO24: =15000-15000 -> 0 | AP24: 0 | AR24: 0 | AU24: =SUM(AS24:AT24) -> 0 | AV24: 0 | AW24: 0 | AX24: 0 | AY24: 0 | AZ24: 0 | BA24: 0 | BB24: 0 | BC24: 0 | BD24: 0 | BE24: 0 | BF24: 0 | BG24: 0 | BH24: 0 | BK24: 0
A25: 39 | B25: Altri costi del personale | C25: 38000 | D25: 0 | E25: 38000 | H25: 500 | J25: =1000+1000 -> 2000 | Q25: =SUM(F25:P25) -> 2500 | S25: 500 | T25: =15000+19000 -> 34000 | U25: 500 | V25: 500 | AA25: 35500 | AG25: 0 | AI25: 0 | AO25: =20000-20000 -> 0 | AP25: 0 | AR25: 0 | AU25: 0 | AV25: 0 | AW25: 0 | AX25: 0 | AY25: 0 | AZ25: 0 | BA25: 0 | BB25: 0 | BC25: 0 | BD25: 0 | BE25: 0 | BF25: 0 | BG25: 0 | BH25: 0 | BK25: 0
A26: 40 | B26: Fabbisogno medico | C26: 170100 | D26: 0 | E26: 170100 | P26: =5000+5000 -> 10000 | Q26: 10000 | X26: 100 | Y26: 60000 | Z26: =15000+60000 -> 75000 | AA26: 135100 | AB26: 25000 | AG26: 0 | AI26: 0 | AO26: =5000-5000 -> 0 | AP26: 25000 | AR26: 0 | AS26: =60000-60000 -> 0 | AU26: 0 | AV26: 0 | AW26: 0 | AX26: 0 | AY26: 0 | AZ26: 0 | BA26: 0 | BB26: 0 | BC26: 0 | BD26: 0 | BE26: 0 | BF26: 0 | BG26: 0 | BH26: 0 | BK26: 0
A27: 41 | B27: Costi dei generi alimentari | C27: 250000 | D27: 0 | E27: 250000 | N27: 250000 | Q27: 250000 | AA27: 0 | AG27: 0 | AI27: 0 | AP27: 0 | AR27: 0 | AU27: 0 | AV27: 0 | AW27: 0 | AX27: 0 | AY27: 0 | AZ27: 0 | BA27: 0 | BB27: 0 | BC27: 0 | BD27: 0 | BE27: 0 | BF27: 0 | BG27: 0 | BH27: 0 | BK27: 0
A28: 42 | B28: Costi di economia domestica | C28: 126200 | D28: 0 | E28: 126200 | H28: 1200 | K28: 5000 | L28: =15000+10000 -> 25000 | M28: =30000+10000 -> 40000 | N28: 25000 | Q28: 96200 | R28: 25000 | S28: 500 | T28: 3000 | U28: 250 | V28: 250 | AA28: 29000 | AB28: 1000 | AG28: 0 | AI28: 0 | AO28: =20000-20000 -> 0 | AP28: 1000 | AR28: 0 | AU28: 0 | AV28: 0 | AW28: 0 | AX28: 0 | AY28: 0 | AZ28: 0 | BA28: 0 | BB28: 0 | BC28: 0 | BD28: 0 | BE28: 0 | BF28: 0 | BG28: 0 | BH28: 0 | BK28: 0
A29: 43 | B29: Manutenzione e riparazione | C29: 153050 | D29: -150 | E29: 152900 | F29: =80000+11000 -> 91000 | G29: 3000 | H29: 3000 | I29: 8000 | J29: 18000 | K29: 2000 | L29: 4000 | M29: 500 | N29: 13000 | Q29: 142500 | R29: 2000 | S29: 100 | T29: 8000 | U29: 150 | V29: 150 | AA29: 10400 | AG29: 0 | AI29: 0 | AO29: =11000-11000 -> 0 | AP29: 0 | AR29: 0 | AU29: 0 | AV29: 0 | AW29: 0 | AX29: 0 | AY29: 0 | AZ29: 0 | BA29: 0 | BB29: 0 | BC29: 0 | BD29: 0 | BE29: 0 | BF29: 0 | BG29: 0 | BH29: 0 | BK29: 0
A30: 440 | B30: Investimenti inferiori al limite di attivazione COAN | C30: 59500 | D30: 0 | E30: 59500 | F30: =8500+10000 -> 18500 | H30: =5000 -> 5000 | J30: 10000 | L30: 500 | M30: 900 | N30: 9000 | Q30: =SUM(F30:P30) -> 43900 | R30: 5000 | S30: 100 | T30: 9500 | U30: 500 | V30: 500 | AA30: 15600 | AG30: 0 | AI30: 0 | AO30: =15000-15000 -> 0 | AP30: 0 | AR30: 0 | AU30: 0 | AV30: 0 | AW30: 0 | AX30: 0 | AY30: 0 | AZ30: 0 | BA30: 0 | BB30: 0 | BC30: 0 | BD30: 0 | BE30: 0 | BF30: 0 | BG30: 0 | BH30: 0 | BK30: 0
A31: 442 | B31: Ammortamenti | C31: ='Resoconti COIN'!H131 -> 822589 | E31: 822589 | F31: ='Resoconti COIN'!H109-SUM(AB31:AC31,AH31) -> 681818 | G31: ='Resoconti COIN'!H110 -> 4500 | H31: ='Resoconti COIN'!H111 -> 6000 | I31: ='Resoconti COIN'!H112 -> 8000 | J31: ='Resoconti COIN'!H113 -> 86417 | K31: ='Resoconti COIN'!H114 -> 0 | L31: ='Resoconti COIN'!H115 -> 3300 | M31: ='Resoconti COIN'!H116 -> 1100 | N31: ='Resoconti COIN'!H117 -> 3800 | O31: ='Resoconti COIN'!H118 -> 0 | P31: ='Resoconti COIN'!H119 -> 1200 | Q31: 796135 | R31: ='Resoconti COIN'!H122 -> 15208 | S31: ='Resoconti COIN'!H123 -> 2121 | T31: ='Resoconti COIN'!H124 -> 8750 | U31: ='Resoconti COIN'!H125 -> 375 | X31: ='Resoconti COIN'!H126 -> 0 | Y31: ='Resoconti COIN'!H127 -> 0 | Z31: ='Resoconti COIN'!H128 -> 0 | AA31: 26454 | BK31: =IF(ABS(E31-Q31-AA31-AP31-AR31-AU31-BF31-BH31)<0.0001,0,E31-Q31-AA31-AP31-AR31-AU31-BF31-BH31) -> 0
A32: 443 | B32: Canoni locaz. x immob < limite di attivaz - tralasciato per SOMED | E32: 0 | Q32: 0 | BK32: 0
A33: 444 | B33: Canoni locaz. x immob. =o> limite di attivaz - tralasciato per SOMED | C33: 1000 | D33: =-C33 -> -1000 | E33: 0 | Q33: 0 | BK33: 0
A34: 448 | B34: Interessi calcolatori sull'attivo fisso | C34: ='Resoconti COIN'!K131 -> 580097 | E34: 580097 | F34: ='Resoconti COIN'!K109-SUM(AB34:AC34,AH34) -> 566100 | G34: ='Resoconti COIN'!K110 -> 1665 | H34: ='Resoconti COIN'!K111 -> 2220 | I34: ='Resoconti COIN'!K112 -> 740 | J34: ='Resoconti COIN'!K113 -> 3083 | K34: ='Resoconti COIN'!K114 -> 0 | L34: ='Resoconti COIN'!K115 -> 611 | M34: ='Resoconti COIN'!K116 -> 102 | N34: ='Resoconti COIN'!K117 -> 703 | O34: ='Resoconti COIN'!K118 -> 0 | P34: ='Resoconti COIN'!K119 -> 222 | Q34: 575446 | R34: ='Resoconti COIN'!K122 -> 2652 | S34: ='Resoconti COIN'!K123 -> 1295 | T34: ='Resoconti COIN'!K124 -> 648 | U34: ='Resoconti COIN'!K125 -> 56 | X34: ='Resoconti COIN'!K126 -> 0 | Y34: ='Resoconti COIN'!K127 -> 0 | Z34: ='Resoconti COIN'!K128 -> 0 | AA34: 4651 | BK34: =IF(ABS(E34-Q34-AA34-AP34-AR34-AU34-BF34-BH34)<0.0001,0,E34-Q34-AA34-AP34-AR34-AU34-BF34-BH34) -> 0
A35: 45 | B35: Costi per energia e acqua | C35: 116300 | D35: 0 | E35: 116300 | G35: 115000 | N35: 1300 | Q35: 116300 | AA35: =SUM(R35:Z35) -> 0 | AG35: 0 | AI35: 0 | AP35: =SUM(AB35:AO35) -> 0 | AR35: =SUM(AQ35) -> 0 | AU35: =SUM(AS35:AT35) -> 0 | AV35: 0 | AW35: 0 | AX35: 0 | AY35: 0 | AZ35: 0 | BA35: 0 | BB35: 0 | BC35: 0 | BD35: 0 | BE35: 0 | BF35: 0 | BG35: 0 | BH35: 0 | BK35: 0
A36: 46 | B36: Oneri finanziari | C36: 551111.92 | D36: -549246.92 | E36: 1865 | J36: 1865 | Q36: 1865 | AA36: =SUM(R36:Z36) -> 0 | AG36: 0 | AI36: 0 | AP36: =SUM(AB36:AO36) -> 0 | AR36: =SUM(AQ36) -> 0 | AU36: =SUM(AS36:AT36) -> 0 | AV36: 0 | AW36: 0 | AX36: 0 | AY36: 0 | AZ36: 0 | BA36: 0 | BB36: 0 | BC36: 0 | BD36: 0 | BE36: 0 | BF36: 0 | BG36: 0 | BH36: 0 | BK36: 0
A37: 47 | B37: Costi amministrativi e di informatica | C37: 66500 | D37: 0 | E37: 66500 | J37: =65000+500 -> 65500 | Q37: 65500 | T37: 500 | U37: 250 | V37: 250 | AA37: =SUM(R37:Z37) -> 1000 | AG37: 0 | AI37: 0 | AO37: =500-500 -> 0 | AP37: =SUM(AB37:AO37) -> 0 | AR37: =SUM(AQ37) -> 0 | AU37: =SUM(AS37:AT37) -> 0 | AV37: 0 | AW37: 0 | AX37: 0 | AY37: 0 | AZ37: 0 | BA37: 0 | BB37: 0 | BC37: 0 | BD37: 0 | BE37: 0 | BF37: 0 | BG37: 0 | BH37: 0 | BK37: 0
A38: 48 | B38: Altri costi relativi ai residenti | C38: 10100 | D38: 0 | E38: 10100 | J38: =1500+600 -> 2100 | Q38: 2100 | R38: =5900+600 -> 6500 | S38: 1500 | AA38: =SUM(R38:Z38) -> 8000 | AG38: 0 | AI38: 0 | AO38: =1200-1200 -> 0 | AP38: =SUM(AB38:AO38) -> 0 | AR38: =SUM(AQ38) -> 0 | AU38: =SUM(AS38:AT38) -> 0 | AV38: 0 | AW38: 0 | AX38: 0 | AY38: 0 | AZ38: 0 | BA38: 0 | BB38: 0 | BC38: 0 | BD38: 0 | BE38: 0 | BF38: 0 | BG38: 0 | BH38: 0 | BK38: 0
A39: 49 | B39: Altri costi non relativi ai residenti | C39: 52500 | D39: 0 | E39: 52500 | F39: 20000 | J39: =10000+10000 -> 20000 | L39: 500 | N39: 1500 | Q39: 42000 | S39: 4500 | T39: =500+5000 -> 5500 | U39: 300 | V39: 200 | AA39: =SUM(R39:Z39) -> 10500 | AG39: 0 | AI39: 0 | AO39: =15000-15000 -> 0 | AP39: =SUM(AB39:AO39) -> 0 | AR39: =SUM(AQ39) -> 0 | AU39: =SUM(AS39:AT39) -> 0 | AV39: 0 | AW39: 0 | AX39: 0 | AY39: 0 | AZ39: 0 | BA39: 0 | BB39: 0 | BC39: 0 | BD39: 0 | BE39: 0 | BF39: 0 | BG39: 0 | BH39: 0 | BK39: 0
B40: Costi lordi prima delle ripartizioni | C40: =SUM(C9:C39) -> 10194547.92 | D40: =SUM(D9:D39) -> -561983.604 | E40: 9632564.316 | F40: 1377418 | G40: 124165 | H40: 111379.4746 | I40: 16740 | J40: =SUM(J9:J39) -> 577392.0868 | K40: 74635.14611 | L40: 381309.705 | M40: 377703.4057 | N40: 1067965.286 | O40: 0 | P40: 23719.29929 | Q40: 4132427.404 | R40: 56360 | S40: 277344.4217 | T40: 3334202.572 | U40: 33124.24823 | V40: 57802.71178 | W40: 49189.19717 | X40: 24694.59859 | Y40: 60000 | Z40: 75000 | AA40: 3967717.749 | AB40: 1532419.163 | AD40: 0 | AE40: 0 | AF40: 0 | AG40: 0 | AH40: 0 | AI40: =SUM(AI9:AI39) -> 0 | AJ40: 0 | AK40: 0 | AL40: 0 | AM40: 0 | AN40: 0 | AO40: 0 | AP40: 1532419.163 | AQ40: 0 | AR40: 0 | AS40: 0 | AT40: 0 | AU40: 0 | AV40: 0 | AW40: 0 | AX40: 0 | AY40: 0 | AZ40: 0 | BA40: 0 | BB40: 0 | BC40: 0 | BD40: 0 | BE40: 0 | BF40: 0 | BG40: 0 | BH40: 0 | BK40: 0
A41: Riduzione dei costi, ricavi accessori compresi
A42: 65 | B42: Altri ricavi da prestazioni ai residenti | C42: -23360 | D42: 5000 | E42: =C42+D42 -> -18360 | I42: -5000 | J42: -8000 | L42: -300 | N42: -250 | P42: -10 | Q42: =SUM(F42:P42) -> -13560 | R42: -800 | S42: -4000 | T42: 0 | U42: 0 | V42: 0 | W42: 0 | X42: 0 | Y42: 0 | Z42: 0 | AA42: =SUM(R42:Z42) -> -4800 | AG42: 0 | AI42: 0 | AP42: =SUM(AB42:AO42) -> 0 | AR42: =SUM(AQ42) -> 0 | AU42: =SUM(AS42:AT42) -> 0 | AV42: 0 | AW42: 0 | AX42: 0 | AY42: 0 | AZ42: 0 | BA42: 0 | BB42: 0 | BC42: 0 | BD42: 0 | BE42: 0 | BF42: =SUM(AV42:BE42) -> 0 | BG42: 0 | BH42: =SUM(BG42) -> 0 | BK42: =IF(ABS(E42-Q42-AA42-AP42-AR42-AU42-BF42-BH42)<0.0001,0,E42-Q42-AA42-AP42-AR42-AU42-BF42-BH42) -> 0
A43: 66 | B43: Ricavi finanziari - tralasciato per SOMED | BK43: =IF(ABS(E43-Q43-AA43-AP43-AR43-AU43-BF43-BH43)<0.0001,0,E43-Q43-AA43-AP43-AR43-AU43-BF43-BH43) -> 0
A44: 68 | B44: Ricavi da prestazioni fornite al personale e a terzi | C44: -28550 | D44: 28000 | E44: =C44+D44 -> -550 | J44: -100 | L44: -150 | N44: -300 | Q44: =SUM(F44:P44) -> -550 | AA44: =SUM(R44:Z44) -> 0 | AG44: 0 | AI44: 0 | AP44: =SUM(AB44:AO44) -> 0 | AR44: =SUM(AQ44) -> 0 | AU44: =SUM(AS44:AT44) -> 0 | AV44: 0 | AW44: 0 | AX44: 0 | AY44: 0 | AZ44: 0 | BA44: 0 | BB44: 0 | BC44: 0 | BD44: 0 | BE44: 0 | BF44: =SUM(AV44:BE44) -> 0 | BG44: 0 | BH44: =SUM(BG44) -> 0 | BK44: =IF(ABS(E44-Q44-AA44-AP44-AR44-AU44-BF44-BH44)<0.0001,0,E44-Q44-AA44-AP44-AR44-AU44-BF44-BH44) -> 0
A45: EX 7 | B45: Riduzione costi dei CdC generali imputati su CdC non SOMED | E45: =Q45 -> -65390.48841 | F45: =-(SUM('Contabilità per CDC - UACD'!AG48,'Contabilità per CDC - UACD'!AI48,'Contabilità per CDC - UACD'!AV48:BE48,'Contabilità per CDC - UACD'!BG48)) -> -3545.751634 | G45: =-(SUM('Contabilità per CDC - UACD'!AG49,'Contabilità per CDC - UACD'!AI49,'Contabilità per CDC - UACD'!AV49:BE49,'Contabilità per CDC - UACD'!BG49)) -> -4255.155797 | H45: =-(SUM('Contabilità per CDC - UACD'!AG50,'Contabilità per CDC - UACD'!AI50,'Contabilità per CDC - UACD'!AV50:BE50,'Contabilità per CDC - UACD'!BG50)) -> -3495.573438 | I45: =-(SUM('Contabilità per CDC - UACD'!AG51,'Contabilità per CDC - UACD'!AI51,'Contabilità per CDC - UACD'!AV51:BE51,'Contabilità per CDC - UACD'!BG51)) -> 0 | J45: =-(SUM('Contabilità per CDC - UACD'!AG52,'Contabilità per CDC - UACD'!AI52,'Contabilità per CDC - UACD'!AV52:BE52,'Contabilità per CDC - UACD'!BG52)) -> 0 | K45: =-(SUM('Contabilità per CDC - UACD'!AG53,'Contabilità per CDC - UACD'!AI53,'Contabilità per CDC - UACD'!AV53:BE53,'Contabilità per CDC - UACD'!BG53)) -> 0 | L45: =-(SUM('Contabilità per CDC - UACD'!AG54,'Contabilità per CDC - UACD'!AI54,'Contabilità per CDC - UACD'!AV54:BE54,'Contabilità per CDC - UACD'!BG54)) -> 0 | M45: =-(SUM('Contabilità per CDC - UACD'!AG55,'Contabilità per CDC - UACD'!AI55,'Contabilità per CDC - UACD'!AV55:BE55,'Contabilità per CDC - UACD'!BG55)) -> -13119.05389 | N45: =-(SUM('Contabilità per CDC - UACD'!AG56,'Contabilità per CDC - UACD'!AI56,'Contabilità per CDC - UACD'!AV56:BE56,'Contabilità per CDC - UACD'!BG56)) -> -40974.95365 | O45: =-(SUM('Contabilità per CDC - UACD'!AG57,'Contabilità per CDC - UACD'!AI57,'Contabilità per CDC - UACD'!AV57:BE57,'Contabilità per CDC - UACD'!BG57)) -> 0 | P45: =-(SUM('Contabilità per CDC - UACD'!AG58,'Contabilità per CDC - UACD'!AI58,'Contabilità per CDC - UACD'!AV58:BE58,'Contabilità per CDC - UACD'!BG58)) -> 0 | Q45: =SUM(F45:P45) -> -65390.48841 | BK45: =IF(ABS(E45-Q45-AA45-AP45-AR45-AU45-BF45-BH45)<0.0001,0,E45-Q45-AA45-AP45-AR45-AU45-BF45-BH45) -> 0
B46: Costi netti prima delle ripartizioni | C46: =SUM(C40:C45) -> 10142637.92 | D46: -528983.604 | E46: 9548263.828 | F46: 1373872.248 | G46: 119909.8442 | H46: 107883.9012 | I46: 11740 | J46: 569292.0868 | K46: 74635.14611 | L46: 380859.705 | M46: 364584.3518 | N46: 1026440.332 | O46: 0 | P46: 23709.29929 | Q46: =SUM(Q40:Q45) -> 4052926.915 | R46: 55560 | S46: 273344.4217 | T46: 3334202.572 | U46: 33124.24823 | V46: 57802.71178 | W46: 49189.19717 | X46: 24694.59859 | Y46: 60000 | Z46: =SUM(Z40:Z45) -> 75000 | AA46: 3962917.749 | AB46: 1532419.163 | AD46: 0 | AE46: 0 | AF46: 0 | AG46: 0 | AH46: 0 | AI46: 0 | AJ46: 0 | AK46: 0 | AL46: 0 | AM46: 0 | AN46: 0 | AO46: 0 | AP46: 1532419.163 | AQ46: 0 | AR46: 0 | AS46: 0 | AT46: 0 | AU46: 0 | AV46: 0 | AW46: 0 | AX46: 0 | AY46: 0 | AZ46: 0 | BA46: 0 | BB46: 0 | BC46: 0 | BD46: 0 | BE46: 0 | BF46: 0 | BG46: 0 | BH46: 0 | BK46: =IF(ABS(E46-Q46-AA46-AP46-AR46-AU46-BF46-BH46)<0.0001,0,E46-Q46-AA46-AP46-AR46-AU46-BF46-BH46) -> 0
A47: Ripartizioni costi sui CdC | C47: Unità | D47: Totale | E47: Prezzo/unità
A48: RIP010 | B48: Ripartizione Edifici | C48: =Ripartizioni!C32 -> m2 | D48: =Ripartizioni!E76 -> 4440 | E48: =Ripartizioni!E91 -> 309.4306866 | F48: =-SUM(F46,F49:F58) -> -1373872.248 | G48: =Ripartizioni!$E91*Ripartizioni!G76 -> 23207.30149 | H48: =Ripartizioni!$E91*Ripartizioni!H76 -> 15471.53433 | I48: =Ripartizioni!$E91*Ripartizioni!I76 -> 0 | J48: =Ripartizioni!$E91*Ripartizioni!J76 -> 30943.06866 | K48: =Ripartizioni!$E91*Ripartizioni!K76 -> 24754.45493 | L48: =Ripartizioni!$E91*Ripartizioni!L76 -> 30943.06866 | M48: =Ripartizioni!$E91*Ripartizioni!M76 -> 13924.3809 | N48: =Ripartizioni!$E91*Ripartizioni!N76 -> 99017.8197 | O48: =Ripartizioni!$E91*Ripartizioni!O76 -> 0 | P48: =Ripartizioni!$E91*Ripartizioni!P76 -> 0 | Q48: =SUM(F48:P48) -> -1135610.62 | R48: =Ripartizioni!$E91*Ripartizioni!Q76 -> 773576.7164 | S48: =Ripartizioni!$E91*Ripartizioni!R76 -> 37131.68239 | T48: =Ripartizioni!$E91*Ripartizioni!S76 -> 30943.06866 | U48: =Ripartizioni!$E91*Ripartizioni!T76 -> 13150.80418 | V48: =Ripartizioni!$E91*Ripartizioni!U76 -> 14697.95761 | W48: =Ripartizioni!$E91*Ripartizioni!V76 -> 0 | X48: =Ripartizioni!$E91*Ripartizioni!W76 -> 0 | Y48: =Ripartizioni!$E91*Ripartizioni!X76 -> 0 | Z48: =Ripartizioni!$E91*Ripartizioni!Y76 -> 3094.306866 | AA48: =SUM(R48:Z48) -> 872594.5361 | AB48: =Ripartizioni!$E91*Ripartizioni!Z76 -> 263016.0836 | AH48: =Ripartizioni!$E91*Ripartizioni!AF76 -> 0 | AP48: =SUM(AB48:AO48) -> 263016.0836 | BK48: =IF(ABS(Q48+AA48+AP48+AR48+AU48+BF48+BH48)<0.0001,0,Q48+AA48+AP48+AR48+AU48+BF48+BH48) -> 0
A49: RIP011 | B49: Ripartizione Energia | C49: =Ripartizioni!C33 -> m2 | D49: =Ripartizioni!E77 -> 4365 | E49: =Ripartizioni!E92 -> 35.07299105 | F49: =Ripartizioni!$E92*Ripartizioni!F77 -> 0 | G49: =-SUM(G46,G48,G50:G58) -> -153093.6059 | H49: =Ripartizioni!$E92*Ripartizioni!H77 -> 1753.649552 | I49: =Ripartizioni!$E92*Ripartizioni!I77 -> 0 | J49: =Ripartizioni!$E92*Ripartizioni!J77 -> 3507.299105 | K49: =Ripartizioni!$E92*Ripartizioni!K77 -> 2805.839284 | L49: =Ripartizioni!$E92*Ripartizioni!L77 -> 3507.299105 | M49: =Ripartizioni!$E92*Ripartizioni!M77 -> 1578.284597 | N49: =Ripartizioni!$E92*Ripartizioni!N77 -> 11223.35714 | O49: =Ripartizioni!$E92*Ripartizioni!O77 -> 0 | P49: =Ripartizioni!$E92*Ripartizioni!P77 -> 0 | Q49: -128717.8772 | R49: =Ripartizioni!$E92*Ripartizioni!Q77 -> 87682.47762 | S49: =Ripartizioni!$E92*Ripartizioni!R77 -> 4208.758926 | T49: =Ripartizioni!$E92*Ripartizioni!S77 -> 3507.299105 | U49: =Ripartizioni!$E92*Ripartizioni!T77 -> 1490.60212 | V49: =Ripartizioni!$E92*Ripartizioni!U77 -> 1665.967075 | W49: =Ripartizioni!$E92*Ripartizioni!V77 -> 0 | X49: =Ripartizioni!$E92*Ripartizioni!W77 -> 0 | Y49: =Ripartizioni!$E92*Ripartizioni!X77 -> 0 | Z49: =Ripartizioni!$E92*Ripartizioni!Y77 -> 350.7299105 | AA49: 98905.83476 | AB49: =Ripartizioni!$E92*Ripartizioni!Z77 -> 29812.04239 | AH49: =Ripartizioni!$E92*Ripartizioni!AF77 -> 0 | AP49: 29812.04239 | BK49: =IF(ABS(Q49+AA49+AP49+AR49+AU49+BF49+BH49)<0.0001,0,Q49+AA49+AP49+AR49+AU49+BF49+BH49) -> 0
A50: RIP020 | B50: Ripartizione Servizi tecnici | C50: =Ripartizioni!C34 -> m2 | D50: =Ripartizioni!E78 -> 4390 | E50: =Ripartizioni!E93 -> 32.65107883 | F50: =Ripartizioni!$E93*Ripartizioni!F78 -> 0 | G50: =Ripartizioni!$E93*Ripartizioni!G78 -> 2448.830912 | H50: =-SUM(H46,H48:H49,H51:H58) -> -143338.2361 | I50: =Ripartizioni!$E93*Ripartizioni!I78 -> 0 | J50: =Ripartizioni!$E93*Ripartizioni!J78 -> 3265.107883 | K50: =Ripartizioni!$E93*Ripartizioni!K78 -> 2612.086306 | L50: =Ripartizioni!$E93*Ripartizioni!L78 -> 3265.107883 | M50: =Ripartizioni!$E93*Ripartizioni!M78 -> 1469.298547 | N50: =Ripartizioni!$E93*Ripartizioni!N78 -> 10448.34522 | O50: =Ripartizioni!$E93*Ripartizioni!O78 -> 0 | P50: =Ripartizioni!$E93*Ripartizioni!P78 -> 0 | Q50: -119829.4593 | R50: =Ripartizioni!$E93*Ripartizioni!Q78 -> 81627.69707 | S50: =Ripartizioni!$E93*Ripartizioni!R78 -> 3918.129459 | T50: =Ripartizioni!$E93*Ripartizioni!S78 -> 3265.107883 | U50: =Ripartizioni!$E93*Ripartizioni!T78 -> 1387.67085 | V50: =Ripartizioni!$E93*Ripartizioni!U78 -> 1550.926244 | W50: =Ripartizioni!$E93*Ripartizioni!V78 -> 0 | X50: =Ripartizioni!$E93*Ripartizioni!W78 -> 0 | Y50: =Ripartizioni!$E93*Ripartizioni!X78 -> 0 | Z50: =Ripartizioni!$E93*Ripartizioni!Y78 -> 326.5107883 | AA50: 92076.04229 | AB50: =Ripartizioni!$E93*Ripartizioni!Z78 -> 27753.417 | AH50: =Ripartizioni!$E93*Ripartizioni!AF78 -> 0 | AP50: 27753.417 | BK50: 0
A51: RIP021 | B51: Ripartizione Servizio trasporti | C51: =Ripartizioni!C35 -> km (sistematico) | D51: =Ripartizioni!E79 -> 1900 | E51: =Ripartizioni!E94 -> 6.178947368 | F51: =Ripartizioni!$E94*Ripartizioni!F79 -> 0 | G51: =Ripartizioni!$E94*Ripartizioni!G79 -> 0 | H51: =Ripartizioni!$E94*Ripartizioni!H79 -> 617.8947368 | I51: =-SUM(I46,I48:I50,I52:I58) -> -11740 | J51: =Ripartizioni!$E94*Ripartizioni!J79 -> 6796.842105 | K51: =Ripartizioni!$E94*Ripartizioni!K79 -> 0 | L51: =Ripartizioni!$E94*Ripartizioni!L79 -> 0 | M51: =Ripartizioni!$E94*Ripartizioni!M79 -> 0 | N51: =Ripartizioni!$E94*Ripartizioni!N79 -> 308.9473684 | O51: =Ripartizioni!$E94*Ripartizioni!O79 -> 0 | P51: =Ripartizioni!$E94*Ripartizioni!P79 -> 0 | Q51: -4016.315789 | R51: =Ripartizioni!$E94*Ripartizioni!Q79 -> 0 | S51: =Ripartizioni!$E94*Ripartizioni!R79 -> 926.8421053 | T51: =Ripartizioni!$E94*Ripartizioni!S79 -> 3089.473684 | U51: =Ripartizioni!$E94*Ripartizioni!T79 -> 0 | V51: =Ripartizioni!$E94*Ripartizioni!U79 -> 0 | W51: =Ripartizioni!$E94*Ripartizioni!V79 -> 0 | X51: =Ripartizioni!$E94*Ripartizioni!W79 -> 0 | Y51: =Ripartizioni!$E94*Ripartizioni!X79 -> 0 | Z51: =Ripartizioni!$E94*Ripartizioni!Y79 -> 0 | AA51: 4016.315789 | AB51: =Ripartizioni!$E94*Ripartizioni!Z79 -> 0 | AH51: =Ripartizioni!$E94*Ripartizioni!AF79 -> 0 | AP51: 0 | BK51: 0
A52: RIP030 | B52: Ripartizione Direzione / Amministrazione | C52: =Ripartizioni!C36 -> % retribuzione | D52: =Ripartizioni!E80 -> 0.9481884998 | E52: =Ripartizioni!E95 -> 664627.1618 | F52: =Ripartizioni!$E95*Ripartizioni!F80 -> 0 | G52: =Ripartizioni!$E95*Ripartizioni!G80 -> 0 | H52: =Ripartizioni!$E95*Ripartizioni!H80 -> 8735.264038 | I52: =Ripartizioni!$E95*Ripartizioni!I80 -> 0 | J52: =-SUM(J46,J48:J51,J53:J58) -> -630191.8315 | K52: =Ripartizioni!$E95*Ripartizioni!K80 -> 6321.572659 | L52: =Ripartizioni!$E95*Ripartizioni!L80 -> 32469.89593 | M52: =Ripartizioni!$E95*Ripartizioni!M80 -> 31320.51908 | N52: =Ripartizioni!$E95*Ripartizioni!N80 -> 71376.3022 | O52: =Ripartizioni!$E95*Ripartizioni!O80 -> 0 | P52: =Ripartizioni!$E95*Ripartizioni!P80 -> 1149.376847 | Q52: -478818.9007 | R52: =Ripartizioni!$E95*Ripartizioni!Q80 -> 0 | S52: =Ripartizioni!$E95*Ripartizioni!R80 -> 24929.98381 | T52: =Ripartizioni!$E95*Ripartizioni!S80 -> 298090.8853 | U52: =Ripartizioni!$E95*Ripartizioni!T80 -> 2873.442118 | V52: =Ripartizioni!$E95*Ripartizioni!U80 -> 5229.664654 | W52: =Ripartizioni!$E95*Ripartizioni!V80 -> 4597.507388 | X52: =Ripartizioni!$E95*Ripartizioni!W80 -> 2298.753694 | Y52: =Ripartizioni!$E95*Ripartizioni!X80 -> 0 | Z52: =Ripartizioni!$E95*Ripartizioni!Y80 -> 0 | AA52: 338020.237 | AB52: =Ripartizioni!$E95*Ripartizioni!Z80 -> 140798.6638 | AH52: =Ripartizioni!$E95*Ripartizioni!AF80 -> 0 | AP52: 140798.6638 | BK52: =IF(ABS(Q52+AA52+AP52+AR52+AU52+BF52+BH52)<0.0001,0,Q52+AA52+AP52+AR52+AU52+BF52+BH52) -> 0
A53: RIP040 | B53: Ripartizione Economia domestica in generale | C53: =Ripartizioni!C37 -> % retribuzione | D53: =Ripartizioni!E81 -> 0.990488543 | E53: =Ripartizioni!E96 -> 122571.0086 | F53: =Ripartizioni!$E96*Ripartizioni!F81 -> 0 | G53: =Ripartizioni!$E96*Ripartizioni!G81 -> 0 | H53: =Ripartizioni!$E96*Ripartizioni!H81 -> 1610.963537 | I53: =Ripartizioni!$E96*Ripartizioni!I81 -> 0 | J53: =Ripartizioni!$E96*Ripartizioni!J81 -> 6350.587837 | K53: =-SUM(K46,K48:K52,K54:K58) -> -121405.1797 | L53: =Ripartizioni!$E96*Ripartizioni!L81 -> 5988.121041 | M53: =Ripartizioni!$E96*Ripartizioni!M81 -> 5776.152154 | N53: =Ripartizioni!$E96*Ripartizioni!N81 -> 13163.26785 | O53: =Ripartizioni!$E96*Ripartizioni!O81 -> 0 | P53: =Ripartizioni!$E96*Ripartizioni!P81 -> 211.9688864 | Q53: -88304.11839 | R53: =Ripartizioni!$E96*Ripartizioni!Q81 -> 0 | S53: =Ripartizioni!$E96*Ripartizioni!R81 -> 4597.605146 | T53: =Ripartizioni!$E96*Ripartizioni!S81 -> 54974.13069 | U53: =Ripartizioni!$E96*Ripartizioni!T81 -> 529.922216 | V53: =Ripartizioni!$E96*Ripartizioni!U81 -> 964.4584331 | W53: =Ripartizioni!$E96*Ripartizioni!V81 -> 847.8755456 | X53: =Ripartizioni!$E96*Ripartizioni!W81 -> 423.9377728 | Y53: =Ripartizioni!$E96*Ripartizioni!X81 -> 0 | Z53: =Ripartizioni!$E96*Ripartizioni!Y81 -> 0 | AA53: 62337.9298 | AB53: =Ripartizioni!$E96*Ripartizioni!Z81 -> 25966.18858 | AH53: =Ripartizioni!$E96*Ripartizioni!AF81 -> 0 | AP53: 25966.18858 | BK53: 0
A54: RIP041 | B54: Ripartizione Lavanderia | C54: =Ripartizioni!C38 -> kg (sistematico) | D54: =Ripartizioni!E82 -> 41580 | E54: =Ripartizioni!E97 -> 11.23304562 | F54: =Ripartizioni!$E97*Ripartizioni!F82 -> 0 | G54: =Ripartizioni!$E97*Ripartizioni!G82 -> 0 | H54: =Ripartizioni!$E97*Ripartizioni!H82 -> 2246.609123 | I54: =Ripartizioni!$E97*Ripartizioni!I82 -> 0 | J54: =Ripartizioni!$E97*Ripartizioni!J82 -> 0 | K54: =Ripartizioni!$E97*Ripartizioni!K82 -> 2246.609123 | L54: =-SUM(L46,L48:L53,L55:L58) -> -467070.0367 | M54: =Ripartizioni!$E97*Ripartizioni!M82 -> 22466.09123 | N54: =Ripartizioni!$E97*Ripartizioni!N82 -> 13479.65474 | O54: =Ripartizioni!$E97*Ripartizioni!O82 -> 0 | P54: =Ripartizioni!$E97*Ripartizioni!P82 -> 0 | Q54: -426631.0725 | R54: =Ripartizioni!$E97*Ripartizioni!Q82 -> 292059.186 | S54: =Ripartizioni!$E97*Ripartizioni!R82 -> 2246.609123 | T54: =Ripartizioni!$E97*Ripartizioni!S82 -> 33699.13685 | U54: =Ripartizioni!$E97*Ripartizioni!T82 -> 954.8088774 | V54: =Ripartizioni!$E97*Ripartizioni!U82 -> 1067.139334 | W54: =Ripartizioni!$E97*Ripartizioni!V82 -> 0 | X54: =Ripartizioni!$E97*Ripartizioni!W82 -> 0 | Y54: =Ripartizioni!$E97*Ripartizioni!X82 -> 0 | Z54: =Ripartizioni!$E97*Ripartizioni!Y82 -> 0 | AA54: 330026.8802 | AB54: =Ripartizioni!$E97*Ripartizioni!Z82 -> 96604.1923 | AH54: =Ripartizioni!$E97*Ripartizioni!AF82 -> 0 | AP54: 96604.1923 | BK54: 0
A55: RIP042 | B55: Ripartizione Pulizie | C55: =Ripartizioni!C39 -> m2 | D55: =Ripartizioni!E83 -> 4395 | E55: =Ripartizioni!E98 -> 100.368391 | F55: =Ripartizioni!$E98*Ripartizioni!F83 -> 0 | G55: =Ripartizioni!$E98*Ripartizioni!G83 -> 7527.629323 | H55: =Ripartizioni!$E98*Ripartizioni!H83 -> 5018.419549 | I55: =Ripartizioni!$E98*Ripartizioni!I83 -> 0 | J55: =Ripartizioni!$E98*Ripartizioni!J83 -> 10036.8391 | K55: =Ripartizioni!$E98*Ripartizioni!K83 -> 8029.471278 | L55: =Ripartizioni!$E98*Ripartizioni!L83 -> 10036.8391 | M55: =-SUM(M46,M48:M54,M56:M58) -> -441119.0783 | N55: =Ripartizioni!$E98*Ripartizioni!N83 -> 32117.88511 | O55: =Ripartizioni!$E98*Ripartizioni!O83 -> 0 | P55: =Ripartizioni!$E98*Ripartizioni!P83 -> 0 | Q55: -368351.9949 | R55: =Ripartizioni!$E98*Ripartizioni!Q83 -> 250920.9774 | S55: =Ripartizioni!$E98*Ripartizioni!R83 -> 12044.20692 | T55: =Ripartizioni!$E98*Ripartizioni!S83 -> 10036.8391 | U55: =Ripartizioni!$E98*Ripartizioni!T83 -> 4265.656617 | V55: =Ripartizioni!$E98*Ripartizioni!U83 -> 4767.498571 | W55: =Ripartizioni!$E98*Ripartizioni!V83 -> 0 | X55: =Ripartizioni!$E98*Ripartizioni!W83 -> 0 | Y55: =Ripartizioni!$E98*Ripartizioni!X83 -> 0 | Z55: =Ripartizioni!$E98*Ripartizioni!Y83 -> 1003.68391 | AA55: 283038.8626 | AB55: =Ripartizioni!$E98*Ripartizioni!Z83 -> 85313.13233 | AH55: =Ripartizioni!$E98*Ripartizioni!AF83 -> 0 | AP55: 85313.13233 | BK55: 0
A56: RIP060 | B56: Ripartizione Cucina | C56: =Ripartizioni!C40 -> Numero di pasti | D56: =Ripartizioni!E84 -> 74400 | E56: =Ripartizioni!E99 -> 17.17171924 | F56: =Ripartizioni!$E99*Ripartizioni!F84 -> 0 | G56: =Ripartizioni!$E99*Ripartizioni!G84 -> 0 | H56: =Ripartizioni!$E99*Ripartizioni!H84 -> 0 | I56: =Ripartizioni!$E99*Ripartizioni!I84 -> 0 | J56: =Ripartizioni!$E99*Ripartizioni!J84 -> 0 | K56: =Ripartizioni!$E99*Ripartizioni!K84 -> 0 | L56: =Ripartizioni!$E99*Ripartizioni!L84 -> 0 | M56: =Ripartizioni!$E99*Ripartizioni!M84 -> 0 | N56: =-SUM(N46,N48:N55,N57:N58) -> -1277575.912 | O56: =Ripartizioni!$E99*Ripartizioni!O84 -> 0 | P56: =Ripartizioni!$E99*Ripartizioni!P84 -> 0 | Q56: -1277575.912 | R56: =Ripartizioni!$E99*Ripartizioni!Q84 -> 1107575.891 | S56: =Ripartizioni!$E99*Ripartizioni!R84 -> 0 | T56: =Ripartizioni!$E99*Ripartizioni!S84 -> 0 | U56: =Ripartizioni!$E99*Ripartizioni!T84 -> 0 | V56: =Ripartizioni!$E99*Ripartizioni!U84 -> 0 | W56: =Ripartizioni!$E99*Ripartizioni!V84 -> 0 | X56: =Ripartizioni!$E99*Ripartizioni!W84 -> 0 | Y56: =Ripartizioni!$E99*Ripartizioni!X84 -> 0 | Z56: =Ripartizioni!$E99*Ripartizioni!Y84 -> 0 | AA56: 1107575.891 | AB56: =Ripartizioni!$E99*Ripartizioni!Z84 -> 170000.0205 | AH56: =Ripartizioni!$E99*Ripartizioni!AF84 -> 0 | AP56: 170000.0205 | BK56: 0
A57: RIP090 | B57: Ripartizione Magazzino centrale | C57: =Ripartizioni!C41 -> Allocazione diretta | D57: =Ripartizioni!E85 -> 0 | E57: =Ripartizioni!E100 -> 0 | F57: =Ripartizioni!$E100*Ripartizioni!F85 -> 0 | G57: =Ripartizioni!$E100*Ripartizioni!G85 -> 0 | H57: =Ripartizioni!$E100*Ripartizioni!H85 -> 0 | I57: =Ripartizioni!$E100*Ripartizioni!I85 -> 0 | J57: =Ripartizioni!$E100*Ripartizioni!J85 -> 0 | K57: =Ripartizioni!$E100*Ripartizioni!K85 -> 0 | L57: =Ripartizioni!$E100*Ripartizioni!L85 -> 0 | M57: =Ripartizioni!$E100*Ripartizioni!M85 -> 0 | N57: =Ripartizioni!$E100*Ripartizioni!N85 -> 0 | O57: =-SUM(O46,O48:O56,O58) -> 0 | P57: =Ripartizioni!$E100*Ripartizioni!P85 -> 0 | Q57: 0 | R57: =Ripartizioni!$E100*Ripartizioni!Q85 -> 0 | S57: =Ripartizioni!$E100*Ripartizioni!R85 -> 0 | T57: =Ripartizioni!$E100*Ripartizioni!S85 -> 0 | U57: =Ripartizioni!$E100*Ripartizioni!T85 -> 0 | V57: =Ripartizioni!$E100*Ripartizioni!U85 -> 0 | W57: =Ripartizioni!$E100*Ripartizioni!V85 -> 0 | X57: =Ripartizioni!$E100*Ripartizioni!W85 -> 0 | Y57: =Ripartizioni!$E100*Ripartizioni!X85 -> 0 | Z57: =Ripartizioni!$E100*Ripartizioni!Y85 -> 0 | AA57: =SUM(R57:Z57) -> 0 | AB57: =Ripartizioni!$E100*Ripartizioni!Z85 -> 0 | AH57: =Ripartizioni!$E100*Ripartizioni!AF85 -> 0 | AP57: =SUM(AB57:AO57) -> 0 | BK57: 0
A58: RIP095 | B58: Ripartizione Farmacia | C58: =Ripartizioni!C42 -> Allocazione diretta | D58: =Ripartizioni!E86 -> 188000 | E58: =Ripartizioni!E101 -> 0.1333544948 | F58: =Ripartizioni!$E101*Ripartizioni!F86 -> 0 | G58: =Ripartizioni!$E101*Ripartizioni!G86 -> 0 | H58: =Ripartizioni!$E101*Ripartizioni!H86 -> 0 | I58: =Ripartizioni!$E101*Ripartizioni!I86 -> 0 | J58: =Ripartizioni!$E101*Ripartizioni!J86 -> 0 | K58: =Ripartizioni!$E101*Ripartizioni!K86 -> 0 | L58: =Ripartizioni!$E101*Ripartizioni!L86 -> 0 | M58: =Ripartizioni!$E101*Ripartizioni!M86 -> 0 | N58: =Ripartizioni!$E101*Ripartizioni!N86 -> 0 | O58: =Ripartizioni!$E101*Ripartizioni!O86 -> 0 | P58: =-SUM(P46,P48:P57) -> -25070.64503 | Q58: -25070.64503 | R58: =Ripartizioni!$E101*Ripartizioni!Q86 -> 0 | S58: =Ripartizioni!$E101*Ripartizioni!R86 -> 0 | T58: =Ripartizioni!$E101*Ripartizioni!S86 -> 0 | U58: =Ripartizioni!$E101*Ripartizioni!T86 -> 0 | V58: =Ripartizioni!$E101*Ripartizioni!U86 -> 0 | W58: =Ripartizioni!$E101*Ripartizioni!V86 -> 0 | X58: =Ripartizioni!$E101*Ripartizioni!W86 -> 0 | Y58: =Ripartizioni!$E101*Ripartizioni!X86 -> 8001.269689 | Z58: =Ripartizioni!$E101*Ripartizioni!Y86 -> 10001.58711 | AA58: =SUM(R58:Z58) -> 18002.8568 | AB58: =Ripartizioni!$E101*Ripartizioni!Z86 -> 7067.788225 | AH58: =Ripartizioni!$E101*Ripartizioni!AF86 -> 0 | AP58: =SUM(AB58:AO58) -> 7067.788225 | BK58: 0
B59: Totale costi dei CdC generali dopo ripartizioni | F59: =-F48 -> 1373872.248 | G59: =-G49 -> 153093.6059 | H59: =-H50 -> 143338.2361 | I59: =-I51 -> 11740 | J59: =-J52 -> 630191.8315 | K59: =-K53 -> 121405.1797 | L59: =-L54 -> 467070.0367 | M59: =-M55 -> 441119.0783 | N59: =-N56 -> 1277575.912 | O59: =-O57 -> 0 | P59: =-P58 -> 25070.64503
B60: Costi NETTI dopo ripartizioni | F60: =SUM(F46:F58) -> 0 | G60: =SUM(G46:G58) -> 1.364242053e-11 | H60: =SUM(H46:H58) -> 4.547473509e-12 | I60: 0 | J60: -1.455191523e-11 | K60: -9.094947018e-13 | L60: 1.818989404e-11 | M60: 0 | N60: 0 | O60: 0 | P60: 0 | Q60: 7.639755495e-11 | R60: 2649002.946 | S60: 363348.2395 | T60: 3771808.513 | U60: 57777.15521 | V60: 87746.32371 | W60: 54634.58011 | X60: 27417.29005 | Y60: 68001.26969 | Z60: 89776.81859 | AA60: 7169513.136 | AB60: =SUM(AB46:AC58) -> 2378750.692 | AD60: =SUM(AD46:AD58) -> 0 | AE60: 0 | AF60: 0 | AG60: =SUM(AG46:AG58) -> 0 | AH60: 0 | AI60: 0 | AJ60: 0 | AK60: 0 | AL60: 0 | AM60: 0 | AN60: 0 | AO60: 0 | AP60: =SUM(AP46:AP58) -> 2378750.692 | AQ60: 0 | AR60: =SUM(AR46:AR58) -> 0 | AS60: =SUM(AS46:AS58) -> 0 | AT60: =SUM(AT46:AT58) -> 0 | AU60: =SUM(AU46:AU58) -> 0 | AV60: 0 | AW60: 0 | AX60: 0 | AY60: =SUM(AY46:AY58) -> 0 | AZ60: =SUM(AZ46:AZ58) -> 0 | BA60: =SUM(BA46:BA58) -> 0 | BB60: =SUM(BB46:BB58) -> 0 | BC60: 0 | BD60: 0 | BE60: 0 | BF60: 0 | BG60: 0 | BH60: 0
A61: Voci di ricavo | C61: COFI Contabilità finanziaria Ricavi | D61: Delimitazioni per SOMED-A | E61: COAN Contabilità analitica per SOMED-A Ricavi
A62: 6000 | B62: Rette - Anziani | C62: -2357500 | D62: 0 | E62: =C62+D62 -> -2357500 | R62: -2100000 | T62: -87500 | AA62: =SUM(R62:Z62) -> -2187500 | AB62: -170000 | AI62: 0 | AP62: =SUM(AB62:AO62) -> -170000 | BK62: =IF(ABS(E62-Q62-AA62-AP62-AR62-AU62-BF62-BH62)<0.0001,0,E62-Q62-AA62-AP62-AR62-AU62-BF62-BH62) -> 0
A63: 6001 | B63: Partecipazioni delle casse malati | C63: -2070000 | D63: 0 | E63: =C63+D63 -> -2070000 | T63: -1550000 | U63: =-20000-20000 -> -40000 | V63: =-30000-30000 -> -60000 | W63: -5000 | X63: 0 | Y63: 0 | Z63: =-25000-90000 -> -115000 | AA63: =SUM(R63:Z63) -> -1770000 | AB63: -300000 | AG63: 0 | AI63: 0 | AP63: =SUM(AB63:AO63) -> -300000 | AR63: =SUM(AQ63) -> 0 | AS63: =-90000+90000 -> 0 | AT63: =-50000+50000 -> 0 | AU63: =SUM(AS63:AT63) -> 0 | BK63: 0
A64: 6002 | B64: Assegni grandi invalidi - Anziani | C64: -315000 | D64: 0 | E64: -315000 | T64: -315000 | AA64: -315000 | AI64: 0 | AP64: 0 | BK64: 0
A65: 6003 | B65: Altri ricavi - Anziani | C65: 0 | D65: 0 | E65: 0 | Z65: 0 | AA65: 0 | AR65: 0 | AU65: 0 | AV65: 0 | AW65: 0 | AX65: 0 | AY65: 0 | AZ65: 0 | BA65: 0 | BB65: 0 | BC65: 0 | BD65: 0 | BE65: 0 | BF65: =SUM(AV65:BE65) -> 0 | BG65: 0 | BH65: =SUM(BG65) -> 0 | BK65: 0
A66: 601 | B66: Altri ricavi - Settore di attività n | C66: 0 | D66: 0 | E66: 0 | AR66: 0 | AU66: 0 | AV66: 0 | AW66: 0 | AX66: 0 | AY66: 0 | AZ66: 0 | BA66: 0 | BB66: 0 | BC66: 0 | BD66: 0 | BE66: 0 | BF66: =SUM(AV66:BE66) -> 0 | BG66: 0 | BH66: =SUM(BG66) -> 0 | BK66: 0
A67: 609 | B67: Diminuzioni ricavi…. (perdite su debitori anni precedenti) tralasciato per SOMED | BK67: 0
A68: 61 | B68: Ricavi da prestazioni mediche singole (secondo TARMED) | C68: 0 | E68: 0 | AP68: 0 | AR68: 0 | AU68: 0 | BK68: 0
A69: 62 | B69: Ricavi da prestazioni diagnostiche e terapeutiche singole (ambulatoriali) | C69: 0 | E69: 0 | AP69: 0 | AR69: 0 | AU69: 0 | BK69: 0
A70: 69 | B70: Contributi e sussidi | C70: -4659018.96 | E70: =C70+D70 -> -4659018.96 | R70: -1134567.33 | T70: =-1500000-65281.88-221562.3 -> -1786844.18 | U70: -20000 | V70: -30000 | W70: -50000 | X70: 0 | Y70: -70000 | AA70: -3091411.51 | AB70: -1567607.45 | AG70: 0 | AI70: 0 | AK70: =-1134567.33+1134567.33 -> 0 | AL70: =-65281.88+65281.88 -> 0 | AO70: =-221562.3+221562.3 -> 0 | AP70: -1567607.45 | BK70: 0
B71: Totale Ricavi | C71: =SUM(C62:C70) -> -9401518.96 | D71: =SUM(D62:D70) -> 0 | E71: =SUM(E62:E70) -> -9401518.96 | R71: =SUM(R62:R70) -> -3234567.33 | S71: =SUM(S62:S70) -> 0 | T71: -3739344.18 | U71: -60000 | V71: -90000 | W71: -55000 | X71: 0 | Y71: -70000 | Z71: -115000 | AA71: =SUM(AA62:AA70) -> -7363911.51 | AB71: -2037607.45 | AD71: 0 | AE71: 0 | AF71: 0 | AG71: 0 | AH71: 0 | AI71: 0 | AJ71: 0 | AK71: 0 | AL71: 0 | AM71: 0 | AN71: 0 | AO71: 0 | AP71: -2037607.45 | AQ71: 0 | AR71: 0 | AS71: =SUM(AS62:AS70) -> 0 | AT71: 0 | AU71: 0 | AV71: 0 | AW71: 0 | AX71: 0 | AY71: 0 | AZ71: 0 | BA71: 0 | BB71: 0 | BC71: 0 | BD71: 0 | BE71: 0 | BF71: 0 | BG71: 0 | BH71: =SUM(BH62:BH70) -> 0 | BK71: 0
B72: Risultato di gestione - ricalcolato per SOMED | C72: =C71+C46 -> 741118.96 | E72: =E71+E46 -> 146744.8676 | R72: =R71+R60 -> -585564.3842 | S72: 363348.2395 | T72: 32464.33284 | U72: -2222.844791 | V72: -2253.676294 | W72: -365.419895 | X72: 27417.29005 | Y72: -1998.730311 | Z72: -25223.18141 | AA72: -194398.3744 | AB72: 341143.2421 | AD72: =AD71+AD60 -> 0 | AE72: 0 | AF72: 0 | AG72: 0 | AH72: =AH71+AH60 -> 0 | AI72: 0 | AJ72: 0 | AK72: 0 | AL72: 0 | AM72: 0 | AN72: 0 | AO72: 0 | AP72: =AP71+AP60 -> 341143.2421 | AQ72: 0 | AR72: 0 | AS72: 0 | AT72: 0 | AU72: 0 | AV72: 0 | AW72: 0 | AX72: 0 | AY72: 0 | AZ72: 0 | BA72: 0 | BB72: 0 | BC72: 0 | BD72: 0 | BE72: 0 | BF72: 0 | BG72: 0 | BH72: 0 | BK72: 0
BK73: Risultato totale
BK74: =AA72+AP72+AR72+AU72+BF72+BH72+BI72 -> 146744.8676
BK75: quando < 0 | BL75: = utile
BK76: quando > 0 | BL76: = perdita

Sheet Contabilità per UFI - SOMED
A2: Contabilità analitica per UFI per S O M E D (in CHF) | H2: =Parametri!$B$7 -> 2021 | I2: =Parametri!$B$3 -> ESEMPIO - CPA STANDARD CON CAT-STT
A5: Ricapitolazione dei conti UACD usati per SOMED | E5: Costi E0 (CdC generali + CDT) | J5: Costi E1 (CdC finali della CPA) | U5: Costi E5 (CAT-STT)
A6: C.to COAN TI | B6: Cto | C6: Decrizione c.to SOMED | E6: Costi totali dei CdC | G6: Costi totali dei CdC generali | J6: C o s t i d e i C d C f i n a l i d e l l a C P A | U6: Costi tot. dei CdC generali
B7: SOMED | E7: generali della CPA | G7: e finali del Centro D. T. | K7: Totale | L7: Servizio | M7: Animazione | N7: Cura non | O7: Cura LAMal | P7: Terapie | Q7: Medico | R7: Medicamenti | S7: Materiale | U7: e finali del rep. CAT-STT
E8: E0 | G8: E0 - 160 | J8: E1 | L8: alberghiero | N8: LAMal | R8: ES / EMT | S8: EMAp | U8: E5
A9: 3000 | B9: 30 | C9: Salari medici e altri accademici | E9: E0.30.01 | F9: =ROUND('Contabilità per CDC - SOMED'!Q9,0) -> 0 | G9: E0.30.160 | H9: =ROUND('Contabilità per CDC - SOMED'!AH9,0) -> 0 | J9: E1.30 | K9: =SUM(L9:S9) -> 20000 | L9: =ROUND('Contabilità per CDC - SOMED'!R9,0) -> 0 | M9: =ROUND('Contabilità per CDC - SOMED'!S9,0) -> 0 | N9: =ROUND('Contabilità per CDC - SOMED'!T9*'Contabilità per UFI 1'!E9,0) -> 0 | O9: =ROUND('Contabilità per CDC - SOMED'!T9*'Contabilità per UFI 1'!G9,0) -> 0 | P9: =ROUND(SUM('Contabilità per CDC - SOMED'!U9,'Contabilità per CDC - SOMED'!V9,'Contabilità per CDC - SOMED'!W9),0) -> 0 | Q9: =ROUND('Contabilità per CDC - SOMED'!X9,0) -> 20000 | R9: =ROUND('Contabilità per CDC - SOMED'!Z9,0) -> 0 | S9: =ROUND('Contabilità per CDC - SOMED'!Y9,0) -> 0 | U9: E5.30.05 | V9: =ROUND(SUM('Contabilità per CDC - SOMED'!AB9:AC9),0) -> 150000
A10: 3001.00+05+10+3009-309 | B10: 311 | C10: Salari personale di cura qualificato (infermieri e OSS) | E10: E0.311.01 | F10: =ROUND(SUM('Contabilità per CDC - SOMED'!Q10:Q12,'Contabilità per CDC - SOMED'!Q20)-'Contabilità per CDC - SOMED'!Q21,0) -> 86600 | G10: E0.311.160 | H10: =ROUND(SUM('Contabilità per CDC - SOMED'!AH10:AH12,'Contabilità per CDC - SOMED'!AH20)-'Contabilità per CDC - SOMED'!AH21,0) -> 0 | J10: E1.311 | K10: =SUM(L10:S10) -> 1454900 | L10: =ROUND(SUM('Contabilità per CDC - SOMED'!R10:R12,'Contabilità per CDC - SOMED'!R20)-'Contabilità per CDC - SOMED'!R21,0) -> 0 | M10: =ROUND(SUM('Contabilità per CDC - SOMED'!S10:S12,'Contabilità per CDC - SOMED'!S20)-'Contabilità per CDC - SOMED'!S21,0) -> 36900 | N10: =ROUND((SUM('Contabilità per CDC - SOMED'!T10:T12,'Contabilità per CDC - SOMED'!T20)-'Contabilità per CDC - SOMED'!T21)*'Contabilità per UFI 1'!E12,0) -> 14180 | O10: =ROUND((SUM('Contabilità per CDC - SOMED'!T10:T12,'Contabilità per CDC - SOMED'!T20)-'Contabilità per CDC - SOMED'!T21)*'Contabilità per UFI 1'!G12,0) -> 1403820 | P10: =ROUND(SUM('Contabilità per CDC - SOMED'!U10:U12,'Contabilità per CDC - SOMED'!U20,'Contabilità per CDC - SOMED'!V10:V12,'Contabilità per CDC - SOMED'!V20,'Contabilità per CDC - SOMED'!W10:W12,'Contabilità per CDC - SOMED'!W20)-SUM('Contabilità per CDC - SOMED'!U21,'Contabilità per CDC - SOMED'!V21,'Contabilità per CDC - SOMED'!W21),0) -> 0 | Q10: =ROUND(SUM('Contabilità per CDC - SOMED'!X10:X12,'Contabilità per CDC - SOMED'!X20)-'Contabilità per CDC - SOMED'!X21,0) -> 0 | R10: =ROUND(SUM('Contabilità per CDC - SOMED'!Z10:Z12,'Contabilità per CDC - SOMED'!Z20)-'Contabilità per CDC - SOMED'!Z21,0) -> 0 | S10: =ROUND(SUM('Contabilità per CDC - SOMED'!Y10:Y12,'Contabilità per CDC - SOMED'!Y20)-'Contabilità per CDC - SOMED'!Y21,0) -> 0 | U10: E5.311.05 | V10: =ROUND(SUM('Contabilità per CDC - SOMED'!AB10:AB12,'Contabilità per CDC - SOMED'!AC10:AC12,'Contabilità per CDC - SOMED'!AB20,'Contabilità per CDC - SOMED'!AC20)-SUM('Contabilità per CDC - SOMED'!AB21,'Contabilità per CDC - SOMED'!AC21,0),0) -> 525000
A11: 3001.2 | B11: 312 | C11: Salari personale assistente di cura (e ausiliari di cura - ACS) | E11: E0.312.01 | F11: =ROUND('Contabilità per CDC - SOMED'!Q13,0) -> 230000 | G11: E0.312.160 | H11: =ROUND('Contabilità per CDC - SOMED'!AH13,0) -> 0 | J11: E1.312 | K11: =SUM(L11:S11) -> 1245000 | L11: =ROUND('Contabilità per CDC - SOMED'!R13,0) -> 0 | M11: =ROUND('Contabilità per CDC - SOMED'!S13,0) -> 55000 | N11: =ROUND('Contabilità per CDC - SOMED'!T13*'Contabilità per UFI 1'!E13,0) -> 11900 | O11: =ROUND('Contabilità per CDC - SOMED'!T13*'Contabilità per UFI 1'!G13,0) -> 1178100 | P11: =ROUND(SUM('Contabilità per CDC - SOMED'!U13,'Contabilità per CDC - SOMED'!V13,'Contabilità per CDC - SOMED'!W13),0) -> 0 | Q11: =ROUND('Contabilità per CDC - SOMED'!X13,0) -> 0 | R11: =ROUND('Contabilità per CDC - SOMED'!Z13,0) -> 0 | S11: =ROUND('Contabilità per CDC - SOMED'!Y13,0) -> 0 | U11: E5.312. | V11: =ROUND(SUM('Contabilità per CDC - SOMED'!AB13:AC13),0) -> 430000
A12: 3001.9 | B12: 313 | C12: Salari personale di cura in prima formazione e stagisti | E12: E0.313.01 | F12: =ROUND('Contabilità per CDC - SOMED'!Q15,0) -> 0 | G12: E0.313.160 | H12: =ROUND('Contabilità per CDC - SOMED'!AH15,0) -> 0 | J12: E1.313 | K12: 35500 | L12: =ROUND('Contabilità per CDC - SOMED'!R15,0) -> 0 | M12: =ROUND('Contabilità per CDC - SOMED'!S15,0) -> 0 | N12: =ROUND('Contabilità per CDC - SOMED'!T15*'Contabilità per UFI 1'!E15,0) -> 35145 | O12: =ROUND('Contabilità per CDC - SOMED'!T15*'Contabilità per UFI 1'!G15,0) -> 355 | P12: =ROUND(SUM('Contabilità per CDC - SOMED'!U15,'Contabilità per CDC - SOMED'!V15,'Contabilità per CDC - SOMED'!W15),0) -> 0 | Q12: =ROUND('Contabilità per CDC - SOMED'!X15,0) -> 0 | R12: =ROUND('Contabilità per CDC - SOMED'!Z15,0) -> 0 | S12: =ROUND('Contabilità per CDC - SOMED'!Y15,0) -> 0 | U12: E5.313. | V12: =ROUND(SUM('Contabilità per CDC - SOMED'!AB15:AC15),0) -> 0
A13: 3002 | B13: 32 | C13: Salari personale altre discipline mediche specializzate | E13: E0.32.01 | F13: =ROUND(SUM('Contabilità per CDC - SOMED'!Q16,'Contabilità per CDC - SOMED'!Q14),0) -> 17500 | G13: E0.32.160 | H13: =ROUND(SUM('Contabilità per CDC - SOMED'!AH16,'Contabilità per CDC - SOMED'!AH14),0) -> 0 | J13: E1.32 | K13: 235500 | L13: =ROUND(SUM('Contabilità per CDC - SOMED'!R16,'Contabilità per CDC - SOMED'!R14),0) -> 0 | M13: =ROUND(SUM('Contabilità per CDC - SOMED'!S16,'Contabilità per CDC - SOMED'!S14),0) -> 125000 | N13: =ROUND(SUM('Contabilità per CDC - SOMED'!T16,'Contabilità per CDC - SOMED'!T14)*'Contabilità per UFI 1'!E16,0) -> 0 | O13: =ROUND(SUM('Contabilità per CDC - SOMED'!T16,'Contabilità per CDC - SOMED'!T14)*'Contabilità per UFI 1'!G16,0) -> 0 | P13: =ROUND(SUM('Contabilità per CDC - SOMED'!U16,'Contabilità per CDC - SOMED'!U14,'Contabilità per CDC - SOMED'!V16,'Contabilità per CDC - SOMED'!V14,'Contabilità per CDC - SOMED'!W16,'Contabilità per CDC - SOMED'!W14),0) -> 110500 | Q13: =ROUND(SUM('Contabilità per CDC - SOMED'!X16,'Contabilità per CDC - SOMED'!X14),0) -> 0 | R13: =ROUND(SUM('Contabilità per CDC - SOMED'!Z16,'Contabilità per CDC - SOMED'!Z14),0) -> 0 | S13: =ROUND(SUM('Contabilità per CDC - SOMED'!Y16,'Contabilità per CDC - SOMED'!Y14),0) -> 0 | U13: E5.32. | V13: =ROUND(SUM('Contabilità per CDC - SOMED'!AB16:AC16,'Contabilità per CDC - SOMED'!AB14:AC16),0) -> 240000
A14: 3003 | B14: 33 | C14: Salari personale amministrativo | E14: E0.33.01 | F14: =ROUND('Contabilità per CDC - SOMED'!Q17,0) -> 261500 | G14: E0.33.160 | H14: =ROUND('Contabilità per CDC - SOMED'!AH17,0) -> 0 | J14: E1.33 | K14: 0 | L14: =ROUND('Contabilità per CDC - SOMED'!R17,0) -> 0 | M14: =ROUND('Contabilità per CDC - SOMED'!S17,0) -> 0 | N14: =ROUND('Contabilità per CDC - SOMED'!T17*'Contabilità per UFI 1'!E17,0) -> 0 | O14: =ROUND('Contabilità per CDC - SOMED'!T17*'Contabilità per UFI 1'!G17,0) -> 0 | P14: =ROUND(SUM('Contabilità per CDC - SOMED'!U17,'Contabilità per CDC - SOMED'!V17,'Contabilità per CDC - SOMED'!W17),0) -> 0 | Q14: =ROUND('Contabilità per CDC - SOMED'!X17,0) -> 0 | R14: =ROUND('Contabilità per CDC - SOMED'!Z17,0) -> 0 | S14: =ROUND('Contabilità per CDC - SOMED'!Y17,0) -> 0 | U14: E5.33. | V14: =ROUND(SUM('Contabilità per CDC - SOMED'!AB17:AC17),0) -> 0
A15: 3004 | B15: 34 | C15: Salari personale servizio alberghiero / economato | E15: E0.34.01 | F15: =ROUND('Contabilità per CDC - SOMED'!Q18,0) -> 945000 | G15: E0.34.160 | H15: =ROUND('Contabilità per CDC - SOMED'!AH18,0) -> 0 | J15: E1.34 | K15: 0 | L15: =ROUND('Contabilità per CDC - SOMED'!R18,0) -> 0 | M15: =ROUND('Contabilità per CDC - SOMED'!S18,0) -> 0 | N15: =ROUND('Contabilità per CDC - SOMED'!T18*'Contabilità per UFI 1'!E18,0) -> 0 | O15: =ROUND('Contabilità per CDC - SOMED'!T18*'Contabilità per UFI 1'!G18,0) -> 0 | P15: =ROUND(SUM('Contabilità per CDC - SOMED'!U18,'Contabilità per CDC - SOMED'!V18,'Contabilità per CDC - SOMED'!W18),0) -> 0 | Q15: =ROUND('Contabilità per CDC - SOMED'!X18,0) -> 0 | R15: =ROUND('Contabilità per CDC - SOMED'!Z18,0) -> 0 | S15: =ROUND('Contabilità per CDC - SOMED'!Y18,0) -> 0 | U15: E5.34. | V15: =ROUND(SUM('Contabilità per CDC - SOMED'!AB18:AC18),0) -> 0
A16: 3005 | B16: 35 | C16: Salari personale servizio tecnico | E16: E0.35.01 | F16: =ROUND('Contabilità per CDC - SOMED'!Q19,0) -> 76000 | G16: E0.35.160 | H16: =ROUND('Contabilità per CDC - SOMED'!AH19,0) -> 0 | J16: E1.35 | K16: 0 | L16: =ROUND('Contabilità per CDC - SOMED'!R19,0) -> 0 | M16: =ROUND('Contabilità per CDC - SOMED'!S19,0) -> 0 | N16: =ROUND('Contabilità per CDC - SOMED'!T19*'Contabilità per UFI 1'!E19,0) -> 0 | O16: =ROUND('Contabilità per CDC - SOMED'!T19*'Contabilità per UFI 1'!G19,0) -> 0 | P16: =ROUND(SUM('Contabilità per CDC - SOMED'!U19,'Contabilità per CDC - SOMED'!V19,'Contabilità per CDC - SOMED'!W19),0) -> 0 | Q16: =ROUND('Contabilità per CDC - SOMED'!X19,0) -> 0 | R16: =ROUND('Contabilità per CDC - SOMED'!Z19,0) -> 0 | S16: =ROUND('Contabilità per CDC - SOMED'!Y19,0) -> 0 | U16: E5.35. | V16: =ROUND(SUM('Contabilità per CDC - SOMED'!AB19:AC19),0) -> 0
A17: 37 | B17: 37 | C17: Oneri sociali | E17: E0.37.01 | F17: =ROUND('Contabilità per CDC - SOMED'!Q22,0) -> 371381 | G17: E0.37.160 | H17: =ROUND('Contabilità per CDC - SOMED'!AH22,0) -> 0 | J17: E1.37 | K17: 675613 | L17: =ROUND('Contabilità per CDC - SOMED'!R22,0) -> 0 | M17: =ROUND('Contabilità per CDC - SOMED'!S22,0) -> 49828 | N17: =ROUND('Contabilità per CDC - SOMED'!T22*'Contabilità per UFI 1'!E22,0) -> 5958 | O17: =ROUND('Contabilità per CDC - SOMED'!T22*'Contabilità per UFI 1'!G22,0) -> 589847 | P17: =ROUND(SUM('Contabilità per CDC - SOMED'!U22,'Contabilità per CDC - SOMED'!V22,'Contabilità per CDC - SOMED'!W22),0) -> 25385 | Q17: =ROUND('Contabilità per CDC - SOMED'!X22,0) -> 4595 | R17: =ROUND('Contabilità per CDC - SOMED'!Z22,0) -> 0 | S17: =ROUND('Contabilità per CDC - SOMED'!Y22,0) -> 0 | U17: E5.37. | V17: =ROUND(SUM('Contabilità per CDC - SOMED'!AB22:AC22),0) -> 281419
A18: 38 | B18: 38 | C18: Onorari per prestazioni di terzi (medici) | E18: E0.38.01 | F18: =ROUND('Contabilità per CDC - SOMED'!Q24,0) -> 0 | G18: E0.38.160 | H18: =ROUND('Contabilità per CDC - SOMED'!AH24,0) -> 0 | J18: E1.38 | K18: 25000 | L18: =ROUND('Contabilità per CDC - SOMED'!R24,0) -> 0 | M18: =ROUND('Contabilità per CDC - SOMED'!S24,0) -> 0 | N18: =ROUND('Contabilità per CDC - SOMED'!T24*'Contabilità per UFI 1'!E24,0) -> 25000 | O18: =ROUND('Contabilità per CDC - SOMED'!T24*'Contabilità per UFI 1'!G24,0) -> 0 | P18: =ROUND(SUM('Contabilità per CDC - SOMED'!U24,'Contabilità per CDC - SOMED'!V24,'Contabilità per CDC - SOMED'!W24),0) -> 0 | Q18: =ROUND('Contabilità per CDC - SOMED'!X24,0) -> 0 | R18: =ROUND('Contabilità per CDC - SOMED'!Z24,0) -> 0 | S18: =ROUND('Contabilità per CDC - SOMED'!Y24,0) -> 0 | U18: E5.38. | V18: =ROUND(SUM('Contabilità per CDC - SOMED'!AB24:AC24),0) -> 0
A19: 39 | B19: 39 | C19: Costi accessori per il personale | E19: E0.39.01 | F19: =ROUND('Contabilità per CDC - SOMED'!Q25,0) -> 2500 | G19: E0.39.160 | H19: =ROUND('Contabilità per CDC - SOMED'!AH25,0) -> 0 | J19: E1.39 | K19: 35500 | L19: =ROUND('Contabilità per CDC - SOMED'!R25,0) -> 0 | M19: =ROUND('Contabilità per CDC - SOMED'!S25,0) -> 500 | N19: =ROUND('Contabilità per CDC - SOMED'!T25*'Contabilità per UFI 1'!E25,0) -> 34000 | O19: =ROUND('Contabilità per CDC - SOMED'!T25*'Contabilità per UFI 1'!G25,0) -> 0 | P19: =ROUND(SUM('Contabilità per CDC - SOMED'!U25,'Contabilità per CDC - SOMED'!V25,'Contabilità per CDC - SOMED'!W25),0) -> 1000 | Q19: =ROUND('Contabilità per CDC - SOMED'!X25,0) -> 0 | R19: =ROUND('Contabilità per CDC - SOMED'!Z25,0) -> 0 | S19: =ROUND('Contabilità per CDC - SOMED'!Y25,0) -> 0 | U19: E5.39. | V19: =ROUND(SUM('Contabilità per CDC - SOMED'!AB25:AC25),0) -> 0
A20: 40 | B20: 40 | C20: Costi del fabbisogno medico | E20: E0.40.01 | F20: =ROUND('Contabilità per CDC - SOMED'!Q26,0) -> 10000 | G20: E0.40.160 | H20: =ROUND('Contabilità per CDC - SOMED'!AH26,0) -> 0 | J20: E1.40 | K20: 135100 | L20: =ROUND('Contabilità per CDC - SOMED'!R26,0) -> 0 | M20: =ROUND('Contabilità per CDC - SOMED'!S26,0) -> 0 | N20: =ROUND('Contabilità per CDC - SOMED'!T26*'Contabilità per UFI 1'!E26,0) -> 0 | O20: =ROUND('Contabilità per CDC - SOMED'!T26*'Contabilità per UFI 1'!G26,0) -> 0 | P20: =ROUND(SUM('Contabilità per CDC - SOMED'!U26,'Contabilità per CDC - SOMED'!V26,'Contabilità per CDC - SOMED'!W26),0) -> 0 | Q20: =ROUND('Contabilità per CDC - SOMED'!X26,0) -> 100 | R20: =ROUND('Contabilità per CDC - SOMED'!Z26,0) -> 75000 | S20: =ROUND('Contabilità per CDC - SOMED'!Y26,0) -> 60000 | U20: E5.40. | V20: =ROUND(SUM('Contabilità per CDC - SOMED'!AB26:AC26),0) -> 25000
A21: 41 | B21: 41 | C21: Costi dei generi alimentari | E21: E0.41.01 | F21: =ROUND('Contabilità per CDC - SOMED'!Q27,0) -> 250000 | G21: E0.41.160 | H21: =ROUND('Contabilità per CDC - SOMED'!AH27,0) -> 0 | J21: E1.41 | K21: 0 | L21: =ROUND('Contabilità per CDC - SOMED'!R27,0) -> 0 | M21: =ROUND('Contabilità per CDC - SOMED'!S27,0) -> 0 | N21: =ROUND('Contabilità per CDC - SOMED'!T27*'Contabilità per UFI 1'!E27,0) -> 0 | O21: =ROUND('Contabilità per CDC - SOMED'!T27*'Contabilità per UFI 1'!G27,0) -> 0 | P21: =ROUND(SUM('Contabilità per CDC - SOMED'!U27,'Contabilità per CDC - SOMED'!V27,'Contabilità per CDC - SOMED'!W27),0) -> 0 | Q21: =ROUND('Contabilità per CDC - SOMED'!X27,0) -> 0 | R21: =ROUND('Contabilità per CDC - SOMED'!Z27,0) -> 0 | S21: =ROUND('Contabilità per CDC - SOMED'!Y27,0) -> 0 | U21: E5.41. | V21: =ROUND(SUM('Contabilità per CDC - SOMED'!AB27:AC27),0) -> 0
A22: 42 | B22: 42 | C22: Costi di economia domestica | E22: E0.42.01 | F22: =ROUND('Contabilità per CDC - SOMED'!Q28,0) -> 96200 | G22: E0.42.160 | H22: =ROUND('Contabilità per CDC - SOMED'!AH28,0) -> 0 | J22: E1.42 | K22: 29000 | L22: =ROUND('Contabilità per CDC - SOMED'!R28,0) -> 25000 | M22: =ROUND('Contabilità per CDC - SOMED'!S28,0) -> 500 | N22: =ROUND('Contabilità per CDC - SOMED'!T28*'Contabilità per UFI 1'!E28,0) -> 3000 | O22: =ROUND('Contabilità per CDC - SOMED'!T28*'Contabilità per UFI 1'!G28,0) -> 0 | P22: =ROUND(SUM('Contabilità per CDC - SOMED'!U28,'Contabilità per CDC - SOMED'!V28,'Contabilità per CDC - SOMED'!W28),0) -> 500 | Q22: =ROUND('Contabilità per CDC - SOMED'!X28,0) -> 0 | R22: =ROUND('Contabilità per CDC - SOMED'!Z28,0) -> 0 | S22: =ROUND('Contabilità per CDC - SOMED'!Y28,0) -> 0 | U22: E5.42. | V22: =ROUND(SUM('Contabilità per CDC - SOMED'!AB28:AC28),0) -> 1000
A23: 43 | B23: 43 | C23: Costi di manutenzione e riparazione | E23: E0.43.01 | F23: =ROUND('Contabilità per CDC - SOMED'!Q29,0) -> 142500 | G23: E0.43.160 | H23: =ROUND('Contabilità per CDC - SOMED'!AH29,0) -> 0 | J23: E1.43 | K23: 10400 | L23: =ROUND('Contabilità per CDC - SOMED'!R29,0) -> 2000 | M23: =ROUND('Contabilità per CDC - SOMED'!S29,0) -> 100 | N23: =ROUND('Contabilità per CDC - SOMED'!T29*'Contabilità per UFI 1'!E29,0) -> 8000 | O23: =ROUND('Contabilità per CDC - SOMED'!T29*'Contabilità per UFI 1'!G29,0) -> 0 | P23: =ROUND(SUM('Contabilità per CDC - SOMED'!U29,'Contabilità per CDC - SOMED'!V29,'Contabilità per CDC - SOMED'!W29),0) -> 300 | Q23: =ROUND('Contabilità per CDC - SOMED'!X29,0) -> 0 | R23: =ROUND('Contabilità per CDC - SOMED'!Z29,0) -> 0 | S23: =ROUND('Contabilità per CDC - SOMED'!Y29,0) -> 0 | U23: E5.43. | V23: =ROUND(SUM('Contabilità per CDC - SOMED'!AB29:AC29),0) -> 0
A24: 440+443+444 | B24: 44 | C24: Acquisti direttamente ammortizzati | E24: E0.44.01 | F24: =ROUND(SUM('Contabilità per CDC - SOMED'!Q30,'Contabilità per CDC - SOMED'!Q32,'Contabilità per CDC - SOMED'!Q33),0) -> 43900 | G24: E0.44.160 | H24: =ROUND(SUM('Contabilità per CDC - SOMED'!AH30,'Contabilità per CDC - SOMED'!AH32,'Contabilità per CDC - SOMED'!AH33),0) -> 0 | J24: E1.44 | K24: 15600 | L24: =ROUND(SUM('Contabilità per CDC - SOMED'!R30,'Contabilità per CDC - SOMED'!R32,'Contabilità per CDC - SOMED'!R33),0) -> 5000 | M24: =ROUND(SUM('Contabilità per CDC - SOMED'!S30,'Contabilità per CDC - SOMED'!S32,'Contabilità per CDC - SOMED'!S33),0) -> 100 | N24: =ROUND(SUM('Contabilità per CDC - SOMED'!T30,'Contabilità per CDC - SOMED'!T32,'Contabilità per CDC - SOMED'!T33)*'Contabilità per UFI 1'!E30,0) -> 9500 | O24: =ROUND(SUM('Contabilità per CDC - SOMED'!T30,'Contabilità per CDC - SOMED'!T32,'Contabilità per CDC - SOMED'!T33)*'Contabilità per UFI 1'!G30,0) -> 0 | P24: =ROUND(SUM('Contabilità per CDC - SOMED'!U30,'Contabilità per CDC - SOMED'!U32,'Contabilità per CDC - SOMED'!U33,'Contabilità per CDC - SOMED'!V30,'Contabilità per CDC - SOMED'!V32,'Contabilità per CDC - SOMED'!V33,'Contabilità per CDC - SOMED'!W30,'Contabilità per CDC - SOMED'!W32,'Contabilità per CDC - SOMED'!W33),0) -> 1000 | Q24: =ROUND(SUM('Contabilità per CDC - SOMED'!X30,'Contabilità per CDC - SOMED'!X32,'Contabilità per CDC - SOMED'!X33),0) -> 0 | R24: =ROUND(SUM('Contabilità per CDC - SOMED'!Z30,'Contabilità per CDC - SOMED'!Z32,'Contabilità per CDC - SOMED'!Z33),0) -> 0 | S24: =ROUND(SUM('Contabilità per CDC - SOMED'!Y30,'Contabilità per CDC - SOMED'!Y32,'Contabilità per CDC - SOMED'!Y33),0) -> 0 | U24: E5.44. | V24: =ROUND(SUM('Contabilità per CDC - SOMED'!AB30:AC30,'Contabilità per CDC - SOMED'!AB32:AC32,'Contabilità per CDC - SOMED'!AB33:AC33),0) -> 0
A25: 442 | B25: 442 | C25: Ammortamenti | E25: E0.442.01 | F25: =ROUND('Contabilità per CDC - SOMED'!Q31,0) -> 796135 | G25: E0.442.160 | H25: =ROUND('Contabilità per CDC - SOMED'!AH31,0) -> 0 | J25: E1.442 | K25: 17704 | L25: =ROUND('Contabilità per CDC - SOMED'!R31,0) -> 15208 | M25: =ROUND('Contabilità per CDC - SOMED'!S31,0) -> 2121 | N25: =ROUND('Contabilità per CDC - SOMED'!T31*'Contabilità per UFI 1'!E31,0) -> 0 | O25: =ROUND('Contabilità per CDC - SOMED'!T31*'Contabilità per UFI 1'!G31,0) -> 0 | P25: =ROUND(SUM('Contabilità per CDC - SOMED'!U31,'Contabilità per CDC - SOMED'!V31,'Contabilità per CDC - SOMED'!W31),0) -> 375 | Q25: =ROUND('Contabilità per CDC - SOMED'!X31,0) -> 0 | R25: =ROUND('Contabilità per CDC - SOMED'!Z31,0) -> 0 | S25: =ROUND('Contabilità per CDC - SOMED'!Y31,0) -> 0 | U25: E5.442. | V25: =ROUND(SUM('Contabilità per CDC - SOMED'!AB31:AC31),0) -> 0
A26: 45 | B26: 45 | C26: Costi per energia e acqua | E26: E0.45.01 | F26: =ROUND('Contabilità per CDC - SOMED'!Q35,0) -> 116300 | G26: E0.45.160 | H26: =ROUND('Contabilità per CDC - SOMED'!AH35,0) -> 0 | J26: E1.45 | K26: 0 | L26: =ROUND('Contabilità per CDC - SOMED'!R35,0) -> 0 | M26: =ROUND('Contabilità per CDC - SOMED'!S35,0) -> 0 | N26: =ROUND('Contabilità per CDC - SOMED'!T35*'Contabilità per UFI 1'!E35,0) -> 0 | O26: =ROUND('Contabilità per CDC - SOMED'!T35*'Contabilità per UFI 1'!G35,0) -> 0 | P26: =ROUND(SUM('Contabilità per CDC - SOMED'!U35,'Contabilità per CDC - SOMED'!V35,'Contabilità per CDC - SOMED'!W35),0) -> 0 | Q26: =ROUND('Contabilità per CDC - SOMED'!X35,0) -> 0 | R26: =ROUND('Contabilità per CDC - SOMED'!Z35,0) -> 0 | S26: =ROUND('Contabilità per CDC - SOMED'!Y35,0) -> 0 | U26: E5.45. | V26: =ROUND(SUM('Contabilità per CDC - SOMED'!AB35:AC35),0) -> 0
A27: 448 (+46) | B27: 46 | C27: Costi per interessi di capitale | E27: E0.46.01 | F27: =ROUND(SUM('Contabilità per CDC - SOMED'!Q34,'Contabilità per CDC - SOMED'!Q36),0) -> 577311 | G27: E0.46.160 | H27: =ROUND(SUM('Contabilità per CDC - SOMED'!AH34,'Contabilità per CDC - SOMED'!AH36),0) -> 0 | J27: E1.46 | K27: 4003 | L27: =ROUND(SUM('Contabilità per CDC - SOMED'!R34,'Contabilità per CDC - SOMED'!R36),0) -> 2652 | M27: =ROUND(SUM('Contabilità per CDC - SOMED'!S34,'Contabilità per CDC - SOMED'!S36),0) -> 1295 | N27: =ROUND(SUM('Contabilità per CDC - SOMED'!T34,'Contabilità per CDC - SOMED'!T36)*'Contabilità per UFI 1'!E34,0) -> 0 | O27: =ROUND(SUM('Contabilità per CDC - SOMED'!T34,'Contabilità per CDC - SOMED'!T36)*'Contabilità per UFI 1'!G34,0) -> 0 | P27: =ROUND(SUM('Contabilità per CDC - SOMED'!U34,'Contabilità per CDC - SOMED'!U36,'Contabilità per CDC - SOMED'!V34,'Contabilità per CDC - SOMED'!V36,'Contabilità per CDC - SOMED'!W34,'Contabilità per CDC - SOMED'!W36),0) -> 56 | Q27: =ROUND(SUM('Contabilità per CDC - SOMED'!X34,'Contabilità per CDC - SOMED'!X36),0) -> 0 | R27: =ROUND(SUM('Contabilità per CDC - SOMED'!Z34,'Contabilità per CDC - SOMED'!Z36),0) -> 0 | S27: =ROUND(SUM('Contabilità per CDC - SOMED'!Y34,'Contabilità per CDC - SOMED'!Y36),0) -> 0 | U27: E5.46. | V27: =ROUND(SUM('Contabilità per CDC - SOMED'!AB34:AC34,'Contabilità per CDC - SOMED'!AB36:AC36),0) -> 0
A28: 47 | B28: 47 | C28: Costi di ufficio, amministrativi e informatica | E28: E0.47.01 | F28: =ROUND('Contabilità per CDC - SOMED'!Q37,0) -> 65500 | G28: E0.47.160 | H28: =ROUND('Contabilità per CDC - SOMED'!AH37,0) -> 0 | J28: E1.47 | K28: 1000 | L28: =ROUND('Contabilità per CDC - SOMED'!R37,0) -> 0 | M28: =ROUND('Contabilità per CDC - SOMED'!S37,0) -> 0 | N28: =ROUND('Contabilità per CDC - SOMED'!T37*'Contabilità per UFI 1'!E37,0) -> 500 | O28: =ROUND('Contabilità per CDC - SOMED'!T37*'Contabilità per UFI 1'!G37,0) -> 0 | P28: =ROUND(SUM('Contabilità per CDC - SOMED'!U37,'Contabilità per CDC - SOMED'!V37,'Contabilità per CDC - SOMED'!W37),0) -> 500 | Q28: =ROUND('Contabilità per CDC - SOMED'!X37,0) -> 0 | R28: =ROUND('Contabilità per CDC - SOMED'!Z37,0) -> 0 | S28: =ROUND('Contabilità per CDC - SOMED'!Y37,0) -> 0 | U28: E5.47. | V28: =ROUND(SUM('Contabilità per CDC - SOMED'!AB37:AC37),0) -> 0
A29: 48 | B29: 48 | C29: Altri costi relativi ai residenti | E29: E0.48.01 | F29: =ROUND('Contabilità per CDC - SOMED'!Q38,0) -> 2100 | G29: E0.48.160 | H29: =ROUND('Contabilità per CDC - SOMED'!AH38,0) -> 0 | J29: E1.48 | K29: 8000 | L29: =ROUND('Contabilità per CDC - SOMED'!R38,0) -> 6500 | M29: =ROUND('Contabilità per CDC - SOMED'!S38,0) -> 1500 | N29: =ROUND('Contabilità per CDC - SOMED'!T38*'Contabilità per UFI 1'!E38,0) -> 0 | O29: =ROUND('Contabilità per CDC - SOMED'!T38*'Contabilità per UFI 1'!G38,0) -> 0 | P29: =ROUND(SUM('Contabilità per CDC - SOMED'!U38,'Contabilità per CDC - SOMED'!V38,'Contabilità per CDC - SOMED'!W38),0) -> 0 | Q29: =ROUND('Contabilità per CDC - SOMED'!X38,0) -> 0 | R29: =ROUND('Contabilità per CDC - SOMED'!Z38,0) -> 0 | S29: =ROUND('Contabilità per CDC - SOMED'!Y38,0) -> 0 | U29: E5.48. | V29: =ROUND(SUM('Contabilità per CDC - SOMED'!AB38:AC38),0) -> 0
A30: 49 | B30: 49 | C30: Altri costi d'esercizio (non relativi ai residenti) | E30: E0.49.01 | F30: =ROUND('Contabilità per CDC - SOMED'!Q39,0) -> 42000 | G30: E0.49.160 | H30: =ROUND('Contabilità per CDC - SOMED'!AH39,0) -> 0 | J30: E1.49 | K30: 10500 | L30: =ROUND('Contabilità per CDC - SOMED'!R39,0) -> 0 | M30: =ROUND('Contabilità per CDC - SOMED'!S39,0) -> 4500 | N30: =ROUND('Contabilità per CDC - SOMED'!T39*'Contabilità per UFI 1'!E39,0) -> 5500 | O30: =ROUND('Contabilità per CDC - SOMED'!T39*'Contabilità per UFI 1'!G39,0) -> 0 | P30: =ROUND(SUM('Contabilità per CDC - SOMED'!U39,'Contabilità per CDC - SOMED'!V39,'Contabilità per CDC - SOMED'!W39),0) -> 500 | Q30: =ROUND('Contabilità per CDC - SOMED'!X39,0) -> 0 | R30: =ROUND('Contabilità per CDC - SOMED'!Z39,0) -> 0 | S30: =ROUND('Contabilità per CDC - SOMED'!Y39,0) -> 0 | U30: E5.49. | V30: =ROUND(SUM('Contabilità per CDC - SOMED'!AB39:AC39),0) -> 0
B31: 100 | C31: Costi lordi prima delle ripartizioni | E31: E0.100.01 | F31: =SUM(F9:F30) -> 4132427 | G31: E0.100.160 | H31: =SUM(H9:H30) -> 0 | J31: E1.100.01 | K31: =SUM(K9:K30) -> 3958320 | L31: =SUM(L9:L30) -> 56360 | M31: =SUM(M9:M30) -> 277344 | N31: =SUM(N9:N30) -> 152683 | O31: 3172122 | P31: =SUM(P9:P30) -> 140116 | Q31: =SUM(Q9:Q30) -> 24695 | R31: =SUM(R9:R30) -> 75000 | S31: =SUM(S9:S30) -> 60000 | U31: E5.100.05 | V31: =SUM(V9:V30) -> 1652419
A32: Riduzione dei costi, ricavi accessori compresi
A33: 65 | B33: n.p. | C33: Altri ricavi da prestazioni ai residenti | E33: ( 65 ) | F33: =ROUND('Contabilità per CDC - SOMED'!Q42,0) -> -13560 | G33: (65) | H33: =ROUND('Contabilità per CDC - SOMED'!AH42,0) -> 0 | J33: (65) | K33: =SUM(L33:S33) -> -4800 | L33: =ROUND('Contabilità per CDC - SOMED'!R42,0) -> -800 | M33: =ROUND('Contabilità per CDC - SOMED'!S42,0) -> -4000 | N33: =ROUND('Contabilità per CDC - SOMED'!T42*'Contabilità per UFI 1'!E42,0) -> 0 | O33: =ROUND('Contabilità per CDC - SOMED'!T42*'Contabilità per UFI 1'!G42,0) -> 0 | P33: =ROUND(SUM('Contabilità per CDC - SOMED'!U42,'Contabilità per CDC - SOMED'!V42,'Contabilità per CDC - SOMED'!W42),0) -> 0 | Q33: =ROUND('Contabilità per CDC - SOMED'!X42,0) -> 0 | R33: =ROUND('Contabilità per CDC - SOMED'!Z42,0) -> 0 | S33: =ROUND('Contabilità per CDC - SOMED'!Y42,0) -> 0 | U33: (65) | V33: =ROUND(SUM('Contabilità per CDC - SOMED'!AB42:AC42),0) -> 0
A34: 66 | B34: n.p. | C34: Ricavi finanziari - tralasciati per SOMED | E34: ( 66 ) | G34: (66) | J34: (66) | U34: (66)
A35: 68 | B35: n.p. | C35: Ricavi da prestazioni al personale e a terzi | E35: ( 68 ) | F35: =ROUND('Contabilità per CDC - SOMED'!Q44,0) -> -550 | G35: (68) | H35: =ROUND('Contabilità per CDC - SOMED'!AH44,0) -> 0 | J35: (68) | K35: =SUM(L35:S35) -> 0 | L35: =ROUND('Contabilità per CDC - SOMED'!R44,0) -> 0 | M35: =ROUND('Contabilità per CDC - SOMED'!S44,0) -> 0 | N35: =ROUND('Contabilità per CDC - SOMED'!T44*'Contabilità per UFI 1'!E44,0) -> 0 | O35: =ROUND('Contabilità per CDC - SOMED'!T44*'Contabilità per UFI 1'!G44,0) -> 0 | P35: =ROUND(SUM('Contabilità per CDC - SOMED'!U44,'Contabilità per CDC - SOMED'!V44,'Contabilità per CDC - SOMED'!W44),0) -> 0 | Q35: =ROUND('Contabilità per CDC - SOMED'!X44,0) -> 0 | R35: =ROUND('Contabilità per CDC - SOMED'!Z44,0) -> 0 | S35: =ROUND('Contabilità per CDC - SOMED'!Y44,0) -> 0 | U35: (68) | V35: =ROUND(SUM('Contabilità per CDC - SOMED'!AB44:AC44),0) -> 0
A36: 7 | B36: n.p. | C36: Riduzione dei costi generali imputati su CdC NON SOMED | E36: ( EX 7 ) | F36: =ROUND('Contabilità per CDC - SOMED'!Q45,0) -> -65390 | G36: (EX 7) | J36: (EX 7) | U36: (EX 7)
B37: 200 | C37: Costi netti prima delle ripartizioni | E37: E0.200.01 | F37: =SUM(F33:F36)+F31 -> 4052927 | G37: E0.200.160 | H37: =SUM(H33:H36)+H31 -> 0 | J37: E1.200.01 | K37: =SUM(K33:K36)+K31 -> 3953520 | L37: 55560 | M37: 273344 | N37: 152683 | O37: 3172122 | P37: 140116 | Q37: 24695 | R37: 75000 | S37: 60000 | U37: E5.200.05 | V37: =SUM(V33:V36)+V31 -> 1652419
A39: Ripartizioni sui centri di costo generali e principali | G39: Ripartizione sui CdC generali e principali
A40: RIP010 | B40: n.p. | C40: Ripartizione Edifici | G40: ( RIP010 ) | H40: =ROUND('Contabilità per CDC - SOMED'!AH48,0) -> 0 | J40: ( RIP010 ) | K40: =SUM(L40:S40) -> 872595 | L40: =ROUND('Contabilità per CDC - SOMED'!R48,0) -> 773577 | M40: =ROUND('Contabilità per CDC - SOMED'!S48,0) -> 37132 | N40: =ROUND('Contabilità per CDC - SOMED'!T48*'Contabilità per UFI 1'!E48,0) -> 30943 | O40: =ROUND('Contabilità per CDC - SOMED'!T48*'Contabilità per UFI 1'!G48,0) -> 0 | P40: =ROUND(SUM('Contabilità per CDC - SOMED'!U48,'Contabilità per CDC - SOMED'!V48,'Contabilità per CDC - SOMED'!W48),0) -> 27849 | Q40: =ROUND('Contabilità per CDC - SOMED'!X48,0) -> 0 | R40: =ROUND('Contabilità per CDC - SOMED'!Z48,0) -> 3094 | S40: =ROUND('Contabilità per CDC - SOMED'!Y48,0) -> 0 | U40: ( RIP010 ) | V40: =ROUND('Contabilità per CDC - SOMED'!AB48,0) -> 263016
A41: RIP011 | B41: n.p. | C41: Ripartizione Energia | G41: ( RIP011 ) | H41: =ROUND('Contabilità per CDC - SOMED'!AH49,0) -> 0 | J41: ( RIP011 ) | K41: =SUM(L41:S41) -> 98906 | L41: =ROUND('Contabilità per CDC - SOMED'!R49,0) -> 87682 | M41: =ROUND('Contabilità per CDC - SOMED'!S49,0) -> 4209 | N41: =ROUND('Contabilità per CDC - SOMED'!T49*'Contabilità per UFI 1'!E49,0) -> 3507 | O41: =ROUND('Contabilità per CDC - SOMED'!T49*'Contabilità per UFI 1'!G49,0) -> 0 | P41: =ROUND(SUM('Contabilità per CDC - SOMED'!U49,'Contabilità per CDC - SOMED'!V49,'Contabilità per CDC - SOMED'!W49),0) -> 3157 | Q41: =ROUND('Contabilità per CDC - SOMED'!X49,0) -> 0 | R41: =ROUND('Contabilità per CDC - SOMED'!Z49,0) -> 351 | S41: =ROUND('Contabilità per CDC - SOMED'!Y49,0) -> 0 | U41: ( RIP011 ) | V41: =ROUND('Contabilità per CDC - SOMED'!AB49,0) -> 29812
A42: RIP020 | B42: n.p. | C42: Ripartizione Servizi tecnici | G42: ( RIP020 ) | H42: =ROUND('Contabilità per CDC - SOMED'!AH50,0) -> 0 | J42: ( RIP020 ) | K42: 92077 | L42: =ROUND('Contabilità per CDC - SOMED'!R50,0) -> 81628 | M42: =ROUND('Contabilità per CDC - SOMED'!S50,0) -> 3918 | N42: =ROUND('Contabilità per CDC - SOMED'!T50*'Contabilità per UFI 1'!E50,0) -> 3265 | O42: =ROUND('Contabilità per CDC - SOMED'!T50*'Contabilità per UFI 1'!G50,0) -> 0 | P42: =ROUND(SUM('Contabilità per CDC - SOMED'!U50,'Contabilità per CDC - SOMED'!V50,'Contabilità per CDC - SOMED'!W50),0) -> 2939 | Q42: =ROUND('Contabilità per CDC - SOMED'!X50,0) -> 0 | R42: =ROUND('Contabilità per CDC - SOMED'!Z50,0) -> 327 | S42: =ROUND('Contabilità per CDC - SOMED'!Y50,0) -> 0 | U42: ( RIP020 ) | V42: =ROUND('Contabilità per CDC - SOMED'!AB50,0) -> 27753
A43: RIP021 | B43: n.p. | C43: Ripartizione Servizio trasporti | G43: ( RIP021 ) | H43: =ROUND('Contabilità per CDC - SOMED'!AH51,0) -> 0 | J43: ( RIP021 ) | K43: 4016 | L43: =ROUND('Contabilità per CDC - SOMED'!R51,0) -> 0 | M43: =ROUND('Contabilità per CDC - SOMED'!S51,0) -> 927 | N43: =ROUND('Contabilità per CDC - SOMED'!T51*'Contabilità per UFI 1'!E51,0) -> 3089 | O43: =ROUND('Contabilità per CDC - SOMED'!T51*'Contabilità per UFI 1'!G51,0) -> 0 | P43: =ROUND(SUM('Contabilità per CDC - SOMED'!U51,'Contabilità per CDC - SOMED'!V51,'Contabilità per CDC - SOMED'!W51),0) -> 0 | Q43: =ROUND('Contabilità per CDC - SOMED'!X51,0) -> 0 | R43: =ROUND('Contabilità per CDC - SOMED'!Z51,0) -> 0 | S43: =ROUND('Contabilità per CDC - SOMED'!Y51,0) -> 0 | U43: ( RIP021 ) | V43: =ROUND('Contabilità per CDC - SOMED'!AB51,0) -> 0
A44: RIP030 | B44: n.p. | C44: Ripartizione Direzione / Amministrazione | G44: ( RIP030 ) | H44: =ROUND('Contabilità per CDC - SOMED'!AH52,0) -> 0 | J44: ( RIP030 ) | K44: 338021 | L44: =ROUND('Contabilità per CDC - SOMED'!R52,0) -> 0 | M44: =ROUND('Contabilità per CDC - SOMED'!S52,0) -> 24930 | N44: =ROUND('Contabilità per CDC - SOMED'!T52*'Contabilità per UFI 1'!E52,0) -> 298091 | O44: =ROUND('Contabilità per CDC - SOMED'!T52*'Contabilità per UFI 1'!G52,0) -> 0 | P44: =ROUND(SUM('Contabilità per CDC - SOMED'!U52,'Contabilità per CDC - SOMED'!V52,'Contabilità per CDC - SOMED'!W52),0) -> 12701 | Q44: =ROUND('Contabilità per CDC - SOMED'!X52,0) -> 2299 | R44: =ROUND('Contabilità per CDC - SOMED'!Z52,0) -> 0 | S44: =ROUND('Contabilità per CDC - SOMED'!Y52,0) -> 0 | U44: ( RIP030 ) | V44: =ROUND('Contabilità per CDC - SOMED'!AB52,0) -> 140799
A45: RIP040 | B45: n.p. | C45: Ripartizione Economia domestica in generale | G45: ( RIP040 ) | H45: =ROUND('Contabilità per CDC - SOMED'!AH53,0) -> 0 | J45: ( RIP040 ) | K45: 62338 | L45: =ROUND('Contabilità per CDC - SOMED'!R53,0) -> 0 | M45: =ROUND('Contabilità per CDC - SOMED'!S53,0) -> 4598 | N45: =ROUND('Contabilità per CDC - SOMED'!T53*'Contabilità per UFI 1'!E53,0) -> 54974 | O45: =ROUND('Contabilità per CDC - SOMED'!T53*'Contabilità per UFI 1'!G53,0) -> 0 | P45: =ROUND(SUM('Contabilità per CDC - SOMED'!U53,'Contabilità per CDC - SOMED'!V53,'Contabilità per CDC - SOMED'!W53),0) -> 2342 | Q45: =ROUND('Contabilità per CDC - SOMED'!X53,0) -> 424 | R45: =ROUND('Contabilità per CDC - SOMED'!Z53,0) -> 0 | S45: =ROUND('Contabilità per CDC - SOMED'!Y53,0) -> 0 | U45: ( RIP040 ) | V45: =ROUND('Contabilità per CDC - SOMED'!AB53,0) -> 25966
A46: RIP041 | B46: n.p. | C46: Ripartizione Lavanderia | G46: ( RIP041 ) | H46: =ROUND('Contabilità per CDC - SOMED'!AH54,0) -> 0 | J46: ( RIP041 ) | K46: 330027 | L46: =ROUND('Contabilità per CDC - SOMED'!R54,0) -> 292059 | M46: =ROUND('Contabilità per CDC - SOMED'!S54,0) -> 2247 | N46: =ROUND('Contabilità per CDC - SOMED'!T54*'Contabilità per UFI 1'!E54,0) -> 33699 | O46: =ROUND('Contabilità per CDC - SOMED'!T54*'Contabilità per UFI 1'!G54,0) -> 0 | P46: =ROUND(SUM('Contabilità per CDC - SOMED'!U54,'Contabilità per CDC - SOMED'!V54,'Contabilità per CDC - SOMED'!W54),0) -> 2022 | Q46: =ROUND('Contabilità per CDC - SOMED'!X54,0) -> 0 | R46: =ROUND('Contabilità per CDC - SOMED'!Z54,0) -> 0 | S46: =ROUND('Contabilità per CDC - SOMED'!Y54,0) -> 0 | U46: ( RIP041 ) | V46: =ROUND('Contabilità per CDC - SOMED'!AB54,0) -> 96604
A47: RIP042 | B47: n.p. | C47: Ripartizione Pulizie | G47: ( RIP042 ) | H47: =ROUND('Contabilità per CDC - SOMED'!AH55,0) -> 0 | J47: ( RIP042 ) | K47: 283039 | L47: =ROUND('Contabilità per CDC - SOMED'!R55,0) -> 250921 | M47: =ROUND('Contabilità per CDC - SOMED'!S55,0) -> 12044 | N47: =ROUND('Contabilità per CDC - SOMED'!T55*'Contabilità per UFI 1'!E55,0) -> 10037 | O47: =ROUND('Contabilità per CDC - SOMED'!T55*'Contabilità per UFI 1'!G55,0) -> 0 | P47: =ROUND(SUM('Contabilità per CDC - SOMED'!U55,'Contabilità per CDC - SOMED'!V55,'Contabilità per CDC - SOMED'!W55),0) -> 9033 | Q47: =ROUND('Contabilità per CDC - SOMED'!X55,0) -> 0 | R47: =ROUND('Contabilità per CDC - SOMED'!Z55,0) -> 1004 | S47: =ROUND('Contabilità per CDC - SOMED'!Y55,0) -> 0 | U47: ( RIP042 ) | V47: =ROUND('Contabilità per CDC - SOMED'!AB55,0) -> 85313
A48: RIP060 | B48: n.p. | C48: Ripartizione Cucina | G48: ( RIP060 ) | H48: =ROUND('Contabilità per CDC - SOMED'!AH56,0) -> 0 | J48: ( RIP060 ) | K48: 1107576 | L48: =ROUND('Contabilità per CDC - SOMED'!R56,0) -> 1107576 | M48: =ROUND('Contabilità per CDC - SOMED'!S56,0) -> 0 | N48: =ROUND('Contabilità per CDC - SOMED'!T56*'Contabilità per UFI 1'!E56,0) -> 0 | O48: =ROUND('Contabilità per CDC - SOMED'!T56*'Contabilità per UFI 1'!G56,0) -> 0 | P48: =ROUND(SUM('Contabilità per CDC - SOMED'!U56,'Contabilità per CDC - SOMED'!V56,'Contabilità per CDC - SOMED'!W56),0) -> 0 | Q48: =ROUND('Contabilità per CDC - SOMED'!X56,0) -> 0 | R48: =ROUND('Contabilità per CDC - SOMED'!Z56,0) -> 0 | S48: =ROUND('Contabilità per CDC - SOMED'!Y56,0) -> 0 | U48: ( RIP060 ) | V48: =ROUND('Contabilità per CDC - SOMED'!AB56,0) -> 170000
A49: RIP090 | B49: n.p. | C49: Ripartizione Magazzino centrale | G49: ( RIP090 ) | H49: =ROUND('Contabilità per CDC - SOMED'!AH57,0) -> 0 | J49: ( RIP090 ) | K49: 0 | L49: =ROUND('Contabilità per CDC - SOMED'!R57,0) -> 0 | M49: =ROUND('Contabilità per CDC - SOMED'!S57,0) -> 0 | N49: =ROUND('Contabilità per CDC - SOMED'!T57*'Contabilità per UFI 1'!E57,0) -> 0 | O49: =ROUND('Contabilità per CDC - SOMED'!T57*'Contabilità per UFI 1'!G57,0) -> 0 | P49: =ROUND(SUM('Contabilità per CDC - SOMED'!U57,'Contabilità per CDC - SOMED'!V57,'Contabilità per CDC - SOMED'!W57),0) -> 0 | Q49: =ROUND('Contabilità per CDC - SOMED'!X57,0) -> 0 | R49: =ROUND('Contabilità per CDC - SOMED'!Z57,0) -> 0 | S49: =ROUND('Contabilità per CDC - SOMED'!Y57,0) -> 0 | U49: ( RIP090 ) | V49: =ROUND('Contabilità per CDC - SOMED'!AB57,0) -> 0
A50: RIP095 | B50: n.p. | C50: Ripartizione Farmacia | G50: ( RIP095 ) | H50: =ROUND('Contabilità per CDC - SOMED'!AH58,0) -> 0 | J50: ( RIP095 ) | K50: 18003 | L50: =ROUND('Contabilità per CDC - SOMED'!R58,0) -> 0 | M50: =ROUND('Contabilità per CDC - SOMED'!S58,0) -> 0 | N50: =ROUND('Contabilità per CDC - SOMED'!T58*'Contabilità per UFI 1'!E58,0) -> 0 | O50: =ROUND('Contabilità per CDC - SOMED'!T58*'Contabilità per UFI 1'!G58,0) -> 0 | P50: =ROUND(SUM('Contabilità per CDC - SOMED'!U58,'Contabilità per CDC - SOMED'!V58,'Contabilità per CDC - SOMED'!W58),0) -> 0 | Q50: =ROUND('Contabilità per CDC - SOMED'!X58,0) -> 0 | R50: =ROUND('Contabilità per CDC - SOMED'!Z58,0) -> 10002 | S50: =ROUND('Contabilità per CDC - SOMED'!Y58,0) -> 8001 | U50: ( RIP095 ) | V50: =ROUND('Contabilità per CDC - SOMED'!AB58,0) -> 7068
B51: 300 | C51: Costi netti dopo ripartizioni | G51: E0.300.160 | H51: =H37+SUM(H40:H50) -> 0 | J51: E1.300.01 | K51: =SUM(K37:K50) -> 7160118 | L51: =SUM(L37:L50) -> 2649003 | M51: 363349 | N51: 590288 | O51: 3172122 | P51: 200159 | Q51: 27418 | R51: 89778 | S51: 68001 | U51: E5.300.01 | V51: =V37+SUM(V40:V50) -> 2498750
E53: Stima del Contributo globale (CG) CPA - settore stazionario - Calcolo SOMED-A
E54: Tot. Costi analitici CPA (E1.300.01) | G54: =+K51 -> 7160118
E55: Ricavi analitici CPA (senza Contibuto globale erogato !) | J55: Ricavi E2 (CdC finali della CPA)
E56: Rette CPA (alloggio) | F56: E2.6000 | G56: =+K59 -> 2100000 | J56: R i c a v i t o t a l i d e i C d C f i n a l i d e l l a C P A
E57: AGI | F57: E2.6020 | G57: =+K60 -> 315000 | K57: Totale | L57: 02. Servizio | M57: 03. Assistenza e cura | O57: 04. Cura | P57: 05. Terapie | Q57: 06. Medico | R57: 07. Medicamenti | S57: 08. Materiale
A58: Ricavi | B58: E2 / E6 | E58: Partecipaz. CM cure CPA | F58: E2.6061 | G58: =+K62 -> 1770000 | J58: E2 | L58: alberghiero | M58: non LAMal | O58: LAMal | R58: ES / EMT | S58: EMAp
A59: 6000.00+20+30 | B59: 6000/ 6010 | C59: Tasse di alloggio (rette) | E59: Partecipaz. ospiti cure CPA | F59: E2.6062 | G59: =+K63 -> 87500 | J59: E2.6000.02 | K59: =SUM(L59:S59) -> 2100000 | L59: =ROUND(-'Contabilità per CDC - SOMED'!R62,0) -> 2100000
A60: 6002.00+10+20 | B60: 6020/ 6030 | C60: Tasse per l'assistenza (AGI) | E60: Rette CDT | F60: E2.6070 | G60: =+K65 -> 0 | J60: E2.6020.03 | K60: =SUM(L60:S60) -> 315000 | M60: =ROUND(-'Contabilità per CDC - SOMED'!T64,0) -> 315000
B61: 6060/ 6050 | C61: Totale tasse di cura | E61: Tot. Ricavi analitici da COIN | F61: E2.69 | G61: =+G71 -> 1402685 | J61: E2.6060 | K61: =SUM(L61:S61) -> 3342433 | O61: =SUM(O62:O64) -> 3052433 | P61: =SUM(P62:P64) -> 105000 | Q61: =SUM(Q62:Q64) -> 0 | R61: =SUM(R62:R64) -> 115000 | S61: =SUM(S62:S64) -> 70000
A62: 6001.00+10+20+40+50+60 | B62: 6061/ 6051 | C62: Tasse (partecipazioni) di cura assicuratori malattia | E62: Totale ricavi analitici CPA COAN | G62: =SUM(G56:G61) -> 5675185 | J62: E2.6061 | K62: =SUM(L62:S62) -> 1770000 | O62: =ROUND(-'Contabilità per CDC - SOMED'!T63,0) -> 1550000 | P62: =ROUND(SUM(-'Contabilità per CDC - SOMED'!U63,-'Contabilità per CDC - SOMED'!V63,-'Contabilità per CDC - SOMED'!W63),0) -> 105000 | Q62: =ROUND(-'Contabilità per CDC - SOMED'!X63,0) -> 0 | R62: =ROUND(-SUM('Contabilità per CDC - SOMED'!Z63,'Contabilità per CDC - SOMED'!Z65),0) -> 115000 | S62: =ROUND(-'Contabilità per CDC - SOMED'!Y63,0) -> 0
A63: 6000.10 | B63: 6062/ 6052 | C63: Tasse (partecipazione) di cura LAMal residente | J63: E2.6062.04 | K63: 87500 | O63: =ROUND(-'Contabilità per CDC - SOMED'!T62,0) -> 87500
A64: 6900.00+50 | B64: 6063/ 6053 | C64: Tasse di cura partecipazione Comuni / Cantone (CG annuo) | E64: Deficit d'esercizio CPA (senza CG !) | G64: =G62-G54 -> -1484933 | H64: > = CG > E2.6063.04+06! | J64: E2.6063.04+08 | K64: 1484933 | O64: =ROUND(-G64,0)-S64 -> 1414933 | S64: =ROUND(-'Contabilità per CDC - SOMED'!Y70,0) -> 70000
A65: 6000.40 | B65: 6070 | C65: Tasse utenti strutture diurne o notturne (= CDT) | E65: Deficit d'esercizio CDT (senza CG!) | G65: =K65-H51 -> 0 | H65: > non considerato per SOMED-A! | J65: E2.6070.02 | K65: 0 | L65: =ROUND(-SUM('Contabilità per CDC - SOMED'!AH62:AH63),0) -> 0
B66: 69 | C66: Totale contributi e sovvenzioni | E66: Ricavi analitici da COIN (E4. SOMED-A) | J66: E2.69 | K66: =SUM(K67:K70) -> 1402685
A67: 690 | B67: 6900 | C67: Contributi e sovvenzioni dei Comuni | E67: da Comuni | G67: =ROUND('Resoconti COIN'!M135,0) -> 146489 | H67: > = E2.6900 | J67: E2.6900 | K67: =ROUND(G67,0) -> 146489
A68: 695 | B68: 6950 | C68: Contributi e sovvenzioni dei Cantoni | E68: da Cantoni | G68: =ROUND('Resoconti COIN'!M136,0) -> 486115 | H68: > = E2.6950 | J68: E2.6950 | K68: =ROUND(G68,0) -> 486115
A69: 6980.20 | B69: 6960 | C69: Contributi e sovvenzioni della Confederazione | E69: da Confederazione | G69: =ROUND('Resoconti COIN'!M137,0) -> 234255 | H69: > = E2.6960 | J69: E2.6960 | K69: =ROUND(G69,0) -> 234255 | Q69: Risultato d'esercizio E3 - CPA
A70: 697+698 | B70: 6970 | C70: Contributi e sovvenzioni da Fondazioni, cooperative ecc. | E70: da Enti privati (+ ev. donazioni dedicate) | G70: =ROUND('Resoconti COIN'!M138,0) -> 535826 | H70: > = E2.6970 | J70: E2.6970 | K70: =ROUND(G70,0) -> 535826 | Q70: CPA | R70: E3.01 | S70: =K71-K51 -> 0
B71: 100 | C71: Totale ricavi analitici | E71: Totale Ricavi analitici COIN | G71: =ROUND('Resoconti COIN'!M134,0) -> 1402685 | H71: > = TOT. E2.69 | J71: E2.100.01 | K71: =SUM(K59:K61,K65,K66) -> 7160118 | Q71: CDT (non ripreso in SOMED) | S71: =K65-H51 -> 0
E73: Stima del Contributo globale (CG) per Reparto CAT-STT - Calcolo SOMED-A
E74: Tot. Costi analitici CAT-STT (E5.300.01) | G74: =+V51 -> 2498750 | J74: Ricavi E6 - Reparto CAT - STT
E75: Ricavi analitici CAT-STT (senza Contibuto globale erogato !) | J75: R i c a v i del reparto CAT
E76: Rette CAT-STT | F76: E6.6010 | G76: =+K78 -> 170000 | K76: Totale | L76: 02. Servizio | M76: 03. Assistenza e cura | O76: 04. Cura | P76: 05. Terapie | Q76: 06. Medico | R76: 07. Medicamenti | S76: 08. Materiale
A77: Verifica della Ripartizione dei costi generali su CdC principali e servizi annessi CPA | E77: AGI | F77: E6.6020 | G77: =+K79 -> 0 | J77: E6 | L77: alberghiero | M77: non LAMal | O77: LAMal | R77: ES / EMT | S77: EMAp
E78: Partecipaz. CM cure CAT-STT | F78: E6.6051 | G78: =+K81 -> 300000 | J78: E6.6010.02 | K78: =SUM(L78:S78) -> 170000 | L78: =ROUND(-'Contabilità per CDC - SOMED'!AB62,0) -> 170000
A79: Totale costi da ripartire | B79: =+F37 -> 4052927 | C79: = E0.200.01 | E79: Partecipaz. ospiti cure CAT-STT | F79: E6.6052 | G79: =+K82 -> 0 | J79: E6.6020 | K79: =SUM(L79:S79) -> 0
E80: Tot. Ricavi analitici da COIN | F80: E6.69 | G80: =+K84 -> 0 | J80: E6.6050 | K80: =SUM(L80:S80) -> 2328750 | O80: =ROUND(SUM(O81:O83),0) -> 2252750 | P80: =ROUND(SUM(P81:P83),0) -> 30500 | Q80: =ROUND(SUM(Q81:Q83),0) -> 0 | R80: =ROUND(SUM(R81:R83),0) -> 22500 | S80: =ROUND(SUM(S81:S83),0) -> 23000
A81: Costi ripartiti : | E81: Totale ricavi analitici COAN | G81: =SUM(G76:G80) -> 470000 | J81: E6.6051 | K81: =ROUND(SUM(L81:S81),0) -> 300000 | O81: =ROUND(-'Contabilità per CDC - SOMED'!AB63,0)-P81-Q81-R81-S81 -> 247000 | P81: 30500 | Q81: 0 | R81: 22500 | S81: 0
A82: - su CPA - cure stazionarie: | B82: =K51-K37 -> 3206598 | C82: = E1.300.01 - E1.200.01 | J82: E6.6052 | K82: =ROUND(SUM(L82:S82),0) -> 0
A83: - su CDT: | B83: =H51-H37 -> 0 | C83: = E0.300.160 - E0.200.160 | E83: Deficit d'esercizio CAT-STT (senza CG !) | G83: =G81-G74 -> -2028750 | H83: > = CG > E6.6053.04+06! | J83: E6.6053.04+08 | K83: =ROUND(SUM(L83:S83),0) -> 2028750 | O83: =ROUND(-G83,0)-S83 -> 2005750 | S83: 23000
A84: - su Reparto CAT-STT: | B84: =V51-V37 -> 846331 | C84: = E5.300.01 - E5.200.05 | J84: E6.69 | K84: =SUM(K85:K88) -> 0
A85: Totale costi ripartiti | B85: =SUM(B82:B84) -> 4052929 | J85: E6.6900 | K85: 0
J86: E6.6950 | K86: 0
A87: Costi non ripartiti | B87: =+B79-B85 -> -2 | J87: E6.6960 | K87: 0
J88: E6.6970 | K88: 0 | Q88: Risultato d'esercizio E3 - CAT-STT
J89: E6.100.01 | K89: =SUM(K78:K80,K84) -> 2498750 | Q89: CAT-STT | R89: E3.11 | S89: =K89-V51 -> 0

Sheet Istruzioni COIN
A1: Istruzioni per la contabilità degli investimenti
A2: 1. Compilare il foglio "Parametri"
A3: 2. Completare il foglio "Investimenti" aggiornando la lista con tutti gli investimenti a bilancio per l'anno in esame
A4: 3. Il foglio "Resoconti COIN" è calcolato automaticamente.
A5: Una volta completate le registrazioni, esaminare e stampare il Resoconto per UACD, la tabella delle differenze e il Resoconto per SOMED.
A6: Se la tabella che confronta i costi di utilizzo delle imobilizzazioni della COIN e della COAN mostra delle divergenze, decidere se occorre o meno corrggere i dati.
A7: 4. A verifica ultimata, creare il file di esportazione per SOMED (capitolo E4) usando il pulsante [Crea dati SOMED COIN]
A8: situato nel foglio "Resoconti COIN"
A10: Istruzioni per compilare il foglio "Investimenti"
A11: Ogni investimento corrisponde a una riga di dati. Per ogni investimento a bilancio compilare le celle con le seguenti modalità:
A12: celle bianche | B12: digitare le informazioni richieste
A13: celle celesti | B13: compilare scegliendo il valore dal menu a tendina
A14: celle verdi | B14: campi calcolati automaticamente
A15: I campi obbligatori sono contrassegnati con un asterisco *
A16: Di seguito precisiamo il contenuto delle diverse colonne:
A18: Colonna | B18: Nome della variabile | C18: Descrizione | D18: Tipo di dato | E18: Osservazioni (per vostra informazione, precisiamo il calcolo effettuato dalla formula)
A19: A* | B19: Identificativo investimento | C19: Identificativo dell'investimento a Bilancio (ad esempio "1500-01" per il terreno). Attenzione: Mettere "X" se il cespite non è attivato a bilancio (in particolare vale per quelle CPA comunali che non dispongono di una COIN separata da quella del Comune). | D19: Testo
A20: B* | B20: Quantità | C20: Numero di oggetti di cui si compone l'investimento (per oggetti singoli inserire "1") | D20: Numero intero
A21: C* | B21: Oggetto | C21: Denominazione dell'oggetto | D21: Testo
A22: D | B22: Marca/tipo | C22: Denominazione di marca e tipo secondo il fornitore | D22: Testo
A23: E | B23: Ubicazione | C23: Ubicazione all'interno del centro di costo, di regola il locale dove si trova | D23: Testo
A24: F | B24: Fornitore | C24: Nome del fornitore con CAP | D24: Testo
A25: G* | B25: Centro di costo | C25: Centro di costo dove è situato il bene | D25: Secondo elenco | E25: L'elenco di tutti i centri di costo è riportato nel foglio "Codici COIN"
A26: H* | B26: Data di acquisto | C26: Data di messa in servizio (o data della fornitura o della fattura) | D26: GG.MM.AAAA | E26: La data di messa in servizio serve a calcolare i mesi di utilizzo durante l'anno (prorata)
A27: I | B27: Anni vita economica | C27: Durata di vita in anni (secondo la categoria d'investimento) | D27: Numero intero | E27: = dipendente dalla categoria d'investimento (vedi foglio "Codici COIN")
A28: J* | B28: Categoria d'investimento | C28: Categoria (tipo) di investimento | D28: Secondo elenco | E28: L'elenco delle categorie è riportato nel foglio "Codici COIN"
A29: K* | B29: Prezzo al pezzo | C29: Prezzo unitario d'acquisto (in CHF) | D29: Numero intero
A30: L* | B30: Costi d'installazione | C30: Costi complessivi d'installazione e altri costi accessori all'acquisto (CHF) | D30: Numero intero
A31: M | B31: Valore iniziale totale d'investimento | C31: Valore iniziale d'attivazione totale (CHF) = B * K + L | D31: Numero intero | E31: = [Quantità] * [Prezzo al pezzo] + [Costi d'installazione]
A32: N | B32: Ammortamento calcolatorio annuo | C32: Ammortamento calcolatorio, secondo la categoria di investimento e il prorata (CHF) = (M / I) * (S / 12) | D32: Numero decimale | E32: = 0 se [Anni di vita economica] è n/a = 0 se [Valore iniziale totale d'investimento] è 1.- CHF = 0 se [Data di acquisto] è sconosciuta = ([Valore iniziale totale d'investimento] / [Anni di vita economica]) * ([Mesi utilizzati durante l'anno] / 12)
A33: O | B33: Ammortamento calcolatorio annuo, riconosciuto LAMal | C33: Parte riconosciuta LAMal dell'ammortamento calcolatorio annuo (CHF) = N * Z | D33: Numero decimale | E33: = [Ammortamento calcolatorio annuo] * [Quota riconosciuta LAMal (in %)]
A34: P | B34: Conto per registrazione dell'ammortamento | C34: Numero di conto COFI dove è registrato l'ammortamento | D34: Testo
A35: Q | B35: Durata di vita residua | C35: Durata di vita residua in anni al 31.12 | D35: Numero decimale | E35: = 0 se [Anni di vita economica] è n/a = 0 se [Data di acquisto] è sconosciuta = max( calcolo dei mesi di vita rimanenti trasformati in anni; 0)
A36: R | B36: Investimento ancora attivo | C36: Bene ancora utilizzato (Sì) o dismesso (No) | D36: ("SI", "NO") | E36: = 0 se [Data di acquisto] è sconosciuta = "no, dismesso" se [Data del disinvestimento o eliminazione] <> "" = "Sì" altrimenti
A37: S | B37: Mesi utilizzati durante l'anno | C37: Numero di mesi in cui il bene è stato utilizzato durante l'anno considerato (per calcoli pro-rata) | D37: Numero intero da 1 a 12 | E37: = (calcolo dei mesi utilizzati durante l'anno, formula complessa!)
A38: T | B38: Val. invest. al 31.12. dopo ammortamento | C38: Valore residuo del bene alla fine dell'anno considerato = M * Q / I | D38: Numero decimale | E38: = 0 se [Investimento ancora attivo]<>"Sì" = [Valore iniziale totale d'investimento] se [Categoria d'investimento]="1500 Terreni" = 1 se [Valore iniziale totale d'investimento] = 1 = 0 se [Data di acquisto] è sconosciuta = [Valore iniziale totale d'investimento] * [Durata di vita residua] / [Anni di vita economica]
A39: U | B39: Val. invest. LAMal dopo ammort. senza amm. eccess. | C39: = T * Z | D39: Numero decimale | E39: = [Val. invest. al 31.12. dopo ammortamento] * [Quota riconosciuta LAMal (in %)]
A40: V | B40: Val. invest. per calcolo interessi | C40: Valore medio dell'investimento (CHF) = M per i terreni = (M / 2) per tutti gli altri investimenti ancora attivi | D40: Numero decimale | E40: = 0 se se [Valore iniziale totale d'investimento] = 1 = [Valore iniziale totale d'investimento] se [Categoria d'investimento]="1500 Terreni" = [Valore iniziale totale d'investimento]/2 per gli altri investimenti
A41: W | B41: Interessi calcolatori annui | C41: Prorata secondo i mesi di utilizzo (CHF) = V * 3.7% * (S / 12) | D41: Numero decimale | E41: = [Val. invest. per calcolo interessi] * 3.7% * [Mesi utilizzati durante l'anno] / 12
A42: X | B42: Interessi calcolatori annui, riconosciuti LAMal | C42: Parte riconosciuta LAMal degli interessi calcolatori annui (CHF) = W * Z | D42: Numero decimale | E42: = 0 se [Val. invest. per calcolo interessi] <= 0 = [Interesse calcol. Annuo] * [Quota parte LAMal in %]
A43: Y | B43: Canone di locazione | C43: Canone di locazione per immobilizzazioni oltre il limite di attivazione e non attivate a bilancio (ad es. le case comunali senza COIN vera e propria possono indicare il canone di affitto) | D43: Numero decimale
A44: Z | B44: Quota riconosciuta LAMal (in %) | C44: Parte dell'investimento riconosciuta LAMal, in % | D44: Numero intero | E44: Questo valore serve a calcolare le colonne O e X
A45: AA | B45: Data del disinvestimento o eliminazione | C45: Data del disinvestimento (cessione o eliminazione del bene) | D45: GG.MM.AAAA
A46: AB | B46: Valore del disinvestimento | C46: Valore residuo del bene al momento del disinvestimento | D46: Numero decimale | E46: = … complicato …
A47: AC | B47: Osservazioni | C47: Campo per osservazioni
A48: AD | B48: Costi calcolatori annui totali di utilizzo | C48: Costi calcolatori totali di utilizzo delle immobilizzazioni (CHF) = N + W | E48: = [Ammortamento calc. annuo] + [Interesse calcol. annuo]
A49: AE | B49: di cui a carico dei Comuni (6900) | C49: Parte teorica dei costi calcolatori totali annui a carico dei Comuni. La ripartizione avviene in base alla ripartizione del finanziamento iniziale: = (AJ + 80% * AM) * (AD / M) | E49: = 0 se [Valore iniziale totale d'investimento] <= 0 = [Contributi dei comuni (6900)] + 80% * [Utilizzo fondo 3 manutenzione e investimenti] * [Costi calcolatori annui totali di utilizzo] / [Valore iniziale totale d'investimento]
A50: AF | B50: di cui a carico del Cantone (6950) | C50: Parte teorica dei costi calcolatori totali annui a carico del Cantone. La ripartizione avviene in base alla ripartizione del finanziamento iniziale: = (AK + 20% * AM) * (AD / M) | E50: = 0 se [Valore iniziale totale d'investimento] <= 0 = [Contributi dei Cantoni (6950)] + 20% * [Utilizzo fondo 3 manutenzione e investimenti] * [Costi calcolatori annui totali di utilizzo] / [Valore iniziale totale d'investimento]
A51: AG | B51: di cui a carico della Confederazione (6960) | C51: Parte teorica dei costi calcolatori totali annui a carico della Confederazione. La ripartizione avviene in base alla ripartizione del finanziamento iniziale: = AL * (AD / M) | E51: = 0 se [Valore iniziale totale d'investimento] <= 0 = [Contributi della Confederazione (6960)] * [Costi calcolatori annui totali di utilizzo] / [Valore iniziale totale d'investimento]
A52: AH | B52: di cui a carico di corporazioni, fondazioni, privati | C52: Parte teorica dei costi calcolatori totali annui a carico di Fondazioni, Associazioni, Cooperative, SA private ed eventuali donazioni dedicate. La ripartizione avviene in base alla ripartizione del finanziamento iniziale. = AN * (AD / M) | E52: = 0 se [Valore iniziale totale d'investimento] <= 0 = [Contributi di corporazioni, fondazioni, privati (6970)] * [Costi calcolatori annui totali di utilizzo] / [Valore iniziale totale d'investimento]
A53: AI | B53: Finanziamento totale | C53: Finanziamento totale (corrisponde al valore totale iniziale dell'investimento) = L | E53: = [Valore iniziale totale d'investimento]
A54: AJ | B54: Contributi dei Comuni (6900) | C54: Contributi iniziali al finanziamento dei Comuni
A55: AK | B55: Contributi dei Cantoni (6950) | C55: Contributi iniziali al finanziamento dal Cantone
A56: AL | B56: Contributi della Confederazione (6960) | C56: Contributi iniziali al finanziamento dalla Confederazione
A57: AM | B57: Utilizzo fondo 3 manutenzione e investimenti | C57: Contributi iniziali al finanziamento prelevati dal fondo 3
A58: AN | B58: Contributi di Enti privati (fondaz., associaz., coop., SA, donazioni) (6970) | C58: Finanziamenti di fondazioni, associazioni, cooperative, SA ed eventuali donazioni dedicate = AI - AJ - AK - AL - AM | E58: = [Finanziamento totale] - [Contributi dei comuni (6900)] - [Contributi dei cantoni (6950)] - [Contributi della Confederazione (6960)] - [Utilizzo fondo 3 manutenzione e investimenti]
A59: AO | B59: Sterilizzazione contributi comunali | C59: Sterilizzazione annua (ammortamenti) dei contributi comunali per investimenti = N / M * AJ | E59: = [Ammortamento calcolatorio annuo] / [Valore iniziale totale d'investimento] * [Contributi dei comuni (6900)]
A60: AP | B60: Sterilizzazione contributi cantonali | C60: Sterilizzazione annua (ammortamenti) dei contributi cantonali per investimenti = N / M * AK | E60: = [Ammortamento calcolatorio annuo] / [Valore iniziale totale d'investimento] * [Contributi dei cantoni (6950)]
A61: AQ | B61: Sterilizzazione contributi confederazione | C61: Sterilizzazione annua (ammortamenti) dei contributi della Confederazione per investimenti = N / M * AL | E61: = [Ammortamento calcolatorio annuo] / [Valore iniziale totale d'investimento] * [Contributi della Confederazione (6960)]

Sheet Codici COIN
A1: Elenchi di codici per la Contabilità degli investimenti
A3: Elenchi di codici in questo foglio:
A4: - Categorie di investimento
A5: - Centri di costo
A8: Categorie d'investimento
A10: La categoria determina la durata di vita dell'investimento che a sua volta determina il tasso lineare di ammortamento.
A11: Spiegazione dei segni:
A12: - n/a = non applicabile, non pertinente
A13: - duesi = durata di utilizzo economica specifica dell'immobilizzazione; oiché per alcune categorie non esiste una durata di vita applicabile a tutti gli investimenti, essa deve essere definita per ogni singolo bene della categoria nel foglio "Investimenti"
A15: Categoria di investimento | B15: Nome della categoria nei diversi strumenti | E15: Categorie / Tipologie di attivi | F15: Durata | G15: Tasso | H15: Esempi di investimento che rientrano nella categoria | I15: Valori nel menu a tendina | J15: Durata nella
B16: REKOLE | C16: BILANCIO TI 2021 | D16: Conto per registrare l'ammortamento | F16: di vita in anni | G16: lineare di ammorta-mento | J16: colonna I del giornale
A17: Investimenti duraturi (con durata di vita indefinita) | B17: A0 | C17: 1500 | D17: 4420.00 | E17: Terreni | F17: n/a | G17: n/a | H17: Comprende i terreni edificati (mappale dove è ubicata la struttura) o non (es. appezzamenti di "riserva", sedimi ad uso di parco, giardino o parcheggio). Si registra unicamente il valore storico d'acquisto del terreno (separato dal valore dell’edificio!), utilizzando metodi di stima riconosciuti se si disponesse unicamente del valore congiunto terreno-edificio (in precedenza per la Statistica SOMED-A il valore del terreno è stato stimato secondo 3 fasce indicative di valore: CHF 100.- / mq per strutture ubicate in zone discoste e di montagna; CHF 300.-/ mq per zone periurbane e CHF 400.-/mq per zone cittadine o centrali). Tale categoria di attivo fisso non prevede ALCUN ammortamento, solo il calcolo degli interessi calcolatori! | I17: 1500 - Terreni | J17: n/a
A18: Investimenti con durata di vita lunga (>30 anni) | B18: An | C18: 1501 | D18: 4420.10 | E18: Edifici | F18: 33 | G18: 0.03 | H18: Comprende l’edificio principale usato quale Casa per anziani ed altri immobili a scopo aziendale o di reddito (legati all'attività di cure stazionarie o ambulatoriali della Casa): si registra solo il valore dell’edificio, separato dal valore del terreno! Es. nuove costruzioni, ampliamenti, ristrutturazioni / riattazioni. Interventi che toccano le "mura" e le strutture portanti esterne ed interne degli edifici! | I18: 1501 - Edifici | J18: =+F18 -> 33
A19: Investimenti con durata di vita media (tra 15 e 30 anni) Installazioni tecniche degli edifici | B19: Cn | C19: 1502 | D19: 4420.20 o 4420.30 | E19: Installazioni tecniche degli edifici | F19: 20 | G19: 0.05 | H19: Comprende le installazioni sanitarie, elettriche, di riscaldamento, di ventilazione, di climatizzazione, di sicurezza e i cablaggi. Es. impianti e condotte di riscaldamento e sanitari, caldaie; installazioni elettriche principali, cablatura reti Wi-Fi, impianti foto-voltaici, tapparelle e gelosie, tetti e lavori di carpenteria, verande, installazioni per la gestione di spazi esterni (impianti di irrigazione, apparecchi automatici per il pagamento del posteggio, ecc.). | I19: 1502 - Installazioni tecniche | J19: =+F19 -> 20
A20: Investimenti con durata di vita corta (tra 5 e 15 anni) | B20: D1 | C20: 1510 | D20: 4421.00 | E20: Mobilio, macchine industriali | F20: 10 | G20: 0.1 | H20: Comprende tutti i tipi di mobilio quali arredi per l'ufficio, tavoli, sedie, letti, scaffalature, sistemi di magazzino, ecc. Es. mobilio per ufficio (mobili, Cardex); arredamento di spazi comuni (sedie, tavoli); arredamento di spazi destinati al personale (armadietti, spogliatoi); arredamento di spazi per ospiti (letti, comodini, materassi); anche macchine industriali (lavatrici, asciugatrici, forni, cucine). | I20: 1510 - Mobilio, macch. industriali | J20: 10
B21: D2 | C21: 1511 | D21: 4421.10 | E21: Macchine per ufficio e sistemi di comunicazione | F21: 5 | G21: 0.2 | H21: Comprende tutte le macchine ed i sistemi di comunicazione non informatici. Es. macchine per ufficio (fax, stampanti, distruggi-documenti); telefonia e TV (apparecchia-ture telefoniche, centraline, radio, televisioni); sistemi d'allarme e antifurto, ecc. | I21: 1511 - Macch. per ufficio e comunicaz. | J21: 5
B22: D3 | C22: 1512 | D22: 4421.20 | E22: Veicoli | F22: 5 | G22: 0.2 | H22: Comprende tutti i tipi di veicoli. Es. ambulanze, automobili ad uso aziendale, pulmini, furgoni, trattorini, cala per neve, ecc. | I22: 1512 - Veicoli | J22: 5
B23: D4 | C23: 1513 | D23: 4421.30 | E23: Apparecchi e utensili d'esercizio | F23: 5 | G23: 0.2 | H23: Comprende tutti gli apparecchi ed utensili per attività di pulizia, cucina, giardinaggio e manutenzione. Es. apparecchi per pulizia (idro-pulitrici, lavapavimenti), per la lavanderia (piccole lavatrici e asciugatrici), per la cucina (piccoli forni, cucinette ai piani) e manutenzione (tagliaerba), utensili d'esercizio (carrelli porta-vivande e piatti), ecc. | I23: 1513 - Apparecchi e utensili d'eserciz. | J23: 5
B24: E1 | C24: 1514 | D24: 4421.40 | E24: Macchinari, apparecchiature e strumenti medico tecnici | F24: 8 | G24: 0.125 | H24: Comprende tutte le immobilizzazioni medico-tecniche. Es. macchinari medico-tecnici per le cure (ecografi, sollevatori, carrelli medici, macchine vuota-vasi), macchinari per fisioterapia e ergoterapia, ecc. | I24: 1514 - Apparecchiature medico-tecniche | J24: 8
A25: Investimento con durata di vita molto breve (3-5 anni) | C25: 1515/16 | D25: 4421.50 o 4421.60 | E25: Hardware e Software | F25: 4 | G25: 0.25 | H25: 1515: comprende tutte le apparecchiature informatiche. Es. server, PC, notebook, tablet, monitor, componenti di rete, estensioni (fisiche) di memorie, ecc. 1516: comprende tutti i software acquistati con un importo una tantum (mentre non rientrano i canoni annui di licenza e manutenzione!). Es. software amministrativi e gestionali (MS Office, ISAWin, Opale, e-Clinic, SAP, ecc.), software per la gestione e la qualità delle cure (RAI-RUG, ecc.), programmi informatici specifici, ecc. | I25: 1515/16 - Hard e software | J25: 4
A26: Costruzioni con durata provvisoria (<3 anni) | C26: da 1500 a 1700 | E26: Costruzioni con durata provvisoria (<3 anni) | F26: duesi | G26: duesi | H26: Installazioni esterne provvisorie (es. tendone) o altre infrastrutture, di durata inferiore ai 3 anni. | I26: Costruzioni provvisorie
A27: Progetti pluriannuali prima di inizio uso, costruzioni in corso | C27: da 1500 a 1700 | E27: Progetti e costruzioni in corso | F27: duesi | G27: duesi | H27: Di regola per nuove costruzioni, ampliamenti, ristrutturazioni / riattazioni di importanza rilevante; la durata di vita economica e il valore d'investimento tot. prende avvio alla conclusione dei lavori (o occupazione dei nuovi spazi da parte dei primi ospiti). | I27: Progetti in corso
A30: Elenco dei centri di costo usati nei vari strumenti
A32: Spiegazione dei segni:
A33: - i centri di costo tra parentesi non sono utilizzati nel relativo sistema
A34: - il centro di costo Terapie LAMal, somma di 130-131-132, non è previsto nel menu a tendina poiché non è usato (come somma) nel sistema COAN TI 2021
A35: - in rosso i cambiamenti introdotti dall'UST rispetto alla versione precedente
A36: - n/a : centro di costo non incluso in SOMED (SOMED rileva i dati solo della parte "Istituto di cura LAMal")
A37: - la colorazione dello sfondo del centro di costo è la stessa usata nel foglio "Ripartizioni"
A40: Categoria di centro di costo | B40: Numero del CC nei diversi strumenti | E40: Denominazione del centro di costo | H40: Valori nel menu a tendina
B41: COAN TI 2021 | C41: SOMED 2021
A42: CC-Generali | B42: 010 | C42: 010 | E42: Edifici | H42: =CONCATENATE(B42," - ",E42) -> 010 - Edifici
B43: 011 | C43: 015 | E43: Energia | H43: =CONCATENATE(B43," - ",E43) -> 011 - Energia
B44: 020 | C44: 020 | E44: Servizio tecnico | H44: 020 - Servizio tecnico
B45: 021 | C45: 021 | E45: Servizio trasporti | H45: 021 - Servizio trasporti
B46: 030 | C46: 030 | E46: Direzione e amministrazione | H46: 030 - Direzione e amministrazione
B47: 040 | C47: 040 | E47: Economia domestica in generale | H47: 040 - Economia domestica in generale
B48: 041 | C48: 041 | E48: Lavanderia | H48: 041 - Lavanderia
B49: 042 | C49: 042 | E49: Pulizia | H49: 042 - Pulizia
B50: 060 | C50: 060 | E50: Cucina | H50: 060 - Cucina
B51: 090 | C51: 090 | E51: Magazzino centrale | H51: 090 - Magazzino centrale
B52: 095 | C52: 095 | E52: Farmacia | H52: 095 - Farmacia
A54: CC-Principali | B54: 100 | C54: 220 | E54: Servizio alberghiero | H54: =CONCATENATE(B54," - ",E54) -> 100 - Servizio alberghiero
B55: 110 | C55: 230 | E55: Animazione (Assistenza non LAMal) | H55: =CONCATENATE(B55," - ",E55) -> 110 - Animazione (Assistenza non LAMal)
B56: 115 | C56: 231 | E56: Cure LAMal | H56: 115 - Cure LAMal
B57: (130-132) | C57: 241 | E57: Terapie LAMal (fisio+ergo+altre)
B58: 130 | C58: (241a) | E58: Fisioterapia | H58: 130 - Fisioterapia
B59: 131 | C59: (241b) | E59: Ergoterapia | H59: 131 - Ergoterapia
B60: 132 | C60: (241c) | E60: Altre consulenze e terapie | H60: 132 - Altre consulenze e terapie
B61: 140 | C61: 240 | E61: Servizio medico | H61: 140 - Servizio medico
B62: 150 | C62: 250 | E62: Materiale EMAp | H62: 150 - Materiale EMAp
B63: 151 | C63: 251 | E63: Medicamenti ES/EMT | H63: 151 - Medicamenti ES/EMT
A65: CC-Servizi Annessi | B65: 160 | C65: 160 | E65: Cure acute transitorie (CAT) | H65: =CONCATENATE(B65," - ",E65) -> 160 - Cure acute transitorie (CAT)
B66: 161 | C66: 161 | E66: Soggiorni terapeutici temporanei (STT) | H66: =CONCATENATE(B66," - ",E66) -> 161 - Soggiorni terapeutici temporanei (STT)
B67: 162 | C67: 162 | E67: Cure palliative | H67: 162 - Cure palliative
B68: 163 | C68: 163 | E68: Reparto Alzheimer | H68: 163 - Reparto Alzheimer
B69: 16X | C69: 16X | E69: Stazionario n | H69: 16X - Stazionario n
B70: 170 | C70: (n/a) | E70: Ambulatorio medico | H70: 170 - Ambulatorio medico
B71: 171 | C71: 171 | E71: Centro diurno terapeutico (CDT) | H71: 171 - Centro diurno terapeutico (CDT)
B72: 172 | C72: (n/a) | E72: Appartamenti protetti | H72: 172 - Appartamenti protetti
B73: 17X | C73: (n/a) | E73: Ambulatorio n (es. CD socio-assistenziale) | H73: 17X - Ambulatorio n (es. CD socio-assistenziale)
A75: CC-Gestione estranea | B75: 9XX | C75: (n/a) | E75: Gestione estranea | H75: =CONCATENATE(B75," - ",E75) -> 9XX - Gestione estranea

Sheet Cespiti ContabilitàInvestimenti
A1: Contabilità degli investimenti (valori al lordo per tutti gli investimenti a bilancio)
A2: =Parametri!$B$7 -> 2021 | B2: =Parametri!$B$3 -> ESEMPIO - CPA STANDARD CON CAT-STT | F2: Data di calcolo: | G2: =Parametri!$B$17 -> 2021-12-31
AD4: Ripartizione calcolatoria dei costi di utilizzo annuali, in base a colonne AJ-AN | AI4: Contributi e sovvenzioni iniziali totali all'investimento | AO4: Ripartizione degli ammortamenti annui
A5: Identificativo investimento* | B5: Quantità* | C5: Oggetto* | D5: Marca/tipo | E5: Ubicazione | F5: Fornitore | G5: Centro di costo* | H5: Data di acquisto* | I5: Anni vita economica | J5: Categoria d'investimento* | K5: Prezzo al pezzo* | L5: Costi d'installazione* | M5: Valore iniziale totale d'investimento | N5: Ammortamento calcolatorio annuo | O5: Ammortamento calcolatorio annuo, riconosciuto LAMal | P5: Conto COFI/COAN per registrazione dell'ammortamento | Q5: Durata di vita residua | R5: Investimento ancora attivo | S5: Mesi utilizzati durante l'anno | T5: Val. invest. al 31.12. dopo ammortamento | U5: Val. invest. LAMal dopo ammort. senza amm. eccess. | V5: Val. invest. per calcolo interessi | W5: Interessi calcolatori annui | X5: Interessi calcolatori annui, riconosciuti LAMal | Y5: Canone di locazione COAN-COIN | Z5: Quota riconosciuta LAMal (in %) | AA5: Data del disinvestimento o eliminazione | AB5: Valore del disinvestimento | AC5: Osservazioni | AD5: Costi calcolatori annui totali di utilizzo | AE5: di cui a carico dei Comuni (6900) | AF5: di cui a carico del Cantone (6950) | AG5: di cui a carico della Confederazione (6960) | AH5: di cui a carico di Enti privati (fondaz., associaz., coop., SA, donazioni) (6970) | AI5: Finanziamento totale | AJ5: Contributi dei Comuni (6900) | AK5: Contributi dei Cantoni (6950) | AL5: Contributi della Confederazione (6960) | AM5: Utilizzo fondo 3 manutenzione e investimenti | AN5: Contributi di Enti privati (fondaz., associaz., coop., SA, donazioni) (6970) | AO5: Sterilizzazione contributi comunali | AP5: Sterilizzazione contributi cantonali | AQ5: Sterilizzazione contributi Confederazione
A6: (TESTO | B6: (NO. INTERO) | C6: (TESTO) | D6: (TESTO) | E6: (TESTO) | F6: (TESTO) | G6: (ELENCO) | H6: (GG.MM.AAAA) | I6: (NO. INTERO) | J6: (ELENCO) | K6: (NO. INTERO) | L6: (NO. INTERO) | M6: (NO. INTERO) | N6: (NO. DECIMALE) | O6: (NO. DECIMALE) | P6: (TESTO) | Q6: (NO. DECIMALE) | R6: (Sì, No) | S6: (NO. INTERO) | T6: (NO. DECIMALE) | U6: (NO. DECIMALE) | V6: (NO. DECIMALE) | W6: (NO. DECIMALE) | X6: (NO. DECIMALE) | Y6: (NO. DECIMALE) | Z6: (NO. INTERO) | AA6: (GG.MM.AAAA) | AB6: (NO. DECIMALE) | AC6: (TESTO) | AK6: =AI6*0.3 -> 0 | AS6: check
A7: 1500-00 | B7: 1 | C7: Terreno CPA | E7: Mapp. XXX RFD, 6500 Bellinzona (10'000 mq) | G7: 010 - Edifici | H7: 1995-06-01 | I7: =IFERROR(VLOOKUP(MID(J7,1,SEARCH("-",J7,1)-2),'Codici COIN'!$C$16:$J$27,8,FALSE),"") -> n/a | J7: 1500 - Terreni | K7: 4000000 | M7: =B7*K7+L7 -> 4000000 | N7: =IF(OR(I7="n/a",M7=1,H7<=0),0,M7/I7*S7/12) -> 0 | O7: =N7*Z7 -> 0 | P7: 4420.00 | Q7: =IF(OR(I7="n/a",H7=0),0,MAX(I7-(DATEDIF(H7,$G$2,"M")+1)/12,0)) -> 0 | R7: =IF(H7<=0,"",IF(AA7>0,"No, dismesso","Sì")) -> Sì | S7: =IF(H7=0,0,IF(R7="Sì",IF(YEAR(H7)=YEAR($G$2),12-MONTH(H7)+1,IF(YEAR(H7)+IF(I7="n/a",999,I7)=YEAR($G$2),MONTH(H7)-1,IF(YEAR(H7)+IF(I7="n/a",999,I7)<YEAR($G$2),0,12))),IF(AND(AA7>0,YEAR(AA7)<YEAR($G$2)),0,MAX(0,MIN(MONTH(AA7),IF(I7="n/a",999,I7)*12-DATEDIF(H7,DATE(YEAR($G$2),1,1),"M")))))) -> 12 | T7: =IF(R7<>"Sì",0,IF(J7='Codici COIN'!$I$17,M7,IF(Q7=0,1,IF(H7>0,M7*Q7/I7,0)))) -> 4000000 | U7: =+T7*Z7 -> 0 | V7: =IF(AND(T7=1,S7=0),0,IF(J7='Codici COIN'!$I$17,M7,M7/2)) -> 4000000 | W7: =V7*Parametri!$B$13*S7/12 -> 148000 | X7: =IF(V7>0,W7*Z7,0) -> 0 | AB7: =IF(AA7>0,IF(I7="n/a",M7,MAX(0,(I7-(DATEDIF(H7,AA7,"M")+1)/12)*M7/I7)),"") ->  | AC7: Prezzo del terreno a scopo "sociale" stimato SOMED-A in CHF 400.-/mq, terreno di proprietà | AD7: =N7+W7 -> 148000 | AE7: =IF($M7>0,($AD7/$M7)*(AJ7+80%*$AM7),0) -> 0 | AF7: =IF($M7>0,($AD7/$M7)*(AK7+20%*$AM7),0) -> 0 | AG7: =IF($M7>0,($AD7/$M7)*(AL7),0) -> 0 | AH7: =IF($M7>0,($AD7/$M7)*AN7,0) -> 148000 | AI7: =M7 -> 4000000 | AN7: =AI7-AJ7-AK7-AL7-AM7 -> 4000000 | AO7: =IF(M7>0,$N7/$M7*AJ7,0) -> 0 | AP7: =IF(M7>0,$N7/$M7*AK7,0) -> 0 | AQ7: =IF(M7>0,$N7/$M7*AL7,0) -> 0 | AS7: =SUM(Tabella1[[#This Row],[Contributi dei Comuni (6900)]:[Contributi di Enti privati (fondaz., associaz., coop., SA, donazioni) (6970)]])-Tabella1[[#This Row],[Finanziamento totale]] -> 0
A8: 1501-01 | B8: 1 | C8: Edificazione CPA (cure stazionarie) | E8: Via Locarno 100, 6500 Bellinzona | F8: diversi | G8: 010 - Edifici | H8: 1995-06-01 | I8: =IFERROR(VLOOKUP(MID(J8,1,SEARCH("-",J8,1)-2),'Codici COIN'!$C$16:$J$27,8,FALSE),"") -> 33 | J8: 1501 - Edifici | K8: 16000000 | M8: =B8*K8+L8 -> 16000000 | N8: =IF(OR(I8="n/a",M8=1,H8<=0),0,M8/I8*S8/12) -> 484848.4848 | O8: 0 | P8: 4420.10 | Q8: 6.416666667 | R8: Sì | S8: 12 | T8: =IF(R8<>"Sì",0,IF(J8='Codici COIN'!$I$17,M8,IF(Q8=0,1,IF(H8>0,M8*Q8/I8,0)))) -> 3111111.111 | U8: 0 | V8: =IF(AND(T8=1,S8=0),0,IF(J8='Codici COIN'!$I$17,M8,M8/2)) -> 8000000 | W8: =V8*Parametri!$B$13*S8/12 -> 296000 | X8: 0 | AC8: Apertura CPA 1.06.1995. Piano di finanziam.: 30% Lanz; 30% Confed. (AVS); 20% mezzi propri; 20% mutuo bancario NON riconosciuto | AD8: 780848.4848 | AE8: 0 | AF8: 234254.5455 | AG8: 234254.5455 | AH8: 312339.3939 | AI8: 16000000 | AK8: 4800000 | AL8: 4800000 | AN8: =AI8-AJ8-AK8-AL8-AM8 -> 6400000 | AO8: =IF(M8>0,$N8/$M8*AJ8,0) -> 0 | AP8: 145454.5455 | AQ8: =IF(M8>0,$N8/$M8*AL8,0) -> 145454.5455 | AS8: =SUM(Tabella1[[#This Row],[Contributi dei Comuni (6900)]:[Contributi di Enti privati (fondaz., associaz., coop., SA, donazioni) (6970)]])-Tabella1[[#This Row],[Finanziamento totale]] -> 0
A9: 1501-02 | B9: 1 | C9: Ristrutturazione CPA 2015 | E9: CPA | F9: diversi | G9: 010 - Edifici | H9: 2015-12-31 | I9: =IFERROR(VLOOKUP(MID(J9,1,SEARCH("-",J9,1)-2),'Codici COIN'!$C$16:$J$27,8,FALSE),"") -> 33 | J9: 1501 - Edifici | K9: 5000000 | M9: 5000000 | N9: 151515.1515 | O9: 0 | P9: 4420.10 | Q9: 26.91666667 | R9: Sì | S9: 12 | T9: =IF(R9<>"Sì",0,IF(J9='Codici COIN'!$I$17,M9,IF(Q9=0,1,IF(H9>0,M9*Q9/I9,0)))) -> 4078282.828 | U9: 0 | V9: =IF(AND(T9=1,S9=0),0,IF(J9='Codici COIN'!$I$17,M9,M9/2)) -> 2500000 | W9: =V9*Parametri!$B$13*S9/12 -> 92500 | X9: 0 | AC9: Lavori terminati 31.12.2013. Piano di finanziam.: 50% Lanz; 20% utilizzo Fondo 1; 30% mutuo bancario RICONOSCIUTO Lanz | AD9: 244015.1515 | AE9: 97606.06061 | AF9: 146409.0909 | AG9: 0 | AH9: 0 | AI9: 5000000 | AJ9: 1200000 | AK9: 2800000 | AM9: 1000000 | AN9: 0 | AO9: 36363.63636 | AP9: 84848.48485 | AQ9: 0 | AS9: =SUM(Tabella1[[#This Row],[Contributi dei Comuni (6900)]:[Contributi di Enti privati (fondaz., associaz., coop., SA, donazioni) (6970)]])-Tabella1[[#This Row],[Finanziamento totale]] -> 0
